Workbook

Sheet README
A1: This template ingests data into tables in tabbed worksheets and uses queries and connections to process and validate inputs. Validation test results are queries loaded into hidden worksheets and retrieved via standard Excel workbook functions in the "Validation Overview" worksheet with a golden tab. All queries can be accessed from the "Data" menu -> "Queries & Connections" -> "Queries & Connections". A valid monthly showing consists of general resource allocations specified in the table on the A1"LSE Showing" worksheet along with custom slice-of-day profiles for any resources for which the default profile is not desired, and a certification of showing with information about the load-serving entity submitting the showing. The "LSEShowing" query merges the general showing, custom profiles, and default profiles to build the complete showing data table. Only the three worksheets corresponding to these tables, denoted with blue tabs, should be altered when preparing a monthly showing: "Certification", "LSE Showing", and "Resource Custom Profiles". A fourth worksheet, denoted with a lighter blue tab and labelled "Profile Optimization", provides a tool for automatically allocating operating hours for resources shown using default profiles from the Resource Database. All showing data for each resource, including custom and automatically optimized profiles along, is presented in the "LSE Showing Complete" worksheet. This sheet is for reference only and should not be edited. Hidden worksheets may be unhidden by right-clicking on any tab and selecting "Unhide Sheets".

Sheet Certification
A1: Monthly Showing Certification Form
A2: Load Serving Entity: | B2: LSE_1
A3: Showing Month: | B3: 45536
A4: Date of Filing: | B4: 45457
A5: Load Basis:
A6: Flex Category:
A8: Consistent with Rules 1 and 2.4 of the CPUC's Rules of Practice and Procedure, this resource adequacy showing has been verified by an officer of the corporation, who shall expressly certify, under penalty of perjury, the following: 1. I have responsibility for the activities reflected in this showing; 2. I have reviewed, or have caused to be reviewed, this showing; 3. Based on my knowledge, information, or belief, this filing does not contain any untrue statement of a material fact or omit to state a material fact necessary to make the statements made; 4. Based on my knowledge, information, or belief, this filing contains all of the information required to be provided by CPUC orders, rules, and regulations.
A10: LSE Officer Information
A11: Title: | B11: Manager
A12: Name: | B12: Janet Doe
A13: Email: | B13: jdoe@lse1.com
A14: Phone: | B14: 123-555-0000
A16: Backup Contact Information
A17: Title: | B17: Assistant to the Manager
A18: Name: | B18: Jimothy Dee
A19: Email: | B19: jdee@lse1.com
A20: Phone: | B20: 123-555-0001
A22: Load Serving Entity Information
A23: LSE Address Line 1: | B23: 123 Fake Street
A24: LSE Address Line 2:
A25: LSE City: | B25: Rancho Irreal
A26: LSE State: | B26: CA
A27: LSE Zip: | B27: 97531

Sheet Certification Table (hidden)
A1: Key | B1: Value
A2: Load Serving Entity | B2: ='Certification'!B2 -> LSE_1
A3: Showing Month | B3: ='Certification'!B3 -> 2024-09-01
A4: Date of Filing | B4: ='Certification'!B4 -> 2024-06-14
A5: Load Basis | B5: ='Certification'!B5 -> 0
A6: Flex Category | B6: ='Certification'!B6 -> 0
A7: Contact 1 Title | B7: ='Certification'!B11 -> Manager
A8: Contact 1 Name | B8: ='Certification'!B12 -> Janet Doe
A9: Contact 1 Email | B9: ='Certification'!B13 -> jdoe@lse1.com
A10: Contact 1 Phone | B10: ='Certification'!B14 -> 123-555-0000
A11: Contact 2 Title | B11: ='Certification'!B17 -> Assistant to the Manager
A12: Contact 2 Name | B12: ='Certification'!B18 -> Jimothy Dee
A13: Contact 2 Email | B13: ='Certification'!B19 -> jdee@lse1.com
A14: Contact 2 Phone | B14: ='Certification'!B20 -> 123-555-0001
A15: Address 1 | B15: ='Certification'!B23 -> 123 Fake Street
A16: Address 2 | B16: ='Certification'!B24 -> 0
A17: City | B17: ='Certification'!B25 -> Rancho Irreal
A18: State | B18: ='Certification'!B26 -> CA
A19: Zip | B19: ='Certification'!B27 -> 97531

Sheet LSE Showing
A1: Contract ID | B1: Resource ID | C1: Resource SubID | D1: NQC or VER Under Contract (MW) | E1: Local RA (MW) | F1: Committed Flexible RA (MW) | G1: Capacity Effective Start Date | H1: Capacity Effective End Date | I1: SCID or Counterparty if not available | J1: MCC Bucket 4 | K1: Unspecified Import | L1: Use Default Profile
A2: CAM Storage | B2: CAM Storage 2 | D2: 20 | E2: 0 | F2: 0 | G2: 2024-09-01 | H2: 2024-09-30 | I2: TEST | J2: FALSE | K2: FALSE | L2: FALSE
A3: Contract 1 | B3: LNCSTR_6_SOLAR2 | C3: LNCSTR_6_SOLAR2_SUN | D3: 3 | E3: 0 | F3: 3 | G3: 2024-09-01 | H3: 2024-09-30 | I3: TEST | J3: FALSE | K3: FALSE | L3: TRUE
A4: Contract 1 | B4: LNCSTR_6_SOLAR2 | C4: LNCSTR_6_SOLAR2_LESR | D4: 5.25 | E4: 0 | F4: 5.25 | G4: 2024-09-01 | H4: 2024-09-30 | I4: TEST | J4: TRUE | K4: FALSE | L4: FALSE
A5: Contract 2 | B5: PWEST_1_UNIT | D5: 2.1 | E5: 0 | F5: 0 | G5: 2024-09-01 | H5: 2024-09-30 | I5: TEST | J5: FALSE | K5: FALSE | L5: TRUE
A6: Contract 3 | B6: PRIMM_2_SOLAR1 | D6: 10 | E6: 0 | F6: 0 | G6: 2024-09-01 | H6: 2024-09-30 | I6: TEST | J6: FALSE | K6: FALSE | L6: TRUE
A7: Contract 4 | B7: TIGRCK_7_UNITS | D7: 5 | E7: 0 | F7: 5 | G7: 2024-09-01 | H7: 2024-09-30 | I7: TEST | J7: FALSE | K7: FALSE | L7: TRUE
A8: Contract 5 | B8: ACACIA_6_SOLAR | D8: 20 | E8: 2.22 | F8: 0 | G8: 2024-09-01 | H8: 2024-09-30 | I8: TEST | J8: FALSE | K8: FALSE | L8: TRUE
A9: Contract 6 | B9: ALAMO_6_UNIT | D9: 9.54 | E9: 9.54 | F9: 9.54 | G9: 2024-09-01 | H9: 2024-09-30 | I9: TEST | J9: FALSE | K9: FALSE | L9: TRUE
A10: Contract 7 | B10: VOYAGR_2_VOYWD3 | D10: 42.45 | E10: 0 | F10: 0 | G10: 2024-09-01 | H10: 2024-09-30 | I10: TEST | J10: FALSE | K10: FALSE | L10: TRUE
A11: Contract 7 | B11: JOANEC_2_ST3BT3 | D11: 20 | E11: 0 | F11: 40 | G11: 2024-09-01 | H11: 2024-09-30 | I11: TEST | J11: FALSE | K11: FALSE | L11: FALSE
A12: Contract 8 | B12: 7STDRD_1_SOLAR1 | D12: 20 | E12: 0 | F12: 0 | G12: 2024-09-01 | H12: 2024-09-30 | I12: TEST | J12: FALSE | K12: FALSE | L12: TRUE
A13: Contract 9 | B13: ALTWD_2_COAWD1 | D13: 5.67 | E13: 5.67 | F13: 0 | G13: 2024-09-01 | H13: 2024-09-30 | I13: TEST | J13: FALSE | K13: FALSE | L13: TRUE
A14: Contract 10 | B14: ALAMIT_7_ES1 | D14: 10 | E14: 10 | F14: 20 | G14: 2024-09-01 | H14: 2024-09-30 | I14: TEST | J14: TRUE | K14: FALSE | L14: FALSE
A15: Contract 11 | B15: SUTTER_2_CISO | D15: 25 | F15: 25 | G15: 2024-09-01 | H15: 2024-09-30 | I15: TEST | J15: FALSE | K15: FALSE | L15: TRUE
A16: Contract 12 | B16: SCE1_MALIN500_I_F_121212 | D16: 10 | G16: 2024-09-01 | H16: 2024-09-30 | I16: TEST | J16: FALSE | K16: TRUE | L16: FALSE
A17: Contract 13 | B17: SCE1_MALIN500_I_F_131313 | D17: 10 | G17: 2024-09-01 | H17: 2024-09-30 | I17: TEST | J17: FALSE | K17: TRUE | L17: FALSE

Sheet Resource Custom Profiles
A1: Resource ID | B1: Resource SubID | C1: MW HE 1 | D1: MW HE 2 | E1: MW HE 3 | F1: MW HE 4 | G1: MW HE 5 | H1: MW HE 6 | I1: MW HE 7 | J1: MW HE 8 | K1: MW HE 9 | L1: MW HE 10 | M1: MW HE 11 | N1: MW HE 12 | O1: MW HE 13 | P1: MW HE 14 | Q1: MW HE 15 | R1: MW HE 16 | S1: MW HE 17 | T1: MW HE 18 | U1: MW HE 19 | V1: MW HE 20 | W1: MW HE 21 | X1: MW HE 22 | Y1: MW HE 23 | Z1: MW HE 24
A2: SCE1_MALIN500_I_F_121212 | C2: 10 | D2: 10 | E2: 10 | F2: 10 | G2: 10 | H2: 10 | I2: 10 | J2: 10 | K2: 10 | L2: 10 | M2: 10 | N2: 10 | O2: 10 | P2: 10 | Q2: 10 | R2: 10 | S2: 10 | T2: 10 | U2: 10 | V2: 10 | W2: 10 | X2: 10 | Y2: 10 | Z2: 10
A3: SCE1_MALIN500_I_F_131313 | C3: 0 | D3: 0 | E3: 0 | F3: 0 | G3: 0 | H3: 0 | I3: 0 | J3: 0 | K3: 0 | L3: 0 | M3: 0 | N3: 0 | O3: 0 | P3: 0 | Q3: 0 | R3: 0 | S3: 0 | T3: 10 | U3: 10 | V3: 10 | W3: 10 | X3: 0 | Y3: 0 | Z3: 0

Sheet Profile Optimization
E1: Resource or Group Hourly Optimization | K1: Unshown Resource Adequacy | P1: Resource or Group Information
E2: Optimization Group ID | F2: Hour Ending | G2: Show Hour | H2: Shown MW | I2: State-of-Charge | K2: Hour Ending | L2: Remaining Required MW | M2: Shown MW | N2: Objective Function | P2: Optimization Group ID | Q2: Combined IDs | R2: NQC or VER Under Contract (MW) | S2: Daily Storage Cycle Physical Capability | T2: Storage Efficiency | U2: Maximum Continuous Energy (MWh) | V2: Storage Maximum Daily MWh | W2: Difference Daily MWh
E3: ALAMIT_7_ES1 | F3: 1 | G3: 0 | H3: =Table_LSEShowingProfilesForOptimization[[#This Row],[Show Hour]]*SUMIF(Export_ResourceGroupsForOptimization[Optimization Group ID],Table_LSEShowingProfilesForOptimization[[#This Row],[Optimization Group ID]],Export_ResourceGroupsForOptimization[NQC or VER Under Contract (MW)]) -> 0 | I3: =IF( Table_LSEShowingProfilesForOptimization[[#This Row],[Hour Ending]]<=OFFSET(Table_LSEShowingProfilesForOptimization[[#This Row],[Hour Ending]],-1,0), IF( Table_LSEShowingProfilesForOptimization[[#This Row],[Shown MW]]>0, -Table_LSEShowingProfilesForOptimization[[#This Row],[Shown MW]], MIN( 100%, VLOOKUP(Table_LSEShowingProfilesForOptimization[[#This Row],[Optimization Group ID]],Export_ResourceGroupsForOptimization[],3) *VLOOKUP(Table_LSEShowingProfilesForOptimization[[#This Row],[Optimization Group ID]],Export_ResourceGroupsForOptimization[],5) /VLOOKUP(Table_LSEShowingProfilesForOptimization[[#This Row],[Optimization Group ID]],Export_ResourceGroupsForOptimization[],6) ) ), IF( Table_LSEShowingProfilesForOptimization[[#This Row],[Shown MW]]>0, OFFSET(Table_LSEShowingProfilesForOptimization[[#This Row],[State-of-Charge]],-1,0)-Table_LSEShowingProfilesForOptimization[[#This Row],[Shown MW]]/VLOOKUP(Table_LSEShowingProfilesForOptimization[[#This Row],[Optimization Group ID]],Export_ResourceGroupsForOptimization[],6), MIN( OFFSET(Table_LSEShowingProfilesForOptimization[[#This Row],[State-of-Charge]],-1,0) +VLOOKUP(Table_LSEShowingProfilesForOptimization[[#This Row],[Optimization Group ID]],Export_ResourceGroupsForOptimization[],3) *VLOOKUP(Table_LSEShowingProfilesForOptimization[[#This Row],[Optimization Group ID]],Export_ResourceGroupsForOptimization[],5) /VLOOKUP(Table_LSEShowingProfilesForOptimization[[#This Row],[Optimization Group ID]],Export_ResourceGroupsForOptimization[],6), 100% ) ) ) -> 0.02275 | K3: 1 | L3: -10.662 | M3: =SUMIF(Table_LSEShowingProfilesForOptimization[Hour Ending],Export_LSEShowingUnshownRequirement[[#This Row],[Hour Ending]],Table_LSEShowingProfilesForOptimization[Shown MW]) -> 0 | N3: =(Export_LSEShowingUnshownRequirement[[#This Row],[Remaining Required MW]]-Export_LSEShowingUnshownRequirement[[#This Row],[Shown MW]])^2 -> 113.678244 | P3: ALAMIT_7_ES1 | Q3: ALAMIT_7_ES1 | R3: 10 | S3: 2.86 | T3: 0.91 | U3: 400 | V3: 1142 | W3: =Export_ResourceGroupsForOptimization[[#This Row],[Storage Maximum Daily MWh]]-SUMIF(Table_LSEShowingProfilesForOptimization[Optimization Group ID],Export_ResourceGroupsForOptimization[[#This Row],[Optimization Group ID]],Table_LSEShowingProfilesForOptimization[Shown MW]) -> 1132.439411
E4: ALAMIT_7_ES1 | F4: 2 | G4: 0.01447235999 | H4: =Table_LSEShowingProfilesForOptimization[[#This Row],[Show Hour]]*SUMIF(Export_ResourceGroupsForOptimization[Optimization Group ID],Table_LSEShowingProfilesForOptimization[[#This Row],[Optimization Group ID]],Export_ResourceGroupsForOptimization[NQC or VER Under Contract (MW)]) -> 0.1447235999 | I4: =IF( Table_LSEShowingProfilesForOptimization[[#This Row],[Hour Ending]]<=OFFSET(Table_LSEShowingProfilesForOptimization[[#This Row],[Hour Ending]],-1,0), IF( Table_LSEShowingProfilesForOptimization[[#This Row],[Shown MW]]>0, -Table_LSEShowingProfilesForOptimization[[#This Row],[Shown MW]], MIN( 100%, VLOOKUP(Table_LSEShowingProfilesForOptimization[[#This Row],[Optimization Group ID]],Export_ResourceGroupsForOptimization[],3) *VLOOKUP(Table_LSEShowingProfilesForOptimization[[#This Row],[Optimization Group ID]],Export_ResourceGroupsForOptimization[],5) /VLOOKUP(Table_LSEShowingProfilesForOptimization[[#This Row],[Optimization Group ID]],Export_ResourceGroupsForOptimization[],6) ) ), IF( Table_LSEShowingProfilesForOptimization[[#This Row],[Shown MW]]>0, OFFSET(Table_LSEShowingProfilesForOptimization[[#This Row],[State-of-Charge]],-1,0)-Table_LSEShowingProfilesForOptimization[[#This Row],[Shown MW]]/VLOOKUP(Table_LSEShowingProfilesForOptimization[[#This Row],[Optimization Group ID]],Export_ResourceGroupsForOptimization[],6), MIN( OFFSET(Table_LSEShowingProfilesForOptimization[[#This Row],[State-of-Charge]],-1,0) +VLOOKUP(Table_LSEShowingProfilesForOptimization[[#This Row],[Optimization Group ID]],Export_ResourceGroupsForOptimization[],3) *VLOOKUP(Table_LSEShowingProfilesForOptimization[[#This Row],[Optimization Group ID]],Export_ResourceGroupsForOptimization[],5) /VLOOKUP(Table_LSEShowingProfilesForOptimization[[#This Row],[Optimization Group ID]],Export_ResourceGroupsForOptimization[],6), 100% ) ) ) -> 0.022388191 | K4: 2 | L4: -8.6576 | M4: =SUMIF(Table_LSEShowingProfilesForOptimization[Hour Ending],Export_LSEShowingUnshownRequirement[[#This Row],[Hour Ending]],Table_LSEShowingProfilesForOptimization[Shown MW]) -> 1.342398342 | N4: =(Export_LSEShowingUnshownRequirement[[#This Row],[Remaining Required MW]]-Export_LSEShowingUnshownRequirement[[#This Row],[Shown MW]])^2 -> 99.99996685 | P4: CAM Storage 2 | Q4: CAM Storage 2 | R4: 20 | S4: 2.79 | T4: 0.87 | U4: 80 | V4: 1000 | W4: =Export_ResourceGroupsForOptimization[[#This Row],[Storage Maximum Daily MWh]]-SUMIF(Table_LSEShowingProfilesForOptimization[Optimization Group ID],Export_ResourceGroupsForOptimization[[#This Row],[Optimization Group ID]],Table_LSEShowingProfilesForOptimization[Shown MW]) -> 961.7576613
E5: ALAMIT_7_ES1 | F5: 3 | G5: 0.04144844891 | H5: =Table_LSEShowingProfilesForOptimization[[#This Row],[Show Hour]]*SUMIF(Export_ResourceGroupsForOptimization[Optimization Group ID],Table_LSEShowingProfilesForOptimization[[#This Row],[Optimization Group ID]],Export_ResourceGroupsForOptimization[NQC or VER Under Contract (MW)]) -> 0.4144844891 | I5: =IF( Table_LSEShowingProfilesForOptimization[[#This Row],[Hour Ending]]<=OFFSET(Table_LSEShowingProfilesForOptimization[[#This Row],[Hour Ending]],-1,0), IF( Table_LSEShowingProfilesForOptimization[[#This Row],[Shown MW]]>0, -Table_LSEShowingProfilesForOptimization[[#This Row],[Shown MW]], MIN( 100%, VLOOKUP(Table_LSEShowingProfilesForOptimization[[#This Row],[Optimization Group ID]],Export_ResourceGroupsForOptimization[],3) *VLOOKUP(Table_LSEShowingProfilesForOptimization[[#This Row],[Optimization Group ID]],Export_ResourceGroupsForOptimization[],5) /VLOOKUP(Table_LSEShowingProfilesForOptimization[[#This Row],[Optimization Group ID]],Export_ResourceGroupsForOptimization[],6) ) ), IF( Table_LSEShowingProfilesForOptimization[[#This Row],[Shown MW]]>0, OFFSET(Table_LSEShowingProfilesForOptimization[[#This Row],[State-of-Charge]],-1,0)-Table_LSEShowingProfilesForOptimization[[#This Row],[Shown MW]]/VLOOKUP(Table_LSEShowingProfilesForOptimization[[#This Row],[Optimization Group ID]],Export_ResourceGroupsForOptimization[],6), MIN( OFFSET(Table_LSEShowingProfilesForOptimization[[#This Row],[State-of-Charge]],-1,0) +VLOOKUP(Table_LSEShowingProfilesForOptimization[[#This Row],[Optimization Group ID]],Export_ResourceGroupsForOptimization[],3) *VLOOKUP(Table_LSEShowingProfilesForOptimization[[#This Row],[Optimization Group ID]],Export_ResourceGroupsForOptimization[],5) /VLOOKUP(Table_LSEShowingProfilesForOptimization[[#This Row],[Optimization Group ID]],Export_ResourceGroupsForOptimization[],6), 100% ) ) ) -> 0.02135197978 | K5: 3 | L5: -6.1554 | M5: =SUMIF(Table_LSEShowingProfilesForOptimization[Hour Ending],Export_LSEShowingUnshownRequirement[[#This Row],[Hour Ending]],Table_LSEShowingProfilesForOptimization[Shown MW]) -> 3.844599283 | N5: =(Export_LSEShowingUnshownRequirement[[#This Row],[Remaining Required MW]]-Export_LSEShowingUnshownRequirement[[#This Row],[Shown MW]])^2 -> 99.99998566 | P5: JOANEC_2_ST3BT3 | Q5: JOANEC_2_ST3BT3 | R5: 20 | S5: 1 | T5: 0.8 | U5: 160 | V5: 160 | W5: =Export_ResourceGroupsForOptimization[[#This Row],[Storage Maximum Daily MWh]]-SUMIF(Table_LSEShowingProfilesForOptimization[Optimization Group ID],Export_ResourceGroupsForOptimization[[#This Row],[Optimization Group ID]],Table_LSEShowingProfilesForOptimization[Shown MW]) -> 121.7576613
A6: How to Optimize Storage Resources: 1. Add one or more storage resources to the LSE Showing worksheet and set "Default Profile" to "FALSE". 2. Do not create an entry in the Resource Custom Profiles worksheet for these resources. 3. Click the "Refresh Tables" button and wait for the three tables to finish updating (refresh status appears at the bottom of the Excel window). 4. Click the "Reset Shown Hours" button to set all values in the Show Hour column to zero. 5. Click the "Optimize Shown Hours" button and wait for Solver to finish setting new values in the Show Hour column. 6. Check that values in the "Shown MW" column equal all positive values in the Required Remaining MW column. If not, additional resources may need to be shown in the LSE Showing worksheet. This sheet uses Excel's Solver tool to minimize the objective cell at the bottom of the Objective Function column. Solver sets usage in the Show Hour column of the Resources or Groups Hourly Optimization table as a fraction of each resource's or group's NQC or VER capacity under contract indicated on the LSE Showing. The objective cell calculates the sum of the squared differences between Remaining Required MW and Shown MW. This function provides a smooth surface for the solver to descend to a minimum, bounded by the constraints, and prioritizes showing capacities during the hours with greater deficits if there is not sufficient storage capacity to fulfil. The Capacity Persistence column calculates the cumulative shown capacity with a falloff based on contracted capacity and storage efficiency when 0 capacity is shown. The solver uses this column to ensure that multi-cycle storage has sufficient time to charge between discharging hours. Both single- and multi-cycle storage are additionally constrained by total daily MWh. Note: Excel's Solver Add-In is limited to 200 variables, which means only 8 resources can be optimized. Queries will group resources in order to constrain the number of decision variables passed to Solver. The GRG Nonlinear method is used to accomodate multicycle storage, thus solutions are not guaranteed to be the absolute optimum. | E6: ALAMIT_7_ES1 | F6: 4 | G6: 0.07383874383 | H6: =Table_LSEShowingProfilesForOptimization[[#This Row],[Show Hour]]*SUMIF(Export_ResourceGroupsForOptimization[Optimization Group ID],Table_LSEShowingProfilesForOptimization[[#This Row],[Optimization Group ID]],Export_ResourceGroupsForOptimization[NQC or VER Under Contract (MW)]) -> 0.7383874383 | I6: =IF( Table_LSEShowingProfilesForOptimization[[#This Row],[Hour Ending]]<=OFFSET(Table_LSEShowingProfilesForOptimization[[#This Row],[Hour Ending]],-1,0), IF( Table_LSEShowingProfilesForOptimization[[#This Row],[Shown MW]]>0, -Table_LSEShowingProfilesForOptimization[[#This Row],[Shown MW]], MIN( 100%, VLOOKUP(Table_LSEShowingProfilesForOptimization[[#This Row],[Optimization Group ID]],Export_ResourceGroupsForOptimization[],3) *VLOOKUP(Table_LSEShowingProfilesForOptimization[[#This Row],[Optimization Group ID]],Export_ResourceGroupsForOptimization[],5) /VLOOKUP(Table_LSEShowingProfilesForOptimization[[#This Row],[Optimization Group ID]],Export_ResourceGroupsForOptimization[],6) ) ), IF( Table_LSEShowingProfilesForOptimization[[#This Row],[Shown MW]]>0, OFFSET(Table_LSEShowingProfilesForOptimization[[#This Row],[State-of-Charge]],-1,0)-Table_LSEShowingProfilesForOptimization[[#This Row],[Shown MW]]/VLOOKUP(Table_LSEShowingProfilesForOptimization[[#This Row],[Optimization Group ID]],Export_ResourceGroupsForOptimization[],6), MIN( OFFSET(Table_LSEShowingProfilesForOptimization[[#This Row],[State-of-Charge]],-1,0) +VLOOKUP(Table_LSEShowingProfilesForOptimization[[#This Row],[Optimization Group ID]],Export_ResourceGroupsForOptimization[],3) *VLOOKUP(Table_LSEShowingProfilesForOptimization[[#This Row],[Optimization Group ID]],Export_ResourceGroupsForOptimization[],5) /VLOOKUP(Table_LSEShowingProfilesForOptimization[[#This Row],[Optimization Group ID]],Export_ResourceGroupsForOptimization[],6), 100% ) ) ) -> 0.01950601118 | K6: 4 | L6: -3.151 | M6: =SUMIF(Table_LSEShowingProfilesForOptimization[Hour Ending],Export_LSEShowingUnshownRequirement[[#This Row],[Hour Ending]],Table_LSEShowingProfilesForOptimization[Shown MW]) -> 6.849002911 | N6: =(Export_LSEShowingUnshownRequirement[[#This Row],[Remaining Required MW]]-Export_LSEShowingUnshownRequirement[[#This Row],[Shown MW]])^2 -> 100.0000582 | P6: LNCSTR_6_SOLAR2/LNCSTR_6_SOLAR2_LESR | Q6: LNCSTR_6_SOLAR2/LNCSTR_6_SOLAR2_LESR | R6: 5.25 | S6: 1 | T6: 0.8 | U6: 21 | V6: 21 | W6: =Export_ResourceGroupsForOptimization[[#This Row],[Storage Maximum Daily MWh]]-SUMIF(Table_LSEShowingProfilesForOptimization[Optimization Group ID],Export_ResourceGroupsForOptimization[[#This Row],[Optimization Group ID]],Table_LSEShowingProfilesForOptimization[Shown MW]) -> 18.36486086
E7: ALAMIT_7_ES1 | F7: 5 | G7: 0.09540063806 | H7: =Table_LSEShowingProfilesForOptimization[[#This Row],[Show Hour]]*SUMIF(Export_ResourceGroupsForOptimization[Optimization Group ID],Table_LSEShowingProfilesForOptimization[[#This Row],[Optimization Group ID]],Export_ResourceGroupsForOptimization[NQC or VER Under Contract (MW)]) -> 0.9540063806 | I7: =IF( Table_LSEShowingProfilesForOptimization[[#This Row],[Hour Ending]]<=OFFSET(Table_LSEShowingProfilesForOptimization[[#This Row],[Hour Ending]],-1,0), IF( Table_LSEShowingProfilesForOptimization[[#This Row],[Shown MW]]>0, -Table_LSEShowingProfilesForOptimization[[#This Row],[Shown MW]], MIN( 100%, VLOOKUP(Table_LSEShowingProfilesForOptimization[[#This Row],[Optimization Group ID]],Export_ResourceGroupsForOptimization[],3) *VLOOKUP(Table_LSEShowingProfilesForOptimization[[#This Row],[Optimization Group ID]],Export_ResourceGroupsForOptimization[],5) /VLOOKUP(Table_LSEShowingProfilesForOptimization[[#This Row],[Optimization Group ID]],Export_ResourceGroupsForOptimization[],6) ) ), IF( Table_LSEShowingProfilesForOptimization[[#This Row],[Shown MW]]>0, OFFSET(Table_LSEShowingProfilesForOptimization[[#This Row],[State-of-Charge]],-1,0)-Table_LSEShowingProfilesForOptimization[[#This Row],[Shown MW]]/VLOOKUP(Table_LSEShowingProfilesForOptimization[[#This Row],[Optimization Group ID]],Export_ResourceGroupsForOptimization[],6), MIN( OFFSET(Table_LSEShowingProfilesForOptimization[[#This Row],[State-of-Charge]],-1,0) +VLOOKUP(Table_LSEShowingProfilesForOptimization[[#This Row],[Optimization Group ID]],Export_ResourceGroupsForOptimization[],3) *VLOOKUP(Table_LSEShowingProfilesForOptimization[[#This Row],[Optimization Group ID]],Export_ResourceGroupsForOptimization[],5) /VLOOKUP(Table_LSEShowingProfilesForOptimization[[#This Row],[Optimization Group ID]],Export_ResourceGroupsForOptimization[],6), 100% ) ) ) -> 0.01712099523 | K7: 5 | L7: -1.151 | M7: =SUMIF(Table_LSEShowingProfilesForOptimization[Hour Ending],Export_LSEShowingUnshownRequirement[[#This Row],[Hour Ending]],Table_LSEShowingProfilesForOptimization[Shown MW]) -> 8.849003224 | N7: =(Export_LSEShowingUnshownRequirement[[#This Row],[Remaining Required MW]]-Export_LSEShowingUnshownRequirement[[#This Row],[Shown MW]])^2 -> 100.0000645
E8: ALAMIT_7_ES1 | F8: 6 | G8: 0.003786294536 | H8: =Table_LSEShowingProfilesForOptimization[[#This Row],[Show Hour]]*SUMIF(Export_ResourceGroupsForOptimization[Optimization Group ID],Table_LSEShowingProfilesForOptimization[[#This Row],[Optimization Group ID]],Export_ResourceGroupsForOptimization[NQC or VER Under Contract (MW)]) -> 0.03786294536 | I8: =IF( Table_LSEShowingProfilesForOptimization[[#This Row],[Hour Ending]]<=OFFSET(Table_LSEShowingProfilesForOptimization[[#This Row],[Hour Ending]],-1,0), IF( Table_LSEShowingProfilesForOptimization[[#This Row],[Shown MW]]>0, -Table_LSEShowingProfilesForOptimization[[#This Row],[Shown MW]], MIN( 100%, VLOOKUP(Table_LSEShowingProfilesForOptimization[[#This Row],[Optimization Group ID]],Export_ResourceGroupsForOptimization[],3) *VLOOKUP(Table_LSEShowingProfilesForOptimization[[#This Row],[Optimization Group ID]],Export_ResourceGroupsForOptimization[],5) /VLOOKUP(Table_LSEShowingProfilesForOptimization[[#This Row],[Optimization Group ID]],Export_ResourceGroupsForOptimization[],6) ) ), IF( Table_LSEShowingProfilesForOptimization[[#This Row],[Shown MW]]>0, OFFSET(Table_LSEShowingProfilesForOptimization[[#This Row],[State-of-Charge]],-1,0)-Table_LSEShowingProfilesForOptimization[[#This Row],[Shown MW]]/VLOOKUP(Table_LSEShowingProfilesForOptimization[[#This Row],[Optimization Group ID]],Export_ResourceGroupsForOptimization[],6), MIN( OFFSET(Table_LSEShowingProfilesForOptimization[[#This Row],[State-of-Charge]],-1,0) +VLOOKUP(Table_LSEShowingProfilesForOptimization[[#This Row],[Optimization Group ID]],Export_ResourceGroupsForOptimization[],3) *VLOOKUP(Table_LSEShowingProfilesForOptimization[[#This Row],[Optimization Group ID]],Export_ResourceGroupsForOptimization[],5) /VLOOKUP(Table_LSEShowingProfilesForOptimization[[#This Row],[Optimization Group ID]],Export_ResourceGroupsForOptimization[],6), 100% ) ) ) -> 0.01702633787 | K8: 6 | L8: 0.3512 | M8: =SUMIF(Table_LSEShowingProfilesForOptimization[Hour Ending],Export_LSEShowingUnshownRequirement[[#This Row],[Hour Ending]],Table_LSEShowingProfilesForOptimization[Shown MW]) -> 0.3511997286 | N8: =(Export_LSEShowingUnshownRequirement[[#This Row],[Remaining Required MW]]-Export_LSEShowingUnshownRequirement[[#This Row],[Shown MW]])^2 -> 7.364310273e-14
E9: ALAMIT_7_ES1 | F9: 7 | G9: 0 | H9: =Table_LSEShowingProfilesForOptimization[[#This Row],[Show Hour]]*SUMIF(Export_ResourceGroupsForOptimization[Optimization Group ID],Table_LSEShowingProfilesForOptimization[[#This Row],[Optimization Group ID]],Export_ResourceGroupsForOptimization[NQC or VER Under Contract (MW)]) -> 0 | I9: =IF( Table_LSEShowingProfilesForOptimization[[#This Row],[Hour Ending]]<=OFFSET(Table_LSEShowingProfilesForOptimization[[#This Row],[Hour Ending]],-1,0), IF( Table_LSEShowingProfilesForOptimization[[#This Row],[Shown MW]]>0, -Table_LSEShowingProfilesForOptimization[[#This Row],[Shown MW]], MIN( 100%, VLOOKUP(Table_LSEShowingProfilesForOptimization[[#This Row],[Optimization Group ID]],Export_ResourceGroupsForOptimization[],3) *VLOOKUP(Table_LSEShowingProfilesForOptimization[[#This Row],[Optimization Group ID]],Export_ResourceGroupsForOptimization[],5) /VLOOKUP(Table_LSEShowingProfilesForOptimization[[#This Row],[Optimization Group ID]],Export_ResourceGroupsForOptimization[],6) ) ), IF( Table_LSEShowingProfilesForOptimization[[#This Row],[Shown MW]]>0, OFFSET(Table_LSEShowingProfilesForOptimization[[#This Row],[State-of-Charge]],-1,0)-Table_LSEShowingProfilesForOptimization[[#This Row],[Shown MW]]/VLOOKUP(Table_LSEShowingProfilesForOptimization[[#This Row],[Optimization Group ID]],Export_ResourceGroupsForOptimization[],6), MIN( OFFSET(Table_LSEShowingProfilesForOptimization[[#This Row],[State-of-Charge]],-1,0) +VLOOKUP(Table_LSEShowingProfilesForOptimization[[#This Row],[Optimization Group ID]],Export_ResourceGroupsForOptimization[],3) *VLOOKUP(Table_LSEShowingProfilesForOptimization[[#This Row],[Optimization Group ID]],Export_ResourceGroupsForOptimization[],5) /VLOOKUP(Table_LSEShowingProfilesForOptimization[[#This Row],[Optimization Group ID]],Export_ResourceGroupsForOptimization[],6), 100% ) ) ) -> 0.03977633787 | K9: 7 | L9: -3.8766 | M9: =SUMIF(Table_LSEShowingProfilesForOptimization[Hour Ending],Export_LSEShowingUnshownRequirement[[#This Row],[Hour Ending]],Table_LSEShowingProfilesForOptimization[Shown MW]) -> 0 | N9: =(Export_LSEShowingUnshownRequirement[[#This Row],[Remaining Required MW]]-Export_LSEShowingUnshownRequirement[[#This Row],[Shown MW]])^2 -> 15.02802756
E10: ALAMIT_7_ES1 | F10: 8 | G10: 0 | H10: =Table_LSEShowingProfilesForOptimization[[#This Row],[Show Hour]]*SUMIF(Export_ResourceGroupsForOptimization[Optimization Group ID],Table_LSEShowingProfilesForOptimization[[#This Row],[Optimization Group ID]],Export_ResourceGroupsForOptimization[NQC or VER Under Contract (MW)]) -> 0 | I10: =IF( Table_LSEShowingProfilesForOptimization[[#This Row],[Hour Ending]]<=OFFSET(Table_LSEShowingProfilesForOptimization[[#This Row],[Hour Ending]],-1,0), IF( Table_LSEShowingProfilesForOptimization[[#This Row],[Shown MW]]>0, -Table_LSEShowingProfilesForOptimization[[#This Row],[Shown MW]], MIN( 100%, VLOOKUP(Table_LSEShowingProfilesForOptimization[[#This Row],[Optimization Group ID]],Export_ResourceGroupsForOptimization[],3) *VLOOKUP(Table_LSEShowingProfilesForOptimization[[#This Row],[Optimization Group ID]],Export_ResourceGroupsForOptimization[],5) /VLOOKUP(Table_LSEShowingProfilesForOptimization[[#This Row],[Optimization Group ID]],Export_ResourceGroupsForOptimization[],6) ) ), IF( Table_LSEShowingProfilesForOptimization[[#This Row],[Shown MW]]>0, OFFSET(Table_LSEShowingProfilesForOptimization[[#This Row],[State-of-Charge]],-1,0)-Table_LSEShowingProfilesForOptimization[[#This Row],[Shown MW]]/VLOOKUP(Table_LSEShowingProfilesForOptimization[[#This Row],[Optimization Group ID]],Export_ResourceGroupsForOptimization[],6), MIN( OFFSET(Table_LSEShowingProfilesForOptimization[[#This Row],[State-of-Charge]],-1,0) +VLOOKUP(Table_LSEShowingProfilesForOptimization[[#This Row],[Optimization Group ID]],Export_ResourceGroupsForOptimization[],3) *VLOOKUP(Table_LSEShowingProfilesForOptimization[[#This Row],[Optimization Group ID]],Export_ResourceGroupsForOptimization[],5) /VLOOKUP(Table_LSEShowingProfilesForOptimization[[#This Row],[Optimization Group ID]],Export_ResourceGroupsForOptimization[],6), 100% ) ) ) -> 0.06252633787 | K10: 8 | L10: -9.4444 | M10: =SUMIF(Table_LSEShowingProfilesForOptimization[Hour Ending],Export_LSEShowingUnshownRequirement[[#This Row],[Hour Ending]],Table_LSEShowingProfilesForOptimization[Shown MW]) -> 0 | N10: =(Export_LSEShowingUnshownRequirement[[#This Row],[Remaining Required MW]]-Export_LSEShowingUnshownRequirement[[#This Row],[Shown MW]])^2 -> 89.19669136
E11: ALAMIT_7_ES1 | F11: 9 | G11: 0 | H11: =Table_LSEShowingProfilesForOptimization[[#This Row],[Show Hour]]*SUMIF(Export_ResourceGroupsForOptimization[Optimization Group ID],Table_LSEShowingProfilesForOptimization[[#This Row],[Optimization Group ID]],Export_ResourceGroupsForOptimization[NQC or VER Under Contract (MW)]) -> 0 | I11: =IF( Table_LSEShowingProfilesForOptimization[[#This Row],[Hour Ending]]<=OFFSET(Table_LSEShowingProfilesForOptimization[[#This Row],[Hour Ending]],-1,0), IF( Table_LSEShowingProfilesForOptimization[[#This Row],[Shown MW]]>0, -Table_LSEShowingProfilesForOptimization[[#This Row],[Shown MW]], MIN( 100%, VLOOKUP(Table_LSEShowingProfilesForOptimization[[#This Row],[Optimization Group ID]],Export_ResourceGroupsForOptimization[],3) *VLOOKUP(Table_LSEShowingProfilesForOptimization[[#This Row],[Optimization Group ID]],Export_ResourceGroupsForOptimization[],5) /VLOOKUP(Table_LSEShowingProfilesForOptimization[[#This Row],[Optimization Group ID]],Export_ResourceGroupsForOptimization[],6) ) ), IF( Table_LSEShowingProfilesForOptimization[[#This Row],[Shown MW]]>0, OFFSET(Table_LSEShowingProfilesForOptimization[[#This Row],[State-of-Charge]],-1,0)-Table_LSEShowingProfilesForOptimization[[#This Row],[Shown MW]]/VLOOKUP(Table_LSEShowingProfilesForOptimization[[#This Row],[Optimization Group ID]],Export_ResourceGroupsForOptimization[],6), MIN( OFFSET(Table_LSEShowingProfilesForOptimization[[#This Row],[State-of-Charge]],-1,0) +VLOOKUP(Table_LSEShowingProfilesForOptimization[[#This Row],[Optimization Group ID]],Export_ResourceGroupsForOptimization[],3) *VLOOKUP(Table_LSEShowingProfilesForOptimization[[#This Row],[Optimization Group ID]],Export_ResourceGroupsForOptimization[],5) /VLOOKUP(Table_LSEShowingProfilesForOptimization[[#This Row],[Optimization Group ID]],Export_ResourceGroupsForOptimization[],6), 100% ) ) ) -> 0.08527633787 | K11: 9 | L11: -25.6044 | M11: =SUMIF(Table_LSEShowingProfilesForOptimization[Hour Ending],Export_LSEShowingUnshownRequirement[[#This Row],[Hour Ending]],Table_LSEShowingProfilesForOptimization[Shown MW]) -> 0 | N11: =(Export_LSEShowingUnshownRequirement[[#This Row],[Remaining Required MW]]-Export_LSEShowingUnshownRequirement[[#This Row],[Shown MW]])^2 -> 655.5852994
E12: ALAMIT_7_ES1 | F12: 10 | G12: 0 | H12: =Table_LSEShowingProfilesForOptimization[[#This Row],[Show Hour]]*SUMIF(Export_ResourceGroupsForOptimization[Optimization Group ID],Table_LSEShowingProfilesForOptimization[[#This Row],[Optimization Group ID]],Export_ResourceGroupsForOptimization[NQC or VER Under Contract (MW)]) -> 0 | I12: =IF( Table_LSEShowingProfilesForOptimization[[#This Row],[Hour Ending]]<=OFFSET(Table_LSEShowingProfilesForOptimization[[#This Row],[Hour Ending]],-1,0), IF( Table_LSEShowingProfilesForOptimization[[#This Row],[Shown MW]]>0, -Table_LSEShowingProfilesForOptimization[[#This Row],[Shown MW]], MIN( 100%, VLOOKUP(Table_LSEShowingProfilesForOptimization[[#This Row],[Optimization Group ID]],Export_ResourceGroupsForOptimization[],3) *VLOOKUP(Table_LSEShowingProfilesForOptimization[[#This Row],[Optimization Group ID]],Export_ResourceGroupsForOptimization[],5) /VLOOKUP(Table_LSEShowingProfilesForOptimization[[#This Row],[Optimization Group ID]],Export_ResourceGroupsForOptimization[],6) ) ), IF( Table_LSEShowingProfilesForOptimization[[#This Row],[Shown MW]]>0, OFFSET(Table_LSEShowingProfilesForOptimization[[#This Row],[State-of-Charge]],-1,0)-Table_LSEShowingProfilesForOptimization[[#This Row],[Shown MW]]/VLOOKUP(Table_LSEShowingProfilesForOptimization[[#This Row],[Optimization Group ID]],Export_ResourceGroupsForOptimization[],6), MIN( OFFSET(Table_LSEShowingProfilesForOptimization[[#This Row],[State-of-Charge]],-1,0) +VLOOKUP(Table_LSEShowingProfilesForOptimization[[#This Row],[Optimization Group ID]],Export_ResourceGroupsForOptimization[],3) *VLOOKUP(Table_LSEShowingProfilesForOptimization[[#This Row],[Optimization Group ID]],Export_ResourceGroupsForOptimization[],5) /VLOOKUP(Table_LSEShowingProfilesForOptimization[[#This Row],[Optimization Group ID]],Export_ResourceGroupsForOptimization[],6), 100% ) ) ) -> 0.1080263379 | K12: 10 | L12: -33.9444 | M12: =SUMIF(Table_LSEShowingProfilesForOptimization[Hour Ending],Export_LSEShowingUnshownRequirement[[#This Row],[Hour Ending]],Table_LSEShowingProfilesForOptimization[Shown MW]) -> 0 | N12: =(Export_LSEShowingUnshownRequirement[[#This Row],[Remaining Required MW]]-Export_LSEShowingUnshownRequirement[[#This Row],[Shown MW]])^2 -> 1152.222291
E13: ALAMIT_7_ES1 | F13: 11 | G13: 0 | H13: =Table_LSEShowingProfilesForOptimization[[#This Row],[Show Hour]]*SUMIF(Export_ResourceGroupsForOptimization[Optimization Group ID],Table_LSEShowingProfilesForOptimization[[#This Row],[Optimization Group ID]],Export_ResourceGroupsForOptimization[NQC or VER Under Contract (MW)]) -> 0 | I13: =IF( Table_LSEShowingProfilesForOptimization[[#This Row],[Hour Ending]]<=OFFSET(Table_LSEShowingProfilesForOptimization[[#This Row],[Hour Ending]],-1,0), IF( Table_LSEShowingProfilesForOptimization[[#This Row],[Shown MW]]>0, -Table_LSEShowingProfilesForOptimization[[#This Row],[Shown MW]], MIN( 100%, VLOOKUP(Table_LSEShowingProfilesForOptimization[[#This Row],[Optimization Group ID]],Export_ResourceGroupsForOptimization[],3) *VLOOKUP(Table_LSEShowingProfilesForOptimization[[#This Row],[Optimization Group ID]],Export_ResourceGroupsForOptimization[],5) /VLOOKUP(Table_LSEShowingProfilesForOptimization[[#This Row],[Optimization Group ID]],Export_ResourceGroupsForOptimization[],6) ) ), IF( Table_LSEShowingProfilesForOptimization[[#This Row],[Shown MW]]>0, OFFSET(Table_LSEShowingProfilesForOptimization[[#This Row],[State-of-Charge]],-1,0)-Table_LSEShowingProfilesForOptimization[[#This Row],[Shown MW]]/VLOOKUP(Table_LSEShowingProfilesForOptimization[[#This Row],[Optimization Group ID]],Export_ResourceGroupsForOptimization[],6), MIN( OFFSET(Table_LSEShowingProfilesForOptimization[[#This Row],[State-of-Charge]],-1,0) +VLOOKUP(Table_LSEShowingProfilesForOptimization[[#This Row],[Optimization Group ID]],Export_ResourceGroupsForOptimization[],3) *VLOOKUP(Table_LSEShowingProfilesForOptimization[[#This Row],[Optimization Group ID]],Export_ResourceGroupsForOptimization[],5) /VLOOKUP(Table_LSEShowingProfilesForOptimization[[#This Row],[Optimization Group ID]],Export_ResourceGroupsForOptimization[],6), 100% ) ) ) -> 0.1307763379 | K13: 11 | L13: -26.0444 | M13: =SUMIF(Table_LSEShowingProfilesForOptimization[Hour Ending],Export_LSEShowingUnshownRequirement[[#This Row],[Hour Ending]],Table_LSEShowingProfilesForOptimization[Shown MW]) -> 0 | N13: =(Export_LSEShowingUnshownRequirement[[#This Row],[Remaining Required MW]]-Export_LSEShowingUnshownRequirement[[#This Row],[Shown MW]])^2 -> 678.3107714
E14: ALAMIT_7_ES1 | F14: 12 | G14: 0 | H14: =Table_LSEShowingProfilesForOptimization[[#This Row],[Show Hour]]*SUMIF(Export_ResourceGroupsForOptimization[Optimization Group ID],Table_LSEShowingProfilesForOptimization[[#This Row],[Optimization Group ID]],Export_ResourceGroupsForOptimization[NQC or VER Under Contract (MW)]) -> 0 | I14: =IF( Table_LSEShowingProfilesForOptimization[[#This Row],[Hour Ending]]<=OFFSET(Table_LSEShowingProfilesForOptimization[[#This Row],[Hour Ending]],-1,0), IF( Table_LSEShowingProfilesForOptimization[[#This Row],[Shown MW]]>0, -Table_LSEShowingProfilesForOptimization[[#This Row],[Shown MW]], MIN( 100%, VLOOKUP(Table_LSEShowingProfilesForOptimization[[#This Row],[Optimization Group ID]],Export_ResourceGroupsForOptimization[],3) *VLOOKUP(Table_LSEShowingProfilesForOptimization[[#This Row],[Optimization Group ID]],Export_ResourceGroupsForOptimization[],5) /VLOOKUP(Table_LSEShowingProfilesForOptimization[[#This Row],[Optimization Group ID]],Export_ResourceGroupsForOptimization[],6) ) ), IF( Table_LSEShowingProfilesForOptimization[[#This Row],[Shown MW]]>0, OFFSET(Table_LSEShowingProfilesForOptimization[[#This Row],[State-of-Charge]],-1,0)-Table_LSEShowingProfilesForOptimization[[#This Row],[Shown MW]]/VLOOKUP(Table_LSEShowingProfilesForOptimization[[#This Row],[Optimization Group ID]],Export_ResourceGroupsForOptimization[],6), MIN( OFFSET(Table_LSEShowingProfilesForOptimization[[#This Row],[State-of-Charge]],-1,0) +VLOOKUP(Table_LSEShowingProfilesForOptimization[[#This Row],[Optimization Group ID]],Export_ResourceGroupsForOptimization[],3) *VLOOKUP(Table_LSEShowingProfilesForOptimization[[#This Row],[Optimization Group ID]],Export_ResourceGroupsForOptimization[],5) /VLOOKUP(Table_LSEShowingProfilesForOptimization[[#This Row],[Optimization Group ID]],Export_ResourceGroupsForOptimization[],6), 100% ) ) ) -> 0.1535263379 | K14: 12 | L14: -17.0666 | M14: =SUMIF(Table_LSEShowingProfilesForOptimization[Hour Ending],Export_LSEShowingUnshownRequirement[[#This Row],[Hour Ending]],Table_LSEShowingProfilesForOptimization[Shown MW]) -> 0 | N14: =(Export_LSEShowingUnshownRequirement[[#This Row],[Remaining Required MW]]-Export_LSEShowingUnshownRequirement[[#This Row],[Shown MW]])^2 -> 291.2688356
E15: ALAMIT_7_ES1 | F15: 13 | G15: 0 | H15: =Table_LSEShowingProfilesForOptimization[[#This Row],[Show Hour]]*SUMIF(Export_ResourceGroupsForOptimization[Optimization Group ID],Table_LSEShowingProfilesForOptimization[[#This Row],[Optimization Group ID]],Export_ResourceGroupsForOptimization[NQC or VER Under Contract (MW)]) -> 0 | I15: =IF( Table_LSEShowingProfilesForOptimization[[#This Row],[Hour Ending]]<=OFFSET(Table_LSEShowingProfilesForOptimization[[#This Row],[Hour Ending]],-1,0), IF( Table_LSEShowingProfilesForOptimization[[#This Row],[Shown MW]]>0, -Table_LSEShowingProfilesForOptimization[[#This Row],[Shown MW]], MIN( 100%, VLOOKUP(Table_LSEShowingProfilesForOptimization[[#This Row],[Optimization Group ID]],Export_ResourceGroupsForOptimization[],3) *VLOOKUP(Table_LSEShowingProfilesForOptimization[[#This Row],[Optimization Group ID]],Export_ResourceGroupsForOptimization[],5) /VLOOKUP(Table_LSEShowingProfilesForOptimization[[#This Row],[Optimization Group ID]],Export_ResourceGroupsForOptimization[],6) ) ), IF( Table_LSEShowingProfilesForOptimization[[#This Row],[Shown MW]]>0, OFFSET(Table_LSEShowingProfilesForOptimization[[#This Row],[State-of-Charge]],-1,0)-Table_LSEShowingProfilesForOptimization[[#This Row],[Shown MW]]/VLOOKUP(Table_LSEShowingProfilesForOptimization[[#This Row],[Optimization Group ID]],Export_ResourceGroupsForOptimization[],6), MIN( OFFSET(Table_LSEShowingProfilesForOptimization[[#This Row],[State-of-Charge]],-1,0) +VLOOKUP(Table_LSEShowingProfilesForOptimization[[#This Row],[Optimization Group ID]],Export_ResourceGroupsForOptimization[],3) *VLOOKUP(Table_LSEShowingProfilesForOptimization[[#This Row],[Optimization Group ID]],Export_ResourceGroupsForOptimization[],5) /VLOOKUP(Table_LSEShowingProfilesForOptimization[[#This Row],[Optimization Group ID]],Export_ResourceGroupsForOptimization[],6), 100% ) ) ) -> 0.1762763379 | K15: 13 | L15: -5.5266 | M15: =SUMIF(Table_LSEShowingProfilesForOptimization[Hour Ending],Export_LSEShowingUnshownRequirement[[#This Row],[Hour Ending]],Table_LSEShowingProfilesForOptimization[Shown MW]) -> 0 | N15: =(Export_LSEShowingUnshownRequirement[[#This Row],[Remaining Required MW]]-Export_LSEShowingUnshownRequirement[[#This Row],[Shown MW]])^2 -> 30.54330756
E16: ALAMIT_7_ES1 | F16: 14 | G16: 0.01939493438 | H16: =Table_LSEShowingProfilesForOptimization[[#This Row],[Show Hour]]*SUMIF(Export_ResourceGroupsForOptimization[Optimization Group ID],Table_LSEShowingProfilesForOptimization[[#This Row],[Optimization Group ID]],Export_ResourceGroupsForOptimization[NQC or VER Under Contract (MW)]) -> 0.1939493438 | I16: =IF( Table_LSEShowingProfilesForOptimization[[#This Row],[Hour Ending]]<=OFFSET(Table_LSEShowingProfilesForOptimization[[#This Row],[Hour Ending]],-1,0), IF( Table_LSEShowingProfilesForOptimization[[#This Row],[Shown MW]]>0, -Table_LSEShowingProfilesForOptimization[[#This Row],[Shown MW]], MIN( 100%, VLOOKUP(Table_LSEShowingProfilesForOptimization[[#This Row],[Optimization Group ID]],Export_ResourceGroupsForOptimization[],3) *VLOOKUP(Table_LSEShowingProfilesForOptimization[[#This Row],[Optimization Group ID]],Export_ResourceGroupsForOptimization[],5) /VLOOKUP(Table_LSEShowingProfilesForOptimization[[#This Row],[Optimization Group ID]],Export_ResourceGroupsForOptimization[],6) ) ), IF( Table_LSEShowingProfilesForOptimization[[#This Row],[Shown MW]]>0, OFFSET(Table_LSEShowingProfilesForOptimization[[#This Row],[State-of-Charge]],-1,0)-Table_LSEShowingProfilesForOptimization[[#This Row],[Shown MW]]/VLOOKUP(Table_LSEShowingProfilesForOptimization[[#This Row],[Optimization Group ID]],Export_ResourceGroupsForOptimization[],6), MIN( OFFSET(Table_LSEShowingProfilesForOptimization[[#This Row],[State-of-Charge]],-1,0) +VLOOKUP(Table_LSEShowingProfilesForOptimization[[#This Row],[Optimization Group ID]],Export_ResourceGroupsForOptimization[],3) *VLOOKUP(Table_LSEShowingProfilesForOptimization[[#This Row],[Optimization Group ID]],Export_ResourceGroupsForOptimization[],5) /VLOOKUP(Table_LSEShowingProfilesForOptimization[[#This Row],[Optimization Group ID]],Export_ResourceGroupsForOptimization[],6), 100% ) ) ) -> 0.1757914645 | K16: 14 | L16: 1.799 | M16: =SUMIF(Table_LSEShowingProfilesForOptimization[Hour Ending],Export_LSEShowingUnshownRequirement[[#This Row],[Hour Ending]],Table_LSEShowingProfilesForOptimization[Shown MW]) -> 1.79899736 | N16: =(Export_LSEShowingUnshownRequirement[[#This Row],[Remaining Required MW]]-Export_LSEShowingUnshownRequirement[[#This Row],[Shown MW]])^2 -> 6.96715633e-12
E17: ALAMIT_7_ES1 | F17: 15 | G17: 0.1468494522 | H17: =Table_LSEShowingProfilesForOptimization[[#This Row],[Show Hour]]*SUMIF(Export_ResourceGroupsForOptimization[Optimization Group ID],Table_LSEShowingProfilesForOptimization[[#This Row],[Optimization Group ID]],Export_ResourceGroupsForOptimization[NQC or VER Under Contract (MW)]) -> 1.468494522 | I17: =IF( Table_LSEShowingProfilesForOptimization[[#This Row],[Hour Ending]]<=OFFSET(Table_LSEShowingProfilesForOptimization[[#This Row],[Hour Ending]],-1,0), IF( Table_LSEShowingProfilesForOptimization[[#This Row],[Shown MW]]>0, -Table_LSEShowingProfilesForOptimization[[#This Row],[Shown MW]], MIN( 100%, VLOOKUP(Table_LSEShowingProfilesForOptimization[[#This Row],[Optimization Group ID]],Export_ResourceGroupsForOptimization[],3) *VLOOKUP(Table_LSEShowingProfilesForOptimization[[#This Row],[Optimization Group ID]],Export_ResourceGroupsForOptimization[],5) /VLOOKUP(Table_LSEShowingProfilesForOptimization[[#This Row],[Optimization Group ID]],Export_ResourceGroupsForOptimization[],6) ) ), IF( Table_LSEShowingProfilesForOptimization[[#This Row],[Shown MW]]>0, OFFSET(Table_LSEShowingProfilesForOptimization[[#This Row],[State-of-Charge]],-1,0)-Table_LSEShowingProfilesForOptimization[[#This Row],[Shown MW]]/VLOOKUP(Table_LSEShowingProfilesForOptimization[[#This Row],[Optimization Group ID]],Export_ResourceGroupsForOptimization[],6), MIN( OFFSET(Table_LSEShowingProfilesForOptimization[[#This Row],[State-of-Charge]],-1,0) +VLOOKUP(Table_LSEShowingProfilesForOptimization[[#This Row],[Optimization Group ID]],Export_ResourceGroupsForOptimization[],3) *VLOOKUP(Table_LSEShowingProfilesForOptimization[[#This Row],[Optimization Group ID]],Export_ResourceGroupsForOptimization[],5) /VLOOKUP(Table_LSEShowingProfilesForOptimization[[#This Row],[Optimization Group ID]],Export_ResourceGroupsForOptimization[],6), 100% ) ) ) -> 0.1721202282 | K17: 15 | L17: 13.6212 | M17: =SUMIF(Table_LSEShowingProfilesForOptimization[Hour Ending],Export_LSEShowingUnshownRequirement[[#This Row],[Hour Ending]],Table_LSEShowingProfilesForOptimization[Shown MW]) -> 13.62120031 | N17: =(Export_LSEShowingUnshownRequirement[[#This Row],[Remaining Required MW]]-Export_LSEShowingUnshownRequirement[[#This Row],[Shown MW]])^2 -> 9.394588075e-14
E18: ALAMIT_7_ES1 | F18: 16 | G18: 0.1982745843 | H18: =Table_LSEShowingProfilesForOptimization[[#This Row],[Show Hour]]*SUMIF(Export_ResourceGroupsForOptimization[Optimization Group ID],Table_LSEShowingProfilesForOptimization[[#This Row],[Optimization Group ID]],Export_ResourceGroupsForOptimization[NQC or VER Under Contract (MW)]) -> 1.982745843 | I18: =IF( Table_LSEShowingProfilesForOptimization[[#This Row],[Hour Ending]]<=OFFSET(Table_LSEShowingProfilesForOptimization[[#This Row],[Hour Ending]],-1,0), IF( Table_LSEShowingProfilesForOptimization[[#This Row],[Shown MW]]>0, -Table_LSEShowingProfilesForOptimization[[#This Row],[Shown MW]], MIN( 100%, VLOOKUP(Table_LSEShowingProfilesForOptimization[[#This Row],[Optimization Group ID]],Export_ResourceGroupsForOptimization[],3) *VLOOKUP(Table_LSEShowingProfilesForOptimization[[#This Row],[Optimization Group ID]],Export_ResourceGroupsForOptimization[],5) /VLOOKUP(Table_LSEShowingProfilesForOptimization[[#This Row],[Optimization Group ID]],Export_ResourceGroupsForOptimization[],6) ) ), IF( Table_LSEShowingProfilesForOptimization[[#This Row],[Shown MW]]>0, OFFSET(Table_LSEShowingProfilesForOptimization[[#This Row],[State-of-Charge]],-1,0)-Table_LSEShowingProfilesForOptimization[[#This Row],[Shown MW]]/VLOOKUP(Table_LSEShowingProfilesForOptimization[[#This Row],[Optimization Group ID]],Export_ResourceGroupsForOptimization[],6), MIN( OFFSET(Table_LSEShowingProfilesForOptimization[[#This Row],[State-of-Charge]],-1,0) +VLOOKUP(Table_LSEShowingProfilesForOptimization[[#This Row],[Optimization Group ID]],Export_ResourceGroupsForOptimization[],3) *VLOOKUP(Table_LSEShowingProfilesForOptimization[[#This Row],[Optimization Group ID]],Export_ResourceGroupsForOptimization[],5) /VLOOKUP(Table_LSEShowingProfilesForOptimization[[#This Row],[Optimization Group ID]],Export_ResourceGroupsForOptimization[],6), 100% ) ) ) -> 0.1671633636 | K18: 16 | L18: 18.3912 | M18: =SUMIF(Table_LSEShowingProfilesForOptimization[Hour Ending],Export_LSEShowingUnshownRequirement[[#This Row],[Hour Ending]],Table_LSEShowingProfilesForOptimization[Shown MW]) -> 18.39120365 | N18: =(Export_LSEShowingUnshownRequirement[[#This Row],[Remaining Required MW]]-Export_LSEShowingUnshownRequirement[[#This Row],[Shown MW]])^2 -> 1.330314196e-11
E19: ALAMIT_7_ES1 | F19: 17 | G19: 0.2109723797 | H19: =Table_LSEShowingProfilesForOptimization[[#This Row],[Show Hour]]*SUMIF(Export_ResourceGroupsForOptimization[Optimization Group ID],Table_LSEShowingProfilesForOptimization[[#This Row],[Optimization Group ID]],Export_ResourceGroupsForOptimization[NQC or VER Under Contract (MW)]) -> 2.109723797 | I19: =IF( Table_LSEShowingProfilesForOptimization[[#This Row],[Hour Ending]]<=OFFSET(Table_LSEShowingProfilesForOptimization[[#This Row],[Hour Ending]],-1,0), IF( Table_LSEShowingProfilesForOptimization[[#This Row],[Shown MW]]>0, -Table_LSEShowingProfilesForOptimization[[#This Row],[Shown MW]], MIN( 100%, VLOOKUP(Table_LSEShowingProfilesForOptimization[[#This Row],[Optimization Group ID]],Export_ResourceGroupsForOptimization[],3) *VLOOKUP(Table_LSEShowingProfilesForOptimization[[#This Row],[Optimization Group ID]],Export_ResourceGroupsForOptimization[],5) /VLOOKUP(Table_LSEShowingProfilesForOptimization[[#This Row],[Optimization Group ID]],Export_ResourceGroupsForOptimization[],6) ) ), IF( Table_LSEShowingProfilesForOptimization[[#This Row],[Shown MW]]>0, OFFSET(Table_LSEShowingProfilesForOptimization[[#This Row],[State-of-Charge]],-1,0)-Table_LSEShowingProfilesForOptimization[[#This Row],[Shown MW]]/VLOOKUP(Table_LSEShowingProfilesForOptimization[[#This Row],[Optimization Group ID]],Export_ResourceGroupsForOptimization[],6), MIN( OFFSET(Table_LSEShowingProfilesForOptimization[[#This Row],[State-of-Charge]],-1,0) +VLOOKUP(Table_LSEShowingProfilesForOptimization[[#This Row],[Optimization Group ID]],Export_ResourceGroupsForOptimization[],3) *VLOOKUP(Table_LSEShowingProfilesForOptimization[[#This Row],[Optimization Group ID]],Export_ResourceGroupsForOptimization[],5) /VLOOKUP(Table_LSEShowingProfilesForOptimization[[#This Row],[Optimization Group ID]],Export_ResourceGroupsForOptimization[],6), 100% ) ) ) -> 0.1618890541 | K19: 17 | L19: 19.569 | M19: =SUMIF(Table_LSEShowingProfilesForOptimization[Hour Ending],Export_LSEShowingUnshownRequirement[[#This Row],[Hour Ending]],Table_LSEShowingProfilesForOptimization[Shown MW]) -> 19.56900335 | N19: =(Export_LSEShowingUnshownRequirement[[#This Row],[Remaining Required MW]]-Export_LSEShowingUnshownRequirement[[#This Row],[Shown MW]])^2 -> 1.123637895e-11
E20: ALAMIT_7_ES1 | F20: 18 | G20: 0.08077518379 | H20: =Table_LSEShowingProfilesForOptimization[[#This Row],[Show Hour]]*SUMIF(Export_ResourceGroupsForOptimization[Optimization Group ID],Table_LSEShowingProfilesForOptimization[[#This Row],[Optimization Group ID]],Export_ResourceGroupsForOptimization[NQC or VER Under Contract (MW)]) -> 0.8077518379 | I20: =IF( Table_LSEShowingProfilesForOptimization[[#This Row],[Hour Ending]]<=OFFSET(Table_LSEShowingProfilesForOptimization[[#This Row],[Hour Ending]],-1,0), IF( Table_LSEShowingProfilesForOptimization[[#This Row],[Shown MW]]>0, -Table_LSEShowingProfilesForOptimization[[#This Row],[Shown MW]], MIN( 100%, VLOOKUP(Table_LSEShowingProfilesForOptimization[[#This Row],[Optimization Group ID]],Export_ResourceGroupsForOptimization[],3) *VLOOKUP(Table_LSEShowingProfilesForOptimization[[#This Row],[Optimization Group ID]],Export_ResourceGroupsForOptimization[],5) /VLOOKUP(Table_LSEShowingProfilesForOptimization[[#This Row],[Optimization Group ID]],Export_ResourceGroupsForOptimization[],6) ) ), IF( Table_LSEShowingProfilesForOptimization[[#This Row],[Shown MW]]>0, OFFSET(Table_LSEShowingProfilesForOptimization[[#This Row],[State-of-Charge]],-1,0)-Table_LSEShowingProfilesForOptimization[[#This Row],[Shown MW]]/VLOOKUP(Table_LSEShowingProfilesForOptimization[[#This Row],[Optimization Group ID]],Export_ResourceGroupsForOptimization[],6), MIN( OFFSET(Table_LSEShowingProfilesForOptimization[[#This Row],[State-of-Charge]],-1,0) +VLOOKUP(Table_LSEShowingProfilesForOptimization[[#This Row],[Optimization Group ID]],Export_ResourceGroupsForOptimization[],3) *VLOOKUP(Table_LSEShowingProfilesForOptimization[[#This Row],[Optimization Group ID]],Export_ResourceGroupsForOptimization[],5) /VLOOKUP(Table_LSEShowingProfilesForOptimization[[#This Row],[Optimization Group ID]],Export_ResourceGroupsForOptimization[],6), 100% ) ) ) -> 0.1598696745 | K20: 18 | L20: 7.4924 | M20: =SUMIF(Table_LSEShowingProfilesForOptimization[Hour Ending],Export_LSEShowingUnshownRequirement[[#This Row],[Hour Ending]],Table_LSEShowingProfilesForOptimization[Shown MW]) -> 7.49239935 | N20: =(Export_LSEShowingUnshownRequirement[[#This Row],[Remaining Required MW]]-Export_LSEShowingUnshownRequirement[[#This Row],[Shown MW]])^2 -> 4.229598828e-13
E21: ALAMIT_7_ES1 | F21: 19 | G21: 0.07084592803 | H21: =Table_LSEShowingProfilesForOptimization[[#This Row],[Show Hour]]*SUMIF(Export_ResourceGroupsForOptimization[Optimization Group ID],Table_LSEShowingProfilesForOptimization[[#This Row],[Optimization Group ID]],Export_ResourceGroupsForOptimization[NQC or VER Under Contract (MW)]) -> 0.7084592803 | I21: =IF( Table_LSEShowingProfilesForOptimization[[#This Row],[Hour Ending]]<=OFFSET(Table_LSEShowingProfilesForOptimization[[#This Row],[Hour Ending]],-1,0), IF( Table_LSEShowingProfilesForOptimization[[#This Row],[Shown MW]]>0, -Table_LSEShowingProfilesForOptimization[[#This Row],[Shown MW]], MIN( 100%, VLOOKUP(Table_LSEShowingProfilesForOptimization[[#This Row],[Optimization Group ID]],Export_ResourceGroupsForOptimization[],3) *VLOOKUP(Table_LSEShowingProfilesForOptimization[[#This Row],[Optimization Group ID]],Export_ResourceGroupsForOptimization[],5) /VLOOKUP(Table_LSEShowingProfilesForOptimization[[#This Row],[Optimization Group ID]],Export_ResourceGroupsForOptimization[],6) ) ), IF( Table_LSEShowingProfilesForOptimization[[#This Row],[Shown MW]]>0, OFFSET(Table_LSEShowingProfilesForOptimization[[#This Row],[State-of-Charge]],-1,0)-Table_LSEShowingProfilesForOptimization[[#This Row],[Shown MW]]/VLOOKUP(Table_LSEShowingProfilesForOptimization[[#This Row],[Optimization Group ID]],Export_ResourceGroupsForOptimization[],6), MIN( OFFSET(Table_LSEShowingProfilesForOptimization[[#This Row],[State-of-Charge]],-1,0) +VLOOKUP(Table_LSEShowingProfilesForOptimization[[#This Row],[Optimization Group ID]],Export_ResourceGroupsForOptimization[],3) *VLOOKUP(Table_LSEShowingProfilesForOptimization[[#This Row],[Optimization Group ID]],Export_ResourceGroupsForOptimization[],5) /VLOOKUP(Table_LSEShowingProfilesForOptimization[[#This Row],[Optimization Group ID]],Export_ResourceGroupsForOptimization[],6), 100% ) ) ) -> 0.1580985263 | K21: 19 | L21: 6.5714 | M21: =SUMIF(Table_LSEShowingProfilesForOptimization[Hour Ending],Export_LSEShowingUnshownRequirement[[#This Row],[Hour Ending]],Table_LSEShowingProfilesForOptimization[Shown MW]) -> 6.57139854 | N21: =(Export_LSEShowingUnshownRequirement[[#This Row],[Remaining Required MW]]-Export_LSEShowingUnshownRequirement[[#This Row],[Shown MW]])^2 -> 2.130680109e-12
E22: ALAMIT_7_ES1 | F22: 20 | G22: 0 | H22: =Table_LSEShowingProfilesForOptimization[[#This Row],[Show Hour]]*SUMIF(Export_ResourceGroupsForOptimization[Optimization Group ID],Table_LSEShowingProfilesForOptimization[[#This Row],[Optimization Group ID]],Export_ResourceGroupsForOptimization[NQC or VER Under Contract (MW)]) -> 0 | I22: =IF( Table_LSEShowingProfilesForOptimization[[#This Row],[Hour Ending]]<=OFFSET(Table_LSEShowingProfilesForOptimization[[#This Row],[Hour Ending]],-1,0), IF( Table_LSEShowingProfilesForOptimization[[#This Row],[Shown MW]]>0, -Table_LSEShowingProfilesForOptimization[[#This Row],[Shown MW]], MIN( 100%, VLOOKUP(Table_LSEShowingProfilesForOptimization[[#This Row],[Optimization Group ID]],Export_ResourceGroupsForOptimization[],3) *VLOOKUP(Table_LSEShowingProfilesForOptimization[[#This Row],[Optimization Group ID]],Export_ResourceGroupsForOptimization[],5) /VLOOKUP(Table_LSEShowingProfilesForOptimization[[#This Row],[Optimization Group ID]],Export_ResourceGroupsForOptimization[],6) ) ), IF( Table_LSEShowingProfilesForOptimization[[#This Row],[Shown MW]]>0, OFFSET(Table_LSEShowingProfilesForOptimization[[#This Row],[State-of-Charge]],-1,0)-Table_LSEShowingProfilesForOptimization[[#This Row],[Shown MW]]/VLOOKUP(Table_LSEShowingProfilesForOptimization[[#This Row],[Optimization Group ID]],Export_ResourceGroupsForOptimization[],6), MIN( OFFSET(Table_LSEShowingProfilesForOptimization[[#This Row],[State-of-Charge]],-1,0) +VLOOKUP(Table_LSEShowingProfilesForOptimization[[#This Row],[Optimization Group ID]],Export_ResourceGroupsForOptimization[],3) *VLOOKUP(Table_LSEShowingProfilesForOptimization[[#This Row],[Optimization Group ID]],Export_ResourceGroupsForOptimization[],5) /VLOOKUP(Table_LSEShowingProfilesForOptimization[[#This Row],[Optimization Group ID]],Export_ResourceGroupsForOptimization[],6), 100% ) ) ) -> 0.1808485263 | K22: 20 | L22: -5.0708 | M22: =SUMIF(Table_LSEShowingProfilesForOptimization[Hour Ending],Export_LSEShowingUnshownRequirement[[#This Row],[Hour Ending]],Table_LSEShowingProfilesForOptimization[Shown MW]) -> 0 | N22: =(Export_LSEShowingUnshownRequirement[[#This Row],[Remaining Required MW]]-Export_LSEShowingUnshownRequirement[[#This Row],[Shown MW]])^2 -> 25.71301264
E23: ALAMIT_7_ES1 | F23: 21 | G23: 0 | H23: =Table_LSEShowingProfilesForOptimization[[#This Row],[Show Hour]]*SUMIF(Export_ResourceGroupsForOptimization[Optimization Group ID],Table_LSEShowingProfilesForOptimization[[#This Row],[Optimization Group ID]],Export_ResourceGroupsForOptimization[NQC or VER Under Contract (MW)]) -> 0 | I23: =IF( Table_LSEShowingProfilesForOptimization[[#This Row],[Hour Ending]]<=OFFSET(Table_LSEShowingProfilesForOptimization[[#This Row],[Hour Ending]],-1,0), IF( Table_LSEShowingProfilesForOptimization[[#This Row],[Shown MW]]>0, -Table_LSEShowingProfilesForOptimization[[#This Row],[Shown MW]], MIN( 100%, VLOOKUP(Table_LSEShowingProfilesForOptimization[[#This Row],[Optimization Group ID]],Export_ResourceGroupsForOptimization[],3) *VLOOKUP(Table_LSEShowingProfilesForOptimization[[#This Row],[Optimization Group ID]],Export_ResourceGroupsForOptimization[],5) /VLOOKUP(Table_LSEShowingProfilesForOptimization[[#This Row],[Optimization Group ID]],Export_ResourceGroupsForOptimization[],6) ) ), IF( Table_LSEShowingProfilesForOptimization[[#This Row],[Shown MW]]>0, OFFSET(Table_LSEShowingProfilesForOptimization[[#This Row],[State-of-Charge]],-1,0)-Table_LSEShowingProfilesForOptimization[[#This Row],[Shown MW]]/VLOOKUP(Table_LSEShowingProfilesForOptimization[[#This Row],[Optimization Group ID]],Export_ResourceGroupsForOptimization[],6), MIN( OFFSET(Table_LSEShowingProfilesForOptimization[[#This Row],[State-of-Charge]],-1,0) +VLOOKUP(Table_LSEShowingProfilesForOptimization[[#This Row],[Optimization Group ID]],Export_ResourceGroupsForOptimization[],3) *VLOOKUP(Table_LSEShowingProfilesForOptimization[[#This Row],[Optimization Group ID]],Export_ResourceGroupsForOptimization[],5) /VLOOKUP(Table_LSEShowingProfilesForOptimization[[#This Row],[Optimization Group ID]],Export_ResourceGroupsForOptimization[],6), 100% ) ) ) -> 0.2035985263 | K23: 21 | L23: -17.0708 | M23: =SUMIF(Table_LSEShowingProfilesForOptimization[Hour Ending],Export_LSEShowingUnshownRequirement[[#This Row],[Hour Ending]],Table_LSEShowingProfilesForOptimization[Shown MW]) -> 0 | N23: =(Export_LSEShowingUnshownRequirement[[#This Row],[Remaining Required MW]]-Export_LSEShowingUnshownRequirement[[#This Row],[Shown MW]])^2 -> 291.4122126
E24: ALAMIT_7_ES1 | F24: 22 | G24: 0 | H24: =Table_LSEShowingProfilesForOptimization[[#This Row],[Show Hour]]*SUMIF(Export_ResourceGroupsForOptimization[Optimization Group ID],Table_LSEShowingProfilesForOptimization[[#This Row],[Optimization Group ID]],Export_ResourceGroupsForOptimization[NQC or VER Under Contract (MW)]) -> 0 | I24: =IF( Table_LSEShowingProfilesForOptimization[[#This Row],[Hour Ending]]<=OFFSET(Table_LSEShowingProfilesForOptimization[[#This Row],[Hour Ending]],-1,0), IF( Table_LSEShowingProfilesForOptimization[[#This Row],[Shown MW]]>0, -Table_LSEShowingProfilesForOptimization[[#This Row],[Shown MW]], MIN( 100%, VLOOKUP(Table_LSEShowingProfilesForOptimization[[#This Row],[Optimization Group ID]],Export_ResourceGroupsForOptimization[],3) *VLOOKUP(Table_LSEShowingProfilesForOptimization[[#This Row],[Optimization Group ID]],Export_ResourceGroupsForOptimization[],5) /VLOOKUP(Table_LSEShowingProfilesForOptimization[[#This Row],[Optimization Group ID]],Export_ResourceGroupsForOptimization[],6) ) ), IF( Table_LSEShowingProfilesForOptimization[[#This Row],[Shown MW]]>0, OFFSET(Table_LSEShowingProfilesForOptimization[[#This Row],[State-of-Charge]],-1,0)-Table_LSEShowingProfilesForOptimization[[#This Row],[Shown MW]]/VLOOKUP(Table_LSEShowingProfilesForOptimization[[#This Row],[Optimization Group ID]],Export_ResourceGroupsForOptimization[],6), MIN( OFFSET(Table_LSEShowingProfilesForOptimization[[#This Row],[State-of-Charge]],-1,0) +VLOOKUP(Table_LSEShowingProfilesForOptimization[[#This Row],[Optimization Group ID]],Export_ResourceGroupsForOptimization[],3) *VLOOKUP(Table_LSEShowingProfilesForOptimization[[#This Row],[Optimization Group ID]],Export_ResourceGroupsForOptimization[],5) /VLOOKUP(Table_LSEShowingProfilesForOptimization[[#This Row],[Optimization Group ID]],Export_ResourceGroupsForOptimization[],6), 100% ) ) ) -> 0.2263485263 | K24: 22 | L24: -6.5642 | M24: =SUMIF(Table_LSEShowingProfilesForOptimization[Hour Ending],Export_LSEShowingUnshownRequirement[[#This Row],[Hour Ending]],Table_LSEShowingProfilesForOptimization[Shown MW]) -> 0 | N24: =(Export_LSEShowingUnshownRequirement[[#This Row],[Remaining Required MW]]-Export_LSEShowingUnshownRequirement[[#This Row],[Shown MW]])^2 -> 43.08872164
E25: ALAMIT_7_ES1 | F25: 23 | G25: 0 | H25: =Table_LSEShowingProfilesForOptimization[[#This Row],[Show Hour]]*SUMIF(Export_ResourceGroupsForOptimization[Optimization Group ID],Table_LSEShowingProfilesForOptimization[[#This Row],[Optimization Group ID]],Export_ResourceGroupsForOptimization[NQC or VER Under Contract (MW)]) -> 0 | I25: =IF( Table_LSEShowingProfilesForOptimization[[#This Row],[Hour Ending]]<=OFFSET(Table_LSEShowingProfilesForOptimization[[#This Row],[Hour Ending]],-1,0), IF( Table_LSEShowingProfilesForOptimization[[#This Row],[Shown MW]]>0, -Table_LSEShowingProfilesForOptimization[[#This Row],[Shown MW]], MIN( 100%, VLOOKUP(Table_LSEShowingProfilesForOptimization[[#This Row],[Optimization Group ID]],Export_ResourceGroupsForOptimization[],3) *VLOOKUP(Table_LSEShowingProfilesForOptimization[[#This Row],[Optimization Group ID]],Export_ResourceGroupsForOptimization[],5) /VLOOKUP(Table_LSEShowingProfilesForOptimization[[#This Row],[Optimization Group ID]],Export_ResourceGroupsForOptimization[],6) ) ), IF( Table_LSEShowingProfilesForOptimization[[#This Row],[Shown MW]]>0, OFFSET(Table_LSEShowingProfilesForOptimization[[#This Row],[State-of-Charge]],-1,0)-Table_LSEShowingProfilesForOptimization[[#This Row],[Shown MW]]/VLOOKUP(Table_LSEShowingProfilesForOptimization[[#This Row],[Optimization Group ID]],Export_ResourceGroupsForOptimization[],6), MIN( OFFSET(Table_LSEShowingProfilesForOptimization[[#This Row],[State-of-Charge]],-1,0) +VLOOKUP(Table_LSEShowingProfilesForOptimization[[#This Row],[Optimization Group ID]],Export_ResourceGroupsForOptimization[],3) *VLOOKUP(Table_LSEShowingProfilesForOptimization[[#This Row],[Optimization Group ID]],Export_ResourceGroupsForOptimization[],5) /VLOOKUP(Table_LSEShowingProfilesForOptimization[[#This Row],[Optimization Group ID]],Export_ResourceGroupsForOptimization[],6), 100% ) ) ) -> 0.2490985263 | K25: 23 | L25: -12.5642 | M25: =SUMIF(Table_LSEShowingProfilesForOptimization[Hour Ending],Export_LSEShowingUnshownRequirement[[#This Row],[Hour Ending]],Table_LSEShowingProfilesForOptimization[Shown MW]) -> 0 | N25: =(Export_LSEShowingUnshownRequirement[[#This Row],[Remaining Required MW]]-Export_LSEShowingUnshownRequirement[[#This Row],[Shown MW]])^2 -> 157.8591216
E26: ALAMIT_7_ES1 | F26: 24 | G26: 0 | H26: =Table_LSEShowingProfilesForOptimization[[#This Row],[Show Hour]]*SUMIF(Export_ResourceGroupsForOptimization[Optimization Group ID],Table_LSEShowingProfilesForOptimization[[#This Row],[Optimization Group ID]],Export_ResourceGroupsForOptimization[NQC or VER Under Contract (MW)]) -> 0 | I26: =IF( Table_LSEShowingProfilesForOptimization[[#This Row],[Hour Ending]]<=OFFSET(Table_LSEShowingProfilesForOptimization[[#This Row],[Hour Ending]],-1,0), IF( Table_LSEShowingProfilesForOptimization[[#This Row],[Shown MW]]>0, -Table_LSEShowingProfilesForOptimization[[#This Row],[Shown MW]], MIN( 100%, VLOOKUP(Table_LSEShowingProfilesForOptimization[[#This Row],[Optimization Group ID]],Export_ResourceGroupsForOptimization[],3) *VLOOKUP(Table_LSEShowingProfilesForOptimization[[#This Row],[Optimization Group ID]],Export_ResourceGroupsForOptimization[],5) /VLOOKUP(Table_LSEShowingProfilesForOptimization[[#This Row],[Optimization Group ID]],Export_ResourceGroupsForOptimization[],6) ) ), IF( Table_LSEShowingProfilesForOptimization[[#This Row],[Shown MW]]>0, OFFSET(Table_LSEShowingProfilesForOptimization[[#This Row],[State-of-Charge]],-1,0)-Table_LSEShowingProfilesForOptimization[[#This Row],[Shown MW]]/VLOOKUP(Table_LSEShowingProfilesForOptimization[[#This Row],[Optimization Group ID]],Export_ResourceGroupsForOptimization[],6), MIN( OFFSET(Table_LSEShowingProfilesForOptimization[[#This Row],[State-of-Charge]],-1,0) +VLOOKUP(Table_LSEShowingProfilesForOptimization[[#This Row],[Optimization Group ID]],Export_ResourceGroupsForOptimization[],3) *VLOOKUP(Table_LSEShowingProfilesForOptimization[[#This Row],[Optimization Group ID]],Export_ResourceGroupsForOptimization[],5) /VLOOKUP(Table_LSEShowingProfilesForOptimization[[#This Row],[Optimization Group ID]],Export_ResourceGroupsForOptimization[],6), 100% ) ) ) -> 0.2718485263 | K26: 24 | L26: -14.062 | M26: =SUMIF(Table_LSEShowingProfilesForOptimization[Hour Ending],Export_LSEShowingUnshownRequirement[[#This Row],[Hour Ending]],Table_LSEShowingProfilesForOptimization[Shown MW]) -> 0 | N26: =(Export_LSEShowingUnshownRequirement[[#This Row],[Remaining Required MW]]-Export_LSEShowingUnshownRequirement[[#This Row],[Shown MW]])^2 -> 197.739844
E27: CAM Storage 2 | F27: 1 | G27: 0 | H27: =Table_LSEShowingProfilesForOptimization[[#This Row],[Show Hour]]*SUMIF(Export_ResourceGroupsForOptimization[Optimization Group ID],Table_LSEShowingProfilesForOptimization[[#This Row],[Optimization Group ID]],Export_ResourceGroupsForOptimization[NQC or VER Under Contract (MW)]) -> 0 | I27: =IF( Table_LSEShowingProfilesForOptimization[[#This Row],[Hour Ending]]<=OFFSET(Table_LSEShowingProfilesForOptimization[[#This Row],[Hour Ending]],-1,0), IF( Table_LSEShowingProfilesForOptimization[[#This Row],[Shown MW]]>0, -Table_LSEShowingProfilesForOptimization[[#This Row],[Shown MW]], MIN( 100%, VLOOKUP(Table_LSEShowingProfilesForOptimization[[#This Row],[Optimization Group ID]],Export_ResourceGroupsForOptimization[],3) *VLOOKUP(Table_LSEShowingProfilesForOptimization[[#This Row],[Optimization Group ID]],Export_ResourceGroupsForOptimization[],5) /VLOOKUP(Table_LSEShowingProfilesForOptimization[[#This Row],[Optimization Group ID]],Export_ResourceGroupsForOptimization[],6) ) ), IF( Table_LSEShowingProfilesForOptimization[[#This Row],[Shown MW]]>0, OFFSET(Table_LSEShowingProfilesForOptimization[[#This Row],[State-of-Charge]],-1,0)-Table_LSEShowingProfilesForOptimization[[#This Row],[Shown MW]]/VLOOKUP(Table_LSEShowingProfilesForOptimization[[#This Row],[Optimization Group ID]],Export_ResourceGroupsForOptimization[],6), MIN( OFFSET(Table_LSEShowingProfilesForOptimization[[#This Row],[State-of-Charge]],-1,0) +VLOOKUP(Table_LSEShowingProfilesForOptimization[[#This Row],[Optimization Group ID]],Export_ResourceGroupsForOptimization[],3) *VLOOKUP(Table_LSEShowingProfilesForOptimization[[#This Row],[Optimization Group ID]],Export_ResourceGroupsForOptimization[],5) /VLOOKUP(Table_LSEShowingProfilesForOptimization[[#This Row],[Optimization Group ID]],Export_ResourceGroupsForOptimization[],6), 100% ) ) ) -> 0.2175 | N27: =SUBTOTAL(109,Export_LSEShowingUnshownRequirement[Objective Function]) -> 4141.646456
E28: CAM Storage 2 | F28: 2 | G28: 0.02894462909 | H28: =Table_LSEShowingProfilesForOptimization[[#This Row],[Show Hour]]*SUMIF(Export_ResourceGroupsForOptimization[Optimization Group ID],Table_LSEShowingProfilesForOptimization[[#This Row],[Optimization Group ID]],Export_ResourceGroupsForOptimization[NQC or VER Under Contract (MW)]) -> 0.5788925818 | I28: =IF( Table_LSEShowingProfilesForOptimization[[#This Row],[Hour Ending]]<=OFFSET(Table_LSEShowingProfilesForOptimization[[#This Row],[Hour Ending]],-1,0), IF( Table_LSEShowingProfilesForOptimization[[#This Row],[Shown MW]]>0, -Table_LSEShowingProfilesForOptimization[[#This Row],[Shown MW]], MIN( 100%, VLOOKUP(Table_LSEShowingProfilesForOptimization[[#This Row],[Optimization Group ID]],Export_ResourceGroupsForOptimization[],3) *VLOOKUP(Table_LSEShowingProfilesForOptimization[[#This Row],[Optimization Group ID]],Export_ResourceGroupsForOptimization[],5) /VLOOKUP(Table_LSEShowingProfilesForOptimization[[#This Row],[Optimization Group ID]],Export_ResourceGroupsForOptimization[],6) ) ), IF( Table_LSEShowingProfilesForOptimization[[#This Row],[Shown MW]]>0, OFFSET(Table_LSEShowingProfilesForOptimization[[#This Row],[State-of-Charge]],-1,0)-Table_LSEShowingProfilesForOptimization[[#This Row],[Shown MW]]/VLOOKUP(Table_LSEShowingProfilesForOptimization[[#This Row],[Optimization Group ID]],Export_ResourceGroupsForOptimization[],6), MIN( OFFSET(Table_LSEShowingProfilesForOptimization[[#This Row],[State-of-Charge]],-1,0) +VLOOKUP(Table_LSEShowingProfilesForOptimization[[#This Row],[Optimization Group ID]],Export_ResourceGroupsForOptimization[],3) *VLOOKUP(Table_LSEShowingProfilesForOptimization[[#This Row],[Optimization Group ID]],Export_ResourceGroupsForOptimization[],5) /VLOOKUP(Table_LSEShowingProfilesForOptimization[[#This Row],[Optimization Group ID]],Export_ResourceGroupsForOptimization[],6), 100% ) ) ) -> 0.2102638427
E29: CAM Storage 2 | F29: 3 | G29: 0.08289680923 | H29: =Table_LSEShowingProfilesForOptimization[[#This Row],[Show Hour]]*SUMIF(Export_ResourceGroupsForOptimization[Optimization Group ID],Table_LSEShowingProfilesForOptimization[[#This Row],[Optimization Group ID]],Export_ResourceGroupsForOptimization[NQC or VER Under Contract (MW)]) -> 1.657936185 | I29: =IF( Table_LSEShowingProfilesForOptimization[[#This Row],[Hour Ending]]<=OFFSET(Table_LSEShowingProfilesForOptimization[[#This Row],[Hour Ending]],-1,0), IF( Table_LSEShowingProfilesForOptimization[[#This Row],[Shown MW]]>0, -Table_LSEShowingProfilesForOptimization[[#This Row],[Shown MW]], MIN( 100%, VLOOKUP(Table_LSEShowingProfilesForOptimization[[#This Row],[Optimization Group ID]],Export_ResourceGroupsForOptimization[],3) *VLOOKUP(Table_LSEShowingProfilesForOptimization[[#This Row],[Optimization Group ID]],Export_ResourceGroupsForOptimization[],5) /VLOOKUP(Table_LSEShowingProfilesForOptimization[[#This Row],[Optimization Group ID]],Export_ResourceGroupsForOptimization[],6) ) ), IF( Table_LSEShowingProfilesForOptimization[[#This Row],[Shown MW]]>0, OFFSET(Table_LSEShowingProfilesForOptimization[[#This Row],[State-of-Charge]],-1,0)-Table_LSEShowingProfilesForOptimization[[#This Row],[Shown MW]]/VLOOKUP(Table_LSEShowingProfilesForOptimization[[#This Row],[Optimization Group ID]],Export_ResourceGroupsForOptimization[],6), MIN( OFFSET(Table_LSEShowingProfilesForOptimization[[#This Row],[State-of-Charge]],-1,0) +VLOOKUP(Table_LSEShowingProfilesForOptimization[[#This Row],[Optimization Group ID]],Export_ResourceGroupsForOptimization[],3) *VLOOKUP(Table_LSEShowingProfilesForOptimization[[#This Row],[Optimization Group ID]],Export_ResourceGroupsForOptimization[],5) /VLOOKUP(Table_LSEShowingProfilesForOptimization[[#This Row],[Optimization Group ID]],Export_ResourceGroupsForOptimization[],6), 100% ) ) ) -> 0.1895396404
E30: CAM Storage 2 | F30: 4 | G30: 0.147677429 | H30: =Table_LSEShowingProfilesForOptimization[[#This Row],[Show Hour]]*SUMIF(Export_ResourceGroupsForOptimization[Optimization Group ID],Table_LSEShowingProfilesForOptimization[[#This Row],[Optimization Group ID]],Export_ResourceGroupsForOptimization[NQC or VER Under Contract (MW)]) -> 2.95354858 | I30: =IF( Table_LSEShowingProfilesForOptimization[[#This Row],[Hour Ending]]<=OFFSET(Table_LSEShowingProfilesForOptimization[[#This Row],[Hour Ending]],-1,0), IF( Table_LSEShowingProfilesForOptimization[[#This Row],[Shown MW]]>0, -Table_LSEShowingProfilesForOptimization[[#This Row],[Shown MW]], MIN( 100%, VLOOKUP(Table_LSEShowingProfilesForOptimization[[#This Row],[Optimization Group ID]],Export_ResourceGroupsForOptimization[],3) *VLOOKUP(Table_LSEShowingProfilesForOptimization[[#This Row],[Optimization Group ID]],Export_ResourceGroupsForOptimization[],5) /VLOOKUP(Table_LSEShowingProfilesForOptimization[[#This Row],[Optimization Group ID]],Export_ResourceGroupsForOptimization[],6) ) ), IF( Table_LSEShowingProfilesForOptimization[[#This Row],[Shown MW]]>0, OFFSET(Table_LSEShowingProfilesForOptimization[[#This Row],[State-of-Charge]],-1,0)-Table_LSEShowingProfilesForOptimization[[#This Row],[Shown MW]]/VLOOKUP(Table_LSEShowingProfilesForOptimization[[#This Row],[Optimization Group ID]],Export_ResourceGroupsForOptimization[],6), MIN( OFFSET(Table_LSEShowingProfilesForOptimization[[#This Row],[State-of-Charge]],-1,0) +VLOOKUP(Table_LSEShowingProfilesForOptimization[[#This Row],[Optimization Group ID]],Export_ResourceGroupsForOptimization[],3) *VLOOKUP(Table_LSEShowingProfilesForOptimization[[#This Row],[Optimization Group ID]],Export_ResourceGroupsForOptimization[],5) /VLOOKUP(Table_LSEShowingProfilesForOptimization[[#This Row],[Optimization Group ID]],Export_ResourceGroupsForOptimization[],6), 100% ) ) ) -> 0.1526202832
E31: CAM Storage 2 | F31: 5 | G31: 0.1908012145 | H31: =Table_LSEShowingProfilesForOptimization[[#This Row],[Show Hour]]*SUMIF(Export_ResourceGroupsForOptimization[Optimization Group ID],Table_LSEShowingProfilesForOptimization[[#This Row],[Optimization Group ID]],Export_ResourceGroupsForOptimization[NQC or VER Under Contract (MW)]) -> 3.816024291 | I31: =IF( Table_LSEShowingProfilesForOptimization[[#This Row],[Hour Ending]]<=OFFSET(Table_LSEShowingProfilesForOptimization[[#This Row],[Hour Ending]],-1,0), IF( Table_LSEShowingProfilesForOptimization[[#This Row],[Shown MW]]>0, -Table_LSEShowingProfilesForOptimization[[#This Row],[Shown MW]], MIN( 100%, VLOOKUP(Table_LSEShowingProfilesForOptimization[[#This Row],[Optimization Group ID]],Export_ResourceGroupsForOptimization[],3) *VLOOKUP(Table_LSEShowingProfilesForOptimization[[#This Row],[Optimization Group ID]],Export_ResourceGroupsForOptimization[],5) /VLOOKUP(Table_LSEShowingProfilesForOptimization[[#This Row],[Optimization Group ID]],Export_ResourceGroupsForOptimization[],6) ) ), IF( Table_LSEShowingProfilesForOptimization[[#This Row],[Shown MW]]>0, OFFSET(Table_LSEShowingProfilesForOptimization[[#This Row],[State-of-Charge]],-1,0)-Table_LSEShowingProfilesForOptimization[[#This Row],[Shown MW]]/VLOOKUP(Table_LSEShowingProfilesForOptimization[[#This Row],[Optimization Group ID]],Export_ResourceGroupsForOptimization[],6), MIN( OFFSET(Table_LSEShowingProfilesForOptimization[[#This Row],[State-of-Charge]],-1,0) +VLOOKUP(Table_LSEShowingProfilesForOptimization[[#This Row],[Optimization Group ID]],Export_ResourceGroupsForOptimization[],3) *VLOOKUP(Table_LSEShowingProfilesForOptimization[[#This Row],[Optimization Group ID]],Export_ResourceGroupsForOptimization[],5) /VLOOKUP(Table_LSEShowingProfilesForOptimization[[#This Row],[Optimization Group ID]],Export_ResourceGroupsForOptimization[],6), 100% ) ) ) -> 0.1049199795
E32: CAM Storage 2 | F32: 6 | G32: 0.007572515105 | H32: =Table_LSEShowingProfilesForOptimization[[#This Row],[Show Hour]]*SUMIF(Export_ResourceGroupsForOptimization[Optimization Group ID],Table_LSEShowingProfilesForOptimization[[#This Row],[Optimization Group ID]],Export_ResourceGroupsForOptimization[NQC or VER Under Contract (MW)]) -> 0.1514503021 | I32: =IF( Table_LSEShowingProfilesForOptimization[[#This Row],[Hour Ending]]<=OFFSET(Table_LSEShowingProfilesForOptimization[[#This Row],[Hour Ending]],-1,0), IF( Table_LSEShowingProfilesForOptimization[[#This Row],[Shown MW]]>0, -Table_LSEShowingProfilesForOptimization[[#This Row],[Shown MW]], MIN( 100%, VLOOKUP(Table_LSEShowingProfilesForOptimization[[#This Row],[Optimization Group ID]],Export_ResourceGroupsForOptimization[],3) *VLOOKUP(Table_LSEShowingProfilesForOptimization[[#This Row],[Optimization Group ID]],Export_ResourceGroupsForOptimization[],5) /VLOOKUP(Table_LSEShowingProfilesForOptimization[[#This Row],[Optimization Group ID]],Export_ResourceGroupsForOptimization[],6) ) ), IF( Table_LSEShowingProfilesForOptimization[[#This Row],[Shown MW]]>0, OFFSET(Table_LSEShowingProfilesForOptimization[[#This Row],[State-of-Charge]],-1,0)-Table_LSEShowingProfilesForOptimization[[#This Row],[Shown MW]]/VLOOKUP(Table_LSEShowingProfilesForOptimization[[#This Row],[Optimization Group ID]],Export_ResourceGroupsForOptimization[],6), MIN( OFFSET(Table_LSEShowingProfilesForOptimization[[#This Row],[State-of-Charge]],-1,0) +VLOOKUP(Table_LSEShowingProfilesForOptimization[[#This Row],[Optimization Group ID]],Export_ResourceGroupsForOptimization[],3) *VLOOKUP(Table_LSEShowingProfilesForOptimization[[#This Row],[Optimization Group ID]],Export_ResourceGroupsForOptimization[],5) /VLOOKUP(Table_LSEShowingProfilesForOptimization[[#This Row],[Optimization Group ID]],Export_ResourceGroupsForOptimization[],6), 100% ) ) ) -> 0.1030268508
E33: CAM Storage 2 | F33: 7 | G33: 0 | H33: =Table_LSEShowingProfilesForOptimization[[#This Row],[Show Hour]]*SUMIF(Export_ResourceGroupsForOptimization[Optimization Group ID],Table_LSEShowingProfilesForOptimization[[#This Row],[Optimization Group ID]],Export_ResourceGroupsForOptimization[NQC or VER Under Contract (MW)]) -> 0 | I33: =IF( Table_LSEShowingProfilesForOptimization[[#This Row],[Hour Ending]]<=OFFSET(Table_LSEShowingProfilesForOptimization[[#This Row],[Hour Ending]],-1,0), IF( Table_LSEShowingProfilesForOptimization[[#This Row],[Shown MW]]>0, -Table_LSEShowingProfilesForOptimization[[#This Row],[Shown MW]], MIN( 100%, VLOOKUP(Table_LSEShowingProfilesForOptimization[[#This Row],[Optimization Group ID]],Export_ResourceGroupsForOptimization[],3) *VLOOKUP(Table_LSEShowingProfilesForOptimization[[#This Row],[Optimization Group ID]],Export_ResourceGroupsForOptimization[],5) /VLOOKUP(Table_LSEShowingProfilesForOptimization[[#This Row],[Optimization Group ID]],Export_ResourceGroupsForOptimization[],6) ) ), IF( Table_LSEShowingProfilesForOptimization[[#This Row],[Shown MW]]>0, OFFSET(Table_LSEShowingProfilesForOptimization[[#This Row],[State-of-Charge]],-1,0)-Table_LSEShowingProfilesForOptimization[[#This Row],[Shown MW]]/VLOOKUP(Table_LSEShowingProfilesForOptimization[[#This Row],[Optimization Group ID]],Export_ResourceGroupsForOptimization[],6), MIN( OFFSET(Table_LSEShowingProfilesForOptimization[[#This Row],[State-of-Charge]],-1,0) +VLOOKUP(Table_LSEShowingProfilesForOptimization[[#This Row],[Optimization Group ID]],Export_ResourceGroupsForOptimization[],3) *VLOOKUP(Table_LSEShowingProfilesForOptimization[[#This Row],[Optimization Group ID]],Export_ResourceGroupsForOptimization[],5) /VLOOKUP(Table_LSEShowingProfilesForOptimization[[#This Row],[Optimization Group ID]],Export_ResourceGroupsForOptimization[],6), 100% ) ) ) -> 0.3205268508
E34: CAM Storage 2 | F34: 8 | G34: 0 | H34: =Table_LSEShowingProfilesForOptimization[[#This Row],[Show Hour]]*SUMIF(Export_ResourceGroupsForOptimization[Optimization Group ID],Table_LSEShowingProfilesForOptimization[[#This Row],[Optimization Group ID]],Export_ResourceGroupsForOptimization[NQC or VER Under Contract (MW)]) -> 0 | I34: =IF( Table_LSEShowingProfilesForOptimization[[#This Row],[Hour Ending]]<=OFFSET(Table_LSEShowingProfilesForOptimization[[#This Row],[Hour Ending]],-1,0), IF( Table_LSEShowingProfilesForOptimization[[#This Row],[Shown MW]]>0, -Table_LSEShowingProfilesForOptimization[[#This Row],[Shown MW]], MIN( 100%, VLOOKUP(Table_LSEShowingProfilesForOptimization[[#This Row],[Optimization Group ID]],Export_ResourceGroupsForOptimization[],3) *VLOOKUP(Table_LSEShowingProfilesForOptimization[[#This Row],[Optimization Group ID]],Export_ResourceGroupsForOptimization[],5) /VLOOKUP(Table_LSEShowingProfilesForOptimization[[#This Row],[Optimization Group ID]],Export_ResourceGroupsForOptimization[],6) ) ), IF( Table_LSEShowingProfilesForOptimization[[#This Row],[Shown MW]]>0, OFFSET(Table_LSEShowingProfilesForOptimization[[#This Row],[State-of-Charge]],-1,0)-Table_LSEShowingProfilesForOptimization[[#This Row],[Shown MW]]/VLOOKUP(Table_LSEShowingProfilesForOptimization[[#This Row],[Optimization Group ID]],Export_ResourceGroupsForOptimization[],6), MIN( OFFSET(Table_LSEShowingProfilesForOptimization[[#This Row],[State-of-Charge]],-1,0) +VLOOKUP(Table_LSEShowingProfilesForOptimization[[#This Row],[Optimization Group ID]],Export_ResourceGroupsForOptimization[],3) *VLOOKUP(Table_LSEShowingProfilesForOptimization[[#This Row],[Optimization Group ID]],Export_ResourceGroupsForOptimization[],5) /VLOOKUP(Table_LSEShowingProfilesForOptimization[[#This Row],[Optimization Group ID]],Export_ResourceGroupsForOptimization[],6), 100% ) ) ) -> 0.5380268508
E35: CAM Storage 2 | F35: 9 | G35: 0 | H35: =Table_LSEShowingProfilesForOptimization[[#This Row],[Show Hour]]*SUMIF(Export_ResourceGroupsForOptimization[Optimization Group ID],Table_LSEShowingProfilesForOptimization[[#This Row],[Optimization Group ID]],Export_ResourceGroupsForOptimization[NQC or VER Under Contract (MW)]) -> 0 | I35: =IF( Table_LSEShowingProfilesForOptimization[[#This Row],[Hour Ending]]<=OFFSET(Table_LSEShowingProfilesForOptimization[[#This Row],[Hour Ending]],-1,0), IF( Table_LSEShowingProfilesForOptimization[[#This Row],[Shown MW]]>0, -Table_LSEShowingProfilesForOptimization[[#This Row],[Shown MW]], MIN( 100%, VLOOKUP(Table_LSEShowingProfilesForOptimization[[#This Row],[Optimization Group ID]],Export_ResourceGroupsForOptimization[],3) *VLOOKUP(Table_LSEShowingProfilesForOptimization[[#This Row],[Optimization Group ID]],Export_ResourceGroupsForOptimization[],5) /VLOOKUP(Table_LSEShowingProfilesForOptimization[[#This Row],[Optimization Group ID]],Export_ResourceGroupsForOptimization[],6) ) ), IF( Table_LSEShowingProfilesForOptimization[[#This Row],[Shown MW]]>0, OFFSET(Table_LSEShowingProfilesForOptimization[[#This Row],[State-of-Charge]],-1,0)-Table_LSEShowingProfilesForOptimization[[#This Row],[Shown MW]]/VLOOKUP(Table_LSEShowingProfilesForOptimization[[#This Row],[Optimization Group ID]],Export_ResourceGroupsForOptimization[],6), MIN( OFFSET(Table_LSEShowingProfilesForOptimization[[#This Row],[State-of-Charge]],-1,0) +VLOOKUP(Table_LSEShowingProfilesForOptimization[[#This Row],[Optimization Group ID]],Export_ResourceGroupsForOptimization[],3) *VLOOKUP(Table_LSEShowingProfilesForOptimization[[#This Row],[Optimization Group ID]],Export_ResourceGroupsForOptimization[],5) /VLOOKUP(Table_LSEShowingProfilesForOptimization[[#This Row],[Optimization Group ID]],Export_ResourceGroupsForOptimization[],6), 100% ) ) ) -> 0.7555268508
E36: CAM Storage 2 | F36: 10 | G36: 0 | H36: =Table_LSEShowingProfilesForOptimization[[#This Row],[Show Hour]]*SUMIF(Export_ResourceGroupsForOptimization[Optimization Group ID],Table_LSEShowingProfilesForOptimization[[#This Row],[Optimization Group ID]],Export_ResourceGroupsForOptimization[NQC or VER Under Contract (MW)]) -> 0 | I36: =IF( Table_LSEShowingProfilesForOptimization[[#This Row],[Hour Ending]]<=OFFSET(Table_LSEShowingProfilesForOptimization[[#This Row],[Hour Ending]],-1,0), IF( Table_LSEShowingProfilesForOptimization[[#This Row],[Shown MW]]>0, -Table_LSEShowingProfilesForOptimization[[#This Row],[Shown MW]], MIN( 100%, VLOOKUP(Table_LSEShowingProfilesForOptimization[[#This Row],[Optimization Group ID]],Export_ResourceGroupsForOptimization[],3) *VLOOKUP(Table_LSEShowingProfilesForOptimization[[#This Row],[Optimization Group ID]],Export_ResourceGroupsForOptimization[],5) /VLOOKUP(Table_LSEShowingProfilesForOptimization[[#This Row],[Optimization Group ID]],Export_ResourceGroupsForOptimization[],6) ) ), IF( Table_LSEShowingProfilesForOptimization[[#This Row],[Shown MW]]>0, OFFSET(Table_LSEShowingProfilesForOptimization[[#This Row],[State-of-Charge]],-1,0)-Table_LSEShowingProfilesForOptimization[[#This Row],[Shown MW]]/VLOOKUP(Table_LSEShowingProfilesForOptimization[[#This Row],[Optimization Group ID]],Export_ResourceGroupsForOptimization[],6), MIN( OFFSET(Table_LSEShowingProfilesForOptimization[[#This Row],[State-of-Charge]],-1,0) +VLOOKUP(Table_LSEShowingProfilesForOptimization[[#This Row],[Optimization Group ID]],Export_ResourceGroupsForOptimization[],3) *VLOOKUP(Table_LSEShowingProfilesForOptimization[[#This Row],[Optimization Group ID]],Export_ResourceGroupsForOptimization[],5) /VLOOKUP(Table_LSEShowingProfilesForOptimization[[#This Row],[Optimization Group ID]],Export_ResourceGroupsForOptimization[],6), 100% ) ) ) -> 0.9730268508
E37: CAM Storage 2 | F37: 11 | G37: 0 | H37: =Table_LSEShowingProfilesForOptimization[[#This Row],[Show Hour]]*SUMIF(Export_ResourceGroupsForOptimization[Optimization Group ID],Table_LSEShowingProfilesForOptimization[[#This Row],[Optimization Group ID]],Export_ResourceGroupsForOptimization[NQC or VER Under Contract (MW)]) -> 0 | I37: =IF( Table_LSEShowingProfilesForOptimization[[#This Row],[Hour Ending]]<=OFFSET(Table_LSEShowingProfilesForOptimization[[#This Row],[Hour Ending]],-1,0), IF( Table_LSEShowingProfilesForOptimization[[#This Row],[Shown MW]]>0, -Table_LSEShowingProfilesForOptimization[[#This Row],[Shown MW]], MIN( 100%, VLOOKUP(Table_LSEShowingProfilesForOptimization[[#This Row],[Optimization Group ID]],Export_ResourceGroupsForOptimization[],3) *VLOOKUP(Table_LSEShowingProfilesForOptimization[[#This Row],[Optimization Group ID]],Export_ResourceGroupsForOptimization[],5) /VLOOKUP(Table_LSEShowingProfilesForOptimization[[#This Row],[Optimization Group ID]],Export_ResourceGroupsForOptimization[],6) ) ), IF( Table_LSEShowingProfilesForOptimization[[#This Row],[Shown MW]]>0, OFFSET(Table_LSEShowingProfilesForOptimization[[#This Row],[State-of-Charge]],-1,0)-Table_LSEShowingProfilesForOptimization[[#This Row],[Shown MW]]/VLOOKUP(Table_LSEShowingProfilesForOptimization[[#This Row],[Optimization Group ID]],Export_ResourceGroupsForOptimization[],6), MIN( OFFSET(Table_LSEShowingProfilesForOptimization[[#This Row],[State-of-Charge]],-1,0) +VLOOKUP(Table_LSEShowingProfilesForOptimization[[#This Row],[Optimization Group ID]],Export_ResourceGroupsForOptimization[],3) *VLOOKUP(Table_LSEShowingProfilesForOptimization[[#This Row],[Optimization Group ID]],Export_ResourceGroupsForOptimization[],5) /VLOOKUP(Table_LSEShowingProfilesForOptimization[[#This Row],[Optimization Group ID]],Export_ResourceGroupsForOptimization[],6), 100% ) ) ) -> 1
E38: CAM Storage 2 | F38: 12 | G38: 0 | H38: =Table_LSEShowingProfilesForOptimization[[#This Row],[Show Hour]]*SUMIF(Export_ResourceGroupsForOptimization[Optimization Group ID],Table_LSEShowingProfilesForOptimization[[#This Row],[Optimization Group ID]],Export_ResourceGroupsForOptimization[NQC or VER Under Contract (MW)]) -> 0 | I38: =IF( Table_LSEShowingProfilesForOptimization[[#This Row],[Hour Ending]]<=OFFSET(Table_LSEShowingProfilesForOptimization[[#This Row],[Hour Ending]],-1,0), IF( Table_LSEShowingProfilesForOptimization[[#This Row],[Shown MW]]>0, -Table_LSEShowingProfilesForOptimization[[#This Row],[Shown MW]], MIN( 100%, VLOOKUP(Table_LSEShowingProfilesForOptimization[[#This Row],[Optimization Group ID]],Export_ResourceGroupsForOptimization[],3) *VLOOKUP(Table_LSEShowingProfilesForOptimization[[#This Row],[Optimization Group ID]],Export_ResourceGroupsForOptimization[],5) /VLOOKUP(Table_LSEShowingProfilesForOptimization[[#This Row],[Optimization Group ID]],Export_ResourceGroupsForOptimization[],6) ) ), IF( Table_LSEShowingProfilesForOptimization[[#This Row],[Shown MW]]>0, OFFSET(Table_LSEShowingProfilesForOptimization[[#This Row],[State-of-Charge]],-1,0)-Table_LSEShowingProfilesForOptimization[[#This Row],[Shown MW]]/VLOOKUP(Table_LSEShowingProfilesForOptimization[[#This Row],[Optimization Group ID]],Export_ResourceGroupsForOptimization[],6), MIN( OFFSET(Table_LSEShowingProfilesForOptimization[[#This Row],[State-of-Charge]],-1,0) +VLOOKUP(Table_LSEShowingProfilesForOptimization[[#This Row],[Optimization Group ID]],Export_ResourceGroupsForOptimization[],3) *VLOOKUP(Table_LSEShowingProfilesForOptimization[[#This Row],[Optimization Group ID]],Export_ResourceGroupsForOptimization[],5) /VLOOKUP(Table_LSEShowingProfilesForOptimization[[#This Row],[Optimization Group ID]],Export_ResourceGroupsForOptimization[],6), 100% ) ) ) -> 1
E39: CAM Storage 2 | F39: 13 | G39: 0 | H39: =Table_LSEShowingProfilesForOptimization[[#This Row],[Show Hour]]*SUMIF(Export_ResourceGroupsForOptimization[Optimization Group ID],Table_LSEShowingProfilesForOptimization[[#This Row],[Optimization Group ID]],Export_ResourceGroupsForOptimization[NQC or VER Under Contract (MW)]) -> 0 | I39: =IF( Table_LSEShowingProfilesForOptimization[[#This Row],[Hour Ending]]<=OFFSET(Table_LSEShowingProfilesForOptimization[[#This Row],[Hour Ending]],-1,0), IF( Table_LSEShowingProfilesForOptimization[[#This Row],[Shown MW]]>0, -Table_LSEShowingProfilesForOptimization[[#This Row],[Shown MW]], MIN( 100%, VLOOKUP(Table_LSEShowingProfilesForOptimization[[#This Row],[Optimization Group ID]],Export_ResourceGroupsForOptimization[],3) *VLOOKUP(Table_LSEShowingProfilesForOptimization[[#This Row],[Optimization Group ID]],Export_ResourceGroupsForOptimization[],5) /VLOOKUP(Table_LSEShowingProfilesForOptimization[[#This Row],[Optimization Group ID]],Export_ResourceGroupsForOptimization[],6) ) ), IF( Table_LSEShowingProfilesForOptimization[[#This Row],[Shown MW]]>0, OFFSET(Table_LSEShowingProfilesForOptimization[[#This Row],[State-of-Charge]],-1,0)-Table_LSEShowingProfilesForOptimization[[#This Row],[Shown MW]]/VLOOKUP(Table_LSEShowingProfilesForOptimization[[#This Row],[Optimization Group ID]],Export_ResourceGroupsForOptimization[],6), MIN( OFFSET(Table_LSEShowingProfilesForOptimization[[#This Row],[State-of-Charge]],-1,0) +VLOOKUP(Table_LSEShowingProfilesForOptimization[[#This Row],[Optimization Group ID]],Export_ResourceGroupsForOptimization[],3) *VLOOKUP(Table_LSEShowingProfilesForOptimization[[#This Row],[Optimization Group ID]],Export_ResourceGroupsForOptimization[],5) /VLOOKUP(Table_LSEShowingProfilesForOptimization[[#This Row],[Optimization Group ID]],Export_ResourceGroupsForOptimization[],6), 100% ) ) ) -> 1
E40: CAM Storage 2 | F40: 14 | G40: 0.03878976607 | H40: =Table_LSEShowingProfilesForOptimization[[#This Row],[Show Hour]]*SUMIF(Export_ResourceGroupsForOptimization[Optimization Group ID],Table_LSEShowingProfilesForOptimization[[#This Row],[Optimization Group ID]],Export_ResourceGroupsForOptimization[NQC or VER Under Contract (MW)]) -> 0.7757953214 | I40: =IF( Table_LSEShowingProfilesForOptimization[[#This Row],[Hour Ending]]<=OFFSET(Table_LSEShowingProfilesForOptimization[[#This Row],[Hour Ending]],-1,0), IF( Table_LSEShowingProfilesForOptimization[[#This Row],[Shown MW]]>0, -Table_LSEShowingProfilesForOptimization[[#This Row],[Shown MW]], MIN( 100%, VLOOKUP(Table_LSEShowingProfilesForOptimization[[#This Row],[Optimization Group ID]],Export_ResourceGroupsForOptimization[],3) *VLOOKUP(Table_LSEShowingProfilesForOptimization[[#This Row],[Optimization Group ID]],Export_ResourceGroupsForOptimization[],5) /VLOOKUP(Table_LSEShowingProfilesForOptimization[[#This Row],[Optimization Group ID]],Export_ResourceGroupsForOptimization[],6) ) ), IF( Table_LSEShowingProfilesForOptimization[[#This Row],[Shown MW]]>0, OFFSET(Table_LSEShowingProfilesForOptimization[[#This Row],[State-of-Charge]],-1,0)-Table_LSEShowingProfilesForOptimization[[#This Row],[Shown MW]]/VLOOKUP(Table_LSEShowingProfilesForOptimization[[#This Row],[Optimization Group ID]],Export_ResourceGroupsForOptimization[],6), MIN( OFFSET(Table_LSEShowingProfilesForOptimization[[#This Row],[State-of-Charge]],-1,0) +VLOOKUP(Table_LSEShowingProfilesForOptimization[[#This Row],[Optimization Group ID]],Export_ResourceGroupsForOptimization[],3) *VLOOKUP(Table_LSEShowingProfilesForOptimization[[#This Row],[Optimization Group ID]],Export_ResourceGroupsForOptimization[],5) /VLOOKUP(Table_LSEShowingProfilesForOptimization[[#This Row],[Optimization Group ID]],Export_ResourceGroupsForOptimization[],6), 100% ) ) ) -> 0.9903025585
E41: CAM Storage 2 | F41: 15 | G41: 0.293698798 | H41: =Table_LSEShowingProfilesForOptimization[[#This Row],[Show Hour]]*SUMIF(Export_ResourceGroupsForOptimization[Optimization Group ID],Table_LSEShowingProfilesForOptimization[[#This Row],[Optimization Group ID]],Export_ResourceGroupsForOptimization[NQC or VER Under Contract (MW)]) -> 5.873975961 | I41: =IF( Table_LSEShowingProfilesForOptimization[[#This Row],[Hour Ending]]<=OFFSET(Table_LSEShowingProfilesForOptimization[[#This Row],[Hour Ending]],-1,0), IF( Table_LSEShowingProfilesForOptimization[[#This Row],[Shown MW]]>0, -Table_LSEShowingProfilesForOptimization[[#This Row],[Shown MW]], MIN( 100%, VLOOKUP(Table_LSEShowingProfilesForOptimization[[#This Row],[Optimization Group ID]],Export_ResourceGroupsForOptimization[],3) *VLOOKUP(Table_LSEShowingProfilesForOptimization[[#This Row],[Optimization Group ID]],Export_ResourceGroupsForOptimization[],5) /VLOOKUP(Table_LSEShowingProfilesForOptimization[[#This Row],[Optimization Group ID]],Export_ResourceGroupsForOptimization[],6) ) ), IF( Table_LSEShowingProfilesForOptimization[[#This Row],[Shown MW]]>0, OFFSET(Table_LSEShowingProfilesForOptimization[[#This Row],[State-of-Charge]],-1,0)-Table_LSEShowingProfilesForOptimization[[#This Row],[Shown MW]]/VLOOKUP(Table_LSEShowingProfilesForOptimization[[#This Row],[Optimization Group ID]],Export_ResourceGroupsForOptimization[],6), MIN( OFFSET(Table_LSEShowingProfilesForOptimization[[#This Row],[State-of-Charge]],-1,0) +VLOOKUP(Table_LSEShowingProfilesForOptimization[[#This Row],[Optimization Group ID]],Export_ResourceGroupsForOptimization[],3) *VLOOKUP(Table_LSEShowingProfilesForOptimization[[#This Row],[Optimization Group ID]],Export_ResourceGroupsForOptimization[],5) /VLOOKUP(Table_LSEShowingProfilesForOptimization[[#This Row],[Optimization Group ID]],Export_ResourceGroupsForOptimization[],6), 100% ) ) ) -> 0.916877859
E42: CAM Storage 2 | F42: 16 | G42: 0.3965490833 | H42: =Table_LSEShowingProfilesForOptimization[[#This Row],[Show Hour]]*SUMIF(Export_ResourceGroupsForOptimization[Optimization Group ID],Table_LSEShowingProfilesForOptimization[[#This Row],[Optimization Group ID]],Export_ResourceGroupsForOptimization[NQC or VER Under Contract (MW)]) -> 7.930981666 | I42: =IF( Table_LSEShowingProfilesForOptimization[[#This Row],[Hour Ending]]<=OFFSET(Table_LSEShowingProfilesForOptimization[[#This Row],[Hour Ending]],-1,0), IF( Table_LSEShowingProfilesForOptimization[[#This Row],[Shown MW]]>0, -Table_LSEShowingProfilesForOptimization[[#This Row],[Shown MW]], MIN( 100%, VLOOKUP(Table_LSEShowingProfilesForOptimization[[#This Row],[Optimization Group ID]],Export_ResourceGroupsForOptimization[],3) *VLOOKUP(Table_LSEShowingProfilesForOptimization[[#This Row],[Optimization Group ID]],Export_ResourceGroupsForOptimization[],5) /VLOOKUP(Table_LSEShowingProfilesForOptimization[[#This Row],[Optimization Group ID]],Export_ResourceGroupsForOptimization[],6) ) ), IF( Table_LSEShowingProfilesForOptimization[[#This Row],[Shown MW]]>0, OFFSET(Table_LSEShowingProfilesForOptimization[[#This Row],[State-of-Charge]],-1,0)-Table_LSEShowingProfilesForOptimization[[#This Row],[Shown MW]]/VLOOKUP(Table_LSEShowingProfilesForOptimization[[#This Row],[Optimization Group ID]],Export_ResourceGroupsForOptimization[],6), MIN( OFFSET(Table_LSEShowingProfilesForOptimization[[#This Row],[State-of-Charge]],-1,0) +VLOOKUP(Table_LSEShowingProfilesForOptimization[[#This Row],[Optimization Group ID]],Export_ResourceGroupsForOptimization[],3) *VLOOKUP(Table_LSEShowingProfilesForOptimization[[#This Row],[Optimization Group ID]],Export_ResourceGroupsForOptimization[],5) /VLOOKUP(Table_LSEShowingProfilesForOptimization[[#This Row],[Optimization Group ID]],Export_ResourceGroupsForOptimization[],6), 100% ) ) ) -> 0.8177405881
E43: CAM Storage 2 | F43: 17 | G43: 0.4219446693 | H43: =Table_LSEShowingProfilesForOptimization[[#This Row],[Show Hour]]*SUMIF(Export_ResourceGroupsForOptimization[Optimization Group ID],Table_LSEShowingProfilesForOptimization[[#This Row],[Optimization Group ID]],Export_ResourceGroupsForOptimization[NQC or VER Under Contract (MW)]) -> 8.438893386 | I43: =IF( Table_LSEShowingProfilesForOptimization[[#This Row],[Hour Ending]]<=OFFSET(Table_LSEShowingProfilesForOptimization[[#This Row],[Hour Ending]],-1,0), IF( Table_LSEShowingProfilesForOptimization[[#This Row],[Shown MW]]>0, -Table_LSEShowingProfilesForOptimization[[#This Row],[Shown MW]], MIN( 100%, VLOOKUP(Table_LSEShowingProfilesForOptimization[[#This Row],[Optimization Group ID]],Export_ResourceGroupsForOptimization[],3) *VLOOKUP(Table_LSEShowingProfilesForOptimization[[#This Row],[Optimization Group ID]],Export_ResourceGroupsForOptimization[],5) /VLOOKUP(Table_LSEShowingProfilesForOptimization[[#This Row],[Optimization Group ID]],Export_ResourceGroupsForOptimization[],6) ) ), IF( Table_LSEShowingProfilesForOptimization[[#This Row],[Shown MW]]>0, OFFSET(Table_LSEShowingProfilesForOptimization[[#This Row],[State-of-Charge]],-1,0)-Table_LSEShowingProfilesForOptimization[[#This Row],[Shown MW]]/VLOOKUP(Table_LSEShowingProfilesForOptimization[[#This Row],[Optimization Group ID]],Export_ResourceGroupsForOptimization[],6), MIN( OFFSET(Table_LSEShowingProfilesForOptimization[[#This Row],[State-of-Charge]],-1,0) +VLOOKUP(Table_LSEShowingProfilesForOptimization[[#This Row],[Optimization Group ID]],Export_ResourceGroupsForOptimization[],3) *VLOOKUP(Table_LSEShowingProfilesForOptimization[[#This Row],[Optimization Group ID]],Export_ResourceGroupsForOptimization[],5) /VLOOKUP(Table_LSEShowingProfilesForOptimization[[#This Row],[Optimization Group ID]],Export_ResourceGroupsForOptimization[],6), 100% ) ) ) -> 0.7122544208
E44: CAM Storage 2 | F44: 18 | G44: 0.1615502699 | H44: =Table_LSEShowingProfilesForOptimization[[#This Row],[Show Hour]]*SUMIF(Export_ResourceGroupsForOptimization[Optimization Group ID],Table_LSEShowingProfilesForOptimization[[#This Row],[Optimization Group ID]],Export_ResourceGroupsForOptimization[NQC or VER Under Contract (MW)]) -> 3.231005397 | I44: =IF( Table_LSEShowingProfilesForOptimization[[#This Row],[Hour Ending]]<=OFFSET(Table_LSEShowingProfilesForOptimization[[#This Row],[Hour Ending]],-1,0), IF( Table_LSEShowingProfilesForOptimization[[#This Row],[Shown MW]]>0, -Table_LSEShowingProfilesForOptimization[[#This Row],[Shown MW]], MIN( 100%, VLOOKUP(Table_LSEShowingProfilesForOptimization[[#This Row],[Optimization Group ID]],Export_ResourceGroupsForOptimization[],3) *VLOOKUP(Table_LSEShowingProfilesForOptimization[[#This Row],[Optimization Group ID]],Export_ResourceGroupsForOptimization[],5) /VLOOKUP(Table_LSEShowingProfilesForOptimization[[#This Row],[Optimization Group ID]],Export_ResourceGroupsForOptimization[],6) ) ), IF( Table_LSEShowingProfilesForOptimization[[#This Row],[Shown MW]]>0, OFFSET(Table_LSEShowingProfilesForOptimization[[#This Row],[State-of-Charge]],-1,0)-Table_LSEShowingProfilesForOptimization[[#This Row],[Shown MW]]/VLOOKUP(Table_LSEShowingProfilesForOptimization[[#This Row],[Optimization Group ID]],Export_ResourceGroupsForOptimization[],6), MIN( OFFSET(Table_LSEShowingProfilesForOptimization[[#This Row],[State-of-Charge]],-1,0) +VLOOKUP(Table_LSEShowingProfilesForOptimization[[#This Row],[Optimization Group ID]],Export_ResourceGroupsForOptimization[],3) *VLOOKUP(Table_LSEShowingProfilesForOptimization[[#This Row],[Optimization Group ID]],Export_ResourceGroupsForOptimization[],5) /VLOOKUP(Table_LSEShowingProfilesForOptimization[[#This Row],[Optimization Group ID]],Export_ResourceGroupsForOptimization[],6), 100% ) ) ) -> 0.6718668534
E45: CAM Storage 2 | F45: 19 | G45: 0.1416917522 | H45: =Table_LSEShowingProfilesForOptimization[[#This Row],[Show Hour]]*SUMIF(Export_ResourceGroupsForOptimization[Optimization Group ID],Table_LSEShowingProfilesForOptimization[[#This Row],[Optimization Group ID]],Export_ResourceGroupsForOptimization[NQC or VER Under Contract (MW)]) -> 2.833835044 | I45: =IF( Table_LSEShowingProfilesForOptimization[[#This Row],[Hour Ending]]<=OFFSET(Table_LSEShowingProfilesForOptimization[[#This Row],[Hour Ending]],-1,0), IF( Table_LSEShowingProfilesForOptimization[[#This Row],[Shown MW]]>0, -Table_LSEShowingProfilesForOptimization[[#This Row],[Shown MW]], MIN( 100%, VLOOKUP(Table_LSEShowingProfilesForOptimization[[#This Row],[Optimization Group ID]],Export_ResourceGroupsForOptimization[],3) *VLOOKUP(Table_LSEShowingProfilesForOptimization[[#This Row],[Optimization Group ID]],Export_ResourceGroupsForOptimization[],5) /VLOOKUP(Table_LSEShowingProfilesForOptimization[[#This Row],[Optimization Group ID]],Export_ResourceGroupsForOptimization[],6) ) ), IF( Table_LSEShowingProfilesForOptimization[[#This Row],[Shown MW]]>0, OFFSET(Table_LSEShowingProfilesForOptimization[[#This Row],[State-of-Charge]],-1,0)-Table_LSEShowingProfilesForOptimization[[#This Row],[Shown MW]]/VLOOKUP(Table_LSEShowingProfilesForOptimization[[#This Row],[Optimization Group ID]],Export_ResourceGroupsForOptimization[],6), MIN( OFFSET(Table_LSEShowingProfilesForOptimization[[#This Row],[State-of-Charge]],-1,0) +VLOOKUP(Table_LSEShowingProfilesForOptimization[[#This Row],[Optimization Group ID]],Export_ResourceGroupsForOptimization[],3) *VLOOKUP(Table_LSEShowingProfilesForOptimization[[#This Row],[Optimization Group ID]],Export_ResourceGroupsForOptimization[],5) /VLOOKUP(Table_LSEShowingProfilesForOptimization[[#This Row],[Optimization Group ID]],Export_ResourceGroupsForOptimization[],6), 100% ) ) ) -> 0.6364439153
E46: CAM Storage 2 | F46: 20 | G46: 0 | H46: =Table_LSEShowingProfilesForOptimization[[#This Row],[Show Hour]]*SUMIF(Export_ResourceGroupsForOptimization[Optimization Group ID],Table_LSEShowingProfilesForOptimization[[#This Row],[Optimization Group ID]],Export_ResourceGroupsForOptimization[NQC or VER Under Contract (MW)]) -> 0 | I46: =IF( Table_LSEShowingProfilesForOptimization[[#This Row],[Hour Ending]]<=OFFSET(Table_LSEShowingProfilesForOptimization[[#This Row],[Hour Ending]],-1,0), IF( Table_LSEShowingProfilesForOptimization[[#This Row],[Shown MW]]>0, -Table_LSEShowingProfilesForOptimization[[#This Row],[Shown MW]], MIN( 100%, VLOOKUP(Table_LSEShowingProfilesForOptimization[[#This Row],[Optimization Group ID]],Export_ResourceGroupsForOptimization[],3) *VLOOKUP(Table_LSEShowingProfilesForOptimization[[#This Row],[Optimization Group ID]],Export_ResourceGroupsForOptimization[],5) /VLOOKUP(Table_LSEShowingProfilesForOptimization[[#This Row],[Optimization Group ID]],Export_ResourceGroupsForOptimization[],6) ) ), IF( Table_LSEShowingProfilesForOptimization[[#This Row],[Shown MW]]>0, OFFSET(Table_LSEShowingProfilesForOptimization[[#This Row],[State-of-Charge]],-1,0)-Table_LSEShowingProfilesForOptimization[[#This Row],[Shown MW]]/VLOOKUP(Table_LSEShowingProfilesForOptimization[[#This Row],[Optimization Group ID]],Export_ResourceGroupsForOptimization[],6), MIN( OFFSET(Table_LSEShowingProfilesForOptimization[[#This Row],[State-of-Charge]],-1,0) +VLOOKUP(Table_LSEShowingProfilesForOptimization[[#This Row],[Optimization Group ID]],Export_ResourceGroupsForOptimization[],3) *VLOOKUP(Table_LSEShowingProfilesForOptimization[[#This Row],[Optimization Group ID]],Export_ResourceGroupsForOptimization[],5) /VLOOKUP(Table_LSEShowingProfilesForOptimization[[#This Row],[Optimization Group ID]],Export_ResourceGroupsForOptimization[],6), 100% ) ) ) -> 0.8539439153
E47: CAM Storage 2 | F47: 21 | G47: 0 | H47: =Table_LSEShowingProfilesForOptimization[[#This Row],[Show Hour]]*SUMIF(Export_ResourceGroupsForOptimization[Optimization Group ID],Table_LSEShowingProfilesForOptimization[[#This Row],[Optimization Group ID]],Export_ResourceGroupsForOptimization[NQC or VER Under Contract (MW)]) -> 0 | I47: =IF( Table_LSEShowingProfilesForOptimization[[#This Row],[Hour Ending]]<=OFFSET(Table_LSEShowingProfilesForOptimization[[#This Row],[Hour Ending]],-1,0), IF( Table_LSEShowingProfilesForOptimization[[#This Row],[Shown MW]]>0, -Table_LSEShowingProfilesForOptimization[[#This Row],[Shown MW]], MIN( 100%, VLOOKUP(Table_LSEShowingProfilesForOptimization[[#This Row],[Optimization Group ID]],Export_ResourceGroupsForOptimization[],3) *VLOOKUP(Table_LSEShowingProfilesForOptimization[[#This Row],[Optimization Group ID]],Export_ResourceGroupsForOptimization[],5) /VLOOKUP(Table_LSEShowingProfilesForOptimization[[#This Row],[Optimization Group ID]],Export_ResourceGroupsForOptimization[],6) ) ), IF( Table_LSEShowingProfilesForOptimization[[#This Row],[Shown MW]]>0, OFFSET(Table_LSEShowingProfilesForOptimization[[#This Row],[State-of-Charge]],-1,0)-Table_LSEShowingProfilesForOptimization[[#This Row],[Shown MW]]/VLOOKUP(Table_LSEShowingProfilesForOptimization[[#This Row],[Optimization Group ID]],Export_ResourceGroupsForOptimization[],6), MIN( OFFSET(Table_LSEShowingProfilesForOptimization[[#This Row],[State-of-Charge]],-1,0) +VLOOKUP(Table_LSEShowingProfilesForOptimization[[#This Row],[Optimization Group ID]],Export_ResourceGroupsForOptimization[],3) *VLOOKUP(Table_LSEShowingProfilesForOptimization[[#This Row],[Optimization Group ID]],Export_ResourceGroupsForOptimization[],5) /VLOOKUP(Table_LSEShowingProfilesForOptimization[[#This Row],[Optimization Group ID]],Export_ResourceGroupsForOptimization[],6), 100% ) ) ) -> 1
E48: CAM Storage 2 | F48: 22 | G48: 0 | H48: =Table_LSEShowingProfilesForOptimization[[#This Row],[Show Hour]]*SUMIF(Export_ResourceGroupsForOptimization[Optimization Group ID],Table_LSEShowingProfilesForOptimization[[#This Row],[Optimization Group ID]],Export_ResourceGroupsForOptimization[NQC or VER Under Contract (MW)]) -> 0 | I48: =IF( Table_LSEShowingProfilesForOptimization[[#This Row],[Hour Ending]]<=OFFSET(Table_LSEShowingProfilesForOptimization[[#This Row],[Hour Ending]],-1,0), IF( Table_LSEShowingProfilesForOptimization[[#This Row],[Shown MW]]>0, -Table_LSEShowingProfilesForOptimization[[#This Row],[Shown MW]], MIN( 100%, VLOOKUP(Table_LSEShowingProfilesForOptimization[[#This Row],[Optimization Group ID]],Export_ResourceGroupsForOptimization[],3) *VLOOKUP(Table_LSEShowingProfilesForOptimization[[#This Row],[Optimization Group ID]],Export_ResourceGroupsForOptimization[],5) /VLOOKUP(Table_LSEShowingProfilesForOptimization[[#This Row],[Optimization Group ID]],Export_ResourceGroupsForOptimization[],6) ) ), IF( Table_LSEShowingProfilesForOptimization[[#This Row],[Shown MW]]>0, OFFSET(Table_LSEShowingProfilesForOptimization[[#This Row],[State-of-Charge]],-1,0)-Table_LSEShowingProfilesForOptimization[[#This Row],[Shown MW]]/VLOOKUP(Table_LSEShowingProfilesForOptimization[[#This Row],[Optimization Group ID]],Export_ResourceGroupsForOptimization[],6), MIN( OFFSET(Table_LSEShowingProfilesForOptimization[[#This Row],[State-of-Charge]],-1,0) +VLOOKUP(Table_LSEShowingProfilesForOptimization[[#This Row],[Optimization Group ID]],Export_ResourceGroupsForOptimization[],3) *VLOOKUP(Table_LSEShowingProfilesForOptimization[[#This Row],[Optimization Group ID]],Export_ResourceGroupsForOptimization[],5) /VLOOKUP(Table_LSEShowingProfilesForOptimization[[#This Row],[Optimization Group ID]],Export_ResourceGroupsForOptimization[],6), 100% ) ) ) -> 1
E49: CAM Storage 2 | F49: 23 | G49: 0 | H49: =Table_LSEShowingProfilesForOptimization[[#This Row],[Show Hour]]*SUMIF(Export_ResourceGroupsForOptimization[Optimization Group ID],Table_LSEShowingProfilesForOptimization[[#This Row],[Optimization Group ID]],Export_ResourceGroupsForOptimization[NQC or VER Under Contract (MW)]) -> 0 | I49: =IF( Table_LSEShowingProfilesForOptimization[[#This Row],[Hour Ending]]<=OFFSET(Table_LSEShowingProfilesForOptimization[[#This Row],[Hour Ending]],-1,0), IF( Table_LSEShowingProfilesForOptimization[[#This Row],[Shown MW]]>0, -Table_LSEShowingProfilesForOptimization[[#This Row],[Shown MW]], MIN( 100%, VLOOKUP(Table_LSEShowingProfilesForOptimization[[#This Row],[Optimization Group ID]],Export_ResourceGroupsForOptimization[],3) *VLOOKUP(Table_LSEShowingProfilesForOptimization[[#This Row],[Optimization Group ID]],Export_ResourceGroupsForOptimization[],5) /VLOOKUP(Table_LSEShowingProfilesForOptimization[[#This Row],[Optimization Group ID]],Export_ResourceGroupsForOptimization[],6) ) ), IF( Table_LSEShowingProfilesForOptimization[[#This Row],[Shown MW]]>0, OFFSET(Table_LSEShowingProfilesForOptimization[[#This Row],[State-of-Charge]],-1,0)-Table_LSEShowingProfilesForOptimization[[#This Row],[Shown MW]]/VLOOKUP(Table_LSEShowingProfilesForOptimization[[#This Row],[Optimization Group ID]],Export_ResourceGroupsForOptimization[],6), MIN( OFFSET(Table_LSEShowingProfilesForOptimization[[#This Row],[State-of-Charge]],-1,0) +VLOOKUP(Table_LSEShowingProfilesForOptimization[[#This Row],[Optimization Group ID]],Export_ResourceGroupsForOptimization[],3) *VLOOKUP(Table_LSEShowingProfilesForOptimization[[#This Row],[Optimization Group ID]],Export_ResourceGroupsForOptimization[],5) /VLOOKUP(Table_LSEShowingProfilesForOptimization[[#This Row],[Optimization Group ID]],Export_ResourceGroupsForOptimization[],6), 100% ) ) ) -> 1
E50: CAM Storage 2 | F50: 24 | G50: 0 | H50: =Table_LSEShowingProfilesForOptimization[[#This Row],[Show Hour]]*SUMIF(Export_ResourceGroupsForOptimization[Optimization Group ID],Table_LSEShowingProfilesForOptimization[[#This Row],[Optimization Group ID]],Export_ResourceGroupsForOptimization[NQC or VER Under Contract (MW)]) -> 0 | I50: =IF( Table_LSEShowingProfilesForOptimization[[#This Row],[Hour Ending]]<=OFFSET(Table_LSEShowingProfilesForOptimization[[#This Row],[Hour Ending]],-1,0), IF( Table_LSEShowingProfilesForOptimization[[#This Row],[Shown MW]]>0, -Table_LSEShowingProfilesForOptimization[[#This Row],[Shown MW]], MIN( 100%, VLOOKUP(Table_LSEShowingProfilesForOptimization[[#This Row],[Optimization Group ID]],Export_ResourceGroupsForOptimization[],3) *VLOOKUP(Table_LSEShowingProfilesForOptimization[[#This Row],[Optimization Group ID]],Export_ResourceGroupsForOptimization[],5) /VLOOKUP(Table_LSEShowingProfilesForOptimization[[#This Row],[Optimization Group ID]],Export_ResourceGroupsForOptimization[],6) ) ), IF( Table_LSEShowingProfilesForOptimization[[#This Row],[Shown MW]]>0, OFFSET(Table_LSEShowingProfilesForOptimization[[#This Row],[State-of-Charge]],-1,0)-Table_LSEShowingProfilesForOptimization[[#This Row],[Shown MW]]/VLOOKUP(Table_LSEShowingProfilesForOptimization[[#This Row],[Optimization Group ID]],Export_ResourceGroupsForOptimization[],6), MIN( OFFSET(Table_LSEShowingProfilesForOptimization[[#This Row],[State-of-Charge]],-1,0) +VLOOKUP(Table_LSEShowingProfilesForOptimization[[#This Row],[Optimization Group ID]],Export_ResourceGroupsForOptimization[],3) *VLOOKUP(Table_LSEShowingProfilesForOptimization[[#This Row],[Optimization Group ID]],Export_ResourceGroupsForOptimization[],5) /VLOOKUP(Table_LSEShowingProfilesForOptimization[[#This Row],[Optimization Group ID]],Export_ResourceGroupsForOptimization[],6), 100% ) ) ) -> 1
E51: JOANEC_2_ST3BT3 | F51: 1 | G51: 0 | H51: =Table_LSEShowingProfilesForOptimization[[#This Row],[Show Hour]]*SUMIF(Export_ResourceGroupsForOptimization[Optimization Group ID],Table_LSEShowingProfilesForOptimization[[#This Row],[Optimization Group ID]],Export_ResourceGroupsForOptimization[NQC or VER Under Contract (MW)]) -> 0 | I51: =IF( Table_LSEShowingProfilesForOptimization[[#This Row],[Hour Ending]]<=OFFSET(Table_LSEShowingProfilesForOptimization[[#This Row],[Hour Ending]],-1,0), IF( Table_LSEShowingProfilesForOptimization[[#This Row],[Shown MW]]>0, -Table_LSEShowingProfilesForOptimization[[#This Row],[Shown MW]], MIN( 100%, VLOOKUP(Table_LSEShowingProfilesForOptimization[[#This Row],[Optimization Group ID]],Export_ResourceGroupsForOptimization[],3) *VLOOKUP(Table_LSEShowingProfilesForOptimization[[#This Row],[Optimization Group ID]],Export_ResourceGroupsForOptimization[],5) /VLOOKUP(Table_LSEShowingProfilesForOptimization[[#This Row],[Optimization Group ID]],Export_ResourceGroupsForOptimization[],6) ) ), IF( Table_LSEShowingProfilesForOptimization[[#This Row],[Shown MW]]>0, OFFSET(Table_LSEShowingProfilesForOptimization[[#This Row],[State-of-Charge]],-1,0)-Table_LSEShowingProfilesForOptimization[[#This Row],[Shown MW]]/VLOOKUP(Table_LSEShowingProfilesForOptimization[[#This Row],[Optimization Group ID]],Export_ResourceGroupsForOptimization[],6), MIN( OFFSET(Table_LSEShowingProfilesForOptimization[[#This Row],[State-of-Charge]],-1,0) +VLOOKUP(Table_LSEShowingProfilesForOptimization[[#This Row],[Optimization Group ID]],Export_ResourceGroupsForOptimization[],3) *VLOOKUP(Table_LSEShowingProfilesForOptimization[[#This Row],[Optimization Group ID]],Export_ResourceGroupsForOptimization[],5) /VLOOKUP(Table_LSEShowingProfilesForOptimization[[#This Row],[Optimization Group ID]],Export_ResourceGroupsForOptimization[],6), 100% ) ) ) -> 0.1
E52: JOANEC_2_ST3BT3 | F52: 2 | G52: 0.02894462909 | H52: =Table_LSEShowingProfilesForOptimization[[#This Row],[Show Hour]]*SUMIF(Export_ResourceGroupsForOptimization[Optimization Group ID],Table_LSEShowingProfilesForOptimization[[#This Row],[Optimization Group ID]],Export_ResourceGroupsForOptimization[NQC or VER Under Contract (MW)]) -> 0.5788925818 | I52: =IF( Table_LSEShowingProfilesForOptimization[[#This Row],[Hour Ending]]<=OFFSET(Table_LSEShowingProfilesForOptimization[[#This Row],[Hour Ending]],-1,0), IF( Table_LSEShowingProfilesForOptimization[[#This Row],[Shown MW]]>0, -Table_LSEShowingProfilesForOptimization[[#This Row],[Shown MW]], MIN( 100%, VLOOKUP(Table_LSEShowingProfilesForOptimization[[#This Row],[Optimization Group ID]],Export_ResourceGroupsForOptimization[],3) *VLOOKUP(Table_LSEShowingProfilesForOptimization[[#This Row],[Optimization Group ID]],Export_ResourceGroupsForOptimization[],5) /VLOOKUP(Table_LSEShowingProfilesForOptimization[[#This Row],[Optimization Group ID]],Export_ResourceGroupsForOptimization[],6) ) ), IF( Table_LSEShowingProfilesForOptimization[[#This Row],[Shown MW]]>0, OFFSET(Table_LSEShowingProfilesForOptimization[[#This Row],[State-of-Charge]],-1,0)-Table_LSEShowingProfilesForOptimization[[#This Row],[Shown MW]]/VLOOKUP(Table_LSEShowingProfilesForOptimization[[#This Row],[Optimization Group ID]],Export_ResourceGroupsForOptimization[],6), MIN( OFFSET(Table_LSEShowingProfilesForOptimization[[#This Row],[State-of-Charge]],-1,0) +VLOOKUP(Table_LSEShowingProfilesForOptimization[[#This Row],[Optimization Group ID]],Export_ResourceGroupsForOptimization[],3) *VLOOKUP(Table_LSEShowingProfilesForOptimization[[#This Row],[Optimization Group ID]],Export_ResourceGroupsForOptimization[],5) /VLOOKUP(Table_LSEShowingProfilesForOptimization[[#This Row],[Optimization Group ID]],Export_ResourceGroupsForOptimization[],6), 100% ) ) ) -> 0.09638192136
E53: JOANEC_2_ST3BT3 | F53: 3 | G53: 0.08289680923 | H53: =Table_LSEShowingProfilesForOptimization[[#This Row],[Show Hour]]*SUMIF(Export_ResourceGroupsForOptimization[Optimization Group ID],Table_LSEShowingProfilesForOptimization[[#This Row],[Optimization Group ID]],Export_ResourceGroupsForOptimization[NQC or VER Under Contract (MW)]) -> 1.657936185 | I53: =IF( Table_LSEShowingProfilesForOptimization[[#This Row],[Hour Ending]]<=OFFSET(Table_LSEShowingProfilesForOptimization[[#This Row],[Hour Ending]],-1,0), IF( Table_LSEShowingProfilesForOptimization[[#This Row],[Shown MW]]>0, -Table_LSEShowingProfilesForOptimization[[#This Row],[Shown MW]], MIN( 100%, VLOOKUP(Table_LSEShowingProfilesForOptimization[[#This Row],[Optimization Group ID]],Export_ResourceGroupsForOptimization[],3) *VLOOKUP(Table_LSEShowingProfilesForOptimization[[#This Row],[Optimization Group ID]],Export_ResourceGroupsForOptimization[],5) /VLOOKUP(Table_LSEShowingProfilesForOptimization[[#This Row],[Optimization Group ID]],Export_ResourceGroupsForOptimization[],6) ) ), IF( Table_LSEShowingProfilesForOptimization[[#This Row],[Shown MW]]>0, OFFSET(Table_LSEShowingProfilesForOptimization[[#This Row],[State-of-Charge]],-1,0)-Table_LSEShowingProfilesForOptimization[[#This Row],[Shown MW]]/VLOOKUP(Table_LSEShowingProfilesForOptimization[[#This Row],[Optimization Group ID]],Export_ResourceGroupsForOptimization[],6), MIN( OFFSET(Table_LSEShowingProfilesForOptimization[[#This Row],[State-of-Charge]],-1,0) +VLOOKUP(Table_LSEShowingProfilesForOptimization[[#This Row],[Optimization Group ID]],Export_ResourceGroupsForOptimization[],3) *VLOOKUP(Table_LSEShowingProfilesForOptimization[[#This Row],[Optimization Group ID]],Export_ResourceGroupsForOptimization[],5) /VLOOKUP(Table_LSEShowingProfilesForOptimization[[#This Row],[Optimization Group ID]],Export_ResourceGroupsForOptimization[],6), 100% ) ) ) -> 0.08601982021
E54: JOANEC_2_ST3BT3 | F54: 4 | G54: 0.147677429 | H54: =Table_LSEShowingProfilesForOptimization[[#This Row],[Show Hour]]*SUMIF(Export_ResourceGroupsForOptimization[Optimization Group ID],Table_LSEShowingProfilesForOptimization[[#This Row],[Optimization Group ID]],Export_ResourceGroupsForOptimization[NQC or VER Under Contract (MW)]) -> 2.95354858 | I54: =IF( Table_LSEShowingProfilesForOptimization[[#This Row],[Hour Ending]]<=OFFSET(Table_LSEShowingProfilesForOptimization[[#This Row],[Hour Ending]],-1,0), IF( Table_LSEShowingProfilesForOptimization[[#This Row],[Shown MW]]>0, -Table_LSEShowingProfilesForOptimization[[#This Row],[Shown MW]], MIN( 100%, VLOOKUP(Table_LSEShowingProfilesForOptimization[[#This Row],[Optimization Group ID]],Export_ResourceGroupsForOptimization[],3) *VLOOKUP(Table_LSEShowingProfilesForOptimization[[#This Row],[Optimization Group ID]],Export_ResourceGroupsForOptimization[],5) /VLOOKUP(Table_LSEShowingProfilesForOptimization[[#This Row],[Optimization Group ID]],Export_ResourceGroupsForOptimization[],6) ) ), IF( Table_LSEShowingProfilesForOptimization[[#This Row],[Shown MW]]>0, OFFSET(Table_LSEShowingProfilesForOptimization[[#This Row],[State-of-Charge]],-1,0)-Table_LSEShowingProfilesForOptimization[[#This Row],[Shown MW]]/VLOOKUP(Table_LSEShowingProfilesForOptimization[[#This Row],[Optimization Group ID]],Export_ResourceGroupsForOptimization[],6), MIN( OFFSET(Table_LSEShowingProfilesForOptimization[[#This Row],[State-of-Charge]],-1,0) +VLOOKUP(Table_LSEShowingProfilesForOptimization[[#This Row],[Optimization Group ID]],Export_ResourceGroupsForOptimization[],3) *VLOOKUP(Table_LSEShowingProfilesForOptimization[[#This Row],[Optimization Group ID]],Export_ResourceGroupsForOptimization[],5) /VLOOKUP(Table_LSEShowingProfilesForOptimization[[#This Row],[Optimization Group ID]],Export_ResourceGroupsForOptimization[],6), 100% ) ) ) -> 0.06756014159
E55: JOANEC_2_ST3BT3 | F55: 5 | G55: 0.1908012145 | H55: =Table_LSEShowingProfilesForOptimization[[#This Row],[Show Hour]]*SUMIF(Export_ResourceGroupsForOptimization[Optimization Group ID],Table_LSEShowingProfilesForOptimization[[#This Row],[Optimization Group ID]],Export_ResourceGroupsForOptimization[NQC or VER Under Contract (MW)]) -> 3.816024291 | I55: =IF( Table_LSEShowingProfilesForOptimization[[#This Row],[Hour Ending]]<=OFFSET(Table_LSEShowingProfilesForOptimization[[#This Row],[Hour Ending]],-1,0), IF( Table_LSEShowingProfilesForOptimization[[#This Row],[Shown MW]]>0, -Table_LSEShowingProfilesForOptimization[[#This Row],[Shown MW]], MIN( 100%, VLOOKUP(Table_LSEShowingProfilesForOptimization[[#This Row],[Optimization Group ID]],Export_ResourceGroupsForOptimization[],3) *VLOOKUP(Table_LSEShowingProfilesForOptimization[[#This Row],[Optimization Group ID]],Export_ResourceGroupsForOptimization[],5) /VLOOKUP(Table_LSEShowingProfilesForOptimization[[#This Row],[Optimization Group ID]],Export_ResourceGroupsForOptimization[],6) ) ), IF( Table_LSEShowingProfilesForOptimization[[#This Row],[Shown MW]]>0, OFFSET(Table_LSEShowingProfilesForOptimization[[#This Row],[State-of-Charge]],-1,0)-Table_LSEShowingProfilesForOptimization[[#This Row],[Shown MW]]/VLOOKUP(Table_LSEShowingProfilesForOptimization[[#This Row],[Optimization Group ID]],Export_ResourceGroupsForOptimization[],6), MIN( OFFSET(Table_LSEShowingProfilesForOptimization[[#This Row],[State-of-Charge]],-1,0) +VLOOKUP(Table_LSEShowingProfilesForOptimization[[#This Row],[Optimization Group ID]],Export_ResourceGroupsForOptimization[],3) *VLOOKUP(Table_LSEShowingProfilesForOptimization[[#This Row],[Optimization Group ID]],Export_ResourceGroupsForOptimization[],5) /VLOOKUP(Table_LSEShowingProfilesForOptimization[[#This Row],[Optimization Group ID]],Export_ResourceGroupsForOptimization[],6), 100% ) ) ) -> 0.04370998977
E56: JOANEC_2_ST3BT3 | F56: 6 | G56: 0.007572515105 | H56: =Table_LSEShowingProfilesForOptimization[[#This Row],[Show Hour]]*SUMIF(Export_ResourceGroupsForOptimization[Optimization Group ID],Table_LSEShowingProfilesForOptimization[[#This Row],[Optimization Group ID]],Export_ResourceGroupsForOptimization[NQC or VER Under Contract (MW)]) -> 0.1514503021 | I56: =IF( Table_LSEShowingProfilesForOptimization[[#This Row],[Hour Ending]]<=OFFSET(Table_LSEShowingProfilesForOptimization[[#This Row],[Hour Ending]],-1,0), IF( Table_LSEShowingProfilesForOptimization[[#This Row],[Shown MW]]>0, -Table_LSEShowingProfilesForOptimization[[#This Row],[Shown MW]], MIN( 100%, VLOOKUP(Table_LSEShowingProfilesForOptimization[[#This Row],[Optimization Group ID]],Export_ResourceGroupsForOptimization[],3) *VLOOKUP(Table_LSEShowingProfilesForOptimization[[#This Row],[Optimization Group ID]],Export_ResourceGroupsForOptimization[],5) /VLOOKUP(Table_LSEShowingProfilesForOptimization[[#This Row],[Optimization Group ID]],Export_ResourceGroupsForOptimization[],6) ) ), IF( Table_LSEShowingProfilesForOptimization[[#This Row],[Shown MW]]>0, OFFSET(Table_LSEShowingProfilesForOptimization[[#This Row],[State-of-Charge]],-1,0)-Table_LSEShowingProfilesForOptimization[[#This Row],[Shown MW]]/VLOOKUP(Table_LSEShowingProfilesForOptimization[[#This Row],[Optimization Group ID]],Export_ResourceGroupsForOptimization[],6), MIN( OFFSET(Table_LSEShowingProfilesForOptimization[[#This Row],[State-of-Charge]],-1,0) +VLOOKUP(Table_LSEShowingProfilesForOptimization[[#This Row],[Optimization Group ID]],Export_ResourceGroupsForOptimization[],3) *VLOOKUP(Table_LSEShowingProfilesForOptimization[[#This Row],[Optimization Group ID]],Export_ResourceGroupsForOptimization[],5) /VLOOKUP(Table_LSEShowingProfilesForOptimization[[#This Row],[Optimization Group ID]],Export_ResourceGroupsForOptimization[],6), 100% ) ) ) -> 0.04276342538
E57: JOANEC_2_ST3BT3 | F57: 7 | G57: 0 | H57: =Table_LSEShowingProfilesForOptimization[[#This Row],[Show Hour]]*SUMIF(Export_ResourceGroupsForOptimization[Optimization Group ID],Table_LSEShowingProfilesForOptimization[[#This Row],[Optimization Group ID]],Export_ResourceGroupsForOptimization[NQC or VER Under Contract (MW)]) -> 0 | I57: =IF( Table_LSEShowingProfilesForOptimization[[#This Row],[Hour Ending]]<=OFFSET(Table_LSEShowingProfilesForOptimization[[#This Row],[Hour Ending]],-1,0), IF( Table_LSEShowingProfilesForOptimization[[#This Row],[Shown MW]]>0, -Table_LSEShowingProfilesForOptimization[[#This Row],[Shown MW]], MIN( 100%, VLOOKUP(Table_LSEShowingProfilesForOptimization[[#This Row],[Optimization Group ID]],Export_ResourceGroupsForOptimization[],3) *VLOOKUP(Table_LSEShowingProfilesForOptimization[[#This Row],[Optimization Group ID]],Export_ResourceGroupsForOptimization[],5) /VLOOKUP(Table_LSEShowingProfilesForOptimization[[#This Row],[Optimization Group ID]],Export_ResourceGroupsForOptimization[],6) ) ), IF( Table_LSEShowingProfilesForOptimization[[#This Row],[Shown MW]]>0, OFFSET(Table_LSEShowingProfilesForOptimization[[#This Row],[State-of-Charge]],-1,0)-Table_LSEShowingProfilesForOptimization[[#This Row],[Shown MW]]/VLOOKUP(Table_LSEShowingProfilesForOptimization[[#This Row],[Optimization Group ID]],Export_ResourceGroupsForOptimization[],6), MIN( OFFSET(Table_LSEShowingProfilesForOptimization[[#This Row],[State-of-Charge]],-1,0) +VLOOKUP(Table_LSEShowingProfilesForOptimization[[#This Row],[Optimization Group ID]],Export_ResourceGroupsForOptimization[],3) *VLOOKUP(Table_LSEShowingProfilesForOptimization[[#This Row],[Optimization Group ID]],Export_ResourceGroupsForOptimization[],5) /VLOOKUP(Table_LSEShowingProfilesForOptimization[[#This Row],[Optimization Group ID]],Export_ResourceGroupsForOptimization[],6), 100% ) ) ) -> 0.1427634254
E58: JOANEC_2_ST3BT3 | F58: 8 | G58: 0 | H58: =Table_LSEShowingProfilesForOptimization[[#This Row],[Show Hour]]*SUMIF(Export_ResourceGroupsForOptimization[Optimization Group ID],Table_LSEShowingProfilesForOptimization[[#This Row],[Optimization Group ID]],Export_ResourceGroupsForOptimization[NQC or VER Under Contract (MW)]) -> 0 | I58: =IF( Table_LSEShowingProfilesForOptimization[[#This Row],[Hour Ending]]<=OFFSET(Table_LSEShowingProfilesForOptimization[[#This Row],[Hour Ending]],-1,0), IF( Table_LSEShowingProfilesForOptimization[[#This Row],[Shown MW]]>0, -Table_LSEShowingProfilesForOptimization[[#This Row],[Shown MW]], MIN( 100%, VLOOKUP(Table_LSEShowingProfilesForOptimization[[#This Row],[Optimization Group ID]],Export_ResourceGroupsForOptimization[],3) *VLOOKUP(Table_LSEShowingProfilesForOptimization[[#This Row],[Optimization Group ID]],Export_ResourceGroupsForOptimization[],5) /VLOOKUP(Table_LSEShowingProfilesForOptimization[[#This Row],[Optimization Group ID]],Export_ResourceGroupsForOptimization[],6) ) ), IF( Table_LSEShowingProfilesForOptimization[[#This Row],[Shown MW]]>0, OFFSET(Table_LSEShowingProfilesForOptimization[[#This Row],[State-of-Charge]],-1,0)-Table_LSEShowingProfilesForOptimization[[#This Row],[Shown MW]]/VLOOKUP(Table_LSEShowingProfilesForOptimization[[#This Row],[Optimization Group ID]],Export_ResourceGroupsForOptimization[],6), MIN( OFFSET(Table_LSEShowingProfilesForOptimization[[#This Row],[State-of-Charge]],-1,0) +VLOOKUP(Table_LSEShowingProfilesForOptimization[[#This Row],[Optimization Group ID]],Export_ResourceGroupsForOptimization[],3) *VLOOKUP(Table_LSEShowingProfilesForOptimization[[#This Row],[Optimization Group ID]],Export_ResourceGroupsForOptimization[],5) /VLOOKUP(Table_LSEShowingProfilesForOptimization[[#This Row],[Optimization Group ID]],Export_ResourceGroupsForOptimization[],6), 100% ) ) ) -> 0.2427634254
E59: JOANEC_2_ST3BT3 | F59: 9 | G59: 0 | H59: =Table_LSEShowingProfilesForOptimization[[#This Row],[Show Hour]]*SUMIF(Export_ResourceGroupsForOptimization[Optimization Group ID],Table_LSEShowingProfilesForOptimization[[#This Row],[Optimization Group ID]],Export_ResourceGroupsForOptimization[NQC or VER Under Contract (MW)]) -> 0 | I59: =IF( Table_LSEShowingProfilesForOptimization[[#This Row],[Hour Ending]]<=OFFSET(Table_LSEShowingProfilesForOptimization[[#This Row],[Hour Ending]],-1,0), IF( Table_LSEShowingProfilesForOptimization[[#This Row],[Shown MW]]>0, -Table_LSEShowingProfilesForOptimization[[#This Row],[Shown MW]], MIN( 100%, VLOOKUP(Table_LSEShowingProfilesForOptimization[[#This Row],[Optimization Group ID]],Export_ResourceGroupsForOptimization[],3) *VLOOKUP(Table_LSEShowingProfilesForOptimization[[#This Row],[Optimization Group ID]],Export_ResourceGroupsForOptimization[],5) /VLOOKUP(Table_LSEShowingProfilesForOptimization[[#This Row],[Optimization Group ID]],Export_ResourceGroupsForOptimization[],6) ) ), IF( Table_LSEShowingProfilesForOptimization[[#This Row],[Shown MW]]>0, OFFSET(Table_LSEShowingProfilesForOptimization[[#This Row],[State-of-Charge]],-1,0)-Table_LSEShowingProfilesForOptimization[[#This Row],[Shown MW]]/VLOOKUP(Table_LSEShowingProfilesForOptimization[[#This Row],[Optimization Group ID]],Export_ResourceGroupsForOptimization[],6), MIN( OFFSET(Table_LSEShowingProfilesForOptimization[[#This Row],[State-of-Charge]],-1,0) +VLOOKUP(Table_LSEShowingProfilesForOptimization[[#This Row],[Optimization Group ID]],Export_ResourceGroupsForOptimization[],3) *VLOOKUP(Table_LSEShowingProfilesForOptimization[[#This Row],[Optimization Group ID]],Export_ResourceGroupsForOptimization[],5) /VLOOKUP(Table_LSEShowingProfilesForOptimization[[#This Row],[Optimization Group ID]],Export_ResourceGroupsForOptimization[],6), 100% ) ) ) -> 0.3427634254
E60: JOANEC_2_ST3BT3 | F60: 10 | G60: 0 | H60: =Table_LSEShowingProfilesForOptimization[[#This Row],[Show Hour]]*SUMIF(Export_ResourceGroupsForOptimization[Optimization Group ID],Table_LSEShowingProfilesForOptimization[[#This Row],[Optimization Group ID]],Export_ResourceGroupsForOptimization[NQC or VER Under Contract (MW)]) -> 0 | I60: =IF( Table_LSEShowingProfilesForOptimization[[#This Row],[Hour Ending]]<=OFFSET(Table_LSEShowingProfilesForOptimization[[#This Row],[Hour Ending]],-1,0), IF( Table_LSEShowingProfilesForOptimization[[#This Row],[Shown MW]]>0, -Table_LSEShowingProfilesForOptimization[[#This Row],[Shown MW]], MIN( 100%, VLOOKUP(Table_LSEShowingProfilesForOptimization[[#This Row],[Optimization Group ID]],Export_ResourceGroupsForOptimization[],3) *VLOOKUP(Table_LSEShowingProfilesForOptimization[[#This Row],[Optimization Group ID]],Export_ResourceGroupsForOptimization[],5) /VLOOKUP(Table_LSEShowingProfilesForOptimization[[#This Row],[Optimization Group ID]],Export_ResourceGroupsForOptimization[],6) ) ), IF( Table_LSEShowingProfilesForOptimization[[#This Row],[Shown MW]]>0, OFFSET(Table_LSEShowingProfilesForOptimization[[#This Row],[State-of-Charge]],-1,0)-Table_LSEShowingProfilesForOptimization[[#This Row],[Shown MW]]/VLOOKUP(Table_LSEShowingProfilesForOptimization[[#This Row],[Optimization Group ID]],Export_ResourceGroupsForOptimization[],6), MIN( OFFSET(Table_LSEShowingProfilesForOptimization[[#This Row],[State-of-Charge]],-1,0) +VLOOKUP(Table_LSEShowingProfilesForOptimization[[#This Row],[Optimization Group ID]],Export_ResourceGroupsForOptimization[],3) *VLOOKUP(Table_LSEShowingProfilesForOptimization[[#This Row],[Optimization Group ID]],Export_ResourceGroupsForOptimization[],5) /VLOOKUP(Table_LSEShowingProfilesForOptimization[[#This Row],[Optimization Group ID]],Export_ResourceGroupsForOptimization[],6), 100% ) ) ) -> 0.4427634254
E61: JOANEC_2_ST3BT3 | F61: 11 | G61: 0 | H61: =Table_LSEShowingProfilesForOptimization[[#This Row],[Show Hour]]*SUMIF(Export_ResourceGroupsForOptimization[Optimization Group ID],Table_LSEShowingProfilesForOptimization[[#This Row],[Optimization Group ID]],Export_ResourceGroupsForOptimization[NQC or VER Under Contract (MW)]) -> 0 | I61: =IF( Table_LSEShowingProfilesForOptimization[[#This Row],[Hour Ending]]<=OFFSET(Table_LSEShowingProfilesForOptimization[[#This Row],[Hour Ending]],-1,0), IF( Table_LSEShowingProfilesForOptimization[[#This Row],[Shown MW]]>0, -Table_LSEShowingProfilesForOptimization[[#This Row],[Shown MW]], MIN( 100%, VLOOKUP(Table_LSEShowingProfilesForOptimization[[#This Row],[Optimization Group ID]],Export_ResourceGroupsForOptimization[],3) *VLOOKUP(Table_LSEShowingProfilesForOptimization[[#This Row],[Optimization Group ID]],Export_ResourceGroupsForOptimization[],5) /VLOOKUP(Table_LSEShowingProfilesForOptimization[[#This Row],[Optimization Group ID]],Export_ResourceGroupsForOptimization[],6) ) ), IF( Table_LSEShowingProfilesForOptimization[[#This Row],[Shown MW]]>0, OFFSET(Table_LSEShowingProfilesForOptimization[[#This Row],[State-of-Charge]],-1,0)-Table_LSEShowingProfilesForOptimization[[#This Row],[Shown MW]]/VLOOKUP(Table_LSEShowingProfilesForOptimization[[#This Row],[Optimization Group ID]],Export_ResourceGroupsForOptimization[],6), MIN( OFFSET(Table_LSEShowingProfilesForOptimization[[#This Row],[State-of-Charge]],-1,0) +VLOOKUP(Table_LSEShowingProfilesForOptimization[[#This Row],[Optimization Group ID]],Export_ResourceGroupsForOptimization[],3) *VLOOKUP(Table_LSEShowingProfilesForOptimization[[#This Row],[Optimization Group ID]],Export_ResourceGroupsForOptimization[],5) /VLOOKUP(Table_LSEShowingProfilesForOptimization[[#This Row],[Optimization Group ID]],Export_ResourceGroupsForOptimization[],6), 100% ) ) ) -> 0.5427634254
E62: JOANEC_2_ST3BT3 | F62: 12 | G62: 0 | H62: =Table_LSEShowingProfilesForOptimization[[#This Row],[Show Hour]]*SUMIF(Export_ResourceGroupsForOptimization[Optimization Group ID],Table_LSEShowingProfilesForOptimization[[#This Row],[Optimization Group ID]],Export_ResourceGroupsForOptimization[NQC or VER Under Contract (MW)]) -> 0 | I62: =IF( Table_LSEShowingProfilesForOptimization[[#This Row],[Hour Ending]]<=OFFSET(Table_LSEShowingProfilesForOptimization[[#This Row],[Hour Ending]],-1,0), IF( Table_LSEShowingProfilesForOptimization[[#This Row],[Shown MW]]>0, -Table_LSEShowingProfilesForOptimization[[#This Row],[Shown MW]], MIN( 100%, VLOOKUP(Table_LSEShowingProfilesForOptimization[[#This Row],[Optimization Group ID]],Export_ResourceGroupsForOptimization[],3) *VLOOKUP(Table_LSEShowingProfilesForOptimization[[#This Row],[Optimization Group ID]],Export_ResourceGroupsForOptimization[],5) /VLOOKUP(Table_LSEShowingProfilesForOptimization[[#This Row],[Optimization Group ID]],Export_ResourceGroupsForOptimization[],6) ) ), IF( Table_LSEShowingProfilesForOptimization[[#This Row],[Shown MW]]>0, OFFSET(Table_LSEShowingProfilesForOptimization[[#This Row],[State-of-Charge]],-1,0)-Table_LSEShowingProfilesForOptimization[[#This Row],[Shown MW]]/VLOOKUP(Table_LSEShowingProfilesForOptimization[[#This Row],[Optimization Group ID]],Export_ResourceGroupsForOptimization[],6), MIN( OFFSET(Table_LSEShowingProfilesForOptimization[[#This Row],[State-of-Charge]],-1,0) +VLOOKUP(Table_LSEShowingProfilesForOptimization[[#This Row],[Optimization Group ID]],Export_ResourceGroupsForOptimization[],3) *VLOOKUP(Table_LSEShowingProfilesForOptimization[[#This Row],[Optimization Group ID]],Export_ResourceGroupsForOptimization[],5) /VLOOKUP(Table_LSEShowingProfilesForOptimization[[#This Row],[Optimization Group ID]],Export_ResourceGroupsForOptimization[],6), 100% ) ) ) -> 0.6427634254
E63: JOANEC_2_ST3BT3 | F63: 13 | G63: 0 | H63: =Table_LSEShowingProfilesForOptimization[[#This Row],[Show Hour]]*SUMIF(Export_ResourceGroupsForOptimization[Optimization Group ID],Table_LSEShowingProfilesForOptimization[[#This Row],[Optimization Group ID]],Export_ResourceGroupsForOptimization[NQC or VER Under Contract (MW)]) -> 0 | I63: =IF( Table_LSEShowingProfilesForOptimization[[#This Row],[Hour Ending]]<=OFFSET(Table_LSEShowingProfilesForOptimization[[#This Row],[Hour Ending]],-1,0), IF( Table_LSEShowingProfilesForOptimization[[#This Row],[Shown MW]]>0, -Table_LSEShowingProfilesForOptimization[[#This Row],[Shown MW]], MIN( 100%, VLOOKUP(Table_LSEShowingProfilesForOptimization[[#This Row],[Optimization Group ID]],Export_ResourceGroupsForOptimization[],3) *VLOOKUP(Table_LSEShowingProfilesForOptimization[[#This Row],[Optimization Group ID]],Export_ResourceGroupsForOptimization[],5) /VLOOKUP(Table_LSEShowingProfilesForOptimization[[#This Row],[Optimization Group ID]],Export_ResourceGroupsForOptimization[],6) ) ), IF( Table_LSEShowingProfilesForOptimization[[#This Row],[Shown MW]]>0, OFFSET(Table_LSEShowingProfilesForOptimization[[#This Row],[State-of-Charge]],-1,0)-Table_LSEShowingProfilesForOptimization[[#This Row],[Shown MW]]/VLOOKUP(Table_LSEShowingProfilesForOptimization[[#This Row],[Optimization Group ID]],Export_ResourceGroupsForOptimization[],6), MIN( OFFSET(Table_LSEShowingProfilesForOptimization[[#This Row],[State-of-Charge]],-1,0) +VLOOKUP(Table_LSEShowingProfilesForOptimization[[#This Row],[Optimization Group ID]],Export_ResourceGroupsForOptimization[],3) *VLOOKUP(Table_LSEShowingProfilesForOptimization[[#This Row],[Optimization Group ID]],Export_ResourceGroupsForOptimization[],5) /VLOOKUP(Table_LSEShowingProfilesForOptimization[[#This Row],[Optimization Group ID]],Export_ResourceGroupsForOptimization[],6), 100% ) ) ) -> 0.7427634254
E64: JOANEC_2_ST3BT3 | F64: 14 | G64: 0.03878976607 | H64: =Table_LSEShowingProfilesForOptimization[[#This Row],[Show Hour]]*SUMIF(Export_ResourceGroupsForOptimization[Optimization Group ID],Table_LSEShowingProfilesForOptimization[[#This Row],[Optimization Group ID]],Export_ResourceGroupsForOptimization[NQC or VER Under Contract (MW)]) -> 0.7757953214 | I64: =IF( Table_LSEShowingProfilesForOptimization[[#This Row],[Hour Ending]]<=OFFSET(Table_LSEShowingProfilesForOptimization[[#This Row],[Hour Ending]],-1,0), IF( Table_LSEShowingProfilesForOptimization[[#This Row],[Shown MW]]>0, -Table_LSEShowingProfilesForOptimization[[#This Row],[Shown MW]], MIN( 100%, VLOOKUP(Table_LSEShowingProfilesForOptimization[[#This Row],[Optimization Group ID]],Export_ResourceGroupsForOptimization[],3) *VLOOKUP(Table_LSEShowingProfilesForOptimization[[#This Row],[Optimization Group ID]],Export_ResourceGroupsForOptimization[],5) /VLOOKUP(Table_LSEShowingProfilesForOptimization[[#This Row],[Optimization Group ID]],Export_ResourceGroupsForOptimization[],6) ) ), IF( Table_LSEShowingProfilesForOptimization[[#This Row],[Shown MW]]>0, OFFSET(Table_LSEShowingProfilesForOptimization[[#This Row],[State-of-Charge]],-1,0)-Table_LSEShowingProfilesForOptimization[[#This Row],[Shown MW]]/VLOOKUP(Table_LSEShowingProfilesForOptimization[[#This Row],[Optimization Group ID]],Export_ResourceGroupsForOptimization[],6), MIN( OFFSET(Table_LSEShowingProfilesForOptimization[[#This Row],[State-of-Charge]],-1,0) +VLOOKUP(Table_LSEShowingProfilesForOptimization[[#This Row],[Optimization Group ID]],Export_ResourceGroupsForOptimization[],3) *VLOOKUP(Table_LSEShowingProfilesForOptimization[[#This Row],[Optimization Group ID]],Export_ResourceGroupsForOptimization[],5) /VLOOKUP(Table_LSEShowingProfilesForOptimization[[#This Row],[Optimization Group ID]],Export_ResourceGroupsForOptimization[],6), 100% ) ) ) -> 0.7379147046
E65: JOANEC_2_ST3BT3 | F65: 15 | G65: 0.293698798 | H65: =Table_LSEShowingProfilesForOptimization[[#This Row],[Show Hour]]*SUMIF(Export_ResourceGroupsForOptimization[Optimization Group ID],Table_LSEShowingProfilesForOptimization[[#This Row],[Optimization Group ID]],Export_ResourceGroupsForOptimization[NQC or VER Under Contract (MW)]) -> 5.873975961 | I65: =IF( Table_LSEShowingProfilesForOptimization[[#This Row],[Hour Ending]]<=OFFSET(Table_LSEShowingProfilesForOptimization[[#This Row],[Hour Ending]],-1,0), IF( Table_LSEShowingProfilesForOptimization[[#This Row],[Shown MW]]>0, -Table_LSEShowingProfilesForOptimization[[#This Row],[Shown MW]], MIN( 100%, VLOOKUP(Table_LSEShowingProfilesForOptimization[[#This Row],[Optimization Group ID]],Export_ResourceGroupsForOptimization[],3) *VLOOKUP(Table_LSEShowingProfilesForOptimization[[#This Row],[Optimization Group ID]],Export_ResourceGroupsForOptimization[],5) /VLOOKUP(Table_LSEShowingProfilesForOptimization[[#This Row],[Optimization Group ID]],Export_ResourceGroupsForOptimization[],6) ) ), IF( Table_LSEShowingProfilesForOptimization[[#This Row],[Shown MW]]>0, OFFSET(Table_LSEShowingProfilesForOptimization[[#This Row],[State-of-Charge]],-1,0)-Table_LSEShowingProfilesForOptimization[[#This Row],[Shown MW]]/VLOOKUP(Table_LSEShowingProfilesForOptimization[[#This Row],[Optimization Group ID]],Export_ResourceGroupsForOptimization[],6), MIN( OFFSET(Table_LSEShowingProfilesForOptimization[[#This Row],[State-of-Charge]],-1,0) +VLOOKUP(Table_LSEShowingProfilesForOptimization[[#This Row],[Optimization Group ID]],Export_ResourceGroupsForOptimization[],3) *VLOOKUP(Table_LSEShowingProfilesForOptimization[[#This Row],[Optimization Group ID]],Export_ResourceGroupsForOptimization[],5) /VLOOKUP(Table_LSEShowingProfilesForOptimization[[#This Row],[Optimization Group ID]],Export_ResourceGroupsForOptimization[],6), 100% ) ) ) -> 0.7012023549
E66: JOANEC_2_ST3BT3 | F66: 16 | G66: 0.3965490833 | H66: =Table_LSEShowingProfilesForOptimization[[#This Row],[Show Hour]]*SUMIF(Export_ResourceGroupsForOptimization[Optimization Group ID],Table_LSEShowingProfilesForOptimization[[#This Row],[Optimization Group ID]],Export_ResourceGroupsForOptimization[NQC or VER Under Contract (MW)]) -> 7.930981666 | I66: =IF( Table_LSEShowingProfilesForOptimization[[#This Row],[Hour Ending]]<=OFFSET(Table_LSEShowingProfilesForOptimization[[#This Row],[Hour Ending]],-1,0), IF( Table_LSEShowingProfilesForOptimization[[#This Row],[Shown MW]]>0, -Table_LSEShowingProfilesForOptimization[[#This Row],[Shown MW]], MIN( 100%, VLOOKUP(Table_LSEShowingProfilesForOptimization[[#This Row],[Optimization Group ID]],Export_ResourceGroupsForOptimization[],3) *VLOOKUP(Table_LSEShowingProfilesForOptimization[[#This Row],[Optimization Group ID]],Export_ResourceGroupsForOptimization[],5) /VLOOKUP(Table_LSEShowingProfilesForOptimization[[#This Row],[Optimization Group ID]],Export_ResourceGroupsForOptimization[],6) ) ), IF( Table_LSEShowingProfilesForOptimization[[#This Row],[Shown MW]]>0, OFFSET(Table_LSEShowingProfilesForOptimization[[#This Row],[State-of-Charge]],-1,0)-Table_LSEShowingProfilesForOptimization[[#This Row],[Shown MW]]/VLOOKUP(Table_LSEShowingProfilesForOptimization[[#This Row],[Optimization Group ID]],Export_ResourceGroupsForOptimization[],6), MIN( OFFSET(Table_LSEShowingProfilesForOptimization[[#This Row],[State-of-Charge]],-1,0) +VLOOKUP(Table_LSEShowingProfilesForOptimization[[#This Row],[Optimization Group ID]],Export_ResourceGroupsForOptimization[],3) *VLOOKUP(Table_LSEShowingProfilesForOptimization[[#This Row],[Optimization Group ID]],Export_ResourceGroupsForOptimization[],5) /VLOOKUP(Table_LSEShowingProfilesForOptimization[[#This Row],[Optimization Group ID]],Export_ResourceGroupsForOptimization[],6), 100% ) ) ) -> 0.6516337195
E67: JOANEC_2_ST3BT3 | F67: 17 | G67: 0.4219446693 | H67: =Table_LSEShowingProfilesForOptimization[[#This Row],[Show Hour]]*SUMIF(Export_ResourceGroupsForOptimization[Optimization Group ID],Table_LSEShowingProfilesForOptimization[[#This Row],[Optimization Group ID]],Export_ResourceGroupsForOptimization[NQC or VER Under Contract (MW)]) -> 8.438893386 | I67: =IF( Table_LSEShowingProfilesForOptimization[[#This Row],[Hour Ending]]<=OFFSET(Table_LSEShowingProfilesForOptimization[[#This Row],[Hour Ending]],-1,0), IF( Table_LSEShowingProfilesForOptimization[[#This Row],[Shown MW]]>0, -Table_LSEShowingProfilesForOptimization[[#This Row],[Shown MW]], MIN( 100%, VLOOKUP(Table_LSEShowingProfilesForOptimization[[#This Row],[Optimization Group ID]],Export_ResourceGroupsForOptimization[],3) *VLOOKUP(Table_LSEShowingProfilesForOptimization[[#This Row],[Optimization Group ID]],Export_ResourceGroupsForOptimization[],5) /VLOOKUP(Table_LSEShowingProfilesForOptimization[[#This Row],[Optimization Group ID]],Export_ResourceGroupsForOptimization[],6) ) ), IF( Table_LSEShowingProfilesForOptimization[[#This Row],[Shown MW]]>0, OFFSET(Table_LSEShowingProfilesForOptimization[[#This Row],[State-of-Charge]],-1,0)-Table_LSEShowingProfilesForOptimization[[#This Row],[Shown MW]]/VLOOKUP(Table_LSEShowingProfilesForOptimization[[#This Row],[Optimization Group ID]],Export_ResourceGroupsForOptimization[],6), MIN( OFFSET(Table_LSEShowingProfilesForOptimization[[#This Row],[State-of-Charge]],-1,0) +VLOOKUP(Table_LSEShowingProfilesForOptimization[[#This Row],[Optimization Group ID]],Export_ResourceGroupsForOptimization[],3) *VLOOKUP(Table_LSEShowingProfilesForOptimization[[#This Row],[Optimization Group ID]],Export_ResourceGroupsForOptimization[],5) /VLOOKUP(Table_LSEShowingProfilesForOptimization[[#This Row],[Optimization Group ID]],Export_ResourceGroupsForOptimization[],6), 100% ) ) ) -> 0.5988906358
E68: JOANEC_2_ST3BT3 | F68: 18 | G68: 0.1615502699 | H68: =Table_LSEShowingProfilesForOptimization[[#This Row],[Show Hour]]*SUMIF(Export_ResourceGroupsForOptimization[Optimization Group ID],Table_LSEShowingProfilesForOptimization[[#This Row],[Optimization Group ID]],Export_ResourceGroupsForOptimization[NQC or VER Under Contract (MW)]) -> 3.231005397 | I68: =IF( Table_LSEShowingProfilesForOptimization[[#This Row],[Hour Ending]]<=OFFSET(Table_LSEShowingProfilesForOptimization[[#This Row],[Hour Ending]],-1,0), IF( Table_LSEShowingProfilesForOptimization[[#This Row],[Shown MW]]>0, -Table_LSEShowingProfilesForOptimization[[#This Row],[Shown MW]], MIN( 100%, VLOOKUP(Table_LSEShowingProfilesForOptimization[[#This Row],[Optimization Group ID]],Export_ResourceGroupsForOptimization[],3) *VLOOKUP(Table_LSEShowingProfilesForOptimization[[#This Row],[Optimization Group ID]],Export_ResourceGroupsForOptimization[],5) /VLOOKUP(Table_LSEShowingProfilesForOptimization[[#This Row],[Optimization Group ID]],Export_ResourceGroupsForOptimization[],6) ) ), IF( Table_LSEShowingProfilesForOptimization[[#This Row],[Shown MW]]>0, OFFSET(Table_LSEShowingProfilesForOptimization[[#This Row],[State-of-Charge]],-1,0)-Table_LSEShowingProfilesForOptimization[[#This Row],[Shown MW]]/VLOOKUP(Table_LSEShowingProfilesForOptimization[[#This Row],[Optimization Group ID]],Export_ResourceGroupsForOptimization[],6), MIN( OFFSET(Table_LSEShowingProfilesForOptimization[[#This Row],[State-of-Charge]],-1,0) +VLOOKUP(Table_LSEShowingProfilesForOptimization[[#This Row],[Optimization Group ID]],Export_ResourceGroupsForOptimization[],3) *VLOOKUP(Table_LSEShowingProfilesForOptimization[[#This Row],[Optimization Group ID]],Export_ResourceGroupsForOptimization[],5) /VLOOKUP(Table_LSEShowingProfilesForOptimization[[#This Row],[Optimization Group ID]],Export_ResourceGroupsForOptimization[],6), 100% ) ) ) -> 0.5786968521
E69: JOANEC_2_ST3BT3 | F69: 19 | G69: 0.1416917522 | H69: =Table_LSEShowingProfilesForOptimization[[#This Row],[Show Hour]]*SUMIF(Export_ResourceGroupsForOptimization[Optimization Group ID],Table_LSEShowingProfilesForOptimization[[#This Row],[Optimization Group ID]],Export_ResourceGroupsForOptimization[NQC or VER Under Contract (MW)]) -> 2.833835044 | I69: =IF( Table_LSEShowingProfilesForOptimization[[#This Row],[Hour Ending]]<=OFFSET(Table_LSEShowingProfilesForOptimization[[#This Row],[Hour Ending]],-1,0), IF( Table_LSEShowingProfilesForOptimization[[#This Row],[Shown MW]]>0, -Table_LSEShowingProfilesForOptimization[[#This Row],[Shown MW]], MIN( 100%, VLOOKUP(Table_LSEShowingProfilesForOptimization[[#This Row],[Optimization Group ID]],Export_ResourceGroupsForOptimization[],3) *VLOOKUP(Table_LSEShowingProfilesForOptimization[[#This Row],[Optimization Group ID]],Export_ResourceGroupsForOptimization[],5) /VLOOKUP(Table_LSEShowingProfilesForOptimization[[#This Row],[Optimization Group ID]],Export_ResourceGroupsForOptimization[],6) ) ), IF( Table_LSEShowingProfilesForOptimization[[#This Row],[Shown MW]]>0, OFFSET(Table_LSEShowingProfilesForOptimization[[#This Row],[State-of-Charge]],-1,0)-Table_LSEShowingProfilesForOptimization[[#This Row],[Shown MW]]/VLOOKUP(Table_LSEShowingProfilesForOptimization[[#This Row],[Optimization Group ID]],Export_ResourceGroupsForOptimization[],6), MIN( OFFSET(Table_LSEShowingProfilesForOptimization[[#This Row],[State-of-Charge]],-1,0) +VLOOKUP(Table_LSEShowingProfilesForOptimization[[#This Row],[Optimization Group ID]],Export_ResourceGroupsForOptimization[],3) *VLOOKUP(Table_LSEShowingProfilesForOptimization[[#This Row],[Optimization Group ID]],Export_ResourceGroupsForOptimization[],5) /VLOOKUP(Table_LSEShowingProfilesForOptimization[[#This Row],[Optimization Group ID]],Export_ResourceGroupsForOptimization[],6), 100% ) ) ) -> 0.560985383
E70: JOANEC_2_ST3BT3 | F70: 20 | G70: 0 | H70: =Table_LSEShowingProfilesForOptimization[[#This Row],[Show Hour]]*SUMIF(Export_ResourceGroupsForOptimization[Optimization Group ID],Table_LSEShowingProfilesForOptimization[[#This Row],[Optimization Group ID]],Export_ResourceGroupsForOptimization[NQC or VER Under Contract (MW)]) -> 0 | I70: =IF( Table_LSEShowingProfilesForOptimization[[#This Row],[Hour Ending]]<=OFFSET(Table_LSEShowingProfilesForOptimization[[#This Row],[Hour Ending]],-1,0), IF( Table_LSEShowingProfilesForOptimization[[#This Row],[Shown MW]]>0, -Table_LSEShowingProfilesForOptimization[[#This Row],[Shown MW]], MIN( 100%, VLOOKUP(Table_LSEShowingProfilesForOptimization[[#This Row],[Optimization Group ID]],Export_ResourceGroupsForOptimization[],3) *VLOOKUP(Table_LSEShowingProfilesForOptimization[[#This Row],[Optimization Group ID]],Export_ResourceGroupsForOptimization[],5) /VLOOKUP(Table_LSEShowingProfilesForOptimization[[#This Row],[Optimization Group ID]],Export_ResourceGroupsForOptimization[],6) ) ), IF( Table_LSEShowingProfilesForOptimization[[#This Row],[Shown MW]]>0, OFFSET(Table_LSEShowingProfilesForOptimization[[#This Row],[State-of-Charge]],-1,0)-Table_LSEShowingProfilesForOptimization[[#This Row],[Shown MW]]/VLOOKUP(Table_LSEShowingProfilesForOptimization[[#This Row],[Optimization Group ID]],Export_ResourceGroupsForOptimization[],6), MIN( OFFSET(Table_LSEShowingProfilesForOptimization[[#This Row],[State-of-Charge]],-1,0) +VLOOKUP(Table_LSEShowingProfilesForOptimization[[#This Row],[Optimization Group ID]],Export_ResourceGroupsForOptimization[],3) *VLOOKUP(Table_LSEShowingProfilesForOptimization[[#This Row],[Optimization Group ID]],Export_ResourceGroupsForOptimization[],5) /VLOOKUP(Table_LSEShowingProfilesForOptimization[[#This Row],[Optimization Group ID]],Export_ResourceGroupsForOptimization[],6), 100% ) ) ) -> 0.660985383
E71: JOANEC_2_ST3BT3 | F71: 21 | G71: 0 | H71: =Table_LSEShowingProfilesForOptimization[[#This Row],[Show Hour]]*SUMIF(Export_ResourceGroupsForOptimization[Optimization Group ID],Table_LSEShowingProfilesForOptimization[[#This Row],[Optimization Group ID]],Export_ResourceGroupsForOptimization[NQC or VER Under Contract (MW)]) -> 0 | I71: =IF( Table_LSEShowingProfilesForOptimization[[#This Row],[Hour Ending]]<=OFFSET(Table_LSEShowingProfilesForOptimization[[#This Row],[Hour Ending]],-1,0), IF( Table_LSEShowingProfilesForOptimization[[#This Row],[Shown MW]]>0, -Table_LSEShowingProfilesForOptimization[[#This Row],[Shown MW]], MIN( 100%, VLOOKUP(Table_LSEShowingProfilesForOptimization[[#This Row],[Optimization Group ID]],Export_ResourceGroupsForOptimization[],3) *VLOOKUP(Table_LSEShowingProfilesForOptimization[[#This Row],[Optimization Group ID]],Export_ResourceGroupsForOptimization[],5) /VLOOKUP(Table_LSEShowingProfilesForOptimization[[#This Row],[Optimization Group ID]],Export_ResourceGroupsForOptimization[],6) ) ), IF( Table_LSEShowingProfilesForOptimization[[#This Row],[Shown MW]]>0, OFFSET(Table_LSEShowingProfilesForOptimization[[#This Row],[State-of-Charge]],-1,0)-Table_LSEShowingProfilesForOptimization[[#This Row],[Shown MW]]/VLOOKUP(Table_LSEShowingProfilesForOptimization[[#This Row],[Optimization Group ID]],Export_ResourceGroupsForOptimization[],6), MIN( OFFSET(Table_LSEShowingProfilesForOptimization[[#This Row],[State-of-Charge]],-1,0) +VLOOKUP(Table_LSEShowingProfilesForOptimization[[#This Row],[Optimization Group ID]],Export_ResourceGroupsForOptimization[],3) *VLOOKUP(Table_LSEShowingProfilesForOptimization[[#This Row],[Optimization Group ID]],Export_ResourceGroupsForOptimization[],5) /VLOOKUP(Table_LSEShowingProfilesForOptimization[[#This Row],[Optimization Group ID]],Export_ResourceGroupsForOptimization[],6), 100% ) ) ) -> 0.760985383
E72: JOANEC_2_ST3BT3 | F72: 22 | G72: 0 | H72: =Table_LSEShowingProfilesForOptimization[[#This Row],[Show Hour]]*SUMIF(Export_ResourceGroupsForOptimization[Optimization Group ID],Table_LSEShowingProfilesForOptimization[[#This Row],[Optimization Group ID]],Export_ResourceGroupsForOptimization[NQC or VER Under Contract (MW)]) -> 0 | I72: =IF( Table_LSEShowingProfilesForOptimization[[#This Row],[Hour Ending]]<=OFFSET(Table_LSEShowingProfilesForOptimization[[#This Row],[Hour Ending]],-1,0), IF( Table_LSEShowingProfilesForOptimization[[#This Row],[Shown MW]]>0, -Table_LSEShowingProfilesForOptimization[[#This Row],[Shown MW]], MIN( 100%, VLOOKUP(Table_LSEShowingProfilesForOptimization[[#This Row],[Optimization Group ID]],Export_ResourceGroupsForOptimization[],3) *VLOOKUP(Table_LSEShowingProfilesForOptimization[[#This Row],[Optimization Group ID]],Export_ResourceGroupsForOptimization[],5) /VLOOKUP(Table_LSEShowingProfilesForOptimization[[#This Row],[Optimization Group ID]],Export_ResourceGroupsForOptimization[],6) ) ), IF( Table_LSEShowingProfilesForOptimization[[#This Row],[Shown MW]]>0, OFFSET(Table_LSEShowingProfilesForOptimization[[#This Row],[State-of-Charge]],-1,0)-Table_LSEShowingProfilesForOptimization[[#This Row],[Shown MW]]/VLOOKUP(Table_LSEShowingProfilesForOptimization[[#This Row],[Optimization Group ID]],Export_ResourceGroupsForOptimization[],6), MIN( OFFSET(Table_LSEShowingProfilesForOptimization[[#This Row],[State-of-Charge]],-1,0) +VLOOKUP(Table_LSEShowingProfilesForOptimization[[#This Row],[Optimization Group ID]],Export_ResourceGroupsForOptimization[],3) *VLOOKUP(Table_LSEShowingProfilesForOptimization[[#This Row],[Optimization Group ID]],Export_ResourceGroupsForOptimization[],5) /VLOOKUP(Table_LSEShowingProfilesForOptimization[[#This Row],[Optimization Group ID]],Export_ResourceGroupsForOptimization[],6), 100% ) ) ) -> 0.860985383
E73: JOANEC_2_ST3BT3 | F73: 23 | G73: 0 | H73: =Table_LSEShowingProfilesForOptimization[[#This Row],[Show Hour]]*SUMIF(Export_ResourceGroupsForOptimization[Optimization Group ID],Table_LSEShowingProfilesForOptimization[[#This Row],[Optimization Group ID]],Export_ResourceGroupsForOptimization[NQC or VER Under Contract (MW)]) -> 0 | I73: =IF( Table_LSEShowingProfilesForOptimization[[#This Row],[Hour Ending]]<=OFFSET(Table_LSEShowingProfilesForOptimization[[#This Row],[Hour Ending]],-1,0), IF( Table_LSEShowingProfilesForOptimization[[#This Row],[Shown MW]]>0, -Table_LSEShowingProfilesForOptimization[[#This Row],[Shown MW]], MIN( 100%, VLOOKUP(Table_LSEShowingProfilesForOptimization[[#This Row],[Optimization Group ID]],Export_ResourceGroupsForOptimization[],3) *VLOOKUP(Table_LSEShowingProfilesForOptimization[[#This Row],[Optimization Group ID]],Export_ResourceGroupsForOptimization[],5) /VLOOKUP(Table_LSEShowingProfilesForOptimization[[#This Row],[Optimization Group ID]],Export_ResourceGroupsForOptimization[],6) ) ), IF( Table_LSEShowingProfilesForOptimization[[#This Row],[Shown MW]]>0, OFFSET(Table_LSEShowingProfilesForOptimization[[#This Row],[State-of-Charge]],-1,0)-Table_LSEShowingProfilesForOptimization[[#This Row],[Shown MW]]/VLOOKUP(Table_LSEShowingProfilesForOptimization[[#This Row],[Optimization Group ID]],Export_ResourceGroupsForOptimization[],6), MIN( OFFSET(Table_LSEShowingProfilesForOptimization[[#This Row],[State-of-Charge]],-1,0) +VLOOKUP(Table_LSEShowingProfilesForOptimization[[#This Row],[Optimization Group ID]],Export_ResourceGroupsForOptimization[],3) *VLOOKUP(Table_LSEShowingProfilesForOptimization[[#This Row],[Optimization Group ID]],Export_ResourceGroupsForOptimization[],5) /VLOOKUP(Table_LSEShowingProfilesForOptimization[[#This Row],[Optimization Group ID]],Export_ResourceGroupsForOptimization[],6), 100% ) ) ) -> 0.960985383
E74: JOANEC_2_ST3BT3 | F74: 24 | G74: 0 | H74: =Table_LSEShowingProfilesForOptimization[[#This Row],[Show Hour]]*SUMIF(Export_ResourceGroupsForOptimization[Optimization Group ID],Table_LSEShowingProfilesForOptimization[[#This Row],[Optimization Group ID]],Export_ResourceGroupsForOptimization[NQC or VER Under Contract (MW)]) -> 0 | I74: =IF( Table_LSEShowingProfilesForOptimization[[#This Row],[Hour Ending]]<=OFFSET(Table_LSEShowingProfilesForOptimization[[#This Row],[Hour Ending]],-1,0), IF( Table_LSEShowingProfilesForOptimization[[#This Row],[Shown MW]]>0, -Table_LSEShowingProfilesForOptimization[[#This Row],[Shown MW]], MIN( 100%, VLOOKUP(Table_LSEShowingProfilesForOptimization[[#This Row],[Optimization Group ID]],Export_ResourceGroupsForOptimization[],3) *VLOOKUP(Table_LSEShowingProfilesForOptimization[[#This Row],[Optimization Group ID]],Export_ResourceGroupsForOptimization[],5) /VLOOKUP(Table_LSEShowingProfilesForOptimization[[#This Row],[Optimization Group ID]],Export_ResourceGroupsForOptimization[],6) ) ), IF( Table_LSEShowingProfilesForOptimization[[#This Row],[Shown MW]]>0, OFFSET(Table_LSEShowingProfilesForOptimization[[#This Row],[State-of-Charge]],-1,0)-Table_LSEShowingProfilesForOptimization[[#This Row],[Shown MW]]/VLOOKUP(Table_LSEShowingProfilesForOptimization[[#This Row],[Optimization Group ID]],Export_ResourceGroupsForOptimization[],6), MIN( OFFSET(Table_LSEShowingProfilesForOptimization[[#This Row],[State-of-Charge]],-1,0) +VLOOKUP(Table_LSEShowingProfilesForOptimization[[#This Row],[Optimization Group ID]],Export_ResourceGroupsForOptimization[],3) *VLOOKUP(Table_LSEShowingProfilesForOptimization[[#This Row],[Optimization Group ID]],Export_ResourceGroupsForOptimization[],5) /VLOOKUP(Table_LSEShowingProfilesForOptimization[[#This Row],[Optimization Group ID]],Export_ResourceGroupsForOptimization[],6), 100% ) ) ) -> 1
E75: LNCSTR_6_SOLAR2/LNCSTR_6_SOLAR2_LESR | F75: 1 | G75: 0 | H75: =Table_LSEShowingProfilesForOptimization[[#This Row],[Show Hour]]*SUMIF(Export_ResourceGroupsForOptimization[Optimization Group ID],Table_LSEShowingProfilesForOptimization[[#This Row],[Optimization Group ID]],Export_ResourceGroupsForOptimization[NQC or VER Under Contract (MW)]) -> 0 | I75: =IF( Table_LSEShowingProfilesForOptimization[[#This Row],[Hour Ending]]<=OFFSET(Table_LSEShowingProfilesForOptimization[[#This Row],[Hour Ending]],-1,0), IF( Table_LSEShowingProfilesForOptimization[[#This Row],[Shown MW]]>0, -Table_LSEShowingProfilesForOptimization[[#This Row],[Shown MW]], MIN( 100%, VLOOKUP(Table_LSEShowingProfilesForOptimization[[#This Row],[Optimization Group ID]],Export_ResourceGroupsForOptimization[],3) *VLOOKUP(Table_LSEShowingProfilesForOptimization[[#This Row],[Optimization Group ID]],Export_ResourceGroupsForOptimization[],5) /VLOOKUP(Table_LSEShowingProfilesForOptimization[[#This Row],[Optimization Group ID]],Export_ResourceGroupsForOptimization[],6) ) ), IF( Table_LSEShowingProfilesForOptimization[[#This Row],[Shown MW]]>0, OFFSET(Table_LSEShowingProfilesForOptimization[[#This Row],[State-of-Charge]],-1,0)-Table_LSEShowingProfilesForOptimization[[#This Row],[Shown MW]]/VLOOKUP(Table_LSEShowingProfilesForOptimization[[#This Row],[Optimization Group ID]],Export_ResourceGroupsForOptimization[],6), MIN( OFFSET(Table_LSEShowingProfilesForOptimization[[#This Row],[State-of-Charge]],-1,0) +VLOOKUP(Table_LSEShowingProfilesForOptimization[[#This Row],[Optimization Group ID]],Export_ResourceGroupsForOptimization[],3) *VLOOKUP(Table_LSEShowingProfilesForOptimization[[#This Row],[Optimization Group ID]],Export_ResourceGroupsForOptimization[],5) /VLOOKUP(Table_LSEShowingProfilesForOptimization[[#This Row],[Optimization Group ID]],Export_ResourceGroupsForOptimization[],6), 100% ) ) ) -> 0.2
E76: LNCSTR_6_SOLAR2/LNCSTR_6_SOLAR2_LESR | F76: 2 | G76: 0.007598015026 | H76: =Table_LSEShowingProfilesForOptimization[[#This Row],[Show Hour]]*SUMIF(Export_ResourceGroupsForOptimization[Optimization Group ID],Table_LSEShowingProfilesForOptimization[[#This Row],[Optimization Group ID]],Export_ResourceGroupsForOptimization[NQC or VER Under Contract (MW)]) -> 0.03988957889 | I76: =IF( Table_LSEShowingProfilesForOptimization[[#This Row],[Hour Ending]]<=OFFSET(Table_LSEShowingProfilesForOptimization[[#This Row],[Hour Ending]],-1,0), IF( Table_LSEShowingProfilesForOptimization[[#This Row],[Shown MW]]>0, -Table_LSEShowingProfilesForOptimization[[#This Row],[Shown MW]], MIN( 100%, VLOOKUP(Table_LSEShowingProfilesForOptimization[[#This Row],[Optimization Group ID]],Export_ResourceGroupsForOptimization[],3) *VLOOKUP(Table_LSEShowingProfilesForOptimization[[#This Row],[Optimization Group ID]],Export_ResourceGroupsForOptimization[],5) /VLOOKUP(Table_LSEShowingProfilesForOptimization[[#This Row],[Optimization Group ID]],Export_ResourceGroupsForOptimization[],6) ) ), IF( Table_LSEShowingProfilesForOptimization[[#This Row],[Shown MW]]>0, OFFSET(Table_LSEShowingProfilesForOptimization[[#This Row],[State-of-Charge]],-1,0)-Table_LSEShowingProfilesForOptimization[[#This Row],[Shown MW]]/VLOOKUP(Table_LSEShowingProfilesForOptimization[[#This Row],[Optimization Group ID]],Export_ResourceGroupsForOptimization[],6), MIN( OFFSET(Table_LSEShowingProfilesForOptimization[[#This Row],[State-of-Charge]],-1,0) +VLOOKUP(Table_LSEShowingProfilesForOptimization[[#This Row],[Optimization Group ID]],Export_ResourceGroupsForOptimization[],3) *VLOOKUP(Table_LSEShowingProfilesForOptimization[[#This Row],[Optimization Group ID]],Export_ResourceGroupsForOptimization[],5) /VLOOKUP(Table_LSEShowingProfilesForOptimization[[#This Row],[Optimization Group ID]],Export_ResourceGroupsForOptimization[],6), 100% ) ) ) -> 0.1981004962
E77: LNCSTR_6_SOLAR2/LNCSTR_6_SOLAR2_LESR | F77: 3 | G77: 0.02176046189 | H77: =Table_LSEShowingProfilesForOptimization[[#This Row],[Show Hour]]*SUMIF(Export_ResourceGroupsForOptimization[Optimization Group ID],Table_LSEShowingProfilesForOptimization[[#This Row],[Optimization Group ID]],Export_ResourceGroupsForOptimization[NQC or VER Under Contract (MW)]) -> 0.1142424249 | I77: =IF( Table_LSEShowingProfilesForOptimization[[#This Row],[Hour Ending]]<=OFFSET(Table_LSEShowingProfilesForOptimization[[#This Row],[Hour Ending]],-1,0), IF( Table_LSEShowingProfilesForOptimization[[#This Row],[Shown MW]]>0, -Table_LSEShowingProfilesForOptimization[[#This Row],[Shown MW]], MIN( 100%, VLOOKUP(Table_LSEShowingProfilesForOptimization[[#This Row],[Optimization Group ID]],Export_ResourceGroupsForOptimization[],3) *VLOOKUP(Table_LSEShowingProfilesForOptimization[[#This Row],[Optimization Group ID]],Export_ResourceGroupsForOptimization[],5) /VLOOKUP(Table_LSEShowingProfilesForOptimization[[#This Row],[Optimization Group ID]],Export_ResourceGroupsForOptimization[],6) ) ), IF( Table_LSEShowingProfilesForOptimization[[#This Row],[Shown MW]]>0, OFFSET(Table_LSEShowingProfilesForOptimization[[#This Row],[State-of-Charge]],-1,0)-Table_LSEShowingProfilesForOptimization[[#This Row],[Shown MW]]/VLOOKUP(Table_LSEShowingProfilesForOptimization[[#This Row],[Optimization Group ID]],Export_ResourceGroupsForOptimization[],6), MIN( OFFSET(Table_LSEShowingProfilesForOptimization[[#This Row],[State-of-Charge]],-1,0) +VLOOKUP(Table_LSEShowingProfilesForOptimization[[#This Row],[Optimization Group ID]],Export_ResourceGroupsForOptimization[],3) *VLOOKUP(Table_LSEShowingProfilesForOptimization[[#This Row],[Optimization Group ID]],Export_ResourceGroupsForOptimization[],5) /VLOOKUP(Table_LSEShowingProfilesForOptimization[[#This Row],[Optimization Group ID]],Export_ResourceGroupsForOptimization[],6), 100% ) ) ) -> 0.1926603808
E78: LNCSTR_6_SOLAR2/LNCSTR_6_SOLAR2_LESR | F78: 4 | G78: 0.03876539301 | H78: =Table_LSEShowingProfilesForOptimization[[#This Row],[Show Hour]]*SUMIF(Export_ResourceGroupsForOptimization[Optimization Group ID],Table_LSEShowingProfilesForOptimization[[#This Row],[Optimization Group ID]],Export_ResourceGroupsForOptimization[NQC or VER Under Contract (MW)]) -> 0.2035183133 | I78: =IF( Table_LSEShowingProfilesForOptimization[[#This Row],[Hour Ending]]<=OFFSET(Table_LSEShowingProfilesForOptimization[[#This Row],[Hour Ending]],-1,0), IF( Table_LSEShowingProfilesForOptimization[[#This Row],[Shown MW]]>0, -Table_LSEShowingProfilesForOptimization[[#This Row],[Shown MW]], MIN( 100%, VLOOKUP(Table_LSEShowingProfilesForOptimization[[#This Row],[Optimization Group ID]],Export_ResourceGroupsForOptimization[],3) *VLOOKUP(Table_LSEShowingProfilesForOptimization[[#This Row],[Optimization Group ID]],Export_ResourceGroupsForOptimization[],5) /VLOOKUP(Table_LSEShowingProfilesForOptimization[[#This Row],[Optimization Group ID]],Export_ResourceGroupsForOptimization[],6) ) ), IF( Table_LSEShowingProfilesForOptimization[[#This Row],[Shown MW]]>0, OFFSET(Table_LSEShowingProfilesForOptimization[[#This Row],[State-of-Charge]],-1,0)-Table_LSEShowingProfilesForOptimization[[#This Row],[Shown MW]]/VLOOKUP(Table_LSEShowingProfilesForOptimization[[#This Row],[Optimization Group ID]],Export_ResourceGroupsForOptimization[],6), MIN( OFFSET(Table_LSEShowingProfilesForOptimization[[#This Row],[State-of-Charge]],-1,0) +VLOOKUP(Table_LSEShowingProfilesForOptimization[[#This Row],[Optimization Group ID]],Export_ResourceGroupsForOptimization[],3) *VLOOKUP(Table_LSEShowingProfilesForOptimization[[#This Row],[Optimization Group ID]],Export_ResourceGroupsForOptimization[],5) /VLOOKUP(Table_LSEShowingProfilesForOptimization[[#This Row],[Optimization Group ID]],Export_ResourceGroupsForOptimization[],6), 100% ) ) ) -> 0.1829690325
E79: LNCSTR_6_SOLAR2/LNCSTR_6_SOLAR2_LESR | F79: 5 | G79: 0.05008538322 | H79: =Table_LSEShowingProfilesForOptimization[[#This Row],[Show Hour]]*SUMIF(Export_ResourceGroupsForOptimization[Optimization Group ID],Table_LSEShowingProfilesForOptimization[[#This Row],[Optimization Group ID]],Export_ResourceGroupsForOptimization[NQC or VER Under Contract (MW)]) -> 0.2629482619 | I79: =IF( Table_LSEShowingProfilesForOptimization[[#This Row],[Hour Ending]]<=OFFSET(Table_LSEShowingProfilesForOptimization[[#This Row],[Hour Ending]],-1,0), IF( Table_LSEShowingProfilesForOptimization[[#This Row],[Shown MW]]>0, -Table_LSEShowingProfilesForOptimization[[#This Row],[Shown MW]], MIN( 100%, VLOOKUP(Table_LSEShowingProfilesForOptimization[[#This Row],[Optimization Group ID]],Export_ResourceGroupsForOptimization[],3) *VLOOKUP(Table_LSEShowingProfilesForOptimization[[#This Row],[Optimization Group ID]],Export_ResourceGroupsForOptimization[],5) /VLOOKUP(Table_LSEShowingProfilesForOptimization[[#This Row],[Optimization Group ID]],Export_ResourceGroupsForOptimization[],6) ) ), IF( Table_LSEShowingProfilesForOptimization[[#This Row],[Shown MW]]>0, OFFSET(Table_LSEShowingProfilesForOptimization[[#This Row],[State-of-Charge]],-1,0)-Table_LSEShowingProfilesForOptimization[[#This Row],[Shown MW]]/VLOOKUP(Table_LSEShowingProfilesForOptimization[[#This Row],[Optimization Group ID]],Export_ResourceGroupsForOptimization[],6), MIN( OFFSET(Table_LSEShowingProfilesForOptimization[[#This Row],[State-of-Charge]],-1,0) +VLOOKUP(Table_LSEShowingProfilesForOptimization[[#This Row],[Optimization Group ID]],Export_ResourceGroupsForOptimization[],3) *VLOOKUP(Table_LSEShowingProfilesForOptimization[[#This Row],[Optimization Group ID]],Export_ResourceGroupsForOptimization[],5) /VLOOKUP(Table_LSEShowingProfilesForOptimization[[#This Row],[Optimization Group ID]],Export_ResourceGroupsForOptimization[],6), 100% ) ) ) -> 0.1704476867
E80: LNCSTR_6_SOLAR2/LNCSTR_6_SOLAR2_LESR | F80: 6 | G80: 0.001987843632 | H80: =Table_LSEShowingProfilesForOptimization[[#This Row],[Show Hour]]*SUMIF(Export_ResourceGroupsForOptimization[Optimization Group ID],Table_LSEShowingProfilesForOptimization[[#This Row],[Optimization Group ID]],Export_ResourceGroupsForOptimization[NQC or VER Under Contract (MW)]) -> 0.01043617907 | I80: =IF( Table_LSEShowingProfilesForOptimization[[#This Row],[Hour Ending]]<=OFFSET(Table_LSEShowingProfilesForOptimization[[#This Row],[Hour Ending]],-1,0), IF( Table_LSEShowingProfilesForOptimization[[#This Row],[Shown MW]]>0, -Table_LSEShowingProfilesForOptimization[[#This Row],[Shown MW]], MIN( 100%, VLOOKUP(Table_LSEShowingProfilesForOptimization[[#This Row],[Optimization Group ID]],Export_ResourceGroupsForOptimization[],3) *VLOOKUP(Table_LSEShowingProfilesForOptimization[[#This Row],[Optimization Group ID]],Export_ResourceGroupsForOptimization[],5) /VLOOKUP(Table_LSEShowingProfilesForOptimization[[#This Row],[Optimization Group ID]],Export_ResourceGroupsForOptimization[],6) ) ), IF( Table_LSEShowingProfilesForOptimization[[#This Row],[Shown MW]]>0, OFFSET(Table_LSEShowingProfilesForOptimization[[#This Row],[State-of-Charge]],-1,0)-Table_LSEShowingProfilesForOptimization[[#This Row],[Shown MW]]/VLOOKUP(Table_LSEShowingProfilesForOptimization[[#This Row],[Optimization Group ID]],Export_ResourceGroupsForOptimization[],6), MIN( OFFSET(Table_LSEShowingProfilesForOptimization[[#This Row],[State-of-Charge]],-1,0) +VLOOKUP(Table_LSEShowingProfilesForOptimization[[#This Row],[Optimization Group ID]],Export_ResourceGroupsForOptimization[],3) *VLOOKUP(Table_LSEShowingProfilesForOptimization[[#This Row],[Optimization Group ID]],Export_ResourceGroupsForOptimization[],5) /VLOOKUP(Table_LSEShowingProfilesForOptimization[[#This Row],[Optimization Group ID]],Export_ResourceGroupsForOptimization[],6), 100% ) ) ) -> 0.1699507258
E81: LNCSTR_6_SOLAR2/LNCSTR_6_SOLAR2_LESR | F81: 7 | G81: 0 | H81: =Table_LSEShowingProfilesForOptimization[[#This Row],[Show Hour]]*SUMIF(Export_ResourceGroupsForOptimization[Optimization Group ID],Table_LSEShowingProfilesForOptimization[[#This Row],[Optimization Group ID]],Export_ResourceGroupsForOptimization[NQC or VER Under Contract (MW)]) -> 0 | I81: =IF( Table_LSEShowingProfilesForOptimization[[#This Row],[Hour Ending]]<=OFFSET(Table_LSEShowingProfilesForOptimization[[#This Row],[Hour Ending]],-1,0), IF( Table_LSEShowingProfilesForOptimization[[#This Row],[Shown MW]]>0, -Table_LSEShowingProfilesForOptimization[[#This Row],[Shown MW]], MIN( 100%, VLOOKUP(Table_LSEShowingProfilesForOptimization[[#This Row],[Optimization Group ID]],Export_ResourceGroupsForOptimization[],3) *VLOOKUP(Table_LSEShowingProfilesForOptimization[[#This Row],[Optimization Group ID]],Export_ResourceGroupsForOptimization[],5) /VLOOKUP(Table_LSEShowingProfilesForOptimization[[#This Row],[Optimization Group ID]],Export_ResourceGroupsForOptimization[],6) ) ), IF( Table_LSEShowingProfilesForOptimization[[#This Row],[Shown MW]]>0, OFFSET(Table_LSEShowingProfilesForOptimization[[#This Row],[State-of-Charge]],-1,0)-Table_LSEShowingProfilesForOptimization[[#This Row],[Shown MW]]/VLOOKUP(Table_LSEShowingProfilesForOptimization[[#This Row],[Optimization Group ID]],Export_ResourceGroupsForOptimization[],6), MIN( OFFSET(Table_LSEShowingProfilesForOptimization[[#This Row],[State-of-Charge]],-1,0) +VLOOKUP(Table_LSEShowingProfilesForOptimization[[#This Row],[Optimization Group ID]],Export_ResourceGroupsForOptimization[],3) *VLOOKUP(Table_LSEShowingProfilesForOptimization[[#This Row],[Optimization Group ID]],Export_ResourceGroupsForOptimization[],5) /VLOOKUP(Table_LSEShowingProfilesForOptimization[[#This Row],[Optimization Group ID]],Export_ResourceGroupsForOptimization[],6), 100% ) ) ) -> 0.3699507258
E82: LNCSTR_6_SOLAR2/LNCSTR_6_SOLAR2_LESR | F82: 8 | G82: 0 | H82: =Table_LSEShowingProfilesForOptimization[[#This Row],[Show Hour]]*SUMIF(Export_ResourceGroupsForOptimization[Optimization Group ID],Table_LSEShowingProfilesForOptimization[[#This Row],[Optimization Group ID]],Export_ResourceGroupsForOptimization[NQC or VER Under Contract (MW)]) -> 0 | I82: =IF( Table_LSEShowingProfilesForOptimization[[#This Row],[Hour Ending]]<=OFFSET(Table_LSEShowingProfilesForOptimization[[#This Row],[Hour Ending]],-1,0), IF( Table_LSEShowingProfilesForOptimization[[#This Row],[Shown MW]]>0, -Table_LSEShowingProfilesForOptimization[[#This Row],[Shown MW]], MIN( 100%, VLOOKUP(Table_LSEShowingProfilesForOptimization[[#This Row],[Optimization Group ID]],Export_ResourceGroupsForOptimization[],3) *VLOOKUP(Table_LSEShowingProfilesForOptimization[[#This Row],[Optimization Group ID]],Export_ResourceGroupsForOptimization[],5) /VLOOKUP(Table_LSEShowingProfilesForOptimization[[#This Row],[Optimization Group ID]],Export_ResourceGroupsForOptimization[],6) ) ), IF( Table_LSEShowingProfilesForOptimization[[#This Row],[Shown MW]]>0, OFFSET(Table_LSEShowingProfilesForOptimization[[#This Row],[State-of-Charge]],-1,0)-Table_LSEShowingProfilesForOptimization[[#This Row],[Shown MW]]/VLOOKUP(Table_LSEShowingProfilesForOptimization[[#This Row],[Optimization Group ID]],Export_ResourceGroupsForOptimization[],6), MIN( OFFSET(Table_LSEShowingProfilesForOptimization[[#This Row],[State-of-Charge]],-1,0) +VLOOKUP(Table_LSEShowingProfilesForOptimization[[#This Row],[Optimization Group ID]],Export_ResourceGroupsForOptimization[],3) *VLOOKUP(Table_LSEShowingProfilesForOptimization[[#This Row],[Optimization Group ID]],Export_ResourceGroupsForOptimization[],5) /VLOOKUP(Table_LSEShowingProfilesForOptimization[[#This Row],[Optimization Group ID]],Export_ResourceGroupsForOptimization[],6), 100% ) ) ) -> 0.5699507258
E83: LNCSTR_6_SOLAR2/LNCSTR_6_SOLAR2_LESR | F83: 9 | G83: 0 | H83: =Table_LSEShowingProfilesForOptimization[[#This Row],[Show Hour]]*SUMIF(Export_ResourceGroupsForOptimization[Optimization Group ID],Table_LSEShowingProfilesForOptimization[[#This Row],[Optimization Group ID]],Export_ResourceGroupsForOptimization[NQC or VER Under Contract (MW)]) -> 0 | I83: =IF( Table_LSEShowingProfilesForOptimization[[#This Row],[Hour Ending]]<=OFFSET(Table_LSEShowingProfilesForOptimization[[#This Row],[Hour Ending]],-1,0), IF( Table_LSEShowingProfilesForOptimization[[#This Row],[Shown MW]]>0, -Table_LSEShowingProfilesForOptimization[[#This Row],[Shown MW]], MIN( 100%, VLOOKUP(Table_LSEShowingProfilesForOptimization[[#This Row],[Optimization Group ID]],Export_ResourceGroupsForOptimization[],3) *VLOOKUP(Table_LSEShowingProfilesForOptimization[[#This Row],[Optimization Group ID]],Export_ResourceGroupsForOptimization[],5) /VLOOKUP(Table_LSEShowingProfilesForOptimization[[#This Row],[Optimization Group ID]],Export_ResourceGroupsForOptimization[],6) ) ), IF( Table_LSEShowingProfilesForOptimization[[#This Row],[Shown MW]]>0, OFFSET(Table_LSEShowingProfilesForOptimization[[#This Row],[State-of-Charge]],-1,0)-Table_LSEShowingProfilesForOptimization[[#This Row],[Shown MW]]/VLOOKUP(Table_LSEShowingProfilesForOptimization[[#This Row],[Optimization Group ID]],Export_ResourceGroupsForOptimization[],6), MIN( OFFSET(Table_LSEShowingProfilesForOptimization[[#This Row],[State-of-Charge]],-1,0) +VLOOKUP(Table_LSEShowingProfilesForOptimization[[#This Row],[Optimization Group ID]],Export_ResourceGroupsForOptimization[],3) *VLOOKUP(Table_LSEShowingProfilesForOptimization[[#This Row],[Optimization Group ID]],Export_ResourceGroupsForOptimization[],5) /VLOOKUP(Table_LSEShowingProfilesForOptimization[[#This Row],[Optimization Group ID]],Export_ResourceGroupsForOptimization[],6), 100% ) ) ) -> 0.7699507258
E84: LNCSTR_6_SOLAR2/LNCSTR_6_SOLAR2_LESR | F84: 10 | G84: 0 | H84: =Table_LSEShowingProfilesForOptimization[[#This Row],[Show Hour]]*SUMIF(Export_ResourceGroupsForOptimization[Optimization Group ID],Table_LSEShowingProfilesForOptimization[[#This Row],[Optimization Group ID]],Export_ResourceGroupsForOptimization[NQC or VER Under Contract (MW)]) -> 0 | I84: =IF( Table_LSEShowingProfilesForOptimization[[#This Row],[Hour Ending]]<=OFFSET(Table_LSEShowingProfilesForOptimization[[#This Row],[Hour Ending]],-1,0), IF( Table_LSEShowingProfilesForOptimization[[#This Row],[Shown MW]]>0, -Table_LSEShowingProfilesForOptimization[[#This Row],[Shown MW]], MIN( 100%, VLOOKUP(Table_LSEShowingProfilesForOptimization[[#This Row],[Optimization Group ID]],Export_ResourceGroupsForOptimization[],3) *VLOOKUP(Table_LSEShowingProfilesForOptimization[[#This Row],[Optimization Group ID]],Export_ResourceGroupsForOptimization[],5) /VLOOKUP(Table_LSEShowingProfilesForOptimization[[#This Row],[Optimization Group ID]],Export_ResourceGroupsForOptimization[],6) ) ), IF( Table_LSEShowingProfilesForOptimization[[#This Row],[Shown MW]]>0, OFFSET(Table_LSEShowingProfilesForOptimization[[#This Row],[State-of-Charge]],-1,0)-Table_LSEShowingProfilesForOptimization[[#This Row],[Shown MW]]/VLOOKUP(Table_LSEShowingProfilesForOptimization[[#This Row],[Optimization Group ID]],Export_ResourceGroupsForOptimization[],6), MIN( OFFSET(Table_LSEShowingProfilesForOptimization[[#This Row],[State-of-Charge]],-1,0) +VLOOKUP(Table_LSEShowingProfilesForOptimization[[#This Row],[Optimization Group ID]],Export_ResourceGroupsForOptimization[],3) *VLOOKUP(Table_LSEShowingProfilesForOptimization[[#This Row],[Optimization Group ID]],Export_ResourceGroupsForOptimization[],5) /VLOOKUP(Table_LSEShowingProfilesForOptimization[[#This Row],[Optimization Group ID]],Export_ResourceGroupsForOptimization[],6), 100% ) ) ) -> 0.9699507258
E85: LNCSTR_6_SOLAR2/LNCSTR_6_SOLAR2_LESR | F85: 11 | G85: 0 | H85: =Table_LSEShowingProfilesForOptimization[[#This Row],[Show Hour]]*SUMIF(Export_ResourceGroupsForOptimization[Optimization Group ID],Table_LSEShowingProfilesForOptimization[[#This Row],[Optimization Group ID]],Export_ResourceGroupsForOptimization[NQC or VER Under Contract (MW)]) -> 0 | I85: =IF( Table_LSEShowingProfilesForOptimization[[#This Row],[Hour Ending]]<=OFFSET(Table_LSEShowingProfilesForOptimization[[#This Row],[Hour Ending]],-1,0), IF( Table_LSEShowingProfilesForOptimization[[#This Row],[Shown MW]]>0, -Table_LSEShowingProfilesForOptimization[[#This Row],[Shown MW]], MIN( 100%, VLOOKUP(Table_LSEShowingProfilesForOptimization[[#This Row],[Optimization Group ID]],Export_ResourceGroupsForOptimization[],3) *VLOOKUP(Table_LSEShowingProfilesForOptimization[[#This Row],[Optimization Group ID]],Export_ResourceGroupsForOptimization[],5) /VLOOKUP(Table_LSEShowingProfilesForOptimization[[#This Row],[Optimization Group ID]],Export_ResourceGroupsForOptimization[],6) ) ), IF( Table_LSEShowingProfilesForOptimization[[#This Row],[Shown MW]]>0, OFFSET(Table_LSEShowingProfilesForOptimization[[#This Row],[State-of-Charge]],-1,0)-Table_LSEShowingProfilesForOptimization[[#This Row],[Shown MW]]/VLOOKUP(Table_LSEShowingProfilesForOptimization[[#This Row],[Optimization Group ID]],Export_ResourceGroupsForOptimization[],6), MIN( OFFSET(Table_LSEShowingProfilesForOptimization[[#This Row],[State-of-Charge]],-1,0) +VLOOKUP(Table_LSEShowingProfilesForOptimization[[#This Row],[Optimization Group ID]],Export_ResourceGroupsForOptimization[],3) *VLOOKUP(Table_LSEShowingProfilesForOptimization[[#This Row],[Optimization Group ID]],Export_ResourceGroupsForOptimization[],5) /VLOOKUP(Table_LSEShowingProfilesForOptimization[[#This Row],[Optimization Group ID]],Export_ResourceGroupsForOptimization[],6), 100% ) ) ) -> 1
E86: LNCSTR_6_SOLAR2/LNCSTR_6_SOLAR2_LESR | F86: 12 | G86: 0 | H86: =Table_LSEShowingProfilesForOptimization[[#This Row],[Show Hour]]*SUMIF(Export_ResourceGroupsForOptimization[Optimization Group ID],Table_LSEShowingProfilesForOptimization[[#This Row],[Optimization Group ID]],Export_ResourceGroupsForOptimization[NQC or VER Under Contract (MW)]) -> 0 | I86: =IF( Table_LSEShowingProfilesForOptimization[[#This Row],[Hour Ending]]<=OFFSET(Table_LSEShowingProfilesForOptimization[[#This Row],[Hour Ending]],-1,0), IF( Table_LSEShowingProfilesForOptimization[[#This Row],[Shown MW]]>0, -Table_LSEShowingProfilesForOptimization[[#This Row],[Shown MW]], MIN( 100%, VLOOKUP(Table_LSEShowingProfilesForOptimization[[#This Row],[Optimization Group ID]],Export_ResourceGroupsForOptimization[],3) *VLOOKUP(Table_LSEShowingProfilesForOptimization[[#This Row],[Optimization Group ID]],Export_ResourceGroupsForOptimization[],5) /VLOOKUP(Table_LSEShowingProfilesForOptimization[[#This Row],[Optimization Group ID]],Export_ResourceGroupsForOptimization[],6) ) ), IF( Table_LSEShowingProfilesForOptimization[[#This Row],[Shown MW]]>0, OFFSET(Table_LSEShowingProfilesForOptimization[[#This Row],[State-of-Charge]],-1,0)-Table_LSEShowingProfilesForOptimization[[#This Row],[Shown MW]]/VLOOKUP(Table_LSEShowingProfilesForOptimization[[#This Row],[Optimization Group ID]],Export_ResourceGroupsForOptimization[],6), MIN( OFFSET(Table_LSEShowingProfilesForOptimization[[#This Row],[State-of-Charge]],-1,0) +VLOOKUP(Table_LSEShowingProfilesForOptimization[[#This Row],[Optimization Group ID]],Export_ResourceGroupsForOptimization[],3) *VLOOKUP(Table_LSEShowingProfilesForOptimization[[#This Row],[Optimization Group ID]],Export_ResourceGroupsForOptimization[],5) /VLOOKUP(Table_LSEShowingProfilesForOptimization[[#This Row],[Optimization Group ID]],Export_ResourceGroupsForOptimization[],6), 100% ) ) ) -> 1
E87: LNCSTR_6_SOLAR2/LNCSTR_6_SOLAR2_LESR | F87: 13 | G87: 0 | H87: =Table_LSEShowingProfilesForOptimization[[#This Row],[Show Hour]]*SUMIF(Export_ResourceGroupsForOptimization[Optimization Group ID],Table_LSEShowingProfilesForOptimization[[#This Row],[Optimization Group ID]],Export_ResourceGroupsForOptimization[NQC or VER Under Contract (MW)]) -> 0 | I87: =IF( Table_LSEShowingProfilesForOptimization[[#This Row],[Hour Ending]]<=OFFSET(Table_LSEShowingProfilesForOptimization[[#This Row],[Hour Ending]],-1,0), IF( Table_LSEShowingProfilesForOptimization[[#This Row],[Shown MW]]>0, -Table_LSEShowingProfilesForOptimization[[#This Row],[Shown MW]], MIN( 100%, VLOOKUP(Table_LSEShowingProfilesForOptimization[[#This Row],[Optimization Group ID]],Export_ResourceGroupsForOptimization[],3) *VLOOKUP(Table_LSEShowingProfilesForOptimization[[#This Row],[Optimization Group ID]],Export_ResourceGroupsForOptimization[],5) /VLOOKUP(Table_LSEShowingProfilesForOptimization[[#This Row],[Optimization Group ID]],Export_ResourceGroupsForOptimization[],6) ) ), IF( Table_LSEShowingProfilesForOptimization[[#This Row],[Shown MW]]>0, OFFSET(Table_LSEShowingProfilesForOptimization[[#This Row],[State-of-Charge]],-1,0)-Table_LSEShowingProfilesForOptimization[[#This Row],[Shown MW]]/VLOOKUP(Table_LSEShowingProfilesForOptimization[[#This Row],[Optimization Group ID]],Export_ResourceGroupsForOptimization[],6), MIN( OFFSET(Table_LSEShowingProfilesForOptimization[[#This Row],[State-of-Charge]],-1,0) +VLOOKUP(Table_LSEShowingProfilesForOptimization[[#This Row],[Optimization Group ID]],Export_ResourceGroupsForOptimization[],3) *VLOOKUP(Table_LSEShowingProfilesForOptimization[[#This Row],[Optimization Group ID]],Export_ResourceGroupsForOptimization[],5) /VLOOKUP(Table_LSEShowingProfilesForOptimization[[#This Row],[Optimization Group ID]],Export_ResourceGroupsForOptimization[],6), 100% ) ) ) -> 1
E88: LNCSTR_6_SOLAR2/LNCSTR_6_SOLAR2_LESR | F88: 14 | G88: 0.01018235694 | H88: =Table_LSEShowingProfilesForOptimization[[#This Row],[Show Hour]]*SUMIF(Export_ResourceGroupsForOptimization[Optimization Group ID],Table_LSEShowingProfilesForOptimization[[#This Row],[Optimization Group ID]],Export_ResourceGroupsForOptimization[NQC or VER Under Contract (MW)]) -> 0.05345737393 | I88: =IF( Table_LSEShowingProfilesForOptimization[[#This Row],[Hour Ending]]<=OFFSET(Table_LSEShowingProfilesForOptimization[[#This Row],[Hour Ending]],-1,0), IF( Table_LSEShowingProfilesForOptimization[[#This Row],[Shown MW]]>0, -Table_LSEShowingProfilesForOptimization[[#This Row],[Shown MW]], MIN( 100%, VLOOKUP(Table_LSEShowingProfilesForOptimization[[#This Row],[Optimization Group ID]],Export_ResourceGroupsForOptimization[],3) *VLOOKUP(Table_LSEShowingProfilesForOptimization[[#This Row],[Optimization Group ID]],Export_ResourceGroupsForOptimization[],5) /VLOOKUP(Table_LSEShowingProfilesForOptimization[[#This Row],[Optimization Group ID]],Export_ResourceGroupsForOptimization[],6) ) ), IF( Table_LSEShowingProfilesForOptimization[[#This Row],[Shown MW]]>0, OFFSET(Table_LSEShowingProfilesForOptimization[[#This Row],[State-of-Charge]],-1,0)-Table_LSEShowingProfilesForOptimization[[#This Row],[Shown MW]]/VLOOKUP(Table_LSEShowingProfilesForOptimization[[#This Row],[Optimization Group ID]],Export_ResourceGroupsForOptimization[],6), MIN( OFFSET(Table_LSEShowingProfilesForOptimization[[#This Row],[State-of-Charge]],-1,0) +VLOOKUP(Table_LSEShowingProfilesForOptimization[[#This Row],[Optimization Group ID]],Export_ResourceGroupsForOptimization[],3) *VLOOKUP(Table_LSEShowingProfilesForOptimization[[#This Row],[Optimization Group ID]],Export_ResourceGroupsForOptimization[],5) /VLOOKUP(Table_LSEShowingProfilesForOptimization[[#This Row],[Optimization Group ID]],Export_ResourceGroupsForOptimization[],6), 100% ) ) ) -> 0.9974544108
E89: LNCSTR_6_SOLAR2/LNCSTR_6_SOLAR2_LESR | F89: 15 | G89: 0.0770959738 | H89: =Table_LSEShowingProfilesForOptimization[[#This Row],[Show Hour]]*SUMIF(Export_ResourceGroupsForOptimization[Optimization Group ID],Table_LSEShowingProfilesForOptimization[[#This Row],[Optimization Group ID]],Export_ResourceGroupsForOptimization[NQC or VER Under Contract (MW)]) -> 0.4047538625 | I89: =IF( Table_LSEShowingProfilesForOptimization[[#This Row],[Hour Ending]]<=OFFSET(Table_LSEShowingProfilesForOptimization[[#This Row],[Hour Ending]],-1,0), IF( Table_LSEShowingProfilesForOptimization[[#This Row],[Shown MW]]>0, -Table_LSEShowingProfilesForOptimization[[#This Row],[Shown MW]], MIN( 100%, VLOOKUP(Table_LSEShowingProfilesForOptimization[[#This Row],[Optimization Group ID]],Export_ResourceGroupsForOptimization[],3) *VLOOKUP(Table_LSEShowingProfilesForOptimization[[#This Row],[Optimization Group ID]],Export_ResourceGroupsForOptimization[],5) /VLOOKUP(Table_LSEShowingProfilesForOptimization[[#This Row],[Optimization Group ID]],Export_ResourceGroupsForOptimization[],6) ) ), IF( Table_LSEShowingProfilesForOptimization[[#This Row],[Shown MW]]>0, OFFSET(Table_LSEShowingProfilesForOptimization[[#This Row],[State-of-Charge]],-1,0)-Table_LSEShowingProfilesForOptimization[[#This Row],[Shown MW]]/VLOOKUP(Table_LSEShowingProfilesForOptimization[[#This Row],[Optimization Group ID]],Export_ResourceGroupsForOptimization[],6), MIN( OFFSET(Table_LSEShowingProfilesForOptimization[[#This Row],[State-of-Charge]],-1,0) +VLOOKUP(Table_LSEShowingProfilesForOptimization[[#This Row],[Optimization Group ID]],Export_ResourceGroupsForOptimization[],3) *VLOOKUP(Table_LSEShowingProfilesForOptimization[[#This Row],[Optimization Group ID]],Export_ResourceGroupsForOptimization[],5) /VLOOKUP(Table_LSEShowingProfilesForOptimization[[#This Row],[Optimization Group ID]],Export_ResourceGroupsForOptimization[],6), 100% ) ) ) -> 0.9781804173
E90: LNCSTR_6_SOLAR2/LNCSTR_6_SOLAR2_LESR | F90: 16 | G90: 0.104094185 | H90: =Table_LSEShowingProfilesForOptimization[[#This Row],[Show Hour]]*SUMIF(Export_ResourceGroupsForOptimization[Optimization Group ID],Table_LSEShowingProfilesForOptimization[[#This Row],[Optimization Group ID]],Export_ResourceGroupsForOptimization[NQC or VER Under Contract (MW)]) -> 0.5464944715 | I90: =IF( Table_LSEShowingProfilesForOptimization[[#This Row],[Hour Ending]]<=OFFSET(Table_LSEShowingProfilesForOptimization[[#This Row],[Hour Ending]],-1,0), IF( Table_LSEShowingProfilesForOptimization[[#This Row],[Shown MW]]>0, -Table_LSEShowingProfilesForOptimization[[#This Row],[Shown MW]], MIN( 100%, VLOOKUP(Table_LSEShowingProfilesForOptimization[[#This Row],[Optimization Group ID]],Export_ResourceGroupsForOptimization[],3) *VLOOKUP(Table_LSEShowingProfilesForOptimization[[#This Row],[Optimization Group ID]],Export_ResourceGroupsForOptimization[],5) /VLOOKUP(Table_LSEShowingProfilesForOptimization[[#This Row],[Optimization Group ID]],Export_ResourceGroupsForOptimization[],6) ) ), IF( Table_LSEShowingProfilesForOptimization[[#This Row],[Shown MW]]>0, OFFSET(Table_LSEShowingProfilesForOptimization[[#This Row],[State-of-Charge]],-1,0)-Table_LSEShowingProfilesForOptimization[[#This Row],[Shown MW]]/VLOOKUP(Table_LSEShowingProfilesForOptimization[[#This Row],[Optimization Group ID]],Export_ResourceGroupsForOptimization[],6), MIN( OFFSET(Table_LSEShowingProfilesForOptimization[[#This Row],[State-of-Charge]],-1,0) +VLOOKUP(Table_LSEShowingProfilesForOptimization[[#This Row],[Optimization Group ID]],Export_ResourceGroupsForOptimization[],3) *VLOOKUP(Table_LSEShowingProfilesForOptimization[[#This Row],[Optimization Group ID]],Export_ResourceGroupsForOptimization[],5) /VLOOKUP(Table_LSEShowingProfilesForOptimization[[#This Row],[Optimization Group ID]],Export_ResourceGroupsForOptimization[],6), 100% ) ) ) -> 0.9521568711
E91: LNCSTR_6_SOLAR2/LNCSTR_6_SOLAR2_LESR | F91: 17 | G91: 0.1107605302 | H91: =Table_LSEShowingProfilesForOptimization[[#This Row],[Show Hour]]*SUMIF(Export_ResourceGroupsForOptimization[Optimization Group ID],Table_LSEShowingProfilesForOptimization[[#This Row],[Optimization Group ID]],Export_ResourceGroupsForOptimization[NQC or VER Under Contract (MW)]) -> 0.5814927836 | I91: =IF( Table_LSEShowingProfilesForOptimization[[#This Row],[Hour Ending]]<=OFFSET(Table_LSEShowingProfilesForOptimization[[#This Row],[Hour Ending]],-1,0), IF( Table_LSEShowingProfilesForOptimization[[#This Row],[Shown MW]]>0, -Table_LSEShowingProfilesForOptimization[[#This Row],[Shown MW]], MIN( 100%, VLOOKUP(Table_LSEShowingProfilesForOptimization[[#This Row],[Optimization Group ID]],Export_ResourceGroupsForOptimization[],3) *VLOOKUP(Table_LSEShowingProfilesForOptimization[[#This Row],[Optimization Group ID]],Export_ResourceGroupsForOptimization[],5) /VLOOKUP(Table_LSEShowingProfilesForOptimization[[#This Row],[Optimization Group ID]],Export_ResourceGroupsForOptimization[],6) ) ), IF( Table_LSEShowingProfilesForOptimization[[#This Row],[Shown MW]]>0, OFFSET(Table_LSEShowingProfilesForOptimization[[#This Row],[State-of-Charge]],-1,0)-Table_LSEShowingProfilesForOptimization[[#This Row],[Shown MW]]/VLOOKUP(Table_LSEShowingProfilesForOptimization[[#This Row],[Optimization Group ID]],Export_ResourceGroupsForOptimization[],6), MIN( OFFSET(Table_LSEShowingProfilesForOptimization[[#This Row],[State-of-Charge]],-1,0) +VLOOKUP(Table_LSEShowingProfilesForOptimization[[#This Row],[Optimization Group ID]],Export_ResourceGroupsForOptimization[],3) *VLOOKUP(Table_LSEShowingProfilesForOptimization[[#This Row],[Optimization Group ID]],Export_ResourceGroupsForOptimization[],5) /VLOOKUP(Table_LSEShowingProfilesForOptimization[[#This Row],[Optimization Group ID]],Export_ResourceGroupsForOptimization[],6), 100% ) ) ) -> 0.9244667385
E92: LNCSTR_6_SOLAR2/LNCSTR_6_SOLAR2_LESR | F92: 18 | G92: 0.04240699385 | H92: =Table_LSEShowingProfilesForOptimization[[#This Row],[Show Hour]]*SUMIF(Export_ResourceGroupsForOptimization[Optimization Group ID],Table_LSEShowingProfilesForOptimization[[#This Row],[Optimization Group ID]],Export_ResourceGroupsForOptimization[NQC or VER Under Contract (MW)]) -> 0.2226367177 | I92: =IF( Table_LSEShowingProfilesForOptimization[[#This Row],[Hour Ending]]<=OFFSET(Table_LSEShowingProfilesForOptimization[[#This Row],[Hour Ending]],-1,0), IF( Table_LSEShowingProfilesForOptimization[[#This Row],[Shown MW]]>0, -Table_LSEShowingProfilesForOptimization[[#This Row],[Shown MW]], MIN( 100%, VLOOKUP(Table_LSEShowingProfilesForOptimization[[#This Row],[Optimization Group ID]],Export_ResourceGroupsForOptimization[],3) *VLOOKUP(Table_LSEShowingProfilesForOptimization[[#This Row],[Optimization Group ID]],Export_ResourceGroupsForOptimization[],5) /VLOOKUP(Table_LSEShowingProfilesForOptimization[[#This Row],[Optimization Group ID]],Export_ResourceGroupsForOptimization[],6) ) ), IF( Table_LSEShowingProfilesForOptimization[[#This Row],[Shown MW]]>0, OFFSET(Table_LSEShowingProfilesForOptimization[[#This Row],[State-of-Charge]],-1,0)-Table_LSEShowingProfilesForOptimization[[#This Row],[Shown MW]]/VLOOKUP(Table_LSEShowingProfilesForOptimization[[#This Row],[Optimization Group ID]],Export_ResourceGroupsForOptimization[],6), MIN( OFFSET(Table_LSEShowingProfilesForOptimization[[#This Row],[State-of-Charge]],-1,0) +VLOOKUP(Table_LSEShowingProfilesForOptimization[[#This Row],[Optimization Group ID]],Export_ResourceGroupsForOptimization[],3) *VLOOKUP(Table_LSEShowingProfilesForOptimization[[#This Row],[Optimization Group ID]],Export_ResourceGroupsForOptimization[],5) /VLOOKUP(Table_LSEShowingProfilesForOptimization[[#This Row],[Optimization Group ID]],Export_ResourceGroupsForOptimization[],6), 100% ) ) ) -> 0.91386499
E93: LNCSTR_6_SOLAR2/LNCSTR_6_SOLAR2_LESR | F93: 19 | G93: 0.03719412808 | H93: =Table_LSEShowingProfilesForOptimization[[#This Row],[Show Hour]]*SUMIF(Export_ResourceGroupsForOptimization[Optimization Group ID],Table_LSEShowingProfilesForOptimization[[#This Row],[Optimization Group ID]],Export_ResourceGroupsForOptimization[NQC or VER Under Contract (MW)]) -> 0.1952691724 | I93: =IF( Table_LSEShowingProfilesForOptimization[[#This Row],[Hour Ending]]<=OFFSET(Table_LSEShowingProfilesForOptimization[[#This Row],[Hour Ending]],-1,0), IF( Table_LSEShowingProfilesForOptimization[[#This Row],[Shown MW]]>0, -Table_LSEShowingProfilesForOptimization[[#This Row],[Shown MW]], MIN( 100%, VLOOKUP(Table_LSEShowingProfilesForOptimization[[#This Row],[Optimization Group ID]],Export_ResourceGroupsForOptimization[],3) *VLOOKUP(Table_LSEShowingProfilesForOptimization[[#This Row],[Optimization Group ID]],Export_ResourceGroupsForOptimization[],5) /VLOOKUP(Table_LSEShowingProfilesForOptimization[[#This Row],[Optimization Group ID]],Export_ResourceGroupsForOptimization[],6) ) ), IF( Table_LSEShowingProfilesForOptimization[[#This Row],[Shown MW]]>0, OFFSET(Table_LSEShowingProfilesForOptimization[[#This Row],[State-of-Charge]],-1,0)-Table_LSEShowingProfilesForOptimization[[#This Row],[Shown MW]]/VLOOKUP(Table_LSEShowingProfilesForOptimization[[#This Row],[Optimization Group ID]],Export_ResourceGroupsForOptimization[],6), MIN( OFFSET(Table_LSEShowingProfilesForOptimization[[#This Row],[State-of-Charge]],-1,0) +VLOOKUP(Table_LSEShowingProfilesForOptimization[[#This Row],[Optimization Group ID]],Export_ResourceGroupsForOptimization[],3) *VLOOKUP(Table_LSEShowingProfilesForOptimization[[#This Row],[Optimization Group ID]],Export_ResourceGroupsForOptimization[],5) /VLOOKUP(Table_LSEShowingProfilesForOptimization[[#This Row],[Optimization Group ID]],Export_ResourceGroupsForOptimization[],6), 100% ) ) ) -> 0.904566458
E94: LNCSTR_6_SOLAR2/LNCSTR_6_SOLAR2_LESR | F94: 20 | G94: 0 | H94: =Table_LSEShowingProfilesForOptimization[[#This Row],[Show Hour]]*SUMIF(Export_ResourceGroupsForOptimization[Optimization Group ID],Table_LSEShowingProfilesForOptimization[[#This Row],[Optimization Group ID]],Export_ResourceGroupsForOptimization[NQC or VER Under Contract (MW)]) -> 0 | I94: =IF( Table_LSEShowingProfilesForOptimization[[#This Row],[Hour Ending]]<=OFFSET(Table_LSEShowingProfilesForOptimization[[#This Row],[Hour Ending]],-1,0), IF( Table_LSEShowingProfilesForOptimization[[#This Row],[Shown MW]]>0, -Table_LSEShowingProfilesForOptimization[[#This Row],[Shown MW]], MIN( 100%, VLOOKUP(Table_LSEShowingProfilesForOptimization[[#This Row],[Optimization Group ID]],Export_ResourceGroupsForOptimization[],3) *VLOOKUP(Table_LSEShowingProfilesForOptimization[[#This Row],[Optimization Group ID]],Export_ResourceGroupsForOptimization[],5) /VLOOKUP(Table_LSEShowingProfilesForOptimization[[#This Row],[Optimization Group ID]],Export_ResourceGroupsForOptimization[],6) ) ), IF( Table_LSEShowingProfilesForOptimization[[#This Row],[Shown MW]]>0, OFFSET(Table_LSEShowingProfilesForOptimization[[#This Row],[State-of-Charge]],-1,0)-Table_LSEShowingProfilesForOptimization[[#This Row],[Shown MW]]/VLOOKUP(Table_LSEShowingProfilesForOptimization[[#This Row],[Optimization Group ID]],Export_ResourceGroupsForOptimization[],6), MIN( OFFSET(Table_LSEShowingProfilesForOptimization[[#This Row],[State-of-Charge]],-1,0) +VLOOKUP(Table_LSEShowingProfilesForOptimization[[#This Row],[Optimization Group ID]],Export_ResourceGroupsForOptimization[],3) *VLOOKUP(Table_LSEShowingProfilesForOptimization[[#This Row],[Optimization Group ID]],Export_ResourceGroupsForOptimization[],5) /VLOOKUP(Table_LSEShowingProfilesForOptimization[[#This Row],[Optimization Group ID]],Export_ResourceGroupsForOptimization[],6), 100% ) ) ) -> 1
E95: LNCSTR_6_SOLAR2/LNCSTR_6_SOLAR2_LESR | F95: 21 | G95: 0 | H95: =Table_LSEShowingProfilesForOptimization[[#This Row],[Show Hour]]*SUMIF(Export_ResourceGroupsForOptimization[Optimization Group ID],Table_LSEShowingProfilesForOptimization[[#This Row],[Optimization Group ID]],Export_ResourceGroupsForOptimization[NQC or VER Under Contract (MW)]) -> 0 | I95: =IF( Table_LSEShowingProfilesForOptimization[[#This Row],[Hour Ending]]<=OFFSET(Table_LSEShowingProfilesForOptimization[[#This Row],[Hour Ending]],-1,0), IF( Table_LSEShowingProfilesForOptimization[[#This Row],[Shown MW]]>0, -Table_LSEShowingProfilesForOptimization[[#This Row],[Shown MW]], MIN( 100%, VLOOKUP(Table_LSEShowingProfilesForOptimization[[#This Row],[Optimization Group ID]],Export_ResourceGroupsForOptimization[],3) *VLOOKUP(Table_LSEShowingProfilesForOptimization[[#This Row],[Optimization Group ID]],Export_ResourceGroupsForOptimization[],5) /VLOOKUP(Table_LSEShowingProfilesForOptimization[[#This Row],[Optimization Group ID]],Export_ResourceGroupsForOptimization[],6) ) ), IF( Table_LSEShowingProfilesForOptimization[[#This Row],[Shown MW]]>0, OFFSET(Table_LSEShowingProfilesForOptimization[[#This Row],[State-of-Charge]],-1,0)-Table_LSEShowingProfilesForOptimization[[#This Row],[Shown MW]]/VLOOKUP(Table_LSEShowingProfilesForOptimization[[#This Row],[Optimization Group ID]],Export_ResourceGroupsForOptimization[],6), MIN( OFFSET(Table_LSEShowingProfilesForOptimization[[#This Row],[State-of-Charge]],-1,0) +VLOOKUP(Table_LSEShowingProfilesForOptimization[[#This Row],[Optimization Group ID]],Export_ResourceGroupsForOptimization[],3) *VLOOKUP(Table_LSEShowingProfilesForOptimization[[#This Row],[Optimization Group ID]],Export_ResourceGroupsForOptimization[],5) /VLOOKUP(Table_LSEShowingProfilesForOptimization[[#This Row],[Optimization Group ID]],Export_ResourceGroupsForOptimization[],6), 100% ) ) ) -> 1
E96: LNCSTR_6_SOLAR2/LNCSTR_6_SOLAR2_LESR | F96: 22 | G96: 0 | H96: =Table_LSEShowingProfilesForOptimization[[#This Row],[Show Hour]]*SUMIF(Export_ResourceGroupsForOptimization[Optimization Group ID],Table_LSEShowingProfilesForOptimization[[#This Row],[Optimization Group ID]],Export_ResourceGroupsForOptimization[NQC or VER Under Contract (MW)]) -> 0 | I96: =IF( Table_LSEShowingProfilesForOptimization[[#This Row],[Hour Ending]]<=OFFSET(Table_LSEShowingProfilesForOptimization[[#This Row],[Hour Ending]],-1,0), IF( Table_LSEShowingProfilesForOptimization[[#This Row],[Shown MW]]>0, -Table_LSEShowingProfilesForOptimization[[#This Row],[Shown MW]], MIN( 100%, VLOOKUP(Table_LSEShowingProfilesForOptimization[[#This Row],[Optimization Group ID]],Export_ResourceGroupsForOptimization[],3) *VLOOKUP(Table_LSEShowingProfilesForOptimization[[#This Row],[Optimization Group ID]],Export_ResourceGroupsForOptimization[],5) /VLOOKUP(Table_LSEShowingProfilesForOptimization[[#This Row],[Optimization Group ID]],Export_ResourceGroupsForOptimization[],6) ) ), IF( Table_LSEShowingProfilesForOptimization[[#This Row],[Shown MW]]>0, OFFSET(Table_LSEShowingProfilesForOptimization[[#This Row],[State-of-Charge]],-1,0)-Table_LSEShowingProfilesForOptimization[[#This Row],[Shown MW]]/VLOOKUP(Table_LSEShowingProfilesForOptimization[[#This Row],[Optimization Group ID]],Export_ResourceGroupsForOptimization[],6), MIN( OFFSET(Table_LSEShowingProfilesForOptimization[[#This Row],[State-of-Charge]],-1,0) +VLOOKUP(Table_LSEShowingProfilesForOptimization[[#This Row],[Optimization Group ID]],Export_ResourceGroupsForOptimization[],3) *VLOOKUP(Table_LSEShowingProfilesForOptimization[[#This Row],[Optimization Group ID]],Export_ResourceGroupsForOptimization[],5) /VLOOKUP(Table_LSEShowingProfilesForOptimization[[#This Row],[Optimization Group ID]],Export_ResourceGroupsForOptimization[],6), 100% ) ) ) -> 1
E97: LNCSTR_6_SOLAR2/LNCSTR_6_SOLAR2_LESR | F97: 23 | G97: 0 | H97: =Table_LSEShowingProfilesForOptimization[[#This Row],[Show Hour]]*SUMIF(Export_ResourceGroupsForOptimization[Optimization Group ID],Table_LSEShowingProfilesForOptimization[[#This Row],[Optimization Group ID]],Export_ResourceGroupsForOptimization[NQC or VER Under Contract (MW)]) -> 0 | I97: =IF( Table_LSEShowingProfilesForOptimization[[#This Row],[Hour Ending]]<=OFFSET(Table_LSEShowingProfilesForOptimization[[#This Row],[Hour Ending]],-1,0), IF( Table_LSEShowingProfilesForOptimization[[#This Row],[Shown MW]]>0, -Table_LSEShowingProfilesForOptimization[[#This Row],[Shown MW]], MIN( 100%, VLOOKUP(Table_LSEShowingProfilesForOptimization[[#This Row],[Optimization Group ID]],Export_ResourceGroupsForOptimization[],3) *VLOOKUP(Table_LSEShowingProfilesForOptimization[[#This Row],[Optimization Group ID]],Export_ResourceGroupsForOptimization[],5) /VLOOKUP(Table_LSEShowingProfilesForOptimization[[#This Row],[Optimization Group ID]],Export_ResourceGroupsForOptimization[],6) ) ), IF( Table_LSEShowingProfilesForOptimization[[#This Row],[Shown MW]]>0, OFFSET(Table_LSEShowingProfilesForOptimization[[#This Row],[State-of-Charge]],-1,0)-Table_LSEShowingProfilesForOptimization[[#This Row],[Shown MW]]/VLOOKUP(Table_LSEShowingProfilesForOptimization[[#This Row],[Optimization Group ID]],Export_ResourceGroupsForOptimization[],6), MIN( OFFSET(Table_LSEShowingProfilesForOptimization[[#This Row],[State-of-Charge]],-1,0) +VLOOKUP(Table_LSEShowingProfilesForOptimization[[#This Row],[Optimization Group ID]],Export_ResourceGroupsForOptimization[],3) *VLOOKUP(Table_LSEShowingProfilesForOptimization[[#This Row],[Optimization Group ID]],Export_ResourceGroupsForOptimization[],5) /VLOOKUP(Table_LSEShowingProfilesForOptimization[[#This Row],[Optimization Group ID]],Export_ResourceGroupsForOptimization[],6), 100% ) ) ) -> 1
E98: LNCSTR_6_SOLAR2/LNCSTR_6_SOLAR2_LESR | F98: 24 | G98: 0 | H98: =Table_LSEShowingProfilesForOptimization[[#This Row],[Show Hour]]*SUMIF(Export_ResourceGroupsForOptimization[Optimization Group ID],Table_LSEShowingProfilesForOptimization[[#This Row],[Optimization Group ID]],Export_ResourceGroupsForOptimization[NQC or VER Under Contract (MW)]) -> 0 | I98: =IF( Table_LSEShowingProfilesForOptimization[[#This Row],[Hour Ending]]<=OFFSET(Table_LSEShowingProfilesForOptimization[[#This Row],[Hour Ending]],-1,0), IF( Table_LSEShowingProfilesForOptimization[[#This Row],[Shown MW]]>0, -Table_LSEShowingProfilesForOptimization[[#This Row],[Shown MW]], MIN( 100%, VLOOKUP(Table_LSEShowingProfilesForOptimization[[#This Row],[Optimization Group ID]],Export_ResourceGroupsForOptimization[],3) *VLOOKUP(Table_LSEShowingProfilesForOptimization[[#This Row],[Optimization Group ID]],Export_ResourceGroupsForOptimization[],5) /VLOOKUP(Table_LSEShowingProfilesForOptimization[[#This Row],[Optimization Group ID]],Export_ResourceGroupsForOptimization[],6) ) ), IF( Table_LSEShowingProfilesForOptimization[[#This Row],[Shown MW]]>0, OFFSET(Table_LSEShowingProfilesForOptimization[[#This Row],[State-of-Charge]],-1,0)-Table_LSEShowingProfilesForOptimization[[#This Row],[Shown MW]]/VLOOKUP(Table_LSEShowingProfilesForOptimization[[#This Row],[Optimization Group ID]],Export_ResourceGroupsForOptimization[],6), MIN( OFFSET(Table_LSEShowingProfilesForOptimization[[#This Row],[State-of-Charge]],-1,0) +VLOOKUP(Table_LSEShowingProfilesForOptimization[[#This Row],[Optimization Group ID]],Export_ResourceGroupsForOptimization[],3) *VLOOKUP(Table_LSEShowingProfilesForOptimization[[#This Row],[Optimization Group ID]],Export_ResourceGroupsForOptimization[],5) /VLOOKUP(Table_LSEShowingProfilesForOptimization[[#This Row],[Optimization Group ID]],Export_ResourceGroupsForOptimization[],6), 100% ) ) ) -> 1

Sheet Validation Overview
A1: Test | B1: Result | C1: Description | D1: Worksheet | E1: Review | F1: Refresh
A2: Hourly System Capacity | B2: =IF(AND(Export_CheckCapacity[Hour Ending]>=0),"Pass","Fail") -> Pass | C2: Checks whether the total MWh shown available across all 24 hours meet the hourly requirements. | D2: Check Capacity
A3: Local Capacity | B3: =IF(AND(SUM(Export_CheckLocal[LA Basin])>=0,SUM(Export_CheckLocal[Big Creek-Ventura])>=0,SUM(Export_CheckLocal[San Diego-IV])>=0,SUM(Export_CheckLocal[Bay Area])>=0,SUM(Export_CheckLocal[Fresno])>=0,SUM(Export_CheckLocal[Sierra])>=0,SUM(Export_CheckLocal[Stockton])>=0,SUM(Export_CheckLocal[Kern])>=0,SUM(Export_CheckLocal[Humboldt])>=0,SUM(Export_CheckLocal[NBNC])>=0),"Pass","Fail") -> Pass | C3: Checks whether shown local capacity meets local requirements. | D3: Check Local
A4: Flexible Capacity | B4: =IF(AND(SUM(Export_CheckFlex[Category 1])>=0,SUM(Export_CheckFlex[Category 2])>=0,SUM(Export_CheckFlex[Category 3])>=0),"Pass","Fail") -> Pass | C4: Checks whether shown local capacity meets flex requirements. | D4: Check Flex
A5: Contract Date | B5: =IFERROR(IF(AND(Export_CheckContractDates[Check Dates]),"Pass","Fail"),"N/A") -> Pass | C5: Checks that each shown resource is available for the current showing month according to the contract period. | D5: Check Contract Dates
A6: Custom Profile | B6: =IFERROR(IF(MIN(Export_CheckCustomProfiles[[Delta MW HE 1]:[Delta MW HE 24]])>=0,"Pass","Fail"),"N/A") -> Pass | C6: Checks whether any custom resource profiles exceed the current monthly NQC or contracted NQC or VER. | D6: Check Custom Profiles
A7: Shown Hours | B7: =IF(IFERROR(AND(Export_CheckShownHours[Valid Hours]),FALSE),"Pass","Fail") -> Pass | C7: Passes if the shown hours of usage for each resource are below the maximum allowed in the resource database. | D7: Check Shown Hours
A8: Storage Excess Capacity | B8: =IF(Export_CheckStorageExcessCapacity[CheckStorageExcessCapacity]>=0,"Pass","Fail") -> Pass | C8: Checks that sufficient excess capacity above system requirements across all hours are shown to supply the total storage charging needs, accounting for efficiency losses. | D8: Check Storage Excess Capacity
A9: MCC Bucket 4 Storage Excess Capacity | B9: =IF(Export_CheckMCCBucket4StorageExcessCapacity[CheckMCCBucket4StorageExcessCapacity]>=0,"Pass","Fail") -> Pass | C9: Applies the Storage Excess Capacity test only to Storage Resources indicated with the MCC Bucket 4 flag | D9: Check MCC Bucket 4
A10: Storage Minimum State-of-Charge | B10: =IFERROR(IF(AND(Export_CheckStorageSOC[[SOC HE 1]:[SOC HE 24]]>=0),"Pass","Fail"),"N/A") -> Pass | C10: Checks the state-of-charge for each hour to ensure storage resources doesn't supply unavailable capacity. | D10: Check Storage SOC
A11: Storage Energy | B11: =IFERROR(IF(AND(Export_CheckStorageSOC[[SOC HE 1]:[SOC HE 24]]<=1),"Pass","Fail"),"N/A") -> Pass | C11: Checks that storage resources don't exceed their listed maximum energy capacities.
A12: Grouped Resource Interconnection | B12: =IFERROR(IF(AND(Export_CheckGroupedResources[Interconnection Limit (MW)]>=_xlfn.BYROW(Export_CheckGroupedResources[[MW HE 1]:[MW HE 24]],_xlfn.LAMBDA(_xlpm.array,MAX(_xlpm.array)))),"Pass","Fail"),"N/A") -> Pass | C12: Compares groups of resources--either hybrid pairs or colocated resources--and checks that their combined effects do not exceed interconnection limits. | D12: Check Grouped Resources
A13: Hybrid Deliverability | B13: =IFERROR(IF(AND(Export_CheckHybridDeliverability[Hybrid Check]),"Pass","Fail"),"N/A") -> Pass | C13: Checks hybrid solar resources against their paired storage according to their deliverability statuses. | D13: Check Hybrid Deliverability
A14: Overall | B14: =IF(OR(B2:B13="Fail"),"Fail","Pass") -> Pass | C14: All applicable individual tests above must pass.

Sheet Check Capacity (hidden)
A1: Hour Ending | B1: Delta Capacity (MW)
A2: 1 | B2: 1.877
A3: 2 | B3: 0.7216
A4: 3 | B4: 0
A5: 4 | B5: 0
A6: 5 | B6: 0
A7: 6 | B7: 3.4108
A8: 7 | B8: 7.8631
A9: 8 | B9: 8.2554
A10: 9 | B10: 11.4154
A11: 10 | B11: 13.7554
A12: 11 | B12: 4.0554
A13: 12 | B13: 0
A14: 13 | B14: 0
A15: 14 | B15: 0
A16: 15 | B16: 0
A17: 16 | B17: 0
A18: 17 | B18: 0
A19: 18 | B19: 0
A20: 19 | B20: 0
A21: 20 | B21: 0
A22: 21 | B22: 0
A23: 22 | B23: 0
A24: 23 | B24: 3.3547
A25: 24 | B25: 5.277

Sheet Check Local (hidden)
A1: Contract ID | B1: Resource ID | C1: Resource SubID | D1: LA Basin | E1: Big Creek-Ventura | F1: San Diego-IV | G1: Bay Area | H1: Fresno | I1: Sierra | J1: Stockton | K1: Kern | L1: Humboldt | M1: NBNC
A2: DR Allocation
A3: Local Requirement | D3: -6 | E3: -4
A4: Contract 8 | B4: 7STDRD_1_SOLAR1 | K4: 0
A5: Contract 5 | B5: ACACIA_6_SOLAR | E5: 2.22
A6: Contract 10 | B6: ALAMIT_7_ES1 | D6: 10
A7: Contract 6 | B7: ALAMO_6_UNIT | E7: 9.54
A8: Contract 9 | B8: ALTWD_2_COAWD1 | D8: 5.67
A9: Contract 7 | B9: JOANEC_2_ST3BT3 | D9: 0
A10: Contract 1 | B10: LNCSTR_6_SOLAR2 | C10: LNCSTR_6_SOLAR2_LESR
A11: Contract 1 | B11: LNCSTR_6_SOLAR2 | C11: LNCSTR_6_SOLAR2_SUN
A12: Contract 3 | B12: PRIMM_2_SOLAR1
A13: Contract 2 | B13: PWEST_1_UNIT | D13: 0
A14: Contract 12 | B14: SCE1_MALIN500_I_F_121212
A15: Contract 11 | B15: SUTTER_2_CISO
A16: Contract 4 | B16: TIGRCK_7_UNITS
A17: Contract 7 | B17: VOYAGR_2_VOYWD3

Sheet Check Flex (hidden)
A1: Contract ID | B1: Resource ID | C1: Resource SubID | D1: Category 1 | E1: Category 2 | F1: Category 3
A2: Flex RA | D2: -2 | E2: -3
A3: Contract 10 | B3: ALAMIT_7_ES1 | D3: 0
A4: Contract 9 | B4: ALTWD_2_COAWD1
A5: Contract 5 | B5: DIABLO_7_UNIT 1
A6: Contract 7 | B6: JOANEC_2_ST3BT3
A7: Contract 1 | B7: LNCSTR_6_SOLAR2 | C7: LNCSTR_6_SOLAR2_LESR | E7: 5.25
A8: Contract 1 | B8: LNCSTR_6_SOLAR2 | C8: LNCSTR_6_SOLAR2_SUN | E8: 3
A9: Contract 8 | B9: MIRLOM_2_MLBBTA | D9: 0
A10: Contract 6 | B10: MIRLOM_2_MLBBTB | D10: 0
A11: Contract 3 | B11: PRIMM_2_SOLAR1
A12: Contract 2 | B12: PWEST_1_UNIT
A13: Contract 7 | B13: SANBRN_2_ESBBT1 | E13: 10
A14: Contract 12 | B14: SCE1_MALIN500_I_F_121212
A15: Contract 11 | B15: SUTTER_2_CISO
A16: Contract 4 | B16: TIGRCK_7_UNITS | D16: 5

Sheet Check Contract Dates (hidden)
A1: Contract ID | B1: Resource ID | C1: Resource SubID | D1: Capacity Effective Start Date | E1: Capacity Effective End Date | F1: Check Dates
A2: Contract 10 | B2: ALAMIT_7_ES1 | D2: 2024-09-01 | E2: 2024-09-30 | F2: TRUE
A3: Contract 9 | B3: ALTWD_2_COAWD1 | D3: 2024-09-01 | E3: 2024-09-30 | F3: TRUE
A4: CAM Storage | B4: CAM Storage 2 | D4: 2024-09-01 | E4: 2024-09-30 | F4: TRUE
A5: Contract 5 | B5: DIABLO_7_UNIT 1 | D5: 2024-09-01 | E5: 2024-09-30 | F5: TRUE
A6: Contract 7 | B6: JOANEC_2_ST3BT3 | D6: 2024-09-01 | E6: 2024-09-30 | F6: TRUE
A7: Contract 1 | B7: LNCSTR_6_SOLAR2 | C7: LNCSTR_6_SOLAR2_LESR | D7: 2024-09-01 | E7: 2024-09-30 | F7: TRUE
A8: Contract 1 | B8: LNCSTR_6_SOLAR2 | C8: LNCSTR_6_SOLAR2_SUN | D8: 2024-09-01 | E8: 2024-09-30 | F8: TRUE
A9: Contract 8 | B9: MIRLOM_2_MLBBTA | D9: 2024-09-01 | E9: 2024-09-30 | F9: TRUE
A10: Contract 6 | B10: MIRLOM_2_MLBBTB | D10: 2024-09-01 | E10: 2024-09-30 | F10: TRUE
A11: Contract 3 | B11: PRIMM_2_SOLAR1 | D11: 2024-09-01 | E11: 2024-09-30 | F11: TRUE
A12: Contract 2 | B12: PWEST_1_UNIT | D12: 2024-09-01 | E12: 2024-09-30 | F12: TRUE
A13: Contract 7 | B13: SANBRN_2_ESBBT1 | D13: 2024-09-01 | E13: 2024-09-30 | F13: TRUE
A14: Contract 4 | B14: TIGRCK_7_UNITS | D14: 2024-09-01 | E14: 2024-09-30 | F14: TRUE
A15: Contract 11 | B15: SUTTER_2_CISO | D15: 2024-09-01 | E15: 2024-09-30 | F15: TRUE
A16: Contract 12 | B16: SCE1_MALIN500_I_F_121212 | D16: 2024-09-01 | E16: 2024-09-30 | F16: TRUE

Sheet Check Custom Profiles (hidden)
A1: Resource ID | B1: Resource SubID | C1: Delta MW HE 1 | D1: Delta MW HE 2 | E1: Delta MW HE 3 | F1: Delta MW HE 4 | G1: Delta MW HE 5 | H1: Delta MW HE 6 | I1: Delta MW HE 7 | J1: Delta MW HE 8 | K1: Delta MW HE 9 | L1: Delta MW HE 10 | M1: Delta MW HE 11 | N1: Delta MW HE 12 | O1: Delta MW HE 13 | P1: Delta MW HE 14 | Q1: Delta MW HE 15 | R1: Delta MW HE 16 | S1: Delta MW HE 17 | T1: Delta MW HE 18 | U1: Delta MW HE 19 | V1: Delta MW HE 20 | W1: Delta MW HE 21 | X1: Delta MW HE 22 | Y1: Delta MW HE 23 | Z1: Delta MW HE 24
A2: SCE1_MALIN500_I_F_121212 | C2: 10 | D2: 10 | E2: 10 | F2: 10 | G2: 10 | H2: 0 | I2: 0 | J2: 0 | K2: 0 | L2: 0 | M2: 0 | N2: 0 | O2: 0 | P2: 0 | Q2: 0 | R2: 0 | S2: 0 | T2: 0 | U2: 0 | V2: 0 | W2: 0 | X2: 0 | Y2: 10 | Z2: 10

Sheet Check Shown Hours (hidden)
A1: Contract ID | B1: Resource ID | C1: Resource SubID | D1: First Hour Shown | E1: Last Hour Shown | F1: Total Hours Shown | G1: First Available Hour (HE) | H1: Last Available Hour (HE) | I1: Maximum Daily Run Hours | J1: Valid Hours
A2: CAM Storage | B2: CAM Storage 2 | D2: 3 | E2: 22 | F2: 14 | G2: 1 | H2: 24 | I2: 11.16578 | J2: TRUE
A3: Contract 1 | B3: LNCSTR_6_SOLAR2 | C3: LNCSTR_6_SOLAR2_LESR | D3: 3 | E3: 22 | F3: 14 | G3: 1 | H3: 24 | I3: 24 | J3: TRUE
A4: Contract 10 | B4: ALAMIT_7_ES1 | D4: 3 | E4: 22 | F4: 14 | G4: 1 | H4: 24 | I4: 11.42 | J4: TRUE
A5: Contract 6 | B5: MIRLOM_2_MLBBTB | D5: 3 | E5: 22 | F5: 14 | G5: 1 | H5: 24 | I5: 24 | J5: TRUE
A6: Contract 7 | B6: JOANEC_2_ST3BT3 | D6: 3 | E6: 22 | F6: 14 | G6: 1 | H6: 24 | I6: 24 | J6: TRUE
A7: Contract 7 | B7: SANBRN_2_ESBBT1 | D7: 3 | E7: 22 | F7: 14 | G7: 1 | H7: 24 | I7: 24 | J7: TRUE
A8: Contract 8 | B8: MIRLOM_2_MLBBTA | D8: 3 | E8: 22 | F8: 14 | G8: 1 | H8: 24 | I8: 24 | J8: TRUE
A9: Contract 9 | B9: ALTWD_2_COAWD1 | D9: 1 | E9: 24 | F9: 24 | G9: 1 | H9: 24 | I9: 24 | J9: TRUE
A10: Contract 5 | B10: DIABLO_7_UNIT 1 | D10: 1 | E10: 24 | F10: 24 | G10: 1 | H10: 24 | I10: 24 | J10: TRUE
A11: Contract 1 | B11: LNCSTR_6_SOLAR2 | C11: LNCSTR_6_SOLAR2_SUN | D11: 7 | E11: 19 | F11: 13 | G11: 1 | H11: 24 | I11: 24 | J11: TRUE
A12: Contract 3 | B12: PRIMM_2_SOLAR1 | D12: 7 | E12: 19 | F12: 13 | G12: 1 | H12: 24 | I12: 24 | J12: TRUE
A13: Contract 2 | B13: PWEST_1_UNIT | D13: 1 | E13: 24 | F13: 24 | G13: 1 | H13: 24 | I13: 24 | J13: TRUE
A14: Contract 4 | B14: TIGRCK_7_UNITS | D14: 8 | E14: 18 | F14: 11 | G14: 1 | H14: 24 | I14: 24 | J14: TRUE
A15: Contract 11 | B15: SUTTER_2_CISO | D15: 1 | E15: 24 | F15: 24 | J15: TRUE
A16: Contract 12 | B16: SCE1_MALIN500_I_F_121212 | D16: 6 | E16: 12 | F16: 7 | J16: TRUE
A17: CAM DR Allocation | D17: 17 | E17: 20 | F17: 4 | J17: TRUE
A18: Other CAM Allocation | D18: 1 | E18: 24 | F18: 24 | J18: TRUE

Sheet Check Storage Excess Capacity (hidden)
A1: CheckStorageExcessCapacity
A2: 33.26129923

Sheet Check Storage SOC (hidden)
A1: Contract ID | B1: Resource ID | C1: Resource SubID | D1: Daily Storage Cycle Physical Capability | E1: Storage Efficiency | F1: Maximum Continuous Energy (MWh) | G1: Storage Maximum Daily MWh | H1: First Available Hour (HE) | I1: Last Available Hour (HE) | J1: Maximum Daily Run Hours | K1: SOC HE 1 | L1: SOC HE 2 | M1: SOC HE 3 | N1: SOC HE 4 | O1: SOC HE 5 | P1: SOC HE 6 | Q1: SOC HE 7 | R1: SOC HE 8 | S1: SOC HE 9 | T1: SOC HE 10 | U1: SOC HE 11 | V1: SOC HE 12 | W1: SOC HE 13 | X1: SOC HE 14 | Y1: SOC HE 15 | Z1: SOC HE 16 | AA1: SOC HE 17 | AB1: SOC HE 18 | AC1: SOC HE 19 | AD1: SOC HE 20 | AE1: SOC HE 21 | AF1: SOC HE 22 | AG1: SOC HE 23 | AH1: SOC HE 24
A2: CAM Storage | B2: CAM Storage 2 | D2: 2.79 | E2: 0.87 | F2: 80 | G2: 1000 | H2: 1 | I2: 24 | J2: 11.16578 | K2: 0.2175 | L2: 0.435 | M2: 0.4343341947 | N2: 0.4326088744 | O2: 0.4299219022 | P2: 0.6474219022 | Q2: 0.8649219022 | R2: 1 | S2: 1 | T2: 1 | U2: 1 | V2: 0.9994180461 | W2: 0.9875431018 | X2: 0.9716217652 | Y2: 0.9500078704 | Z2: 0.926351025 | AA2: 0.9036862127 | AB2: 0.8865261613 | AC2: 0.8739895688 | AD2: 0.8677524539 | AE2: 0.8674014718 | AF2: 0.8673527804 | AG2: 1 | AH2: 1
A3: Contract 1 | B3: LNCSTR_6_SOLAR2 | C3: LNCSTR_6_SOLAR2_LESR | D3: 1 | E3: 0.8 | F3: 21 | G3: 21 | H3: 1 | I3: 24 | J3: 24 | K3: 0.2 | L3: 0.4 | M3: 0.3984145861 | N3: 0.3943062022 | O3: 0.3879078847 | P3: 0.5879078847 | Q3: 0.7879078847 | R3: 0.9879078847 | S3: 1 | T3: 1 | U3: 1 | V3: 0.998614257 | W3: 0.9703370793 | X3: 0.9324244299 | Y3: 0.8809563755 | Z3: 0.8246235487 | AA3: 0.7706530009 | AB3: 0.7297906627 | AC3: 0.699937935 | AD3: 0.685085841 | AE3: 0.6842500999 | AF3: 0.6840691771 | AG3: 0.8840691771 | AH3: 1
A4: Contract 10 | B4: ALAMIT_7_ES1 | D4: 2.86 | E4: 0.91 | F4: 400 | G4: 1142 | H4: 1 | I4: 24 | J4: 11.42 | K4: 0.2275 | L4: 0.455 | M4: 0.4533252015 | N4: 0.4490023596 | O4: 0.4419911702 | P4: 0.6694911702 | Q4: 0.8969911702 | R4: 1 | S4: 1 | T4: 1 | U4: 1 | V4: 0.9882395905 | W4: 0.9527138531 | X4: 0.9070721338 | Y4: 0.8471990206 | Z4: 0.7822185331 | AA4: 0.719718127 | AB4: 0.6709796243 | AC4: 0.6337997679 | AD4: 0.6123686053 | AE4: 0.605652775 | AF4: 0.6 | AG4: 0.8275 | AH4: 1
A5: Contract 6 | B5: MIRLOM_2_MLBBTB | D5: 2.79 | E5: 0.87 | F5: 40 | G5: 112 | H5: 1 | I5: 24 | J5: 24 | K5: 0.2175 | L5: 0.435 | M5: 0.4343341947 | N5: 0.4326088744 | O5: 0.4299219022 | P5: 0.6474219022 | Q5: 0.8649219022 | R5: 1 | S5: 1 | T5: 1 | U5: 1 | V5: 0.9994180461 | W5: 0.9875431018 | X5: 0.9716217652 | Y5: 0.9500078704 | Z5: 0.926351025 | AA5: 0.9036862127 | AB5: 0.8865261613 | AC5: 0.8739895688 | AD5: 0.8677524539 | AE5: 0.8674014718 | AF5: 0.8673527804 | AG5: 1 | AH5: 1
A6: Contract 7 | B6: JOANEC_2_ST3BT3 | D6: 1 | E6: 0.8 | F6: 160 | G6: 160 | H6: 1 | I6: 24 | J6: 24 | K6: 0.2 | L6: 0.4 | M6: 0.3984145861 | N6: 0.3943062022 | O6: 0.3879078847 | P6: 0.5879078847 | Q6: 0.7879078847 | R6: 0.9879078847 | S6: 1 | T6: 1 | U6: 1 | V6: 0.998614257 | W6: 0.9703370793 | X6: 0.9324244299 | Y6: 0.8809563755 | Z6: 0.8246235487 | AA6: 0.7706530009 | AB6: 0.7297906627 | AC6: 0.699937935 | AD6: 0.685085841 | AE6: 0.6842500999 | AF6: 0.6840691771 | AG6: 0.8840691771 | AH6: 1
A7: Contract 7 | B7: SANBRN_2_ESBBT1 | D7: 1 | E7: 0.8 | F7: 400 | G7: 400 | H7: 1 | I7: 24 | J7: 24 | K7: 0.1 | L7: 0.2 | M7: 0.1992072931 | N7: 0.1971531011 | O7: 0.1939539424 | P7: 0.2939539424 | Q7: 0.3939539424 | R7: 0.4939539424 | S7: 0.5939539424 | T7: 0.6939539424 | U7: 0.7939539424 | V7: 0.7932610709 | W7: 0.779122482 | X7: 0.7601661573 | Y7: 0.7344321301 | Z7: 0.7062657167 | AA7: 0.6792804428 | AB7: 0.6588492737 | AC7: 0.6439229099 | AD7: 0.6364968629 | AE7: 0.6360789923 | AF7: 0.6359885309 | AG7: 0.7359885309 | AH7: 0.8359885309
A8: Contract 8 | B8: MIRLOM_2_MLBBTA | D8: 2.79 | E8: 0.87 | F8: 40 | G8: 112 | H8: 1 | I8: 24 | J8: 24 | K8: 0.2175 | L8: 0.435 | M8: 0.4343341947 | N8: 0.4326088744 | O8: 0.4299219022 | P8: 0.6474219022 | Q8: 0.8649219022 | R8: 1 | S8: 1 | T8: 1 | U8: 1 | V8: 0.9994180461 | W8: 0.9875431018 | X8: 0.9716217652 | Y8: 0.9500078704 | Z8: 0.926351025 | AA8: 0.9036862127 | AB8: 0.8865261613 | AC8: 0.8739895688 | AD8: 0.8677524539 | AE8: 0.8674014718 | AF8: 0.8673527804 | AG8: 1 | AH8: 1

Sheet Check Grouped Resources (hidden)
A1: Associated Resources | B1: Interconnection Limit (MW) | C1: MW HE 1 | D1: MW HE 2 | E1: MW HE 3 | F1: MW HE 4 | G1: MW HE 5 | H1: MW HE 6 | I1: MW HE 7 | J1: MW HE 8 | K1: MW HE 9 | L1: MW HE 10 | M1: MW HE 11 | N1: MW HE 12 | O1: MW HE 13 | P1: MW HE 14 | Q1: MW HE 15 | R1: MW HE 16 | S1: MW HE 17 | T1: MW HE 18 | U1: MW HE 19 | V1: MW HE 20 | W1: MW HE 21 | X1: MW HE 22 | Y1: MW HE 23 | Z1: MW HE 24
A2: LNCSTR_6_SOLAR2.LNCSTR_6_SOLAR2_LESR,LNCSTR_6_SOLAR2.LNCSTR_6_SOLAR2_SUN | B2: 8.25 | C2: 0 | D2: 0 | E2: 0.03280358705 | F2: 0.0849419957 | G2: 0.1333213246 | H2: 0 | I2: 0.03 | J2: 0.6 | K2: 1.56 | L2: 2.1 | M2: 2.4 | N2: 2.649339684 | O2: 3.22917571 | P2: 3.398126063 | Q2: 3.558670608 | R2: 3.389541545 | S2: 2.740269484 | T2: 1.660218598 | U2: 0.7428719811 | V2: 0.3728160402 | W2: 0.2034883351 | X2: 0.0639889134 | Y2: 0 | Z2: 0

Sheet Check Hybrid Deliverability (hidden)
A1: Contract ID | B1: Resource ID | C1: Resource SubID | D1: Resource Type | E1: Deliverable MW | F1: Hybrid Pair | G1: Hybrid Check | H1: MW HE 1 | I1: MW HE 2 | J1: MW HE 3 | K1: MW HE 4 | L1: MW HE 5 | M1: MW HE 6 | N1: MW HE 7 | O1: MW HE 8 | P1: MW HE 9 | Q1: MW HE 10 | R1: MW HE 11 | S1: MW HE 12 | T1: MW HE 13 | U1: MW HE 14 | V1: MW HE 15 | W1: MW HE 16 | X1: MW HE 17 | Y1: MW HE 18 | Z1: MW HE 19 | AA1: MW HE 20 | AB1: MW HE 21 | AC1: MW HE 22 | AD1: MW HE 23 | AE1: MW HE 24
A2: Contract 1 | B2: LNCSTR_6_SOLAR2 | C2: LNCSTR_6_SOLAR2_SUN | D2: Hybrid_SolarFixed | E2: 6.9 | F2: TRUE | G2: TRUE | H2: 0 | I2: 0 | J2: 0 | K2: 0 | L2: 0 | M2: 0 | N2: 0.03 | O2: 0.6 | P2: 1.56 | Q2: 2.1 | R2: 2.4 | S2: 2.52 | T2: 2.58 | U2: 2.55 | V2: 2.43 | W2: 2.16 | X2: 1.68 | Y2: 0.75 | Z2: 0.06 | AA2: 0 | AB2: 0 | AC2: 0 | AD2: 0 | AE2: 0

Sheet Check MCC Bucket 4 (hidden)
A1: CheckMCCBucket4StorageExcessCapacity
A2: 125.0209338

Sheet LSE Showing Complete
A1: Contract ID | B1: Resource ID | C1: Resource SubID | D1: Colocated Resource IDs | E1: NQC MW | F1: NQC or VER Under Contract (MW) | G1: Local RA (MW) | H1: Local Capacity Area | I1: Committed Flexible RA (MW) | J1: Flexible Category | K1: Deliverability Status | L1: Deliverable % | M1: Deliverable MW | N1: Capacity Effective Start Date | O1: Capacity Effective End Date | P1: Resource Type | Q1: Path 26 Designation | R1: Daily Storage Cycle Physical Capability | S1: Storage Efficiency | T1: Maximum Continuous Energy (MWh) | U1: Storage Maximum Daily MWh | V1: First Available Hour (HE) | W1: Last Available Hour (HE) | X1: Maximum Daily Run Hours | Y1: Interconnection Limit (MW) | Z1: MCC Bucket 4 | AA1: Unspecified Import | AB1: Profile Source | AC1: MW HE 1 | AD1: MW HE 2 | AE1: MW HE 3 | AF1: MW HE 4 | AG1: MW HE 5 | AH1: MW HE 6 | AI1: MW HE 7 | AJ1: MW HE 8 | AK1: MW HE 9 | AL1: MW HE 10 | AM1: MW HE 11 | AN1: MW HE 12 | AO1: MW HE 13 | AP1: MW HE 14 | AQ1: MW HE 15 | AR1: MW HE 16 | AS1: MW HE 17 | AT1: MW HE 18 | AU1: MW HE 19 | AV1: MW HE 20 | AW1: MW HE 21 | AX1: MW HE 22 | AY1: MW HE 23 | AZ1: MW HE 24
A2: CAM Storage | B2: CAM Storage 2 | F2: 20 | G2: 0 | H2: CAISO System | I2: 0 | N2: 45536 | O2: 45565 | P2: Battery Storage | Q2: South | R2: 2.79 | S2: 0.87 | T2: 80 | U2: 1000 | V2: 1 | W2: 24 | X2: 11.16578 | Z2: FALSE | AA2: FALSE | AB2: Optimized | AC2: 0 | AD2: 0.5788925818 | AE2: 1.657936185 | AF2: 2.95354858 | AG2: 3.816024291 | AH2: 0.1514503021 | AI2: 0 | AJ2: 0 | AK2: 0 | AL2: 0 | AM2: 0 | AN2: 0 | AO2: 0 | AP2: 0.7757953214 | AQ2: 5.873975961 | AR2: 7.930981666 | AS2: 8.438893386 | AT2: 3.231005397 | AU2: 2.833835044 | AV2: 0 | AW2: 0 | AX2: 0 | AY2: 0 | AZ2: 0
A3: Contract 1 | B3: LNCSTR_6_SOLAR2 | C3: LNCSTR_6_SOLAR2_LESR | E3: 5.26 | F3: 5.25 | G3: 0 | H3: SEPV Sierra NGR | I3: 5.25 | J3: 2 | N3: 45536 | O3: 45565 | P3: Hybrid_Storage | R3: 1 | S3: 0.8 | T3: 21 | U3: 21 | V3: 1 | W3: 24 | X3: 24 | Y3: 8.25 | Z3: TRUE | AA3: FALSE | AB3: Optimized | AC3: 0 | AD3: 0.03988957889 | AE3: 0.1142424249 | AF3: 0.2035183133 | AG3: 0.2629482619 | AH3: 0.01043617907 | AI3: 0 | AJ3: 0 | AK3: 0 | AL3: 0 | AM3: 0 | AN3: 0 | AO3: 0 | AP3: 0.05345737393 | AQ3: 0.4047538625 | AR3: 0.5464944715 | AS3: 0.5814927836 | AT3: 0.2226367177 | AU3: 0.1952691724 | AV3: 0 | AW3: 0 | AX3: 0 | AY3: 0 | AZ3: 0
A4: Contract 10 | B4: ALAMIT_7_ES1 | E4: 100 | F4: 10 | G4: 10 | H4: LA Basin | I4: 20 | J4: 1 | K4: FC | N4: 45536 | O4: 45565 | P4: Battery Storage | Q4: South | R4: 2.86 | S4: 0.91 | T4: 400 | U4: 1142 | V4: 1 | W4: 24 | X4: 11.42 | Z4: TRUE | AA4: FALSE | AB4: Optimized | AC4: 0 | AD4: 0.1447235999 | AE4: 0.4144844891 | AF4: 0.7383874383 | AG4: 0.9540063806 | AH4: 0.03786294536 | AI4: 0 | AJ4: 0 | AK4: 0 | AL4: 0 | AM4: 0 | AN4: 0 | AO4: 0 | AP4: 0.1939493438 | AQ4: 1.468494522 | AR4: 1.982745843 | AS4: 2.109723797 | AT4: 0.8077518379 | AU4: 0.7084592803 | AV4: 0 | AW4: 0 | AX4: 0 | AY4: 0 | AZ4: 0
A5: Contract 7 | B5: JOANEC_2_ST3BT3 | E5: 40 | F5: 20 | G5: 0 | H5: LA Basin | I5: 40 | K5: FC | N5: 45536 | O5: 45565 | P5: Battery Storage | Q5: South | R5: 1 | S5: 0.8 | T5: 160 | U5: 160 | V5: 1 | W5: 24 | X5: 24 | Z5: FALSE | AA5: FALSE | AB5: Optimized | AC5: 0 | AD5: 0.5788925818 | AE5: 1.657936185 | AF5: 2.95354858 | AG5: 3.816024291 | AH5: 0.1514503021 | AI5: 0 | AJ5: 0 | AK5: 0 | AL5: 0 | AM5: 0 | AN5: 0 | AO5: 0 | AP5: 0.7757953214 | AQ5: 5.873975961 | AR5: 7.930981666 | AS5: 8.438893386 | AT5: 3.231005397 | AU5: 2.833835044 | AV5: 0 | AW5: 0 | AX5: 0 | AY5: 0 | AZ5: 0
A6: Contract 8 | B6: 7STDRD_1_SOLAR1 | E6: 2.22 | F6: 20 | G6: 0 | H6: Kern | I6: 0 | K6: FC | N6: 45536 | O6: 45565 | P6: Solar_1Axis | Q6: North | V6: 1 | W6: 24 | X6: 24 | Z6: FALSE | AA6: FALSE | AB6: Default | AC6: 0 | AD6: 0 | AE6: 0 | AF6: 0 | AG6: 0 | AH6: 0 | AI6: 0 | AJ6: 2.8 | AK6: 10.4 | AL6: 13.8 | AM6: 14.6 | AN6: 14.8 | AO6: 14.6 | AP6: 14.6 | AQ6: 14.6 | AR6: 14.8 | AS6: 13.4 | AT6: 8.2 | AU6: 1.2 | AV6: 0 | AW6: 0 | AX6: 0 | AY6: 0 | AZ6: 0
A7: Contract 5 | B7: ACACIA_6_SOLAR | E7: 2.22 | F7: 20 | G7: 2.22 | H7: Big Creek-Ventura | I7: 0 | K7: FC | N7: 45536 | O7: 45565 | P7: Solar_Fixed | Q7: South | V7: 1 | W7: 24 | X7: 24 | Z7: FALSE | AA7: FALSE | AB7: Default | AC7: 0 | AD7: 0 | AE7: 0 | AF7: 0 | AG7: 0 | AH7: 0 | AI7: 0.2 | AJ7: 4 | AK7: 10.4 | AL7: 14 | AM7: 16 | AN7: 16.8 | AO7: 17.2 | AP7: 17 | AQ7: 16.2 | AR7: 14.4 | AS7: 11.2 | AT7: 5 | AU7: 0.4 | AV7: 0 | AW7: 0 | AX7: 0 | AY7: 0 | AZ7: 0
A8: Contract 6 | B8: ALAMO_6_UNIT | E8: 9.54 | F8: 9.54 | G8: 9.54 | H8: Big Creek-Ventura | I8: 9.54 | J8: 2 | K8: FC | N8: 45536 | O8: 45565 | P8: Hydro | Q8: South | V8: 1 | W8: 24 | X8: 24 | Z8: FALSE | AA8: FALSE | AB8: Default | AC8: 9.54 | AD8: 9.54 | AE8: 9.54 | AF8: 9.54 | AG8: 9.54 | AH8: 9.54 | AI8: 9.54 | AJ8: 9.54 | AK8: 9.54 | AL8: 9.54 | AM8: 9.54 | AN8: 9.54 | AO8: 9.54 | AP8: 9.54 | AQ8: 9.54 | AR8: 9.54 | AS8: 9.54 | AT8: 9.54 | AU8: 9.54 | AV8: 9.54 | AW8: 9.54 | AX8: 9.54 | AY8: 9.54 | AZ8: 9.54
A9: Contract 9 | B9: ALTWD_2_COAWD1 | E9: 5.67 | F9: 5.67 | G9: 5.67 | H9: LA Basin | I9: 0 | K9: FC | N9: 45536 | O9: 45565 | P9: Wind | Q9: South | V9: 1 | W9: 24 | X9: 24 | Z9: FALSE | AA9: FALSE | AB9: Default | AC9: 0.567 | AD9: 0.4536 | AE9: 0.3969 | AF9: 0.2835 | AG9: 0.2835 | AH9: 0.2268 | AI9: 0.1701 | AJ9: 0.1134 | AK9: 0.1134 | AL9: 0.1134 | AM9: 0.1134 | AN9: 0.1701 | AO9: 0.1701 | AP9: 0.2835 | AQ9: 0.2268 | AR9: 0.2268 | AS9: 0.2835 | AT9: 0.4536 | AU9: 0.7371 | AV9: 0.7938 | AW9: 0.7938 | AX9: 0.6237 | AY9: 0.6237 | AZ9: 0.567
A10: Contract 1 | B10: LNCSTR_6_SOLAR2 | C10: LNCSTR_6_SOLAR2_SUN | E10: 5.26 | F10: 3 | G10: 0 | H10: SEPV Sierra NGR | I10: 3 | J10: 2 | K10: PD | M10: 6.9 | N10: 45536 | O10: 45565 | P10: Hybrid_SolarFixed | Q10: South | V10: 1 | W10: 24 | X10: 24 | Y10: 8.25 | Z10: FALSE | AA10: FALSE | AB10: Default | AC10: 0 | AD10: 0 | AE10: 0 | AF10: 0 | AG10: 0 | AH10: 0 | AI10: 0.03 | AJ10: 0.6 | AK10: 1.56 | AL10: 2.1 | AM10: 2.4 | AN10: 2.52 | AO10: 2.58 | AP10: 2.55 | AQ10: 2.43 | AR10: 2.16 | AS10: 1.68 | AT10: 0.75 | AU10: 0.06 | AV10: 0 | AW10: 0 | AX10: 0 | AY10: 0 | AZ10: 0
A11: Contract 3 | B11: PRIMM_2_SOLAR1 | E11: 27.75 | F11: 10 | G11: 0 | H11: CAISO System | I11: 0 | K11: FC | N11: 45536 | O11: 45565 | P11: Solar_Fixed | Q11: South | V11: 1 | W11: 24 | X11: 24 | Z11: FALSE | AA11: FALSE | AB11: Default | AC11: 0 | AD11: 0 | AE11: 0 | AF11: 0 | AG11: 0 | AH11: 0 | AI11: 0.1 | AJ11: 2 | AK11: 5.2 | AL11: 7 | AM11: 8 | AN11: 8.4 | AO11: 8.6 | AP11: 8.5 | AQ11: 8.1 | AR11: 7.2 | AS11: 5.6 | AT11: 2.5 | AU11: 0.2 | AV11: 0 | AW11: 0 | AX11: 0 | AY11: 0 | AZ11: 0
A12: Contract 2 | B12: PWEST_1_UNIT | E12: 0.24 | F12: 2.1 | G12: 0 | H12: LA Basin | I12: 0 | K12: FC | N12: 45536 | O12: 45565 | P12: Wind | Q12: South | V12: 1 | W12: 24 | X12: 24 | Z12: FALSE | AA12: FALSE | AB12: Default | AC12: 0.21 | AD12: 0.168 | AE12: 0.147 | AF12: 0.105 | AG12: 0.105 | AH12: 0.084 | AI12: 0.063 | AJ12: 0.042 | AK12: 0.042 | AL12: 0.042 | AM12: 0.042 | AN12: 0.063 | AO12: 0.063 | AP12: 0.105 | AQ12: 0.084 | AR12: 0.084 | AS12: 0.105 | AT12: 0.168 | AU12: 0.273 | AV12: 0.294 | AW12: 0.294 | AX12: 0.231 | AY12: 0.231 | AZ12: 0.21
A13: Contract 4 | B13: TIGRCK_7_UNITS | E13: 36.3 | F13: 5 | G13: 0 | H13: CAISO System | I13: 5 | J13: 1 | K13: FC | N13: 45536 | O13: 45565 | P13: Hydro | Q13: North | V13: 1 | W13: 24 | X13: 24 | Z13: FALSE | AA13: FALSE | AB13: Default | AC13: 5 | AD13: 5 | AE13: 5 | AF13: 5 | AG13: 5 | AH13: 5 | AI13: 5 | AJ13: 5 | AK13: 5 | AL13: 5 | AM13: 5 | AN13: 5 | AO13: 5 | AP13: 5 | AQ13: 5 | AR13: 5 | AS13: 5 | AT13: 5 | AU13: 5 | AV13: 5 | AW13: 5 | AX13: 5 | AY13: 5 | AZ13: 5
A14: Contract 7 | B14: VOYAGR_2_VOYWD3 | E14: 4.77 | F14: 42.45 | G14: 0 | H14: CAISO System | I14: 0 | K14: FC | N14: 45536 | O14: 45565 | P14: Wind | Q14: South | V14: 1 | W14: 24 | X14: 24 | Z14: FALSE | AA14: FALSE | AB14: Default | AC14: 4.245 | AD14: 3.396 | AE14: 2.9715 | AF14: 2.1225 | AG14: 2.1225 | AH14: 1.698 | AI14: 1.2735 | AJ14: 0.849 | AK14: 0.849 | AL14: 0.849 | AM14: 0.849 | AN14: 1.2735 | AO14: 1.2735 | AP14: 2.1225 | AQ14: 1.698 | AR14: 1.698 | AS14: 2.1225 | AT14: 3.396 | AU14: 5.5185 | AV14: 5.943 | AW14: 5.943 | AX14: 4.6695 | AY14: 4.6695 | AZ14: 4.245
A15: Contract 11 | B15: SUTTER_2_CISO | F15: 25 | I15: 25 | N15: 45536 | O15: 45565 | Z15: FALSE | AA15: FALSE | AB15: Default | AC15: 25 | AD15: 25 | AE15: 25 | AF15: 25 | AG15: 25 | AH15: 25 | AI15: 25 | AJ15: 25 | AK15: 25 | AL15: 25 | AM15: 25 | AN15: 25 | AO15: 25 | AP15: 25 | AQ15: 25 | AR15: 25 | AS15: 25 | AT15: 25 | AU15: 25 | AV15: 25 | AW15: 25 | AX15: 25 | AY15: 25 | AZ15: 25
A16: Contract 12 | B16: SCE1_MALIN500_I_F_121212 | F16: 10 | N16: 45536 | O16: 45565 | Z16: FALSE | AA16: TRUE | AB16: Custom | AC16: 10 | AD16: 10 | AE16: 10 | AF16: 10 | AG16: 10 | AH16: 10 | AI16: 10 | AJ16: 10 | AK16: 10 | AL16: 10 | AM16: 10 | AN16: 10 | AO16: 10 | AP16: 10 | AQ16: 10 | AR16: 10 | AS16: 10 | AT16: 10 | AU16: 10 | AV16: 10 | AW16: 10 | AX16: 10 | AY16: 10 | AZ16: 10
A17: Contract 13 | B17: SCE1_MALIN500_I_F_131313 | F17: 10 | N17: 45536 | O17: 45565 | Z17: FALSE | AA17: TRUE | AB17: Custom | AC17: 0 | AD17: 0 | AE17: 0 | AF17: 0 | AG17: 0 | AH17: 0 | AI17: 0 | AJ17: 0 | AK17: 0 | AL17: 0 | AM17: 0 | AN17: 0 | AO17: 0 | AP17: 0 | AQ17: 0 | AR17: 0 | AS17: 0 | AT17: 10 | AU17: 10 | AV17: 10 | AW17: 10 | AX17: 0 | AY17: 0 | AZ17: 0
A18: DR Allocation | AB18: Allocation | AC18: 0 | AD18: 0 | AE18: 0 | AF18: 0 | AG18: 0 | AH18: 0 | AI18: 0 | AJ18: 0 | AK18: 0 | AL18: 0 | AM18: 0 | AN18: 0 | AO18: 0 | AP18: 0 | AQ18: 0 | AR18: 0 | AS18: 0 | AT18: 5 | AU18: 5 | AV18: 5 | AW18: 5 | AX18: 0 | AY18: 0 | AZ18: 0
A19: Other CAM Allocation | AB19: Allocation | AC19: 42.1 | AD19: 42.1 | AE19: 42.1 | AF19: 42.1 | AG19: 42.1 | AH19: 42.1 | AI19: 48.5 | AJ19: 48.5 | AK19: 48.5 | AL19: 48.5 | AM19: 48.5 | AN19: 48.5 | AO19: 48.5 | AP19: 48.5 | AQ19: 48.5 | AR19: 48.5 | AS19: 48.5 | AT19: 48.5 | AU19: 48.5 | AV19: 48.5 | AW19: 48.5 | AX19: 48.5 | AY19: 48.5 | AZ19: 48.5

Sheet Hourly Availability (hidden)
A1: Label | B1: 1 | C1: 2 | D1: 3 | E1: 4 | F1: 5 | G1: 6 | H1: 7 | I1: 8 | J1: 9 | K1: 10 | L1: 11 | M1: 12 | N1: 13 | O1: 14 | P1: 15 | Q1: 16 | R1: 17 | S1: 18 | T1: 19 | U1: 20 | V1: 21 | W1: 22 | X1: 23 | Y1: 24
A2: Requirements and Allocations | B2: 43.9 | C2: 44.9 | D2: 46.9 | E2: 48.9 | F2: 50.9 | G2: 51.9 | H2: 47.5 | I2: 50.5 | J2: 52.5 | K2: 53.5 | L2: 65.5 | M2: 76.5 | N2: 88.5 | O2: 96.5 | P2: 106.5 | Q2: 108.5 | R2: 103.5 | S2: 87.5 | T2: 74.5 | U2: 61.5 | V2: 49.5 | W2: 48.5 | X2: 42.5 | Y2: 40.5
A3: Battery Storage | B3: 0 | C3: 1.342398342 | D3: 3.844599283 | E3: 6.849002911 | F3: 8.849003224 | G3: 0.3511997286 | H3: 0 | I3: 0 | J3: 0 | K3: 0 | L3: 0 | M3: 0 | N3: 0 | O3: 1.79899736 | P3: 13.62120031 | Q3: 18.39120365 | R3: 19.56900335 | S3: 7.49239935 | T3: 6.57139854 | U3: 0 | V3: 0 | W3: 0 | X3: 0 | Y3: 0
A4: Other | B4: 39.54 | C4: 39.54 | D4: 39.54 | E4: 39.54 | F4: 39.54 | G4: 39.54 | H4: 39.54 | I4: 39.54 | J4: 39.54 | K4: 39.54 | L4: 39.54 | M4: 39.54 | N4: 39.54 | O4: 39.54 | P4: 39.54 | Q4: 39.54 | R4: 39.54 | S4: 39.54 | T4: 39.54 | U4: 39.54 | V4: 39.54 | W4: 39.54 | X4: 39.54 | Y4: 39.54
A5: Solar Fixed | B5: 0 | C5: 0 | D5: 0 | E5: 0 | F5: 0 | G5: 0 | H5: 0.33 | I5: 6.6 | J5: 17.16 | K5: 23.1 | L5: 26.4 | M5: 27.72 | N5: 28.38 | O5: 28.05 | P5: 26.73 | Q5: 23.76 | R5: 18.48 | S5: 8.25 | T5: 0.66 | U5: 0 | V5: 0 | W5: 0 | X5: 0 | Y5: 0
A6: Solar Thermal | B6: 0 | C6: 0 | D6: 0 | E6: 0 | F6: 0 | G6: 0 | H6: 0 | I6: 0 | J6: 0 | K6: 0 | L6: 0 | M6: 0 | N6: 0 | O6: 0 | P6: 0 | Q6: 0 | R6: 0 | S6: 0 | T6: 0 | U6: 0 | V6: 0 | W6: 0 | X6: 0 | Y6: 0
A7: Solar Tracking | B7: 0 | C7: 0 | D7: 0 | E7: 0 | F7: 0 | G7: 0 | H7: 0 | I7: 2.8 | J7: 10.4 | K7: 13.8 | L7: 14.6 | M7: 14.8 | N7: 14.6 | O7: 14.6 | P7: 14.6 | Q7: 14.8 | R7: 13.4 | S7: 8.2 | T7: 1.2 | U7: 0 | V7: 0 | W7: 0 | X7: 0 | Y7: 0
A8: Unspecified Imports | B8: 10 | C8: 10 | D8: 10 | E8: 10 | F8: 10 | G8: 10 | H8: 10 | I8: 10 | J8: 10 | K8: 10 | L8: 10 | M8: 10 | N8: 10 | O8: 10 | P8: 10 | Q8: 10 | R8: 10 | S8: 20 | T8: 20 | U8: 20 | V8: 20 | W8: 10 | X8: 10 | Y8: 10
A9: Wind | B9: 5.022 | C9: 4.0176 | D9: 3.5154 | E9: 2.511 | F9: 2.511 | G9: 2.0088 | H9: 1.5066 | I9: 1.0044 | J9: 1.0044 | K9: 1.0044 | L9: 1.0044 | M9: 1.5066 | N9: 1.5066 | O9: 2.511 | P9: 2.0088 | Q9: 2.0088 | R9: 2.511 | S9: 4.0176 | T9: 6.5286 | U9: 7.0308 | V9: 7.0308 | W9: 5.5242 | X9: 5.5242 | Y9: 5.022

Sheet Local Availability (hidden)
A1: Label | B1: LA Basin | C1: Big Creek-Ventura | D1: San Diego-IV | E1: Bay Area | F1: Fresno | G1: Sierra | H1: Stockton | I1: Kern | J1: Humboldt | K1: NBNC
A2: Local Requirement | B2: 6 | C2: 4 | D2: 0 | E2: 0 | F2: 0 | G2: 0 | H2: 0 | I2: 0 | J2: 0 | K2: 0
A3: Battery Storage | B3: 10 | C3: 0 | D3: 0 | E3: 0 | F3: 0 | G3: 0 | H3: 0 | I3: 0 | J3: 0 | K3: 0
A4: Other | B4: 0 | C4: 0 | D4: 0 | E4: 0 | F4: 0 | G4: 0 | H4: 0 | I4: 0 | J4: 0 | K4: 0
A5: Solar Fixed | B5: 0 | C5: 0 | D5: 0 | E5: 0 | F5: 0 | G5: 0 | H5: 0 | I5: 0 | J5: 0 | K5: 0
A6: Solar Thermal | B6: 0 | C6: 0 | D6: 0 | E6: 0 | F6: 0 | G6: 0 | H6: 0 | I6: 0 | J6: 0 | K6: 0
A7: Solar Tracking | B7: 0 | C7: 0 | D7: 0 | E7: 0 | F7: 0 | G7: 0 | H7: 0 | I7: 0 | J7: 0 | K7: 0
A8: Unspecified Imports | B8: 0 | C8: 0 | D8: 0 | E8: 0 | F8: 0 | G8: 0 | H8: 0 | I8: 0 | J8: 0 | K8: 0
A9: Wind | B9: 5.67 | C9: 0 | D9: 0 | E9: 0 | F9: 0 | G9: 0 | H9: 0 | I9: 0 | J9: 0 | K9: 0

Sheet Flex Availability (hidden)
A1: Label | B1: Flexible Category 1 | C1: Flexible Category 2 | D1: Flexible Category 3
A2: Flexible Requirement | B2: 2 | C2: 3 | D2: 0
A3: Battery Storage | B3: 0 | C3: 15.25 | D3: 0
A4: Other | B4: 5 | C4: 0 | D4: 0
A5: Solar Fixed | B5: 0 | C5: 3 | D5: 0
A6: Solar Thermal | B6: 0 | C6: 0 | D6: 0
A7: Solar Tracking | B7: 0 | C7: 0 | D7: 0
A8: Unspecified Imports | B8: 0 | C8: 0 | D8: 0
A9: Wind | B9: 0 | C9: 0 | D9: 0

Sheet Requirements and Allocations
A1: LSE | B1: Year | C1: Month | D1: Name | E1: Option | F1: Value | G1: Units
A2: LSE_1 | B2: 2024 | C2: 1 | D2: Flexible Requirement | E2: Category 1 | F2: 2 | G2: MW
A3: LSE_1 | B3: 2024 | C3: 1 | D3: Flexible Requirement | E3: Category 2 | F3: 3 | G3: MW
A4: LSE_1 | B4: 2024 | C4: 2 | D4: Flexible Requirement | E4: Category 1 | F4: 2 | G4: MW
A5: LSE_1 | B5: 2024 | C5: 2 | D5: Flexible Requirement | E5: Category 2 | F5: 3 | G5: MW
A6: LSE_1 | B6: 2024 | C6: 3 | D6: Flexible Requirement | E6: Category 1 | F6: 2 | G6: MW
A7: LSE_1 | B7: 2024 | C7: 3 | D7: Flexible Requirement | E7: Category 2 | F7: 3 | G7: MW
A8: LSE_1 | B8: 2024 | C8: 4 | D8: Flexible Requirement | E8: Category 1 | F8: 2 | G8: MW
A9: LSE_1 | B9: 2024 | C9: 4 | D9: Flexible Requirement | E9: Category 2 | F9: 3 | G9: MW
A10: LSE_1 | B10: 2024 | C10: 5 | D10: Flexible Requirement | E10: Category 1 | F10: 2 | G10: MW
A11: LSE_1 | B11: 2024 | C11: 5 | D11: Flexible Requirement | E11: Category 2 | F11: 3 | G11: MW
A12: LSE_1 | B12: 2024 | C12: 6 | D12: Flexible Requirement | E12: Category 1 | F12: 2 | G12: MW
A13: LSE_1 | B13: 2024 | C13: 6 | D13: Flexible Requirement | E13: Category 2 | F13: 3 | G13: MW
A14: LSE_1 | B14: 2024 | C14: 7 | D14: Flexible Requirement | E14: Category 1 | F14: 2 | G14: MW
A15: LSE_1 | B15: 2024 | C15: 7 | D15: Flexible Requirement | E15: Category 2 | F15: 3 | G15: MW
A16: LSE_1 | B16: 2024 | C16: 8 | D16: Flexible Requirement | E16: Category 1 | F16: 2 | G16: MW
A17: LSE_1 | B17: 2024 | C17: 8 | D17: Flexible Requirement | E17: Category 2 | F17: 3 | G17: MW
A18: LSE_1 | B18: 2024 | C18: 9 | D18: Flexible Requirement | E18: Category 1 | F18: 2 | G18: MW
A19: LSE_1 | B19: 2024 | C19: 9 | D19: Flexible Requirement | E19: Category 2 | F19: 3 | G19: MW
A20: LSE_1 | B20: 2024 | C20: 10 | D20: Flexible Requirement | E20: Category 1 | F20: 2 | G20: MW
A21: LSE_1 | B21: 2024 | C21: 10 | D21: Flexible Requirement | E21: Category 2 | F21: 3 | G21: MW
A22: LSE_1 | B22: 2024 | C22: 11 | D22: Flexible Requirement | E22: Category 1 | F22: 2 | G22: MW
A23: LSE_1 | B23: 2024 | C23: 11 | D23: Flexible Requirement | E23: Category 2 | F23: 3 | G23: MW
A24: LSE_1 | B24: 2024 | C24: 12 | D24: Flexible Requirement | E24: Category 1 | F24: 2 | G24: MW
A25: LSE_1 | B25: 2024 | C25: 12 | D25: Flexible Requirement | E25: Category 2 | F25: 3 | G25: MW
A26: LSE_1 | B26: 2024 | C26: 1 | D26: Local Requirement | E26: LA Basin | F26: 6 | G26: MW
A27: LSE_1 | B27: 2024 | C27: 2 | D27: Local Requirement | E27: LA Basin | F27: 6 | G27: MW
A28: LSE_1 | B28: 2024 | C28: 3 | D28: Local Requirement | E28: LA Basin | F28: 6 | G28: MW
A29: LSE_1 | B29: 2024 | C29: 4 | D29: Local Requirement | E29: LA Basin | F29: 6 | G29: MW
A30: LSE_1 | B30: 2024 | C30: 5 | D30: Local Requirement | E30: LA Basin | F30: 6 | G30: MW
A31: LSE_1 | B31: 2024 | C31: 6 | D31: Local Requirement | E31: LA Basin | F31: 6 | G31: MW
A32: LSE_1 | B32: 2024 | C32: 7 | D32: Local Requirement | E32: LA Basin | F32: 6 | G32: MW
A33: LSE_1 | B33: 2024 | C33: 8 | D33: Local Requirement | E33: LA Basin | F33: 6 | G33: MW
A34: LSE_1 | B34: 2024 | C34: 9 | D34: Local Requirement | E34: LA Basin | F34: 6 | G34: MW
A35: LSE_1 | B35: 2024 | C35: 10 | D35: Local Requirement | E35: LA Basin | F35: 6 | G35: MW
A36: LSE_1 | B36: 2024 | C36: 11 | D36: Local Requirement | E36: LA Basin | F36: 6 | G36: MW
A37: LSE_1 | B37: 2024 | C37: 12 | D37: Local Requirement | E37: LA Basin | F37: 6 | G37: MW
A38: LSE_1 | B38: 2024 | C38: 1 | D38: Local Requirement | E38: Big Creek-Ventura | F38: 4 | G38: MW
A39: LSE_1 | B39: 2024 | C39: 2 | D39: Local Requirement | E39: Big Creek-Ventura | F39: 4 | G39: MW
A40: LSE_1 | B40: 2024 | C40: 3 | D40: Local Requirement | E40: Big Creek-Ventura | F40: 4 | G40: MW
A41: LSE_1 | B41: 2024 | C41: 4 | D41: Local Requirement | E41: Big Creek-Ventura | F41: 4 | G41: MW
A42: LSE_1 | B42: 2024 | C42: 5 | D42: Local Requirement | E42: Big Creek-Ventura | F42: 4 | G42: MW
A43: LSE_1 | B43: 2024 | C43: 6 | D43: Local Requirement | E43: Big Creek-Ventura | F43: 4 | G43: MW
A44: LSE_1 | B44: 2024 | C44: 7 | D44: Local Requirement | E44: Big Creek-Ventura | F44: 4 | G44: MW
A45: LSE_1 | B45: 2024 | C45: 8 | D45: Local Requirement | E45: Big Creek-Ventura | F45: 4 | G45: MW
A46: LSE_1 | B46: 2024 | C46: 9 | D46: Local Requirement | E46: Big Creek-Ventura | F46: 4 | G46: MW
A47: LSE_1 | B47: 2024 | C47: 10 | D47: Local Requirement | E47: Big Creek-Ventura | F47: 4 | G47: MW
A48: LSE_1 | B48: 2024 | C48: 11 | D48: Local Requirement | E48: Big Creek-Ventura | F48: 4 | G48: MW
A49: LSE_1 | B49: 2024 | C49: 12 | D49: Local Requirement | E49: Big Creek-Ventura | F49: 4 | G49: MW
A50: LSE_1 | B50: 2024 | C50: 9 | D50: System Requirement | E50: HE 1 | F50: 86 | G50: MW
A51: LSE_1 | B51: 2024 | C51: 9 | D51: System Requirement | E51: HE 10 | F51: 102 | G51: MW
A52: LSE_1 | B52: 2024 | C52: 9 | D52: System Requirement | E52: HE 11 | F52: 114 | G52: MW
A53: LSE_1 | B53: 2024 | C53: 9 | D53: System Requirement | E53: HE 12 | F53: 125 | G53: MW
A54: LSE_1 | B54: 2024 | C54: 9 | D54: System Requirement | E54: HE 13 | F54: 137 | G54: MW
A55: LSE_1 | B55: 2024 | C55: 9 | D55: System Requirement | E55: HE 14 | F55: 145 | G55: MW
A56: LSE_1 | B56: 2024 | C56: 9 | D56: System Requirement | E56: HE 15 | F56: 155 | G56: MW
A57: LSE_1 | B57: 2024 | C57: 9 | D57: System Requirement | E57: HE 16 | F57: 157 | G57: MW
A58: LSE_1 | B58: 2024 | C58: 9 | D58: System Requirement | E58: HE 17 | F58: 152 | G58: MW
A59: LSE_1 | B59: 2024 | C59: 9 | D59: System Requirement | E59: HE 18 | F59: 141 | G59: MW
A60: LSE_1 | B60: 2024 | C60: 9 | D60: System Requirement | E60: HE 19 | F60: 128 | G60: MW
A61: LSE_1 | B61: 2024 | C61: 9 | D61: System Requirement | E61: HE 2 | F61: 87 | G61: MW
A62: LSE_1 | B62: 2024 | C62: 9 | D62: System Requirement | E62: HE 20 | F62: 115 | G62: MW
A63: LSE_1 | B63: 2024 | C63: 9 | D63: System Requirement | E63: HE 21 | F63: 103 | G63: MW
A64: LSE_1 | B64: 2024 | C64: 9 | D64: System Requirement | E64: HE 22 | F64: 97 | G64: MW
A65: LSE_1 | B65: 2024 | C65: 9 | D65: System Requirement | E65: HE 23 | F65: 91 | G65: MW
A66: LSE_1 | B66: 2024 | C66: 9 | D66: System Requirement | E66: HE 24 | F66: 89 | G66: MW
A67: LSE_1 | B67: 2024 | C67: 9 | D67: System Requirement | E67: HE 3 | F67: 89 | G67: MW
A68: LSE_1 | B68: 2024 | C68: 9 | D68: System Requirement | E68: HE 4 | F68: 91 | G68: MW
A69: LSE_1 | B69: 2024 | C69: 9 | D69: System Requirement | E69: HE 5 | F69: 93 | G69: MW
A70: LSE_1 | B70: 2024 | C70: 9 | D70: System Requirement | E70: HE 6 | F70: 94 | G70: MW
A71: LSE_1 | B71: 2024 | C71: 9 | D71: System Requirement | E71: HE 7 | F71: 96 | G71: MW
A72: LSE_1 | B72: 2024 | C72: 9 | D72: System Requirement | E72: HE 8 | F72: 99 | G72: MW
A73: LSE_1 | B73: 2024 | C73: 9 | D73: System Requirement | E73: HE 9 | F73: 101 | G73: MW
A74: LSE_1 | B74: 2024 | C74: 1 | D74: DR Allocation | E74: HE 1 | F74: 0 | G74: MW
A75: LSE_1 | B75: 2024 | C75: 1 | D75: DR Allocation | E75: HE 2 | F75: 0 | G75: MW
A76: LSE_1 | B76: 2024 | C76: 1 | D76: DR Allocation | E76: HE 3 | F76: 0 | G76: MW
A77: LSE_1 | B77: 2024 | C77: 1 | D77: DR Allocation | E77: HE 4 | F77: 0 | G77: MW
A78: LSE_1 | B78: 2024 | C78: 1 | D78: DR Allocation | E78: HE 5 | F78: 0 | G78: MW
A79: LSE_1 | B79: 2024 | C79: 1 | D79: DR Allocation | E79: HE 6 | F79: 0 | G79: MW
A80: LSE_1 | B80: 2024 | C80: 1 | D80: DR Allocation | E80: HE 7 | F80: 0 | G80: MW
A81: LSE_1 | B81: 2024 | C81: 1 | D81: DR Allocation | E81: HE 8 | F81: 0 | G81: MW
A82: LSE_1 | B82: 2024 | C82: 1 | D82: DR Allocation | E82: HE 9 | F82: 0 | G82: MW
A83: LSE_1 | B83: 2024 | C83: 1 | D83: DR Allocation | E83: HE 10 | F83: 0 | G83: MW
A84: LSE_1 | B84: 2024 | C84: 1 | D84: DR Allocation | E84: HE 11 | F84: 0 | G84: MW
A85: LSE_1 | B85: 2024 | C85: 1 | D85: DR Allocation | E85: HE 12 | F85: 0 | G85: MW
A86: LSE_1 | B86: 2024 | C86: 1 | D86: DR Allocation | E86: HE 13 | F86: 0 | G86: MW
A87: LSE_1 | B87: 2024 | C87: 1 | D87: DR Allocation | E87: HE 14 | F87: 0 | G87: MW
A88: LSE_1 | B88: 2024 | C88: 1 | D88: DR Allocation | E88: HE 15 | F88: 0 | G88: MW
A89: LSE_1 | B89: 2024 | C89: 1 | D89: DR Allocation | E89: HE 16 | F89: 0 | G89: MW
A90: LSE_1 | B90: 2024 | C90: 1 | D90: DR Allocation | E90: HE 17 | F90: 0 | G90: MW
A91: LSE_1 | B91: 2024 | C91: 1 | D91: DR Allocation | E91: HE 18 | F91: 5 | G91: MW
A92: LSE_1 | B92: 2024 | C92: 1 | D92: DR Allocation | E92: HE 19 | F92: 5 | G92: MW
A93: LSE_1 | B93: 2024 | C93: 1 | D93: DR Allocation | E93: HE 20 | F93: 5 | G93: MW
A94: LSE_1 | B94: 2024 | C94: 1 | D94: DR Allocation | E94: HE 21 | F94: 5 | G94: MW
A95: LSE_1 | B95: 2024 | C95: 1 | D95: DR Allocation | E95: HE 22 | F95: 0 | G95: MW
A96: LSE_1 | B96: 2024 | C96: 1 | D96: DR Allocation | E96: HE 23 | F96: 0 | G96: MW
A97: LSE_1 | B97: 2024 | C97: 1 | D97: DR Allocation | E97: HE 24 | F97: 0 | G97: MW
A98: LSE_1 | B98: 2024 | C98: 2 | D98: DR Allocation | E98: HE 1 | F98: 0 | G98: MW
A99: LSE_1 | B99: 2024 | C99: 2 | D99: DR Allocation | E99: HE 2 | F99: 0 | G99: MW
A100: LSE_1 | B100: 2024 | C100: 2 | D100: DR Allocation | E100: HE 3 | F100: 0 | G100: MW
A101: LSE_1 | B101: 2024 | C101: 2 | D101: DR Allocation | E101: HE 4 | F101: 0 | G101: MW
A102: LSE_1 | B102: 2024 | C102: 2 | D102: DR Allocation | E102: HE 5 | F102: 0 | G102: MW
A103: LSE_1 | B103: 2024 | C103: 2 | D103: DR Allocation | E103: HE 6 | F103: 0 | G103: MW
A104: LSE_1 | B104: 2024 | C104: 2 | D104: DR Allocation | E104: HE 7 | F104: 0 | G104: MW
A105: LSE_1 | B105: 2024 | C105: 2 | D105: DR Allocation | E105: HE 8 | F105: 0 | G105: MW
A106: LSE_1 | B106: 2024 | C106: 2 | D106: DR Allocation | E106: HE 9 | F106: 0 | G106: MW
A107: LSE_1 | B107: 2024 | C107: 2 | D107: DR Allocation | E107: HE 10 | F107: 0 | G107: MW
A108: LSE_1 | B108: 2024 | C108: 2 | D108: DR Allocation | E108: HE 11 | F108: 0 | G108: MW
A109: LSE_1 | B109: 2024 | C109: 2 | D109: DR Allocation | E109: HE 12 | F109: 0 | G109: MW
A110: LSE_1 | B110: 2024 | C110: 2 | D110: DR Allocation | E110: HE 13 | F110: 0 | G110: MW
A111: LSE_1 | B111: 2024 | C111: 2 | D111: DR Allocation | E111: HE 14 | F111: 0 | G111: MW
A112: LSE_1 | B112: 2024 | C112: 2 | D112: DR Allocation | E112: HE 15 | F112: 0 | G112: MW
A113: LSE_1 | B113: 2024 | C113: 2 | D113: DR Allocation | E113: HE 16 | F113: 0 | G113: MW
A114: LSE_1 | B114: 2024 | C114: 2 | D114: DR Allocation | E114: HE 17 | F114: 0 | G114: MW
A115: LSE_1 | B115: 2024 | C115: 2 | D115: DR Allocation | E115: HE 18 | F115: 5 | G115: MW
A116: LSE_1 | B116: 2024 | C116: 2 | D116: DR Allocation | E116: HE 19 | F116: 5 | G116: MW
A117: LSE_1 | B117: 2024 | C117: 2 | D117: DR Allocation | E117: HE 20 | F117: 5 | G117: MW
A118: LSE_1 | B118: 2024 | C118: 2 | D118: DR Allocation | E118: HE 21 | F118: 5 | G118: MW
A119: LSE_1 | B119: 2024 | C119: 2 | D119: DR Allocation | E119: HE 22 | F119: 0 | G119: MW
A120: LSE_1 | B120: 2024 | C120: 2 | D120: DR Allocation | E120: HE 23 | F120: 0 | G120: MW
A121: LSE_1 | B121: 2024 | C121: 2 | D121: DR Allocation | E121: HE 24 | F121: 0 | G121: MW
A122: LSE_1 | B122: 2024 | C122: 3 | D122: DR Allocation | E122: HE 1 | F122: 0 | G122: MW
A123: LSE_1 | B123: 2024 | C123: 3 | D123: DR Allocation | E123: HE 2 | F123: 0 | G123: MW
A124: LSE_1 | B124: 2024 | C124: 3 | D124: DR Allocation | E124: HE 3 | F124: 0 | G124: MW
A125: LSE_1 | B125: 2024 | C125: 3 | D125: DR Allocation | E125: HE 4 | F125: 0 | G125: MW
A126: LSE_1 | B126: 2024 | C126: 3 | D126: DR Allocation | E126: HE 5 | F126: 0 | G126: MW
A127: LSE_1 | B127: 2024 | C127: 3 | D127: DR Allocation | E127: HE 6 | F127: 0 | G127: MW
A128: LSE_1 | B128: 2024 | C128: 3 | D128: DR Allocation | E128: HE 7 | F128: 0 | G128: MW
A129: LSE_1 | B129: 2024 | C129: 3 | D129: DR Allocation | E129: HE 8 | F129: 0 | G129: MW
A130: LSE_1 | B130: 2024 | C130: 3 | D130: DR Allocation | E130: HE 9 | F130: 0 | G130: MW
A131: LSE_1 | B131: 2024 | C131: 3 | D131: DR Allocation | E131: HE 10 | F131: 0 | G131: MW
A132: LSE_1 | B132: 2024 | C132: 3 | D132: DR Allocation | E132: HE 11 | F132: 0 | G132: MW
A133: LSE_1 | B133: 2024 | C133: 3 | D133: DR Allocation | E133: HE 12 | F133: 0 | G133: MW
A134: LSE_1 | B134: 2024 | C134: 3 | D134: DR Allocation | E134: HE 13 | F134: 0 | G134: MW
A135: LSE_1 | B135: 2024 | C135: 3 | D135: DR Allocation | E135: HE 14 | F135: 0 | G135: MW
A136: LSE_1 | B136: 2024 | C136: 3 | D136: DR Allocation | E136: HE 15 | F136: 0 | G136: MW
A137: LSE_1 | B137: 2024 | C137: 3 | D137: DR Allocation | E137: HE 16 | F137: 0 | G137: MW
A138: LSE_1 | B138: 2024 | C138: 3 | D138: DR Allocation | E138: HE 17 | F138: 0 | G138: MW
A139: LSE_1 | B139: 2024 | C139: 3 | D139: DR Allocation | E139: HE 18 | F139: 5 | G139: MW
A140: LSE_1 | B140: 2024 | C140: 3 | D140: DR Allocation | E140: HE 19 | F140: 5 | G140: MW
A141: LSE_1 | B141: 2024 | C141: 3 | D141: DR Allocation | E141: HE 20 | F141: 5 | G141: MW
A142: LSE_1 | B142: 2024 | C142: 3 | D142: DR Allocation | E142: HE 21 | F142: 5 | G142: MW
A143: LSE_1 | B143: 2024 | C143: 3 | D143: DR Allocation | E143: HE 22 | F143: 0 | G143: MW
A144: LSE_1 | B144: 2024 | C144: 3 | D144: DR Allocation | E144: HE 23 | F144: 0 | G144: MW
A145: LSE_1 | B145: 2024 | C145: 3 | D145: DR Allocation | E145: HE 24 | F145: 0 | G145: MW
A146: LSE_1 | B146: 2024 | C146: 4 | D146: DR Allocation | E146: HE 1 | F146: 0 | G146: MW
A147: LSE_1 | B147: 2024 | C147: 4 | D147: DR Allocation | E147: HE 2 | F147: 0 | G147: MW
A148: LSE_1 | B148: 2024 | C148: 4 | D148: DR Allocation | E148: HE 3 | F148: 0 | G148: MW
A149: LSE_1 | B149: 2024 | C149: 4 | D149: DR Allocation | E149: HE 4 | F149: 0 | G149: MW
A150: LSE_1 | B150: 2024 | C150: 4 | D150: DR Allocation | E150: HE 5 | F150: 0 | G150: MW
A151: LSE_1 | B151: 2024 | C151: 4 | D151: DR Allocation | E151: HE 6 | F151: 0 | G151: MW
A152: LSE_1 | B152: 2024 | C152: 4 | D152: DR Allocation | E152: HE 7 | F152: 0 | G152: MW
A153: LSE_1 | B153: 2024 | C153: 4 | D153: DR Allocation | E153: HE 8 | F153: 0 | G153: MW
A154: LSE_1 | B154: 2024 | C154: 4 | D154: DR Allocation | E154: HE 9 | F154: 0 | G154: MW
A155: LSE_1 | B155: 2024 | C155: 4 | D155: DR Allocation | E155: HE 10 | F155: 0 | G155: MW
A156: LSE_1 | B156: 2024 | C156: 4 | D156: DR Allocation | E156: HE 11 | F156: 0 | G156: MW
A157: LSE_1 | B157: 2024 | C157: 4 | D157: DR Allocation | E157: HE 12 | F157: 0 | G157: MW
A158: LSE_1 | B158: 2024 | C158: 4 | D158: DR Allocation | E158: HE 13 | F158: 0 | G158: MW
A159: LSE_1 | B159: 2024 | C159: 4 | D159: DR Allocation | E159: HE 14 | F159: 0 | G159: MW
A160: LSE_1 | B160: 2024 | C160: 4 | D160: DR Allocation | E160: HE 15 | F160: 0 | G160: MW
A161: LSE_1 | B161: 2024 | C161: 4 | D161: DR Allocation | E161: HE 16 | F161: 0 | G161: MW
A162: LSE_1 | B162: 2024 | C162: 4 | D162: DR Allocation | E162: HE 17 | F162: 0 | G162: MW
A163: LSE_1 | B163: 2024 | C163: 4 | D163: DR Allocation | E163: HE 18 | F163: 5 | G163: MW
A164: LSE_1 | B164: 2024 | C164: 4 | D164: DR Allocation | E164: HE 19 | F164: 5 | G164: MW
A165: LSE_1 | B165: 2024 | C165: 4 | D165: DR Allocation | E165: HE 20 | F165: 5 | G165: MW
A166: LSE_1 | B166: 2024 | C166: 4 | D166: DR Allocation | E166: HE 21 | F166: 5 | G166: MW
A167: LSE_1 | B167: 2024 | C167: 4 | D167: DR Allocation | E167: HE 22 | F167: 0 | G167: MW
A168: LSE_1 | B168: 2024 | C168: 4 | D168: DR Allocation | E168: HE 23 | F168: 0 | G168: MW
A169: LSE_1 | B169: 2024 | C169: 4 | D169: DR Allocation | E169: HE 24 | F169: 0 | G169: MW
A170: LSE_1 | B170: 2024 | C170: 5 | D170: DR Allocation | E170: HE 1 | F170: 0 | G170: MW
A171: LSE_1 | B171: 2024 | C171: 5 | D171: DR Allocation | E171: HE 2 | F171: 0 | G171: MW
A172: LSE_1 | B172: 2024 | C172: 5 | D172: DR Allocation | E172: HE 3 | F172: 0 | G172: MW
A173: LSE_1 | B173: 2024 | C173: 5 | D173: DR Allocation | E173: HE 4 | F173: 0 | G173: MW
A174: LSE_1 | B174: 2024 | C174: 5 | D174: DR Allocation | E174: HE 5 | F174: 0 | G174: MW
A175: LSE_1 | B175: 2024 | C175: 5 | D175: DR Allocation | E175: HE 6 | F175: 0 | G175: MW
A176: LSE_1 | B176: 2024 | C176: 5 | D176: DR Allocation | E176: HE 7 | F176: 0 | G176: MW
A177: LSE_1 | B177: 2024 | C177: 5 | D177: DR Allocation | E177: HE 8 | F177: 0 | G177: MW
A178: LSE_1 | B178: 2024 | C178: 5 | D178: DR Allocation | E178: HE 9 | F178: 0 | G178: MW
A179: LSE_1 | B179: 2024 | C179: 5 | D179: DR Allocation | E179: HE 10 | F179: 0 | G179: MW
A180: LSE_1 | B180: 2024 | C180: 5 | D180: DR Allocation | E180: HE 11 | F180: 0 | G180: MW
A181: LSE_1 | B181: 2024 | C181: 5 | D181: DR Allocation | E181: HE 12 | F181: 0 | G181: MW
A182: LSE_1 | B182: 2024 | C182: 5 | D182: DR Allocation | E182: HE 13 | F182: 0 | G182: MW
A183: LSE_1 | B183: 2024 | C183: 5 | D183: DR Allocation | E183: HE 14 | F183: 0 | G183: MW
A184: LSE_1 | B184: 2024 | C184: 5 | D184: DR Allocation | E184: HE 15 | F184: 0 | G184: MW
A185: LSE_1 | B185: 2024 | C185: 5 | D185: DR Allocation | E185: HE 16 | F185: 0 | G185: MW
A186: LSE_1 | B186: 2024 | C186: 5 | D186: DR Allocation | E186: HE 17 | F186: 0 | G186: MW
A187: LSE_1 | B187: 2024 | C187: 5 | D187: DR Allocation | E187: HE 18 | F187: 5 | G187: MW
A188: LSE_1 | B188: 2024 | C188: 5 | D188: DR Allocation | E188: HE 19 | F188: 5 | G188: MW
A189: LSE_1 | B189: 2024 | C189: 5 | D189: DR Allocation | E189: HE 20 | F189: 5 | G189: MW
A190: LSE_1 | B190: 2024 | C190: 5 | D190: DR Allocation | E190: HE 21 | F190: 5 | G190: MW
A191: LSE_1 | B191: 2024 | C191: 5 | D191: DR Allocation | E191: HE 22 | F191: 0 | G191: MW
A192: LSE_1 | B192: 2024 | C192: 5 | D192: DR Allocation | E192: HE 23 | F192: 0 | G192: MW
A193: LSE_1 | B193: 2024 | C193: 5 | D193: DR Allocation | E193: HE 24 | F193: 0 | G193: MW
A194: LSE_1 | B194: 2024 | C194: 6 | D194: DR Allocation | E194: HE 1 | F194: 0 | G194: MW
A195: LSE_1 | B195: 2024 | C195: 6 | D195: DR Allocation | E195: HE 2 | F195: 0 | G195: MW
A196: LSE_1 | B196: 2024 | C196: 6 | D196: DR Allocation | E196: HE 3 | F196: 0 | G196: MW
A197: LSE_1 | B197: 2024 | C197: 6 | D197: DR Allocation | E197: HE 4 | F197: 0 | G197: MW
A198: LSE_1 | B198: 2024 | C198: 6 | D198: DR Allocation | E198: HE 5 | F198: 0 | G198: MW
A199: LSE_1 | B199: 2024 | C199: 6 | D199: DR Allocation | E199: HE 6 | F199: 0 | G199: MW
A200: LSE_1 | B200: 2024 | C200: 6 | D200: DR Allocation | E200: HE 7 | F200: 0 | G200: MW
... 485 more rows

Sheet Resource Database
A1: Resource ID | B1: Resource SubID | C1: Resource Name | D1: Colocated Resource IDs | E1: Technology | F1: Resource Type | G1: Fuel | H1: Balancing Authority Area | I1: Path 26 Designation | J1: Local Capacity Area | K1: Sub-Local Capacity Area | L1: Interconnection Limit (MW) | M1: Flexible Category | N1: Pmax (MW) | O1: Deliverable % | P1: Deliverable MW | Q1: Deliverability Status | R1: Daily Storage Cycle Physical Capability | S1: Storage Efficiency | T1: Maximum Continuous Energy (MWh) | U1: Storage Maximum Daily MWh | V1: First Available Hour (HE) | W1: Last Available Hour (HE) | X1: Maximum Daily Run Hours
A2: 7STDRD_1_SOLAR1 | C2: Shafter Solar | E2: PHOTO VOLTAIC | F2: Solar_1Axis | G2: SUN | H2: CISO | I2: North | J2: Kern | K2: South Kern PP, Kern Oil | N2: 20 | Q2: FC | V2: 1 | W2: 24 | X2: 24
A3: ACACIA_6_SOLAR | C3: West Antelope Solar | E3: PHOTO VOLTAIC | F3: Solar_Fixed | G3: SUN | H3: CISO | I3: South | J3: Big Creek-Ventura | N3: 20 | Q3: FC | V3: 1 | W3: 24 | X3: 24
A4: ADERA_1_SOLAR1 | C4: Adera Solar | E4: PHOTO VOLTAIC | F4: Solar_1Axis | G4: SUN | H4: CISO | I4: North | J4: Fresno | K4: Herndon, Panoche 115 kV, Wilson 115 kV | N4: 20 | Q4: EO | V4: 1 | W4: 24 | X4: 24
A5: ADLIN_1_UNITS | C5: GEYSERS AIDLIN AGGREGATE | E5: STEAM | F5: Geothermal | G5: GEOTHERMAL | H5: CISO | I5: North | J5: NCNB | K5: Eagle Rock, Fulton | M5: 1 | N5: 22 | Q5: FC | V5: 1 | W5: 24 | X5: 24
A6: ADMEST_6_SOLAR | C6: Adams East | E6: PHOTO VOLTAIC | F6: Solar_Fixed | G6: SUN | H6: CISO | I6: North | J6: Fresno | K6: Herndon | N6: 19 | Q6: EO | V6: 1 | W6: 24 | X6: 24
A7: ADOBEE_1_SOLAR | C7: Adobe Solar | E7: PHOTO VOLTAIC | F7: Solar_1Axis | G7: SUN | H7: CISO | I7: North | J7: CAISO System | N7: 20 | Q7: FC | V7: 1 | W7: 24 | X7: 24
A8: AGRICO_6_PL3N5 | C8: Fresno Peaker | E8: COMBUSTION TURBINE | F8: Peaker | G8: NATURAL GAS | H8: CISO | I8: North | J8: Fresno | K8: Herndon | M8: 1 | N8: 22.69 | Q8: FC | V8: 1 | W8: 24 | X8: 24
A9: AGRICO_7_UNIT | C9: Fresno Cogen | E9: OTHER | F9: CHP | G9: NATURAL GAS | H9: CISO | I9: North | J9: Fresno | K9: Herndon | M9: 1 | N9: 50.6 | Q9: FC | V9: 1 | W9: 24 | X9: 24
A10: AGUCAL_5_SOLAR1 | C10: Agua Caliente Solar | E10: PHOTO VOLTAIC | F10: Solar_Fixed | G10: SUN | H10: CISO | I10: South | J10: CAISO System | N10: 290 | Q10: EO | V10: 1 | W10: 24 | X10: 24
A11: AKINGS_6_AMESR1 | C11: American Kings Solar | E11: PHOTO VOLTAIC | F11: Solar_1Axis | G11: SUN | H11: CISO | I11: North | J11: Fresno | K11: Hanford | N11: 123 | Q11: FC | V11: 1 | W11: 24 | X11: 24
A12: ALAMIT_2_PL1X3 | C12: Alamitos Energy Center Unit 7 | E12: COMBINED CYCLE | F12: CCGT | G12: NATURAL GAS | H12: CISO | I12: South | J12: LA Basin | K12: Western | M12: 1 | N12: 674.7 | Q12: FC | V12: 1 | W12: 24 | X12: 24
A13: ALAMIT_7_ES1 | C13: Alamitos Energy Storage | E13: 4Hr_Li | F13: Battery Storage | G13: LESR | H13: CISO | I13: South | J13: LA Basin | K13: Western | M13: 1 | N13: 100 | Q13: FC | R13: 2.86 | S13: 0.91 | T13: 400 | U13: 1142 | V13: 1 | W13: 24 | X13: 11.42
A14: ALAMIT_7_UNIT 3 | C14: ALAMITOS GEN STA. UNIT 3 | E14: STEAM | F14: Steam Turbine | G14: NATURAL GAS | H14: CISO | I14: South | J14: LA Basin | K14: Western | M14: 1 | N14: 326.76 | Q14: FC | V14: 1 | W14: 24 | X14: 24
A15: ALAMIT_7_UNIT 4 | C15: ALAMITOS GEN STA. UNIT 4 | E15: STEAM | F15: Steam Turbine | G15: NATURAL GAS | H15: CISO | I15: South | J15: LA Basin | K15: Western | M15: 1 | N15: 334.43 | Q15: FC | V15: 1 | W15: 24 | X15: 24
A16: ALAMIT_7_UNIT 5 | C16: ALAMITOS GEN STA. UNIT 5 | E16: STEAM | F16: Steam Turbine | G16: NATURAL GAS | H16: CISO | I16: South | J16: LA Basin | K16: Western | M16: 1 | N16: 480 | Q16: FC | V16: 1 | W16: 24 | X16: 24
A17: ALAMO_6_UNIT | C17: ALAMO POWER PLANT | E17: HYDRO | F17: Hydro | G17: WATER | H17: CISO | I17: South | J17: Big Creek-Ventura | M17: 2 | N17: 17 | Q17: FC | V17: 1 | W17: 24 | X17: 24
A18: ALLGNY_6_HYDRO1 | C18: Salmon Creek Hydroelectric Project | E18: OTHER | F18: Hydro | G18: WATER | H18: CISO | I18: North | J18: Sierra | N18: 0.52 | Q18: FC | V18: 1 | W18: 24 | X18: 24
A19: ALMASL_2_AL6BT6 | C19: Almasol 6 BES | D19: ALMASL_2_GS6SR6 | E19: OTHER | F19: Paired_BattStorage | G19: LESR | H19: CISO | I19: South | J19: CAISO System | L19: 55.57 | M19: 1 | N19: 50 | Q19: FC | R19: 1 | S19: 0.8 | T19: 200 | U19: 200 | V19: 1 | W19: 24 | X19: 4
A20: ALMASL_2_GS1SR1 | C20: Almasol Generating Station 1 | E20: PHOTO VOLTAIC | F20: Solar_1Axis | G20: SUN | H20: CISO | I20: South | J20: CAISO System | N20: 125 | Q20: FC | V20: 1 | W20: 24 | X20: 24
A21: ALMASL_2_GS4SR4 | C21: Almasol Generating Station 4 | E21: PHOTO VOLTAIC | F21: Solar_1Axis | G21: SUN | H21: CISO | I21: South | J21: CAISO System | N21: 100 | Q21: FC | V21: 1 | W21: 24 | X21: 24
A22: ALMASL_2_GS6SR6 | C22: Almasol Generating Station 6 | D22: ALMASL_2_AL6BT6 | E22: PHOTO VOLTAIC | F22: Paired_Solar_1Axis | G22: SUN | H22: CISO | I22: South | J22: CAISO System | L22: 55.57 | N22: 100 | Q22: FC | V22: 1 | W22: 24 | X22: 24
A23: ALMASL_2_GS7SR7 | C23: Almasol Generating Station 7 | E23: PHOTO VOLTAIC | F23: Solar_1Axis | G23: SUN | H23: CISO | I23: South | J23: CAISO System | N23: 132 | Q23: FC | V23: 1 | W23: 24 | X23: 24
A24: ALMEGT_1_UNIT 1 | C24: ALAMEDA GT UNIT 1 | E24: FTUR | F24: Peaker | G24: NATURAL GAS | H24: CISO | I24: North | J24: Bay Area | K24: Oakland | M24: 1 | N24: 25 | Q24: FC | V24: 1 | W24: 24 | X24: 24
A25: ALMEGT_1_UNIT 2 | C25: ALAMEDA GT UNIT 2 | E25: FTUR | F25: Peaker | G25: NATURAL GAS | H25: CISO | I25: North | J25: Bay Area | K25: Oakland | M25: 1 | N25: 25 | Q25: FC | V25: 1 | W25: 24 | X25: 24
A26: ALPSLR_1_NTHSLR | C26: Alpaugh North, LLC | E26: PHOTO VOLTAIC | F26: Solar_Fixed | G26: SUN | H26: CISO | I26: North | J26: CAISO System | N26: 20 | Q26: FC | V26: 1 | W26: 24 | X26: 24
A27: ALPSLR_1_SPSSLR | C27: Alpaugh 50 LLC | E27: PHOTO VOLTAIC | F27: Solar_Fixed | G27: SUN | H27: CISO | I27: North | J27: CAISO System | N27: 50 | Q27: FC | V27: 1 | W27: 24 | X27: 24
A28: ALT6DN_2_WIND7 | C28: Pinyon Pines 1 | E28: WIND | F28: Wind | G28: WIND | H28: CISO | I28: South | J28: CAISO System | N28: 164.31 | Q28: FC | V28: 1 | W28: 24 | X28: 24
A29: ALT6DS_2_WIND9 | C29: Pinyon Pines 2 | E29: WIND | F29: Wind | G29: WIND | H29: CISO | I29: South | J29: CAISO System | N29: 132 | Q29: FC | V29: 1 | W29: 24 | X29: 24
A30: ALTA3A_2_CPCE4 | C30: Alta Wind 4 | E30: WIND | F30: Wind | G30: WIND | H30: CISO | I30: South | J30: CAISO System | N30: 102 | Q30: FC | V30: 1 | W30: 24 | X30: 24
A31: ALTA3A_2_CPCE5 | C31: Alta Wind 5 | E31: WIND | F31: Wind | G31: WIND | H31: CISO | I31: South | J31: CAISO System | N31: 168 | Q31: FC | V31: 1 | W31: 24 | X31: 24
A32: ALTA3A_2_CPCE8 | C32: Alta Wind 8 | E32: WIND | F32: Wind | G32: WIND | H32: CISO | I32: South | J32: CAISO System | N32: 150 | Q32: FC | V32: 1 | W32: 24 | X32: 24
A33: ALTA4A_2_CPCW1 | C33: Alta Wind 1 | E33: WIND | F33: Wind | G33: WIND | H33: CISO | I33: South | J33: CAISO System | N33: 150 | Q33: FC | V33: 1 | W33: 24 | X33: 24
A34: ALTA4B_2_CPCW2 | C34: Alta Wind 2 | E34: WIND | F34: Wind | G34: WIND | H34: CISO | I34: South | J34: CAISO System | N34: 150 | Q34: FC | V34: 1 | W34: 24 | X34: 24
A35: ALTA4B_2_CPCW3 | C35: Alta Wind 3 | E35: WIND | F35: Wind | G35: WIND | H35: CISO | I35: South | J35: CAISO System | N35: 150 | Q35: FC | V35: 1 | W35: 24 | X35: 24
A36: ALTA4B_2_CPCW6 | C36: Mustang Hills | E36: WIND | F36: Wind | G36: WIND | H36: CISO | I36: South | J36: CAISO System | N36: 150 | Q36: FC | V36: 1 | W36: 24 | X36: 24
A37: ALTA6B_2_WIND11 | C37: Alta Wind 11 | E37: WIND | F37: Wind | G37: WIND | H37: CISO | I37: South | J37: CAISO System | N37: 88.15 | Q37: FC | V37: 1 | W37: 24 | X37: 24
A38: ALTA6E_2_WIND10 | C38: Alta Wind 10 | E38: WIND | F38: Wind | G38: WIND | H38: CISO | I38: South | J38: CAISO System | N38: 134.84 | Q38: FC | V38: 1 | W38: 24 | X38: 24
A39: ALTWD_2_AT3WD3 | C39: Altech 3 | E39: WIND | F39: Wind | G39: WIND | H39: CISO | I39: South | J39: LA Basin | K39: Eastern, Valley-Devers | N39: 9.8 | Q39: FC | V39: 1 | W39: 24 | X39: 24
A40: ALTWD_2_COAWD1 | C40: Coachella 1 | E40: WIND | F40: Wind | G40: WIND | H40: CISO | I40: South | J40: LA Basin | K40: Eastern, Valley-Devers | N40: 50.4 | Q40: FC | V40: 1 | W40: 24 | X40: 24
A41: ANAHM_2_CANYN1 | C41: CANYON POWER PLANT UNIT 1 | E41: COMBUSTION TURBINE | F41: Peaker | G41: NATURAL GAS | H41: CISO | I41: South | J41: LA Basin | K41: Western | M41: 1 | N41: 49.21 | Q41: FC | V41: 1 | W41: 24 | X41: 24
A42: ANAHM_2_CANYN2 | C42: CANYON POWER PLANT UNIT 2 | E42: COMBUSTION TURBINE | F42: Peaker | G42: NATURAL GAS | H42: CISO | I42: South | J42: LA Basin | K42: Western | M42: 1 | N42: 48.04 | Q42: FC | V42: 1 | W42: 24 | X42: 24
A43: ANAHM_2_CANYN3 | C43: CANYON POWER PLANT UNIT 3 | E43: COMBUSTION TURBINE | F43: Peaker | G43: NATURAL GAS | H43: CISO | I43: South | J43: LA Basin | K43: Western | M43: 1 | N43: 46.49 | Q43: FC | V43: 1 | W43: 24 | X43: 24
A44: ANAHM_2_CANYN4 | C44: CANYON POWER PLANT UNIT 4 | E44: COMBUSTION TURBINE | F44: Peaker | G44: NATURAL GAS | H44: CISO | I44: South | J44: LA Basin | K44: Western | M44: 1 | N44: 49.8 | Q44: FC | V44: 1 | W44: 24 | X44: 24
A45: ANTLPE_2_QF | C45: ANTELOPE QFS | E45: WIND | F45: Wind | G45: WIND | H45: CISO | I45: South | J45: CAISO System | N45: 4 | Q45: FC | V45: 1 | W45: 24 | X45: 24
A46: APLHIL_1_SFKHY1 | C46: South Fork Powerhouse | E46: HYDRO | F46: Hydro | G46: WATER | H46: CISO | I46: North | J46: Sierra | K46: South of Rio Oso, South of Palermo | N46: 2.68 | Q46: EO | V46: 1 | W46: 24 | X46: 24
A47: AQUAWS_2_AQWSR1 | C47: Aquamarine Westside | E47: PHOTO VOLTAIC | F47: Solar_1Axis | G47: SUN | H47: CISO | I47: North | J47: CAISO System | N47: 250 | O47: 1 | Q47: ID | V47: 1 | W47: 24 | X47: 24
A48: ARBWD_6_QF | C48: Wind Resource II | E48: WIND | F48: Wind | G48: WIND | H48: CISO | I48: South | J48: CAISO System | N48: 19.95 | Q48: FC | V48: 1 | W48: 24 | X48: 24
A49: ARCOGN_2_UNITS | C49: WATSON COGENERATION | E49: COMBINED CYCLE | F49: CHP | G49: NATURAL GAS | H49: CISO | I49: South | J49: LA Basin | K49: Western | N49: 305 | Q49: FC | V49: 1 | W49: 24 | X49: 24
A50: ARLNTN_2_AR1SR1 | C50: Arlington | D50: SUNCAT_2_A2ABT2 | E50: PHOTO VOLTAIC | F50: Paired_Solar_1Axis | G50: SUN | H50: CISO | I50: South | J50: CAISO System | L50: 144.31 | N50: 100 | O50: 1 | Q50: ID | V50: 1 | W50: 24 | X50: 24
A51: ARLNTN_2_ASUSR1 | C51: Arlington Solar Unit 1 | E51: PHOTO VOLTAIC | F51: Solar_1Axis | G51: SUN | H51: CISO | I51: South | J51: CAISO System | N51: 131 | O51: 1 | Q51: ID | V51: 1 | W51: 24 | X51: 24
A52: ARVINN_6_ORION1 | C52: Orion 1 Solar | E52: PHOTO VOLTAIC | F52: Solar_Fixed | G52: SUN | H52: CISO | I52: North | J52: CAISO System | N52: 12 | Q52: FC | V52: 1 | W52: 24 | X52: 24
A53: ARVINN_6_ORION2 | C53: Orion 2 Solar | E53: PHOTO VOLTAIC | F53: Solar_1Axis | G53: SUN | H53: CISO | I53: North | J53: CAISO System | N53: 8 | Q53: FC | V53: 1 | W53: 24 | X53: 24
A54: ASTORA_2_SOLAR1 | C54: Astoria 1 | E54: PHOTO VOLTAIC | F54: Solar_1Axis | G54: SUN | H54: CISO | I54: South | J54: CAISO System | N54: 100 | Q54: FC | V54: 1 | W54: 24 | X54: 24
A55: ASTORA_2_SOLAR2 | C55: Astoria 2 | E55: PHOTO VOLTAIC | F55: Solar_1Axis | G55: SUN | H55: CISO | I55: South | J55: CAISO System | N55: 75 | Q55: FC | V55: 1 | W55: 24 | X55: 24
A56: ATHOS_5_AP1X2 | C56: Athos Power Plant | E56: PHOTO VOLTAIC | F56: Solar_1Axis | G56: SUN | H56: CISO | I56: South | J56: CAISO System | N56: 250 | Q56: FC | V56: 1 | W56: 24 | X56: 24
A57: ATHOS_5_AP2X2 | C57: Athos Power Plant 2 | E57: PHOTO VOLTAIC | F57: Solar_1Axis | G57: SUN | H57: CISO | I57: South | J57: CAISO System | N57: 200 | Q57: FC | V57: 1 | W57: 24 | X57: 24
A58: ATWEL2_1_SOLAR1 | C58: Atwell West | E58: PHOTO VOLTAIC | F58: Solar_1Axis | G58: SUN | H58: CISO | I58: North | J58: CAISO System | N58: 20 | Q58: FC | V58: 1 | W58: 24 | X58: 24
A59: ATWELL_1_SOLAR | C59: Atwell Island PV Solar Generating Faci. | E59: PHOTO VOLTAIC | F59: Solar_Fixed | G59: SUN | H59: CISO | I59: North | J59: CAISO System | N59: 20 | Q59: FC | V59: 1 | W59: 24 | X59: 24
A60: AVENAL_6_AVPARK | C60: Avenal Park Solar Project | E60: PHOTO VOLTAIC | F60: Solar_Fixed | G60: SUN | H60: CISO | I60: North | J60: Fresno | K60: Coalinga | N60: 6 | O60: 1 | Q60: ID | V60: 1 | W60: 24 | X60: 24
A61: AVENAL_6_AVSLR1 | C61: Avenal Solar 1 | E61: PHOTO VOLTAIC | F61: Solar_1Axis | G61: SUN | H61: CISO | I61: North | J61: Fresno | K61: Coalinga | N61: 7.9 | Q61: EO | V61: 1 | W61: 24 | X61: 24
A62: AVENAL_6_AVSLR2 | C62: Avenal Solar 2 | E62: PHOTO VOLTAIC | F62: Solar_1Axis | G62: SUN | H62: CISO | I62: North | J62: Fresno | K62: Coalinga | N62: 7.9 | Q62: EO | V62: 1 | W62: 24 | X62: 24
A63: AVENAL_6_SANDDG | C63: Sand Drag Solar Project | E63: PHOTO VOLTAIC | F63: Solar_Fixed | G63: SUN | H63: CISO | I63: South | J63: Fresno | K63: Coalinga | N63: 19 | O63: 0.8358 | Q63: ID | V63: 1 | W63: 24 | X63: 24
A64: AVENAL_6_SUNCTY | C64: Sun City Solar Project | E64: PHOTO VOLTAIC | F64: Solar_Fixed | G64: SUN | H64: CISO | I64: North | J64: Fresno | K64: Coalinga | N64: 20 | O64: 1 | Q64: ID | V64: 1 | W64: 24 | X64: 24
A65: AVSOLR_2_SOLAR | C65: AV SOLAR RANCH 1 | E65: PHOTO VOLTAIC | F65: Solar_Fixed | G65: SUN | H65: CISO | I65: South | J65: CAISO System | N65: 241.5 | Q65: FC | V65: 1 | W65: 24 | X65: 24
A66: BAHIA_2_LKHSR1 | C66: Lake Herman Solar | E66: PHOTO VOLTAIC | F66: Solar_1Axis | G66: SUN | H66: CISO | I66: North | J66: CAISO System | N66: 5 | Q66: EO | V66: 1 | W66: 24 | X66: 24
A67: BALCHS_7_UNIT 1 | C67: BALCH 1 PH UNIT 1 | E67: HYDRO | F67: Hydro | G67: WATER | H67: CISO | I67: North | J67: Fresno | K67: Herndon | M67: 1 | N67: 31 | Q67: FC | V67: 1 | W67: 24 | X67: 24
A68: BALCHS_7_UNIT 2 | C68: BALCH 2 PH UNIT 2 | E68: HYDRO | F68: Hydro | G68: WATER | H68: CISO | I68: North | J68: Fresno | K68: Herndon | M68: 1 | N68: 52.5 | Q68: FC | V68: 1 | W68: 24 | X68: 24
A69: BALCHS_7_UNIT 3 | C69: BALCH 2 PH UNIT 3 | E69: HYDRO | F69: Hydro | G69: WATER | H69: CISO | I69: North | J69: Fresno | K69: Herndon | M69: 1 | N69: 54.6 | Q69: FC | V69: 1 | W69: 24 | X69: 24
A70: BANKPP_2_NSPIN | C70: BANKPP_2_NSPIN | E70: PUMP | F70: Pump | G70: WATER | H70: CISO | I70: North | J70: Bay Area | K70: Contra Costa | N70: 270 | Q70: FC | V70: 1 | W70: 24 | X70: 24
A71: BARRE_2_QF | C71: BARRE QFS | E71: OTHER | F71: CHP | G71: OTHER | H71: CISO | I71: South | J71: LA Basin | K71: Western | N71: 0.2 | Q71: FC | V71: 1 | W71: 24 | X71: 24
A72: BARRE_6_PEAKER | C72: Barre Peaker | E72: COMBUSTION TURBINE | F72: Peaker | G72: NATURAL GAS | H72: CISO | I72: South | J72: LA Basin | K72: Western | M72: 1 | N72: 49 | Q72: FC | U72: 449 | V72: 1 | W72: 24 | X72: 9.17
A73: BASICE_2_UNITS | C73: King City Cogen | E73: COMBINED CYCLE | F73: Peaker | G73: NATURAL GAS | H73: CISO | I73: North | J73: CAISO System | M73: 1 | N73: 120 | Q73: FC | V73: 1 | W73: 24 | X73: 24
A74: BDGRCK_1_UNITS | C74: BADGER CREEK LIMITED | E74: COMBUSTION TURBINE | F74: Peaker | G74: NATURAL GAS | H74: CISO | I74: North | J74: Kern | K74: South Kern PP | M74: 1 | N74: 48.08 | Q74: FC | V74: 1 | W74: 24 | X74: 24
A75: BEARDS_7_UNIT 1 | C75: Beardsley Hydro | E75: HYDRO | F75: Hydro | G75: WATER | H75: CISO | I75: North | J75: Stockton | K75: Tesla-Bellota, Stanislaus | M75: 1 | N75: 11.5 | Q75: FC | V75: 1 | W75: 24 | X75: 24
A76: BEARMT_1_UNIT | C76: Bear Mountain Limited | E76: COMBUSTION TURBINE | F76: Peaker | G76: NATURAL GAS | H76: CISO | I76: North | J76: Kern | K76: South Kern PP, Westpark | M76: 1 | N76: 49.21 | Q76: FC | V76: 1 | W76: 24 | X76: 24
A77: BELDEN_7_UNIT 1 | C77: BELDEN HYDRO | E77: HYDRO | F77: Hydro | G77: WATER | H77: CISO | I77: North | J77: Sierra | K77: South of Palermo | M77: 1 | N77: 119 | Q77: FC | V77: 1 | W77: 24 | X77: 24
A78: BGSKYN_2_AS2SR1 | C78: Antelope Solar 2 | D78: BIGSKY_2_SOLAR1, BIGSKY_2_SOLAR2, BIGSKY_2_SOLAR3, BIGSKY_2_SOLAR4, BIGSKY_2_SOLAR5, BIGSKY_2_SOLAR6, BIGSKY_2_SOLAR7, BGSKYN_2_ASSR1B, BGSKYN_2_ASSR3A, BGSKYN_2_ASSR3B, BGSKYN_2_ASPSR2, BIGSKY_2_BSKSR6, BIGSKY_2_BSKSR7, BIGSKY_2_BSKSR8, BGSKYN_2_BS3SR3, BIGSKY_2_AS2BT1 | E78: PHOTO VOLTAIC | F78: Paired_Solar_1Axis | G78: SUN | H78: CISO | I78: South | J78: Big Creek-Ventura | L78: 1792.24 | N78: 105 | O78: 1 | Q78: ID | V78: 1 | W78: 24 | X78: 24
A79: BGSKYN_2_ASPSR2 | C79: Antelope Solar 2 San Pablo | D79: BIGSKY_2_SOLAR1, BIGSKY_2_SOLAR2, BIGSKY_2_SOLAR3, BIGSKY_2_SOLAR4, BIGSKY_2_SOLAR5, BIGSKY_2_SOLAR6, BIGSKY_2_SOLAR7, BGSKYN_2_ASSR1B, BGSKYN_2_AS2SR1, BGSKYN_2_ASSR3A, BGSKYN_2_ASSR3B, BIGSKY_2_BSKSR6, BIGSKY_2_BSKSR7, BIGSKY_2_BSKSR8, BGSKYN_2_BS3SR3, BIGSKY_2_AS2BT1 | E79: PHOTO VOLTAIC | F79: Paired_Solar_1Axis | G79: SUN | H79: CISO | I79: South | J79: Big Creek-Ventura | L79: 1792.24 | N79: 100 | O79: 1 | Q79: ID | V79: 1 | W79: 24 | X79: 24
A80: BGSKYN_2_ASSR1B | C80: Antelope Solar 1B | D80: BIGSKY_2_SOLAR1, BIGSKY_2_SOLAR2, BIGSKY_2_SOLAR3, BIGSKY_2_SOLAR4, BIGSKY_2_SOLAR5, BIGSKY_2_SOLAR6, BIGSKY_2_SOLAR7, BGSKYN_2_AS2SR2, BGSKYN_2_AS2SR1, BGSKYN_2_ASSR3A, BGSKYN_2_ASSR3B, BIGSKY_2_BSKSR6, BIGSKY_2_BSKSR7, BIGSKY_2_BSKSR8, BGSKYN_2_BS3SR3, BIGSKY_2_AS2BT1 | E80: PHOTO VOLTAIC | F80: Paired_Solar_1Axis | G80: SUN | H80: CISO | I80: South | J80: Big Creek-Ventura | L80: 1792.24 | N80: 17 | O80: 1 | Q80: ID | V80: 1 | W80: 24 | X80: 24
A81: BGSKYN_2_ASSR3A | C81: Antelope Solar 3A | D81: BIGSKY_2_SOLAR1, BIGSKY_2_SOLAR2, BIGSKY_2_SOLAR3, BIGSKY_2_SOLAR4, BIGSKY_2_SOLAR5, BIGSKY_2_SOLAR6, BIGSKY_2_SOLAR7, BGSKYN_2_ASSR1B, BGSKYN_2_AS2SR1, BGSKYN_2_ASSR3B, BGSKYN_2_ASPSR2, BIGSKY_2_BSKSR6, BIGSKY_2_BSKSR7, BIGSKY_2_BSKSR8, BGSKYN_2_BS3SR3, BIGSKY_2_AS2BT1 | E81: PHOTO VOLTAIC | F81: Paired_Solar_1Axis | G81: SUN | H81: CISO | I81: South | J81: Big Creek-Ventura | L81: 1792.24 | N81: 15 | O81: 1 | Q81: ID | V81: 1 | W81: 24 | X81: 24
A82: BGSKYN_2_ASSR3B | C82: Antelope Solar 3B | D82: BIGSKY_2_SOLAR1, BIGSKY_2_SOLAR2, BIGSKY_2_SOLAR3, BIGSKY_2_SOLAR4, BIGSKY_2_SOLAR5, BIGSKY_2_SOLAR6, BIGSKY_2_SOLAR7, BGSKYN_2_ASSR1B, BGSKYN_2_AS2SR1, BGSKYN_2_ASSR3A, BGSKYN_2_ASPSR2, BIGSKY_2_BSKSR6, BIGSKY_2_BSKSR7, BIGSKY_2_BSKSR8, BGSKYN_2_BS3SR3, BIGSKY_2_AS2BT1 | E82: PHOTO VOLTAIC | F82: Paired_Solar_1Axis | G82: SUN | H82: CISO | I82: South | J82: Big Creek-Ventura | L82: 1792.24 | N82: 5 | O82: 1 | Q82: ID | V82: 1 | W82: 24 | X82: 24
A83: BGSKYN_2_BS3SR3 | C83: Big Sky Solar 3 | D83: BIGSKY_2_SOLAR1, BIGSKY_2_SOLAR2, BIGSKY_2_SOLAR3, BIGSKY_2_SOLAR4, BIGSKY_2_SOLAR5, BIGSKY_2_SOLAR6, BIGSKY_2_SOLAR7, BGSKYN_2_ASSR1B, BGSKYN_2_AS2SR1, BGSKYN_2_ASSR3A, BGSKYN_2_ASSR3B, BGSKYN_2_ASPSR2, BIGSKY_2_BSKSR6, BIGSKY_2_BSKSR7, BIGSKY_2_BSKSR8, BIGSKY_2_AS2BT1 | E83: PHOTO VOLTAIC | F83: Paired_Solar_1Axis | G83: SUN | H83: CISO | I83: South | J83: Big Creek-Ventura | L83: 1792.24 | N83: 20 | Q83: FC | V83: 1 | W83: 24 | X83: 24
A84: BIGCRK_2_EXESWD | C84: BIG CREEK HYDRO PROJECT PSP | E84: HYDRO | F84: Hydro | G84: WATER | H84: CISO | I84: South | J84: Big Creek-Ventura | K84: Rector, Vestal | M84: 1 | N84: 820 | Q84: FC | V84: 1 | W84: 24 | X84: 24
A85: BIGCRK_7_DAM7 | C85: DAM 7 AT BIG CREEK (FISHWATER GEN) | E85: HYDRO | F85: Hydro | G85: WATER | H85: CISO | I85: South | J85: Big Creek-Ventura | K85: Rector, Vestal | N85: 0.3 | Q85: EO | V85: 1 | W85: 24 | X85: 24
A86: BIGCRK_7_MAMRES | C86: MAMMOTH POOL RESERVOIR (FISHWATER | E86: HYDRO | F86: Hydro | G86: WATER | H86: CISO | I86: South | J86: Big Creek-Ventura | K86: Rector, Vestal | N86: 1.25 | Q86: EO | V86: 1 | W86: 24 | X86: 24
A87: BIGSKY_2_AS2BT1 | C87: Antelope Solar 2 LAB | D87: BIGSKY_2_SOLAR1, BIGSKY_2_SOLAR2, BIGSKY_2_SOLAR3, BIGSKY_2_SOLAR4, BIGSKY_2_SOLAR5, BIGSKY_2_SOLAR6, BIGSKY_2_SOLAR7, BGSKYN_2_ASSR1B, BGSKYN_2_AS2SR1, BGSKYN_2_ASSR3A, BGSKYN_2_ASSR3B, BGSKYN_2_ASPSR2, BIGSKY_2_BSKSR6, BIGSKY_2_BSKSR7, BIGSKY_2_BSKSR8, BGSKYN_2_BS3SR3 | E87: OTHER | F87: Paired_BattStorage | G87: LESR | H87: CISO | I87: South | J87: Big Creek-Ventura | L87: 1792.24 | M87: 2 | N87: 127 | O87: 1 | Q87: ID | R87: 1 | S87: 0.8 | T87: 508 | U87: 508 | V87: 1 | W87: 24 | X87: 4
A88: BIGSKY_2_ASLBT2 | C88: Antelope Solar 2 Luna | E88: OTHER | F88: Battery Storage | G88: LESR | H88: CISO | I88: South | J88: Big Creek-Ventura | M88: 2 | N88: 100 | O88: 1 | Q88: ID | R88: 1 | S88: 0.8 | T88: 400 | U88: 400 | V88: 1 | W88: 24 | X88: 4
A89: BIGSKY_2_BSKSR6 | C89: Big Sky Solar 6 | D89: BIGSKY_2_SOLAR1, BIGSKY_2_SOLAR2, BIGSKY_2_SOLAR3, BIGSKY_2_SOLAR4, BIGSKY_2_SOLAR5, BIGSKY_2_SOLAR6, BIGSKY_2_SOLAR7, BGSKYN_2_ASSR1B, BGSKYN_2_AS2SR1, BGSKYN_2_ASSR3A, BGSKYN_2_ASSR3B, BGSKYN_2_ASPSR2,BIGSKY_2_BSKSR7, BIGSKY_2_BSKSR8, BGSKYN_2_BS3SR3, BIGSKY_2_AS2BT1 | E89: PHOTO VOLTAIC | F89: Paired_Solar_1Axis | G89: SUN | H89: CISO | I89: South | J89: Big Creek-Ventura | L89: 1792.24 | N89: 20 | Q89: FC | V89: 1 | W89: 24 | X89: 24
A90: BIGSKY_2_BSKSR7 | C90: Big Sky Solar 7 | D90: BIGSKY_2_SOLAR1, BIGSKY_2_SOLAR2, BIGSKY_2_SOLAR3, BIGSKY_2_SOLAR4, BIGSKY_2_SOLAR5, BIGSKY_2_SOLAR6, BIGSKY_2_SOLAR7, BGSKYN_2_ASSR1B, BGSKYN_2_AS2SR1, BGSKYN_2_ASSR3A, BGSKYN_2_ASSR3B, BGSKYN_2_ASPSR2, BIGSKY_2_BSKSR6, BIGSKY_2_BSKSR8, BGSKYN_2_BS3SR3, BIGSKY_2_AS2BT1 | E90: PHOTO VOLTAIC | F90: Paired_Solar_1Axis | G90: SUN | H90: CISO | I90: South | J90: Big Creek-Ventura | L90: 1792.24 | N90: 20 | Q90: FC | V90: 1 | W90: 24 | X90: 24
A91: BIGSKY_2_BSKSR8 | C91: Big Sky Solar 8 | D91: BIGSKY_2_SOLAR1, BIGSKY_2_SOLAR2, BIGSKY_2_SOLAR3, BIGSKY_2_SOLAR4, BIGSKY_2_SOLAR5, BIGSKY_2_SOLAR6, BIGSKY_2_SOLAR7, BGSKYN_2_ASSR1B, BGSKYN_2_AS2SR1, BGSKYN_2_ASSR3A, BGSKYN_2_ASSR3B, BGSKYN_2_ASPSR2, BIGSKY_2_BSKSR6, BIGSKY_2_BSKSR7, BGSKYN_2_BS3SR3, BIGSKY_2_AS2BT1 | E91: PHOTO VOLTAIC | F91: Paired_Solar_1Axis | G91: SUN | H91: CISO | I91: South | J91: Big Creek-Ventura | L91: 1792.24 | N91: 20 | Q91: FC | V91: 1 | W91: 24 | X91: 24
A92: BIGSKY_2_SOLAR1 | C92: Antelope Big Sky Ranch | D92: BIGSKY_2_SOLAR2, BIGSKY_2_SOLAR3, BIGSKY_2_SOLAR4, BIGSKY_2_SOLAR5, BIGSKY_2_SOLAR6, BIGSKY_2_SOLAR7, BGSKYN_2_ASSR1B, BGSKYN_2_AS2SR1, BGSKYN_2_ASSR3A, BGSKYN_2_ASSR3B, BGSKYN_2_ASPSR2, BIGSKY_2_BSKSR6, BIGSKY_2_BSKSR7, BIGSKY_2_BSKSR8, BGSKYN_2_BS3SR3, BIGSKY_2_AS2BT1 | E92: PHOTO VOLTAIC | F92: Paired_Solar_1Axis | G92: SUN | H92: CISO | I92: South | J92: Big Creek-Ventura | L92: 1792.24 | N92: 20 | Q92: FC | V92: 1 | W92: 24 | X92: 24
A93: BIGSKY_2_SOLAR2 | C93: Big Sky Solar 4 | D93: BIGSKY_2_SOLAR1, BIGSKY_2_SOLAR3, BIGSKY_2_SOLAR4, BIGSKY_2_SOLAR5, BIGSKY_2_SOLAR6, BIGSKY_2_SOLAR7, BGSKYN_2_ASSR1B, BGSKYN_2_AS2SR1, BGSKYN_2_ASSR3A, BGSKYN_2_ASSR3B, BGSKYN_2_ASPSR2, BIGSKY_2_BSKSR6, BIGSKY_2_BSKSR7, BIGSKY_2_BSKSR8, BGSKYN_2_BS3SR3, BIGSKY_2_AS2BT1 | E93: PHOTO VOLTAIC | F93: Paired_Solar_1Axis | G93: SUN | H93: CISO | I93: South | J93: Big Creek-Ventura | L93: 1792.24 | N93: 40 | Q93: FC | V93: 1 | W93: 24 | X93: 24
A94: BIGSKY_2_SOLAR3 | C94: Big Sky Summer | D94: BIGSKY_2_SOLAR1, BIGSKY_2_SOLAR2,BIGSKY_2_SOLAR4, BIGSKY_2_SOLAR5, BIGSKY_2_SOLAR6, BIGSKY_2_SOLAR7, BGSKYN_2_ASSR1B, BGSKYN_2_AS2SR1, BGSKYN_2_ASSR3A, BGSKYN_2_ASSR3B, BGSKYN_2_ASPSR2, BIGSKY_2_BSKSR6, BIGSKY_2_BSKSR7, BIGSKY_2_BSKSR8, BGSKYN_2_BS3SR3, BIGSKY_2_AS2BT1 | E94: PHOTO VOLTAIC | F94: Paired_Solar_1Axis | G94: SUN | H94: CISO | I94: South | J94: Big Creek-Ventura | L94: 1792.24 | N94: 20 | Q94: FC | V94: 1 | W94: 24 | X94: 24
A95: BIGSKY_2_SOLAR4 | C95: Western Antelope Blue Sky Ranch B | D95: BIGSKY_2_SOLAR1, BIGSKY_2_SOLAR2, BIGSKY_2_SOLAR3, BIGSKY_2_SOLAR5, BIGSKY_2_SOLAR6, BIGSKY_2_SOLAR7, BGSKYN_2_ASSR1B, BGSKYN_2_AS2SR1, BGSKYN_2_ASSR3A, BGSKYN_2_ASSR3B, BGSKYN_2_ASPSR2, BIGSKY_2_BSKSR6, BIGSKY_2_BSKSR7, BIGSKY_2_BSKSR8, BGSKYN_2_BS3SR3, BIGSKY_2_AS2BT1 | E95: PHOTO VOLTAIC | F95: Paired_Solar_1Axis | G95: SUN | H95: CISO | I95: South | J95: Big Creek-Ventura | L95: 1792.24 | N95: 20 | Q95: FC | V95: 1 | W95: 24 | X95: 24
A96: BIGSKY_2_SOLAR5 | C96: Big Sky Solar 2 | D96: BIGSKY_2_SOLAR1, BIGSKY_2_SOLAR2, BIGSKY_2_SOLAR3, BIGSKY_2_SOLAR4, BIGSKY_2_SOLAR6, BIGSKY_2_SOLAR7, BGSKYN_2_ASSR1B, BGSKYN_2_AS2SR1, BGSKYN_2_ASSR3A, BGSKYN_2_ASSR3B, BGSKYN_2_ASPSR2, BIGSKY_2_BSKSR6, BIGSKY_2_BSKSR7, BIGSKY_2_BSKSR8, BGSKYN_2_BS3SR3, BIGSKY_2_AS2BT1 | E96: PHOTO VOLTAIC | F96: Paired_Solar_1Axis | G96: SUN | H96: CISO | I96: South | J96: Big Creek-Ventura | L96: 1792.24 | N96: 5 | Q96: FC | V96: 1 | W96: 24 | X96: 24
A97: BIGSKY_2_SOLAR6 | C97: Solverde 1 | D97: BIGSKY_2_SOLAR1, BIGSKY_2_SOLAR2, BIGSKY_2_SOLAR3, BIGSKY_2_SOLAR4, BIGSKY_2_SOLAR5, BIGSKY_2_SOLAR7, BGSKYN_2_ASSR1B, BGSKYN_2_AS2SR1, BGSKYN_2_ASSR3A, BGSKYN_2_ASSR3B, BGSKYN_2_ASPSR2, BIGSKY_2_BSKSR6, BIGSKY_2_BSKSR7, BIGSKY_2_BSKSR8, BGSKYN_2_BS3SR3, BIGSKY_2_AS2BT1 | E97: PHOTO VOLTAIC | F97: Paired_Solar_1Axis | G97: SUN | H97: CISO | I97: South | J97: Big Creek-Ventura | L97: 1792.24 | N97: 85 | Q97: FC | V97: 1 | W97: 24 | X97: 24
A98: BIGSKY_2_SOLAR7 | C98: Big Sky Solar 1 | D98: BIGSKY_2_SOLAR1, BIGSKY_2_SOLAR2, BIGSKY_2_SOLAR3, BIGSKY_2_SOLAR4, BIGSKY_2_SOLAR5, BIGSKY_2_SOLAR6, BGSKYN_2_ASSR1B, BGSKYN_2_AS2SR1, BGSKYN_2_ASSR3A, BGSKYN_2_ASSR3B, BGSKYN_2_ASPSR2, BIGSKY_2_BSKSR6, BIGSKY_2_BSKSR7, BIGSKY_2_BSKSR8, BGSKYN_2_BS3SR3, BIGSKY_2_AS2BT1 | E98: PHOTO VOLTAIC | F98: Paired_Solar_1Axis | G98: SUN | H98: CISO | I98: South | J98: Big Creek-Ventura | L98: 1792.24 | N98: 50 | Q98: FC | V98: 1 | W98: 24 | X98: 24
A99: BIOMAS_1_UNIT 1 | C99: WOODLAND BIOMASS | E99: STEAM | F99: Biomass | G99: BIOMASS | H99: CISO | I99: North | J99: Sierra | K99: Drum-Rio Oso, South of Palermo | N99: 25.5 | Q99: FC | V99: 1 | W99: 24 | X99: 24
A100: BISHOP_1_ALAMO | C100: BISHOP CREEK PLANT 2 AND 6 | E100: HYDRO | F100: Hydro | G100: WATER | H100: CISO | I100: South | J100: CAISO System | N100: 13.4 | Q100: FC | V100: 1 | W100: 24 | X100: 24
A101: BISHOP_1_UNITS | C101: BISHOP CREEK PLANT 3 AND 4 | E101: HYDRO | F101: Hydro | G101: WATER | H101: CISO | I101: South | J101: CAISO System | N101: 15.8 | Q101: FC | V101: 1 | W101: 24 | X101: 24
A102: BKRFLD_2_SOLAR1 | C102: Bakersfield 111 | E102: PHOTO VOLTAIC | F102: Solar_1Axis | G102: SUN | H102: CISO | I102: North | J102: Kern | K102: South Kern PP | N102: 1.38 | Q102: FC | V102: 1 | W102: 24 | X102: 24
A103: BLACK_7_UNIT 1 | C103: JAMES B. BLACK 1 | E103: HYDRO | F103: Hydro | G103: WATER | H103: CISO | I103: North | J103: CAISO System | M103: 1 | N103: 85 | Q103: FC | V103: 1 | W103: 24 | X103: 24
A104: BLACK_7_UNIT 2 | C104: JAMES B. BLACK 2 | E104: HYDRO | F104: Hydro | G104: WATER | H104: CISO | I104: North | J104: CAISO System | M104: 1 | N104: 84.1 | Q104: FC | V104: 1 | W104: 24 | X104: 24
A105: BLAST_1_WIND | C105: Mountain View IV Wind | E105: WIND | F105: Wind | G105: WIND | H105: CISO | I105: South | J105: LA Basin | K105: Eastern, Valley-Devers | N105: 49 | Q105: FC | V105: 1 | W105: 24 | X105: 24
A106: BLCKBT_2_STONEY | C106: BLACK BUTTE HYDRO | E106: HYDRO | F106: Hydro | G106: WATER | H106: CISO | I106: North | J106: CAISO System | M106: 1 | N106: 6.2 | Q106: FC | V106: 1 | W106: 24 | X106: 24
A107: BLCKWL_6_SOLAR1 | C107: Blackwell Solar | E107: PHOTO VOLTAIC | F107: Solar_1Axis | G107: SUN | H107: CISO | I107: North | J107: CAISO System | N107: 12 | Q107: FC | V107: 1 | W107: 24 | X107: 24
A108: BLKCRK_2_GMCBT1 | C108: Genesis McCoy Bess | D108: BLKCRK_2_SOLAR1, GENESI_2_STG | E108: OTHER | F108: Paired_BattStorage | G108: LESR | H108: CISO | I108: South | J108: CAISO System | L108: 258.91 | M108: 1 | N108: 230 | Q108: FC | R108: 2.84 | S108: 0.9 | T108: 920 | U108: 2616 | V108: 1 | W108: 24 | X108: 11.38
A109: BLKCRK_2_SOLAR1 | C109: McCoy Station | D109: BLKCRK_2_GMCBT1, GENESI_2_STG | E109: PHOTO VOLTAIC | F109: Paired_Solar_1Axis | G109: SUN | H109: CISO | I109: South | J109: CAISO System | L109: 258.91 | N109: 250 | Q109: EO | V109: 1 | W109: 24 | X109: 24
A110: BLKDIA_2_BDEBT1 | C110: Black Diamond Energy Storage | E110: OTHER | F110: Battery Storage | G110: LESR | H110: CISO | I110: North | J110: Bay Area | K110: Pittsburg | M110: 1 | N110: 200 | Q110: FC | R110: 1 | S110: 0.8 | T110: 800 | U110: 800 | V110: 1 | W110: 24 | X110: 4
A111: BLM W_2_COSBT1 | C111: Coso Battery Storage | E111: OTHER | F111: Battery Storage | G111: LESR | H111: CISO | I111: South | J111: CAISO System | M111: 2 | N111: 60 | Q111: FC | R111: 1 | S111: 0.8 | T111: 240 | U111: 240 | V111: 1 | W111: 24 | X111: 4
A112: BLM_2_UNITS | C112: BLM EAST Facility | E112: STEAM | F112: Geothermal | G112: GEOTHERMAL | H112: CISO | I112: South | J112: CAISO System | M112: 1 | N112: 72 | P112: 47 | Q112: PD | V112: 1 | W112: 24 | X112: 24
A113: BLYTHE_1_SOLAR1 | C113: Blythe Solar 1 Project | E113: PHOTO VOLTAIC | F113: Solar_Fixed | G113: SUN | H113: CISO | I113: South | J113: CAISO System | N113: 21 | Q113: EO | V113: 1 | W113: 24 | X113: 24
A114: BLYTHE_1_SOLAR2 | C114: Blythe Green 1 | E114: PHOTO VOLTAIC | F114: Solar_1Axis | G114: SUN | H114: CISO | I114: South | J114: CAISO System | N114: 20 | Q114: EO | V114: 1 | W114: 24 | X114: 24
A115: BNNIEN_7_ALTAPH | C115: ALTA POWER HOUSE | E115: HYDRO | F115: Hydro | G115: WATER | H115: CISO | I115: North | J115: Sierra | K115: Placer, Gold Hill-Drum, Drum-Rio Oso, South of Rio Oso, South of Palermo | N115: 1 | Q115: FC | V115: 1 | W115: 24 | X115: 24
A116: BOGUE_1_UNITA1 | C116: Feather River Energy Center, Unit #1 | E116: COMBUSTION TURBINE | F116: Peaker | G116: NATURAL GAS | H116: CISO | I116: North | J116: Sierra | K116: Bogue, Drum-Rio Oso | M116: 1 | N116: 48.69 | Q116: FC | V116: 1 | W116: 24 | X116: 24
A117: BORDER_6_UNITA1 | C117: CalPeak Power Border Unit 1 | E117: COMBUSTION TURBINE | F117: Peaker | G117: NATURAL GAS | H117: CISO | I117: South | J117: San Diego-IV | K117: San Diego, Border | M117: 1 | N117: 51.25 | Q117: FC | V117: 1 | W117: 24 | X117: 24
A118: BOWMN_6_HYDRO | C118: NID Hydro Bowman Powerhouse | E118: HYDRO | F118: Hydro | G118: WATER | H118: CISO | I118: North | J118: Sierra | K118: Drum-Rio Oso, South of Palermo | N118: 3.6 | Q118: FC | V118: 1 | W118: 24 | X118: 24
A119: BRDGVL_7_BAKER | C119: Baker Station Hydro | E119: HYDRO | F119: Hydro | G119: WATER | H119: CISO | I119: North | J119: Humboldt | N119: 1.49 | Q119: FC | V119: 1 | W119: 24 | X119: 24
A120: BRDSLD_2_HIWIND | C120: High Winds Energy Center | E120: WIND | F120: Wind | G120: WIND | H120: CISO | I120: North | J120: Bay Area | K120: Contra Costa | N120: 162 | Q120: FC | V120: 1 | W120: 24 | X120: 24
A121: BRDSLD_2_MTZUM2 | C121: NextEra Energy Montezuma Wind II | E121: WIND | F121: Wind | G121: WIND | H121: CISO | I121: North | J121: Bay Area | K121: Contra Costa | N121: 78.2 | Q121: FC | V121: 1 | W121: 24 | X121: 24
A122: BRDSLD_2_MTZUMA | C122: FPL Energy Montezuma Wind | E122: WIND | F122: Wind | G122: WIND | H122: CISO | I122: North | J122: Bay Area | K122: Contra Costa | N122: 36.8 | Q122: FC | V122: 1 | W122: 24 | X122: 24
A123: BRDSLD_2_SHILO1 | C123: Shiloh I Wind Project | E123: WIND | F123: Wind | G123: WIND | H123: CISO | I123: North | J123: Bay Area | K123: Contra Costa | N123: 150 | Q123: FC | V123: 1 | W123: 24 | X123: 24
A124: BRDSLD_2_SHILO2 | C124: SHILOH WIND PROJECT 2 | E124: WIND | F124: Wind | G124: WIND | H124: CISO | I124: North | J124: Bay Area | K124: Contra Costa | N124: 150 | Q124: FC | V124: 1 | W124: 24 | X124: 24
A125: BRDSLD_2_SHLO3A | C125: Shiloh III Wind Project, LLC | E125: WIND | F125: Wind | G125: WIND | H125: CISO | I125: North | J125: Bay Area | K125: Contra Costa | N125: 102.5 | Q125: FC | V125: 1 | W125: 24 | X125: 24
A126: BRDSLD_2_SHLO3B | C126: Shiloh IV Wind Project | E126: WIND | F126: Wind | G126: WIND | H126: CISO | I126: North | J126: Bay Area | K126: Contra Costa | N126: 100 | Q126: FC | V126: 1 | W126: 24 | X126: 24
A127: BREGGO_6_DEGRSL | C127: Desert Green Solar Farm | E127: PHOTO VOLTAIC | F127: Solar_2Axis | G127: SUN | H127: CISO | I127: South | J127: San Diego-IV | K127: San Diego | N127: 6.3 | Q127: FC | V127: 1 | W127: 24 | X127: 24
A128: BREGGO_6_SOLAR | C128: NRG Borrego Solar One | E128: PHOTO VOLTAIC | F128: Solar_Fixed | G128: SUN | H128: CISO | I128: South | J128: San Diego-IV | K128: San Diego | N128: 26 | Q128: FC | V128: 1 | W128: 24 | X128: 24
A129: BRODIE_2_WIND | C129: Coram Brodie Wind Project | E129: WIND | F129: Wind | G129: WIND | H129: CISO | I129: South | J129: CAISO System | N129: 102 | Q129: FC | V129: 1 | W129: 24 | X129: 24
A130: BUCKBL_2_PL1X3 | C130: Blythe Energy Center | E130: COMBINED CYCLE | F130: CCGT | G130: NATURAL GAS | H130: CISO | I130: South | J130: CAISO System | M130: 1 | N130: 493.63 | Q130: FC | V130: 1 | W130: 24 | X130: 24
A131: BUCKCK_2_HYDRO | C131: Lassen Station Hydro | E131: HYDRO | F131: Hydro | G131: WATER | H131: CISO | I131: North | J131: Sierra | K131: South of Palermo | N131: 0.99 | Q131: FC | V131: 1 | W131: 24 | X131: 24
A132: BUCKCK_7_OAKFLT | C132: Oak Flat | E132: HYDRO | F132: Hydro | G132: WATER | H132: CISO | I132: North | J132: Sierra | K132: South of Palermo | N132: 1.3 | Q132: FC | V132: 1 | W132: 24 | X132: 24
A133: BUCKCK_7_PL1X2 | C133: BUCKS CREEK AGGREGATE | E133: HYDRO | F133: Hydro | G133: WATER | H133: CISO | I133: North | J133: Sierra | K133: South of Palermo | M133: 1 | N133: 57.25 | Q133: FC | V133: 1 | W133: 24 | X133: 24
A134: BUCKWD_1_NPALM1 | C134: North Palm Springs 1A | E134: PHOTO VOLTAIC | F134: Solar_1Axis | G134: SUN | H134: CISO | I134: South | J134: LA Basin | K134: Eastern, Valley-Devers | N134: 2.4 | Q134: FC | V134: 1 | W134: 24 | X134: 24
A135: BUCKWD_1_QF | C135: Buckwind Re-powering project | E135: WIND | F135: Wind | G135: WIND | H135: CISO | I135: South | J135: LA Basin | K135: Eastern, Valley-Devers | N135: 16.5 | Q135: FC | V135: 1 | W135: 24 | X135: 24
A136: BUCKWD_7_WINTCV | C136: Wintec Energy, Ltd. | E136: WIND | F136: Wind | G136: WIND | H136: CISO | I136: South | J136: LA Basin | K136: Eastern, Valley-Devers | N136: 1.32 | Q136: FC | V136: 1 | W136: 24 | X136: 24
A137: BURNYF_2_UNIT 1 | C137: Burney Forest Power | E137: STEAM | F137: Biomass | G137: BIOMASS | H137: CISO | I137: North | J137: CAISO System | N137: 29 | Q137: FC | V137: 1 | W137: 24 | X137: 24
A138: BUTTVL_7_UNIT 1 | C138: BUTT VALLEY HYDRO | E138: HYDRO | F138: Hydro | G138: WATER | H138: CISO | I138: North | J138: CAISO System | M138: 1 | N138: 39.5 | Q138: FC | V138: 1 | W138: 24 | X138: 24
A139: CABALO_2_M2BSR1 | C139: Mustang 2 Barbaro Solar | E139: PHOTO VOLTAIC | F139: Solar_1Axis | G139: SUN | H139: CISO | I139: North | J139: Fresno | N139: 50 | O139: 1 | Q139: ID | V139: 1 | W139: 24 | X139: 24
A140: CABALO_2_M2WSR2 | C140: Mustang 2 Whirlaway Solar | E140: PHOTO VOLTAIC | F140: Solar_1Axis | G140: SUN | H140: CISO | I140: North | J140: Fresno | N140: 100 | O140: 1 | Q140: ID | V140: 1 | W140: 24 | X140: 24
A141: CABZON_1_WINDA1 | C141: Cabazon Wind Project | E141: WIND | F141: Wind | G141: WIND | H141: CISO | I141: South | J141: LA Basin | K141: Eastern, Valley-Devers | N141: 41 | Q141: FC | V141: 1 | W141: 24 | X141: 24
A142: CALFTN_2_CFSBT1 | C142: California Flats Solar Battery | D142: CALFTN_2_SOLAR | E142: OTHER | F142: Paired_BattStorage | G142: LESR | H142: CISO | I142: North | J142: CAISO System | L142: 72.6 | M142: 3 | N142: 60 | Q142: FC | R142: 1 | S142: 0.8 | T142: 240 | U142: 240 | V142: 1 | W142: 24 | X142: 4
A143: CALFTN_2_SOLAR | C143: California Flats North | D143: CALFTN_2_CFSBT1 | E143: PHOTO VOLTAIC | F143: Paired_Solar_Fixed | G143: SUN | H143: CISO | I143: North | J143: CAISO System | L143: 72.6 | N143: 130 | O143: 0.82 | Q143: ID | V143: 1 | W143: 24 | X143: 24
A144: CALFTS_2_CFSSR1 | C144: California Flats Solar South | E144: PHOTO VOLTAIC | F144: Solar_1Axis | G144: SUN | H144: CISO | I144: North | J144: CAISO System | N144: 150 | Q144: FC | V144: 1 | W144: 24 | X144: 24
A145: CALGEN_1_UNITS | C145: Coso Navy 1 | E145: STEAM | F145: Geothermal | G145: GEOTHERMAL | H145: CISO | I145: South | J145: CAISO System | M145: 1 | N145: 80 | Q145: FC | V145: 1 | W145: 24 | X145: 24
A146: CALPIN_1_AGNEW | C146: Agnews Power Plant | E146: COMBUSTION TURBINE | F146: CCGT | G146: NATURAL GAS | H146: CISO | I146: North | J146: Bay Area | K146: San Jose, South Bay-Moss Landing | M146: 1 | N146: 28.56 | Q146: FC | V146: 1 | W146: 24 | X146: 24
A147: CAMCHE_1_PL1X3 | C147: CAMANCHE UNITS 1, 2 & 3 AGGREGATE | E147: HYDRO | F147: Hydro | G147: WATER | H147: CISO | I147: North | J147: Stockton | K147: Tesla-Bellota | N147: 9.99 | Q147: FC | V147: 1 | W147: 24 | X147: 24
A148: CAMLOT_2_SOLAR1 | C148: Camelot | E148: PHOTO VOLTAIC | F148: Solar_Fixed | G148: SUN | H148: CISO | I148: South | J148: CAISO System | N148: 45 | Q148: FC | V148: 1 | W148: 24 | X148: 24
A149: CAMLOT_2_SOLAR2 | C149: Columbia Two | E149: PHOTO VOLTAIC | F149: Solar_Fixed | G149: SUN | H149: CISO | I149: South | J149: CAISO System | N149: 15 | Q149: FC | V149: 1 | W149: 24 | X149: 24
A150: CAMPFW_7_FARWST | C150: CAMP FAR WEST HYDRO | E150: HYDRO | F150: Hydro | G150: WATER | H150: CISO | I150: North | J150: Sierra | M150: 1 | N150: 6.8 | Q150: FC | V150: 1 | W150: 24 | X150: 24
A151: CANTUA_1_SOLAR | C151: Cantua Solar Station | E151: PHOTO VOLTAIC | F151: Solar_Fixed | G151: SUN | H151: CISO | I151: North | J151: Fresno | K151: Panoche 115 kV | N151: 20 | Q151: FC | V151: 1 | W151: 24 | X151: 24
A152: CAPWD_1_QF | C152: Edom Hills Wind Farm | E152: WIND | F152: Wind | G152: WIND | H152: CISO | I152: South | J152: LA Basin | K152: Eastern, Valley-Devers | N152: 19.55 | Q152: FC | V152: 1 | W152: 24 | X152: 24
A153: CARBOU_7_PL2X3 | C153: CARIBOU PH 1 UNIT 2 & 3 AGGREGATE | E153: HYDRO | F153: Hydro | G153: WATER | H153: CISO | I153: North | J153: CAISO System | M153: 1 | N153: 49 | Q153: FC | V153: 1 | W153: 24 | X153: 24
A154: CARBOU_7_PL4X5 | C154: CARIBOU PH 2 UNIT 4 & 5 AGGREGATE | E154: HYDRO | F154: Hydro | G154: WATER | H154: CISO | I154: North | J154: CAISO System | M154: 1 | N154: 120 | Q154: FC | V154: 1 | W154: 24 | X154: 24
A155: CARBOU_7_UNIT 1 | C155: CARIBOU PH 1 UNIT 1 | E155: HYDRO | F155: Hydro | G155: WATER | H155: CISO | I155: North | J155: CAISO System | M155: 1 | N155: 24 | Q155: FC | V155: 1 | W155: 24 | X155: 24
A156: CARLS1_2_CARCT1 | C156: Carlsbad 1 | E156: COMBUSTION TURBINE | F156: Peaker | G156: NATURAL GAS | H156: CISO | I156: South | J156: San Diego-IV | K156: San Diego | M156: 1 | N156: 422 | Q156: FC | V156: 7 | W156: 24 | X156: 18
A157: CARLS2_1_CARCT1 | C157: Carlsbad 2 | E157: COMBUSTION TURBINE | F157: Peaker | G157: NATURAL GAS | H157: CISO | I157: South | J157: San Diego-IV | K157: San Diego | M157: 2 | N157: 105.5 | Q157: FC | V157: 7 | W157: 24 | X157: 18
A158: CASADB_1_CD4GT1 | C158: Casa Diablo 4 | E158: STEAM | F158: Geothermal | G158: GEOTHERMAL | H158: CISO | I158: South | J158: CAISO System | N158: 40.7 | Q158: FC | V158: 1 | W158: 24 | X158: 24
A159: CATLNA_2_SOLAR | C159: Catalina Solar - Phases 1 and 2 | E159: PHOTO VOLTAIC | F159: Solar_Fixed | G159: SUN | H159: CISO | I159: South | J159: CAISO System | N159: 110 | Q159: FC | V159: 1 | W159: 24 | X159: 24
A160: CATLNA_2_SOLAR2 | C160: Catalina Solar 2 | E160: PHOTO VOLTAIC | F160: Solar_1Axis | G160: SUN | H160: CISO | I160: South | J160: CAISO System | N160: 18 | Q160: FC | V160: 1 | W160: 24 | X160: 24
A161: CAVLSR_2_BSOLAR | C161: California Valley Solar Ranch-Phase B | E161: PHOTO VOLTAIC | F161: Solar_Fixed | G161: SUN | H161: CISO | I161: North | J161: CAISO System | N161: 40 | Q161: FC | V161: 1 | W161: 24 | X161: 24
A162: CAVLSR_2_RSOLAR | C162: California Valley Solar Ranch-Phase A | E162: PHOTO VOLTAIC | F162: Solar_Fixed | G162: SUN | H162: CISO | I162: North | J162: CAISO System | N162: 210 | Q162: FC | V162: 1 | W162: 24 | X162: 24
A163: CAYTNO_2_VASCO | C163: Vasco Road | E163: RECIPROCATING ENGINE | F163: Biogas | G163: BIOGAS | H163: CISO | I163: North | J163: Bay Area | K163: Contra Costa | N163: 4.3 | Q163: FC | V163: 1 | W163: 24 | X163: 24
A164: CDWR07_2_GEN | C164: CDWR07_2_GEN | E164: PUMP | F164: Pumped Hydro | G164: WATER | H164: CISO | I164: North | J164: CAISO System | N164: 415.3 | Q164: FC | V164: 1 | W164: 24 | X164: 24
A165: CEDRCK_6_UNIT | C165: Water Wheel Ranch | E165: HYDRO | F165: Hydro | G165: WATER | H165: CISO | I165: North | J165: CAISO System | N165: 0.98 | Q165: FC | V165: 1 | W165: 24 | X165: 24
A166: CEDUCR_2_SOLAR1 | C166: Ducor Solar 1 | E166: PHOTO VOLTAIC | F166: Solar_1Axis | G166: SUN | H166: CISO | I166: South | J166: Big Creek-Ventura | K166: Vestal | N166: 20 | Q166: EO | V166: 1 | W166: 24 | X166: 24
A167: CEDUCR_2_SOLAR2 | C167: Ducor Solar 2 | E167: PHOTO VOLTAIC | F167: Solar_1Axis | G167: SUN | H167: CISO | I167: South | J167: Big Creek-Ventura | K167: Vestal | N167: 20 | Q167: EO | V167: 1 | W167: 24 | X167: 24
A168: CEDUCR_2_SOLAR3 | C168: Ducor Solar 3 | E168: PHOTO VOLTAIC | F168: Solar_1Axis | G168: SUN | H168: CISO | I168: South | J168: Big Creek-Ventura | K168: Vestal | N168: 15 | Q168: EO | V168: 1 | W168: 24 | X168: 24
A169: CEDUCR_2_SOLAR4 | C169: Ducor Solar 4 | E169: PHOTO VOLTAIC | F169: Solar_1Axis | G169: SUN | H169: CISO | I169: South | J169: Big Creek-Ventura | K169: Vestal | N169: 20 | Q169: EO | V169: 1 | W169: 24 | X169: 24
A170: CENT40_1_C40SR1 | C170: CENTRAL 40 | E170: PHOTO VOLTAIC | F170: Solar_1Axis | G170: SUN | H170: CISO | I170: North | J170: Stockton | K170: Tesla-Bellota | N170: 40 | Q170: FC | V170: 1 | W170: 24 | X170: 24
A171: CENTER_2_RHONDO | C171: MWD Rio Hondo Hydroelectric Recovery Pla | E171: HYDRO | F171: Hydro | G171: WATER | H171: CISO | I171: South | J171: LA Basin | K171: Western | M171: 1 | N171: 1.91 | Q171: FC | V171: 1 | W171: 24 | X171: 24
A172: CENTER_2_SOLAR1 | C172: Pico Rivera | E172: PHOTO VOLTAIC | F172: Solar_1Axis | G172: SUN | H172: CISO | I172: South | J172: LA Basin | K172: Western | N172: 0.9 | Q172: EO | V172: 1 | W172: 24 | X172: 24
A173: CENTER_2_TECNG1 | C173: TECHNICAST | E173: RECIPROCATING ENGINE | F173: CHP | G173: NATURAL GAS | H173: CISO | I173: South | J173: LA Basin | K173: Western | N173: 0.99 | Q173: EO | V173: 1 | W173: 24 | X173: 24
A174: CENTER_6_PEAKER | C174: Center Peaker | E174: COMBUSTION TURBINE | F174: Peaker | G174: NATURAL GAS | H174: CISO | I174: South | J174: LA Basin | K174: Western | M174: 1 | N174: 47.3 | Q174: FC | U174: 402 | V174: 1 | W174: 24 | X174: 8.5
A175: CENTPD_2_BMSSX2 | C175: Blythe Mesa Solar | D175: CENTPD_2_BMSX2 | E175: PHOTO VOLTAIC | F175: Paired_Solar_1Axis | G175: SUN | H175: CISO | I175: South | J175: CAISO System | L175: 134.69 | N175: 223.6 | Q175: FC | V175: 1 | W175: 24 | X175: 24
A176: CENTPD_2_BMSX2 | C176: Blythe Mesa Solar 2 BESS | D176: CENTPD_2_BMSSX2 | E176: OTHER | F176: Paired_BattStorage | G176: LESR | H176: CISO | I176: South | J176: CAISO System | L176: 134.69 | M176: 2 | N176: 112 | Q176: FC | R176: 1 | S176: 0.8 | T176: 448 | U176: 448 | V176: 1 | W176: 24 | X176: 4
A177: CENTRY_6_PL1X4 | C177: CENTURY GENERATING PLANT (AGGREGATE) | E177: FTUR | F177: Peaker | G177: NATURAL GAS | H177: CISO | I177: South | J177: LA Basin | K177: Eastern | M177: 1 | N177: 41.4 | Q177: FC | V177: 1 | W177: 24 | X177: 24
A178: CHALK_1_UNIT | C178: CHALK CLIFF LIMITED | E178: COMBUSTION TURBINE | F178: Peaker | G178: NATURAL GAS | H178: CISO | I178: North | J178: CAISO System | M178: 1 | N178: 48.67 | Q178: FC | V178: 1 | W178: 24 | X178: 24
A179: CHARMN_2_PGONG1 | C179: PROCTER AND GAMBLE OXNARD I | E179: FTUR | F179: CHP | G179: NATURAL GAS | H179: CISO | I179: South | J179: Big Creek-Ventura | K179: S.Clara, Moorpark | N179: 19.87 | Q179: FC | V179: 1 | W179: 24 | X179: 24
A180: CHEVCD_6_UNIT | C180: CHEVRON USA (TAFT/CADET) | E180: COMBUSTION TURBINE | F180: CHP | G180: NATURAL GAS | H180: CISO | I180: North | J180: CAISO System | N180: 11.5 | Q180: FC | V180: 1 | W180: 24 | X180: 24
A181: CHEVCO_6_UNIT 1 | C181: CHEVRON USA (COALINGA) | E181: COMBUSTION TURBINE | F181: CHP | G181: NATURAL GAS | H181: CISO | I181: North | J181: Fresno | K181: Coalinga, Panoche 115 kV | N181: 16.5 | Q181: FC | V181: 1 | W181: 24 | X181: 24
A182: CHEVCO_6_UNIT 2 | C182: AERA ENERGY LLC. (COALINGA) | E182: FTUR | F182: CHP | G182: NATURAL GAS | H182: CISO | I182: North | J182: Fresno | K182: Coalinga, Panoche 115 kV | N182: 8.5 | Q182: FC | V182: 1 | W182: 24 | X182: 24
A183: CHEVCY_1_UNIT | C183: CHEVRON USA (CYMRIC) | E183: COMBUSTION TURBINE | F183: CHP | G183: NATURAL GAS | H183: CISO | I183: North | J183: CAISO System | N183: 24.3 | Q183: FC | V183: 1 | W183: 24 | X183: 24
A184: CHEVMN_2_UNITS | C184: CHEVRON U.S.A. UNITS 1 & 2 AGGREGATE | E184: COMBUSTION TURBINE | F184: CHP | G184: OTHER | H184: CISO | I184: South | J184: LA Basin | K184: Western, El Nido | N184: 124.87 | Q184: FC | V184: 1 | W184: 24 | X184: 24
A185: CHICPK_7_UNIT 1 | C185: Chicago Park Powerhouse | E185: HYDRO | F185: Hydro | G185: WATER | H185: CISO | I185: North | J185: Sierra | K185: Placer, Gold Hill-Drum, Drum-Rio Oso, South of Rio Oso, South of Palermo | M185: 1 | N185: 42 | Q185: FC | V185: 1 | W185: 24 | X185: 24
A186: CHILLS_1_SYCENG | C186: Sycamore Energy 1 | E186: COMBUSTION TURBINE | F186: Biogas | G186: BIOGAS | H186: CISO | I186: South | J186: San Diego-IV | K186: San Diego | N186: 1.5 | Q186: FC | V186: 1 | W186: 24 | X186: 24
A187: CHILLS_7_UNITA1 | C187: Sycamore Energy 2 | E187: COMBUSTION TURBINE | F187: Biogas | G187: BIOGAS | H187: CISO | I187: South | J187: San Diego-IV | K187: San Diego | M187: 1 | N187: 2.25 | Q187: FC | V187: 1 | W187: 24 | X187: 24
A188: CHINO_2_APEBT1 | C188: Pomona Energy Storage | E188: OTHER | F188: Battery Storage | G188: LESR | H188: CISO | I188: South | J188: LA Basin | K188: Eastern | M188: 3 | N188: 20 | Q188: FC | R188: 1 | S188: 0.8 | T188: 80 | U188: 80 | V188: 1 | W188: 24 | X188: 4
A189: CHINO_2_JURUPA | C189: Jurupa | E189: PHOTO VOLTAIC | F189: Solar_Fixed | G189: SUN | H189: CISO | I189: South | J189: LA Basin | K189: Eastern | N189: 1.5 | Q189: EO | V189: 1 | W189: 24 | X189: 24
A190: CHINO_2_QF | C190: CHINO QFS | E190: OTHER | F190: CHP | G190: OTHER | H190: CISO | I190: South | J190: LA Basin | K190: Eastern | N190: 0.19 | Q190: FC | V190: 1 | W190: 24 | X190: 24
A191: CHINO_2_SASOLR | C191: SS San Antonio West LLC | E191: PHOTO VOLTAIC | F191: Solar_Fixed | G191: SUN | H191: CISO | I191: South | J191: LA Basin | K191: Eastern | N191: 1.5 | Q191: EO | V191: 1 | W191: 24 | X191: 24
A192: CHINO_2_SOLAR | C192: Chino RT Solar 1 | E192: PHOTO VOLTAIC | F192: Solar_Fixed | G192: SUN | H192: CISO | I192: South | J192: LA Basin | K192: Eastern | N192: 1 | Q192: FC | V192: 1 | W192: 24 | X192: 24
A193: CHINO_2_SOLAR2 | C193: Kona Solar - Terra Francesca | E193: PHOTO VOLTAIC | F193: Solar_1Axis | G193: SUN | H193: CISO | I193: South | J193: LA Basin | K193: Eastern | N193: 1.49 | Q193: EO | V193: 1 | W193: 24 | X193: 24
A194: CHINO_6_CIMGEN | C194: Chino Co-Generation | E194: COMBINED CYCLE | F194: CHP | G194: NATURAL GAS | H194: CISO | I194: South | J194: LA Basin | K194: Eastern | M194: 1 | N194: 26 | Q194: FC | V194: 1 | W194: 24 | X194: 24
A195: CHWCHL_1_BIOMAS | C195: Chow II Biomass to Energy | E195: STEAM | F195: Biomass | G195: BIOMASS | H195: CISO | I195: North | J195: Fresno | K195: Herndon, Panoche 115 kV, Wilson 115 kV | N195: 10.8 | Q195: FC | V195: 1 | W195: 24 | X195: 24
A196: CHWCHL_1_UNIT | C196: CHOW 2 PEAKER PLANT | E196: RECIPROCATING ENGINE | F196: Reciprocating Engine | G196: NATURAL GAS | H196: CISO | I196: North | J196: Fresno | K196: Herndon, Panoche 115 kV, Wilson 115 kV | M196: 1 | N196: 48.6 | Q196: FC | V196: 1 | W196: 24 | X196: 24
A197: CLOVDL_1_SOLAR | C197: Cloverdale Solar I | E197: PHOTO VOLTAIC | F197: Solar_Fixed | G197: SUN | H197: CISO | I197: North | J197: NCNB | K197: Eagle Rock, Fulton | N197: 1.5 | Q197: FC | V197: 1 | W197: 24 | X197: 24
A198: CLOVER_2_UNIT | C198: Clover Creek | E198: HYDRO | F198: Hydro | G198: WATER | H198: CISO | I198: North | J198: CAISO System | N198: 0.99 | Q198: FC | V198: 1 | W198: 24 | X198: 24
A199: CLRMTK_1_QF | C199: SMALL QF AGGREGATION - OAKLAND | E199: FTUR | F199: CHP | G199: NATURAL GAS | H199: CISO | I199: North | J199: Bay Area | K199: Oakland | N199: 1.25 | Q199: FC | V199: 1 | W199: 24 | X199: 24
A200: CNTNLA_2_SOLAR1 | C200: Centinela Solar Energy I | E200: PHOTO VOLTAIC | F200: Solar_Fixed | G200: SUN | H200: CISO | I200: South | J200: San Diego-IV | N200: 125 | Q200: FC | V200: 1 | W200: 24 | X200: 24
... 1003 more rows

Sheet Resource NQC
A1: Resource ID | B1: Month | C1: NQC MW
A2: 7STDRD_1_SOLAR1 | B2: 1 | C2: 0.08
A3: 7STDRD_1_SOLAR1 | B3: 2 | C3: 0.6
A4: 7STDRD_1_SOLAR1 | B4: 3 | C4: 0.7
A5: 7STDRD_1_SOLAR1 | B5: 4 | C5: 0.88
A6: 7STDRD_1_SOLAR1 | B6: 5 | C6: 1.28
A7: 7STDRD_1_SOLAR1 | B7: 6 | C7: 2.62
A8: 7STDRD_1_SOLAR1 | B8: 7 | C8: 2.88
A9: 7STDRD_1_SOLAR1 | B9: 8 | C9: 2.48
A10: 7STDRD_1_SOLAR1 | B10: 9 | C10: 2.22
A11: 7STDRD_1_SOLAR1 | B11: 10 | C11: 1.48
